Workbook

Sheet LookupTables
A1: Reach | F1: XSs to Exclude from Reach Avg Hyd | N1: Grade Control Station & Elevation Data
A2: Sub-reach | C2: U/S River Sta (ft) | F2: River Sta | G2: Reason | I2: River Station (ft) | J2: Sub-Reach | K2: HEC-HMS Node | L2: Weighting (fraction) | N2: Name | O2: River Sta (ft) | P2: Insertion Elev. (ft) | Q2: Actual Upper Sill Elevation (ft, NAVD88)
A3: 1999 | B3: 2015 | C3: 1999 | D3: 2013 | F3: (ft) | N3: GCS 1 | O3: 220 | P3: 5300 | Q3: 5296
B4: 0 | D4: 47789.72 | F4: 31163.7 | G4: In pond | I4: 47789.72 | J4: ='Hydro Input'!B5 -> 0 | K4: QR4_I | L4: =(I4-I5)/(I$4-I$6) -> 0.6669563131 | N4: GCS 2 | O4: 410 | P4: 5306 | Q4: 5302
A5: 0 | B5: 1 | C5: 76 | D5: 35867.14 | F5: 31095.11 | G5: Pond dam crest | I5: 39837.88 | J5: ='Hydro Input'!B6 -> 0 | K5: QR3_15 | L5: =(I5-I6)/(I$4-I$6) -> 0.3330436869 | N5: GCS 3 | O5: 640 | P5: 5312 | Q5: 5308
A6: 1 | B6: 2 | C6: 67 | D6: 29468.52 | F6: 29468.52 | G6: In Quail Ranch pond | I6: 35867.14 | J6: ='Hydro Input'!B7 -> 1 | K6: QR3_20 | L6: 1 | N6: GCS 4 | O6: 930 | P6: 5318 | Q6: 5314
A7: 2 | B7: 3 | C7: 52 | D7: 23305.7 | F7: 29203.96 | G7: Quail Ranch Pond dam crest | I7: 29468.52 | J7: ='Hydro Input'!B8 -> 2 | K7: QR3_24 | L7: 1 | N7: GCS 5 | O7: 1880 | P7: 5334 | Q7: 5329.32
A8: 3 | B8: 4 | C8: 40 | D8: 19072.78 | F8: 5371.243 | G8: Immediately U/S of culvert | I8: 23305.7 | J8: ='Hydro Input'!B9 -> 3 | K8: QR3_25_PW4 | L8: 1 | N8: GCS 6 | O8: 2291 | P8: 5342 | Q8: 5334.01
A9: 4 | B9: 5 | C9: 32 | D9: 15360.13 | F9: 5238 | G9: Culvert | I9: 15360.13 | J9: ='Hydro Input'!B10 -> 5 | K9: PW1_12 | L9: 1 | N9: Kayenta | O9: =2817.6+24.6 -> 2842.2 | Q9: 5345.27
A10: 5 | B10: 6 | C10: 25 | D10: 11102.16 | F10: 5047.175 | G10: Immediately D/S of culvert | I10: 11102.16 | J10: ='Hydro Input'!B11 -> 6 | K10: PW_VRW3 | L10: 1 | N10: GCS 7 | O10: 3147 | P10: 5358 | Q10: =5350.5+2.54 -> 5353.04
A11: 6 | B11: 7 | C11: 17 | D11: 6533.169 | F11: 2817.552 | G11: Immediately U/S of culvert | I11: 6533.169 | J11: ='Hydro Input'!B12 -> 7 | K11: PW14_VRW3 | L11: =(I11-I12)/(I$11-I$13) -> 0.5067319578 | N11: GCS 8 | O11: 3770 | P11: 5370 | Q11: =5361+2.54 -> 5363.54
A12: 7 | B12: 8 | C12: 16 | D12: 3600.664 | F12: 2700 | G12: Culvert | I12: 5047.175 | J12: ='Hydro Input'!B13 -> 7 | K12: VR_TVI_PW | L12: =(I12-I13)/(I$11-I$13) -> 0.4932680422 | N12: GCS 9 | O12: 4350 | P12: 5382 | Q12: =5371.6+2.54 -> 5374.14
A13: 8 | B13: 9 | C13: 4 | D13: 1099.06 | F13: 2597.97 | G13: Immediately D/S of culvert | I13: 3600.664 | J13: ='Hydro Input'!B14 -> 8 | K13: VR_TVI_PW_SEV | L13: 1 | N13: GCS 10 | O13: 4760 | P13: 5386 | Q13: =5382.7+2.54 -> 5385.24
I14: 1099.06 | J14: ='Hydro Input'!B15 -> 9 | K14: SWINBURNE_INFLOW | L14: 1 | N14: GCS 11 | O14: 5120 | P14: 5394 | Q14: =5389.91+2.54 -> 5392.45

Sheet Hydro Input
A1: Hydrology Based On Flow Change Locations
D2: Peak Flow (cfs) | V2: Runoff Volume (Acre-feet)
A3: River Station (ft) | B3: Sub-Reach | C3: HEC-HMS Node | D3: ECM (modified) | J3: DCM #1 | P3: DCM #2 | V3: ECM (modified) | AB3: DCM #1 | AH3: DCM #2
D4: 2 YR | E4: 5 YR | F4: 10 YR | G4: 25 YR | H4: 50 YR | I4: 100 YR | J4: 2 YR | K4: 5 YR | L4: 10 YR | M4: 25 YR | N4: 50 YR | O4: 100 YR | P4: 2 YR | Q4: 5 YR | R4: 10 YR | S4: 25 YR | T4: 50 YR | U4: 100 YR | V4: 2 YR | W4: 5 YR | X4: 10 YR | Y4: 25 YR | Z4: 50 YR | AA4: 100 YR | AB4: 2 YR | AC4: 5 YR | AD4: 10 YR | AE4: 25 YR | AF4: 50 YR | AG4: 100 YR | AH4: 2 YR | AI4: 5 YR | AJ4: 10 YR | AK4: 25 YR | AL4: 50 YR | AM4: 100 YR
A5: 47789.72 | B5: =INDEX(LookupTables!B$4:B$13,MATCH('Hydro Input'!A5,LookupTables!D$4:D$13,-1)) -> 0 | C5: QR4_I | J5: 116.9 | K5: 180.3 | L5: 228.1 | M5: 286.8 | N5: 331.3 | O5: 378.1 | AB5: 10.4 | AC5: 15.1 | AD5: 18.6 | AE5: 22.8 | AF5: 25.9 | AG5: 29.1
A6: 39837.88 | B6: =INDEX(LookupTables!B$4:B$13,MATCH('Hydro Input'!A6,LookupTables!D$4:D$13,-1)) -> 0 | C6: QR3_15 | J6: 758.5 | K6: 1174.9 | L6: 1525.2 | M6: 2007.1 | N6: 2401.3 | O6: 2840.1 | AB6: 60.9 | AC6: 93.1 | AD6: 119.7 | AE6: 154.7 | AF6: 181.6 | AG6: 210.5
A7: 35867.14 | B7: =INDEX(LookupTables!B$4:B$13,MATCH('Hydro Input'!A7,LookupTables!D$4:D$13,-1)) -> 1 | C7: QR3_20 | J7: 791.3 | K7: 1188.6 | L7: 1511.6 | M7: 1937.7 | N7: 2278.5 | O7: 2651.4 | AB7: 70.6 | AC7: 106.7 | AD7: 136.2 | AE7: 174.2 | AF7: 203.1 | AG7: 233.9
A8: 29468.52 | B8: =INDEX(LookupTables!B$4:B$13,MATCH('Hydro Input'!A8,LookupTables!D$4:D$13,-1)) -> 2 | C8: QR3_24 | J8: 1227.8 | K8: 1873.1 | L8: 2394.7 | M8: 3094.3 | N8: 3662.1 | O8: 4287.5 | AB8: 115.9 | AC8: 174.2 | AD8: 221.6 | AE8: 282.8 | AF8: 329.4 | AG8: 379.1
A9: 23305.7 | B9: =INDEX(LookupTables!B$4:B$13,MATCH('Hydro Input'!A9,LookupTables!D$4:D$13,-1)) -> 3 | C9: QR3_25_PW4 | J9: 1272.7 | K9: 1939.5 | L9: 2472.6 | M9: 3181.1 | N9: 3753.8 | O9: 4381.4 | AB9: 125.3 | AC9: 187.6 | AD9: 238 | AE9: 303.2 | AF9: 352.7 | AG9: 405.6
A10: 15360.13 | B10: =INDEX(LookupTables!B$4:B$13,MATCH('Hydro Input'!A10,LookupTables!D$4:D$13,-1)) -> 5 | C10: PW1_12 | J10: 1692.3 | K10: 2633.9 | L10: 3394.7 | M10: 4392.8 | N10: 5199.7 | O10: 6084.8 | AB10: 199.8 | AC10: 299 | AD10: 378.8 | AE10: 481.7 | AF10: 559.6 | AG10: 642.7
A11: 11102.16 | B11: =INDEX(LookupTables!B$4:B$13,MATCH('Hydro Input'!A11,LookupTables!D$4:D$13,-1)) -> 6 | C11: PW_VRW3 | J11: 1720.7 | K11: 2686 | L11: 3467.3 | M11: 4490.7 | N11: 5315.4 | O11: 6217.4 | AB11: 207.9 | AC11: 310.9 | AD11: 393.7 | AE11: 500.5 | AF11: 581.3 | AG11: 667.5
A12: 6533.169 | B12: =INDEX(LookupTables!B$4:B$13,MATCH('Hydro Input'!A12,LookupTables!D$4:D$13,-1)) -> 7 | C12: PW14_VRW3 | J12: 1814.7 | K12: 2852.7 | L12: 3693.1 | M12: 4784.3 | N12: 5663.5 | O12: 6619.3 | AB12: 230.6 | AC12: 343.7 | AD12: 434.4 | AE12: 551.1 | AF12: 639.4 | AG12: 733.7
A13: 5047.175 | B13: =INDEX(LookupTables!B$4:B$13,MATCH('Hydro Input'!A13,LookupTables!D$4:D$13,-1)) -> 7 | C13: VR_TVI_PW | J13: 1855.4 | K13: 2930.3 | L13: 3796.7 | M13: 4919.8 | N13: 5821.7 | O13: 6801.9 | AB13: 241.5 | AC13: 359.5 | AD13: 453.9 | AE13: 575.5 | AF13: 667.4 | AG13: 765.5
A14: 3600.664 | B14: =INDEX(LookupTables!B$4:B$13,MATCH('Hydro Input'!A14,LookupTables!D$4:D$13,-1)) -> 8 | C14: VR_TVI_PW_SEV | J14: 1865.5 | K14: 2950.4 | L14: 3824.4 | M14: 4954.5 | N14: 5863.9 | O14: 6852.6 | AB14: 245.3 | AC14: 364.9 | AD14: 460.5 | AE14: 583.6 | AF14: 676.8 | AG14: 776.3
A15: 1099.06 | B15: =INDEX(LookupTables!B$4:B$13,MATCH('Hydro Input'!A15,LookupTables!D$4:D$13,-1)) -> 9 | C15: SWINBURNE_INFLOW | J15: 1930.5 | K15: 3025.6 | L15: 3906.7 | M15: 5045.6 | N15: 5959.6 | O15: 6951.3 | AB15: 296.1 | AC15: 440.9 | AD15: 556.8 | AE15: 706.3 | AF15: 819.6 | AG15: 940.6
A18: Flow into Geomorphic/Hydraulic Sub-Reaches
D19: Peak Flow (cfs) | V19: Runoff Volume (Acre-feet)
B20: Sub-Reach | C20: U/S Bounding River Station (ft) | D20: ECM (modified) | J20: DCM #1 | P20: DCM #2 | V20: ECM (modified) | AB20: DCM #1 | AH20: DCM #2
D21: 2 YR | E21: 5 YR | F21: 10 YR | G21: 25 YR | H21: 50 YR | I21: 100 YR | J21: 2 YR | K21: 5 YR | L21: 10 YR | M21: 25 YR | N21: 50 YR | O21: 100 YR | P21: 2 YR | Q21: 5 YR | R21: 10 YR | S21: 25 YR | T21: 50 YR | U21: 100 YR | V21: 2 YR | W21: 5 YR | X21: 10 YR | Y21: 25 YR | Z21: 50 YR | AA21: 100 YR | AB21: 2 YR | AC21: 5 YR | AD21: 10 YR | AE21: 25 YR | AF21: 50 YR | AG21: 100 YR | AH21: 2 YR | AI21: 5 YR | AJ21: 10 YR | AK21: 25 YR | AL21: 50 YR | AM21: 100 YR
B22: 0 | C22: =VLOOKUP(B22,LookupTables!B4:D$13,3,FALSE) -> 47789.72 | J22: =INDEX(J$5:J$15,MATCH($C22,$A$5:$A$15,-1)) -> 116.9 | K22: =INDEX(K$5:K$15,MATCH($C22,$A$5:$A$15,-1)) -> 180.3 | L22: 228.1 | M22: 286.8 | N22: 331.3 | O22: 378.1 | AB22: =INDEX(AB$5:AB$15,MATCH($C22,$A$5:$A$15,-1)) -> 10.4 | AC22: =INDEX(AC$5:AC$15,MATCH($C22,$A$5:$A$15,-1)) -> 15.1 | AD22: 18.6 | AE22: 22.8 | AF22: 25.9 | AG22: 29.1
B23: 1 | C23: =VLOOKUP(B23,LookupTables!B5:D$13,3,FALSE) -> 35867.14 | J23: =INDEX(J$5:J$15,MATCH($C23,$A$5:$A$15,-1)) -> 791.3 | K23: 1188.6 | L23: 1511.6 | M23: 1937.7 | N23: 2278.5 | O23: 2651.4 | AB23: =INDEX(AB$5:AB$15,MATCH($C23,$A$5:$A$15,-1)) -> 70.6 | AC23: 106.7 | AD23: 136.2 | AE23: 174.2 | AF23: 203.1 | AG23: 233.9
B24: 2 | C24: =VLOOKUP(B24,LookupTables!B6:D$13,3,FALSE) -> 29468.52 | J24: 1227.8 | K24: 1873.1 | L24: 2394.7 | M24: 3094.3 | N24: 3662.1 | O24: 4287.5 | AB24: 115.9 | AC24: 174.2 | AD24: 221.6 | AE24: 282.8 | AF24: 329.4 | AG24: 379.1
B25: 3 | C25: =VLOOKUP(B25,LookupTables!B7:D$13,3,FALSE) -> 23305.7 | J25: 1272.7 | K25: 1939.5 | L25: 2472.6 | M25: 3181.1 | N25: 3753.8 | O25: 4381.4 | AB25: 125.3 | AC25: 187.6 | AD25: 238 | AE25: 303.2 | AF25: 352.7 | AG25: 405.6
B26: 4 | C26: =VLOOKUP(B26,LookupTables!B8:D$13,3,FALSE) -> 19072.78 | J26: 1272.7 | K26: 1939.5 | L26: 2472.6 | M26: 3181.1 | N26: 3753.8 | O26: 4381.4 | AB26: 125.3 | AC26: 187.6 | AD26: 238 | AE26: 303.2 | AF26: 352.7 | AG26: 405.6
B27: 5 | C27: =VLOOKUP(B27,LookupTables!B9:D$13,3,FALSE) -> 15360.13 | J27: 1692.3 | K27: 2633.9 | L27: 3394.7 | M27: 4392.8 | N27: 5199.7 | O27: 6084.8 | AB27: 199.8 | AC27: 299 | AD27: 378.8 | AE27: 481.7 | AF27: 559.6 | AG27: 642.7
B28: 6 | C28: =VLOOKUP(B28,LookupTables!B10:D$13,3,FALSE) -> 11102.16 | J28: 1720.7 | K28: 2686 | L28: 3467.3 | M28: 4490.7 | N28: 5315.4 | O28: 6217.4 | AB28: 207.9 | AC28: 310.9 | AD28: 393.7 | AE28: 500.5 | AF28: 581.3 | AG28: 667.5
B29: 7 | C29: =VLOOKUP(B29,LookupTables!B11:D$13,3,FALSE) -> 6533.169 | J29: 1814.7 | K29: 2852.7 | L29: 3693.1 | M29: 4784.3 | N29: 5663.5 | O29: 6619.3 | AB29: 230.6 | AC29: 343.7 | AD29: 434.4 | AE29: 551.1 | AF29: 639.4 | AG29: 733.7
B30: 8 | C30: =VLOOKUP(B30,LookupTables!B12:D$13,3,FALSE) -> 3600.664 | J30: 1865.5 | K30: 2950.4 | L30: 3824.4 | M30: 4954.5 | N30: 5863.9 | O30: 6852.6 | AB30: 245.3 | AC30: 364.9 | AD30: 460.5 | AE30: 583.6 | AF30: 676.8 | AG30: 776.3
B31: 9 | C31: =VLOOKUP(B31,LookupTables!B13:D$13,3,FALSE) -> 1099.06 | J31: 1930.5 | K31: 3025.6 | L31: 3906.7 | M31: 5045.6 | N31: 5959.6 | O31: 6951.3 | AB31: 296.1 | AC31: 440.9 | AD31: 556.8 | AE31: 706.3 | AF31: 819.6 | AG31: 940.6
A34: Geomorphic/Hydraulic Sub-Reaches Weighted Average Flows
D35: Peak Flow (cfs) | V35: Runoff Volume (Acre-feet)
A36: Sub-Reach | B36: Length (ft) | C36: U/S Bounding River Station (ft) | D36: ECM (modified) | J36: DCM #1 | P36: DCM #2 | V36: ECM (modified) | AB36: DCM #1 | AH36: DCM #2
D37: 2 YR | E37: 5 YR | F37: 10 YR | G37: 25 YR | H37: 50 YR | I37: 100 YR | J37: 2 YR | K37: 5 YR | L37: 10 YR | M37: 25 YR | N37: 50 YR | O37: 100 YR | P37: 2 YR | Q37: 5 YR | R37: 10 YR | S37: 25 YR | T37: 50 YR | U37: 100 YR | V37: 2 YR | W37: 5 YR | X37: 10 YR | Y37: 25 YR | Z37: 50 YR | AA37: 100 YR | AB37: 2 YR | AC37: 5 YR | AD37: 10 YR | AE37: 25 YR | AF37: 50 YR | AG37: 100 YR | AH37: 2 YR | AI37: 5 YR | AJ37: 10 YR | AK37: 25 YR | AL37: 50 YR | AM37: 100 YR
A38: 0 | B38: =C38-C39 -> 11922.58 | C38: =C22 -> 47789.72 | J38: =J5*($A5-$A6)/$B38+J6*($A6-$A7)/$B38 -> 330.5808295 | K38: =K5*($A5-$A6)/$B38+K6*($A6-$A7)/$B38 -> 511.5452509 | L38: 660.0909662 | M38: 859.7350545 | N38: 1020.700432 | O38: =O5*($A5-$A6)/$B38+O6*($A6-$A7)/$B38 -> 1198.053557
A39: 1 | B39: =C39-C40 -> 6398.62 | C39: =C23 -> 35867.14 | J39: =J7 -> 791.3 | K39: =K7 -> 1188.6 | L39: 1511.6 | M39: 1937.7 | N39: 2278.5 | O39: 2651.4
A40: 2 | B40: 6162.82 | C40: 29468.52 | J40: =J8 -> 1227.8 | K40: =K8 -> 1873.1 | L40: 2394.7 | M40: 3094.3 | N40: 3662.1 | O40: 4287.5
A41: 3 | B41: 4232.92 | C41: 23305.7 | J41: =J9 -> 1272.7 | K41: =K9 -> 1939.5 | L41: 2472.6 | M41: 3181.1 | N41: 3753.8 | O41: 4381.4
A42: 4 | B42: 3712.65 | C42: 19072.78 | J42: =J9 -> 1272.7 | K42: =K9 -> 1939.5 | L42: 2472.6 | M42: 3181.1 | N42: 3753.8 | O42: 4381.4
A43: 5 | B43: 4257.97 | C43: 15360.13 | J43: =J10 -> 1692.3 | K43: =K10 -> 2633.9 | L43: 3394.7 | M43: 4392.8 | N43: 5199.7 | O43: 6084.8
A44: 6 | B44: 4568.991 | C44: 11102.16 | J44: =J11 -> 1720.7 | K44: =K11 -> 2686 | L44: 3467.3 | M44: 4490.7 | N44: 5315.4 | O44: 6217.4
A45: 7 | B45: 2932.505 | C45: 6533.169 | J45: =J12*($A12-$A13)/$B45+J13*($A13-$A14)/$B45 -> 1834.776009 | K45: =K12*($A12-$A13)/$B45+K13*($A13-$A14)/$B45 -> 2890.9776 | L45: 3744.202569 | M45: 4851.13782 | N45: 5741.535004 | O45: 6709.370745
A46: 8 | B46: 2501.604 | C46: 3600.664 | J46: =J14 -> 1865.5 | K46: =K14 -> 2950.4 | L46: 3824.4 | M46: 4954.5 | N46: 5863.9 | O46: 6852.6
A47: 9 | B47: 1099.06 | C47: 1099.06 | J47: =J15 -> 1930.5 | K47: =K15 -> 3025.6 | L47: 3906.7 | M47: 5045.6 | N47: 5959.6 | O47: 6951.3
C48: 0

Sheet HMS
A1: FID_ | B1: OBJECTID_1 | C1: OBJECTID | D1: Shape_Leng | E1: HydroID | F1: Name | G1: Sq_Mi | H1: InPoly_FID | I1: SmoPgnFlag | J1: Shape_Le_1 | K1: Shape_Area | L1: HMS_Model | M1: Notes | N1: CNAvg | O1: Impervious | P1: Pervious | Q1: CNNewAvg | R1: Sq_Mi_NEW | S1: Sub-Basin | T1: % Imperv. | U1: Imperv. Area New (sq. mi.)
B2: 1 | C2: 1 | D2: 31560.02743 | E2: 1283 | F2: QR25 | G2: 0.2335588199 | H2: 0 | I2: 0 | J2: 15044.31799 | K2: 6511246.203 | L2: Existing & Developed | N2: 62 | O2: 0.1024 | P2: 0.131159 | Q2: 62 | R2: 0.2335588199 | S2: 3 | T2: =O2/G2*100 -> 43.84334535 | U2: =T2/100*R2 -> 0.1024
B3: 2 | C3: 2 | D3: 34460.03344 | E3: 1284 | F3: VRW1 | G3: 0.3016068824 | H3: 1 | I3: 0 | J3: 14231.61955 | K3: 8408317.31 | L3: Existing & Developed | N3: 68 | O3: 0.1587 | P3: 0.142907 | Q3: 69 | R3: 0.3316637008 | S3: 9 | T3: =O3/G3*100 -> 52.61816266 | U3: =T3/100*R3 -> 0.1745153456
B4: 3 | C4: 3 | D4: 18560.01537 | E4: 1285 | F4: VR2 | G4: 0.2503102419 | H4: 2 | I4: 0 | J4: 12965.35668 | K4: 6978249.046 | L4: Existing & Developed | N4: 62 | O4: 0.1377 | P4: 0.11261 | Q4: 62 | R4: 0.2503102419 | S4: 9 | T4: 55.01173223 | U4: 0.1377
B5: 4 | C5: 4 | D5: 37380.04466 | E5: 1286 | F5: PW3 | G5: 0.3454956803 | H5: 3 | I5: 0 | J5: 13669.43733 | K5: 9631866.773 | L5: Existing & Developed | N5: 71 | O5: 0.1536 | P5: 0.191896 | Q5: 71 | R5: 0.3454956803 | S5: 4 | T5: 44.45786409 | U5: 0.1536
B6: 5 | C6: 5 | D6: 18800.01817 | E6: 1288 | F6: PW15 | G6: 0.401104749 | H6: 4 | I6: 0 | J6: 18049.79388 | K6: 11182158.63 | L6: Existing & Developed | N6: 56 | O6: 0.2323 | P6: 0.168805 | Q6: 56 | R6: 0.401104749 | S6: 6 | T6: 57.91504603 | U6: 0.2323
B7: 6 | C7: 6 | D7: 20420.01822 | E7: 1290 | F7: SEV1 | G7: 0.1696466536 | H7: 5 | I7: 0 | J7: 9595.158151 | K7: 4729477.266 | L7: Existing & Developed | N7: 55 | O7: 0.072 | P7: 0.0976467 | Q7: 55 | R7: 0.1696466536 | S7: 8 | T7: 42.44115548 | U7: 0.072
B8: 7 | C8: 7 | D8: 39860.03445 | E8: 1291 | F8: PW14.1 | G8: 0.2124211481 | H8: 6 | I8: 0 | J8: 16689.48653 | K8: 5921961.734 | L8: Existing & Developed | N8: 67 | O8: 0.1245 | P8: 0.0879212 | Q8: 67 | R8: 0.2124211481 | S8: 6 | T8: 58.60998357 | U8: 0.1245
B9: 8 | C9: 8 | D9: 22340.017 | E9: 1292 | F9: PW5 | G9: 0.1806422287 | H9: 7 | I9: 0 | J9: 11588.75525 | K9: 5036016.307 | L9: Existing & Developed | N9: 62 | O9: 0.1171 | P9: 0.0635422 | Q9: 62 | R9: 0.1806422287 | S9: 4 | T9: 64.82426666 | U9: 0.1171
B10: 9 | C10: 9 | D10: 30920.02805 | E10: 1293 | F10: PW10 | G10: 0.408029733 | H10: 8 | I10: 0 | J10: 20357.33384 | K10: 11375216.11 | L10: Existing & Developed | N10: 67 | O10: 0.2594 | P10: 0.14863 | Q10: 67 | R10: 0.408029733 | S10: 4 | T10: 63.57379844 | U10: 0.2594
B11: 10 | C11: 10 | D11: 23280.01971 | E11: 1294 | F11: PW8 | G11: 0.133088307 | H11: 9 | I11: 0 | J11: 15846.92323 | K11: 3710289.058 | L11: Existing & Developed | N11: 60 | O11: 0.072 | P11: 0.0610883 | Q11: 60 | R11: 0.133088307 | S11: 4 | T11: 54.09941836 | U11: 0.072
B12: 11 | C12: 11 | D12: 19820.01942 | E12: 1295 | F12: PW12 | G12: 0.3456570302 | H12: 10 | I12: 0 | J12: 15663.47085 | K12: 9636364.951 | L12: Existing & Developed | N12: 73 | O12: 0.2062 | P12: 0.139457 | Q12: 73 | R12: 0.3456570302 | S12: 4 | T12: 59.65450778 | U12: 0.2062
B13: 12 | C13: 12 | D13: 30400.02516 | E13: 1296 | F13: QR24 | G13: 0.4060614901 | H13: 11 | I13: 1 | J13: 25209.78432 | K13: 11320344.64 | L13: Existing & Developed | N13: 66 | O13: 0.1995 | P13: 0.206561 | Q13: 66 | R13: 0.4060614901 | S13: 2 | T13: 49.13049005 | U13: 0.1995
B14: 13 | C14: 13 | D14: 29060.02324 | E14: 1297 | F14: QR23 | G14: 0.4644831668 | H14: 12 | I14: 0 | J14: 22492.58339 | K14: 12949047.52 | L14: Existing & Developed | N14: 66 | O14: 0.238 | P14: 0.226483 | Q14: 66 | R14: 0.4644831668 | S14: 2 | T14: 51.2397471 | U14: 0.238
B15: 14 | C15: 14 | D15: 19760.01494 | E15: 1298 | F15: PW4 | G15: 0.4221537568 | H15: 13 | I15: 0 | J15: 17116.1555 | K15: 11768971.29 | L15: Existing & Developed | N15: 56 | O15: 0.2035 | P15: 0.218654 | Q15: 56 | R15: 0.4221537568 | S15: 3 | T15: 48.20518513 | U15: 0.2035
B16: 15 | C16: 15 | D16: 34340.03565 | E16: 1299 | F16: PW6 | G16: 0.4549699379 | H16: 14 | I16: 1 | J16: 19866.28757 | K16: 12683833.92 | L16: Existing & Developed | N16: 77 | O16: 0.2457 | P16: 0.20927 | Q16: 77 | R16: 0.4549699379 | S16: 4 | T16: 54.00356804 | U16: 0.2457
B17: 16 | C17: 16 | D17: 33000.02849 | E17: 1301 | F17: QR8 | G17: 0.3193288125 | H17: 15 | I17: 0 | J17: 25518.27041 | K17: 8902376.365 | L17: Existing & SSCAFCA | N17: 69 | O17: 0.1122 | P17: 0.207129 | Q17: 69 | R17: 0.3193288125 | S17: 1 | T17: 35.1361968 | U17: 0.1122
B18: 17 | C18: 17 | D18: 33460.03347 | E18: 1302 | F18: QR7 | G18: 0.4702526134 | H18: 16 | I18: 0 | J18: 26130.5175 | K18: 13109890.45 | L18: Existing & SSCAFCA | N18: 69 | O18: 0.1862 | P18: 0.284053 | Q18: 69 | R18: 0.4702526134 | S18: 1 | T18: 39.59573955 | U18: 0.1862
B19: 18 | C19: 18 | D19: 18540.0141 | E19: 1303 | F19: QR15 | G19: 0.1294678911 | H19: 17 | I19: 0 | J19: 11155.21548 | K19: 3609357.655 | L19: Existing & SSCAFCA | N19: 72 | O19: 0.0627 | P19: 0.0667679 | Q19: 72 | R19: 0.1294678911 | S19: 1 | T19: 48.42899615 | U19: 0.0627
B20: 19 | C20: 19 | D20: 35040.02638 | E20: 1304 | F20: QR9 | G20: 0.4291632615 | H20: 18 | I20: 0 | J20: 25091.67184 | K20: 11964385.07 | L20: Existing & SSCAFCA | N20: 72 | O20: 0.2011 | P20: 0.228063 | Q20: 72 | R20: 0.6310889964 | S20: 1 | T20: 46.85862422 | U20: 0.2957196213
B21: 20 | C21: 20 | D21: 36400.02956 | E21: 1305 | F21: QR4 | G21: 0.473225286 | H21: 19 | I21: 0 | J21: 27342.03738 | K21: 13192763.81 | L21: Existing & SSCAFCA | N21: 70 | O21: 0.2252 | P21: 0.248025 | Q21: 70 | R21: 0.4685903743 | S21: 0 | T21: 47.58832773 | U21: 0.222994323
B22: 21 | C22: 21 | D22: 31920.0313 | E22: 1306 | F22: QR6 | G22: 0.2805553968 | H22: 20 | I22: 0 | J22: 24348.76608 | K22: 7821435.572 | L22: Existing & SSCAFCA | N22: 72 | O22: 0.1436 | P22: 0.136955 | Q22: 72 | R22: 0.2805553968 | S22: 1 | T22: 51.18418739 | U22: 0.1436
B23: 28 | C23: 28 | D23: 10900.00838 | E23: 1323 | F23: PW11 | G23: 0.1213642692 | H23: 27 | I23: 0 | J23: 9718.705783 | K23: 3383441.643 | L23: Existing & Developed | N23: 81 | O23: 0.0795 | P23: 0.0418643 | Q23: 81 | R23: 0.1268851299 | S23: 9 | T23: 65.50527639 | U23: 0.08311645505
B24: 29 | C24: 29 | D24: 20000.0184 | E24: 1324 | F24: QR20 | G24: 0.2318659132 | H24: 28 | I24: 1 | J24: 16203.42232 | K24: 6464050.674 | L24: Existing & Developed | N24: 71 | O24: 0.1753 | P24: 0.0565659 | Q24: 71 | R24: 0.3203374658 | S24: 1 | T24: 75.60404096 | U24: 0.2421880688
B25: 30 | C25: 30 | D25: 23460.02067 | E25: 1325 | F25: QR3 | G25: 0.1955361958 | H25: 29 | I25: 0 | J25: 18133.64641 | K25: 5451236.279 | L25: Existing & SSCAFCA | N25: 68 | O25: 0.0952 | P25: 0.100336 | Q25: 68 | R25: 0.1955361958 | S25: 1 | T25: 48.68663811 | U25: 0.0952
B26: 31 | C26: 31 | D26: 23060.02868 | E26: 1327 | F26: VR6 | G26: 0.1927327847 | H26: 30 | I26: 0 | J26: 13258.94408 | K26: 5373081.665 | L26: Existing & Developed | N26: 81 | O26: 0.0627 | P26: 0.130033 | Q26: 81 | R26: 0.1927327847 | S26: 9 | T26: 32.53208845 | U26: 0.0627
B27: 32 | C27: 32 | D27: 15760.0131 | E27: 1328 | F27: VR7 | G27: 0.1938373585 | H27: 31 | I27: 0 | J27: 12347.8273 | K27: 5403875.416 | L27: Existing & Developed | N27: 62 | O27: 0.0975 | P27: 0.0963374 | Q27: 62 | R27: 0.1938373585 | S27: 9 | T27: 50.29990129 | U27: 0.0975
B28: 33 | C28: 33 | D28: 22740.01882 | E28: 1329 | F28: VRW2 | G28: 0.2003121114 | H28: 32 | I28: 0 | J28: 14410.68354 | K28: 5584381.165 | L28: Existing & Developed | N28: 64 | O28: 0.1139 | P28: 0.0864121 | Q28: 64 | R28: 0.2003121114 | S28: 9 | T28: 56.86126476 | U28: 0.1139
B29: 34 | C29: 34 | D29: 26320.0261 | E29: 1330 | F29: VRW3 | G29: 0.3502970527 | H29: 33 | I29: 0 | J29: 17418.45084 | K29: 9765721.352 | L29: Existing & Developed | N29: 66 | O29: 0.1758 | P29: 0.174497 | Q29: 66 | R29: 0.3502970527 | S29: 5 | T29: 50.18597749 | U29: 0.1758
B30: 35 | C30: 35 | D30: 32680.037 | E30: 1331 | F30: VR4 | G30: 0.2496939869 | H30: 34 | I30: 0 | J30: 13165.76274 | K30: 6961068.843 | L30: Existing & Developed | N30: 75 | O30: 0.1336 | P30: 0.116094 | Q30: 75 | R30: 0.2531599869 | S30: 9 | T30: 53.50549353 | U30: 0.1354545004
B31: 36 | C31: 36 | D31: 13800.01374 | E31: 1333 | F31: TVI1 | G31: 0.09593045563 | H31: 35 | I31: 0 | J31: 7733.926429 | K31: 2674387.614 | L31: Existing & Developed | N31: 55 | O31: 0.05 | P31: 0.0459305 | Q31: 55 | R31: 0.09593045563 | S31: 7 | T31: 52.12109092 | U31: 0.05
B32: 37 | C32: 37 | D32: 36720.0368 | E32: 1334 | F32: PW7 | G32: 0.4752885966 | H32: 36 | I32: 1 | J32: 17018.78874 | K32: 13250285.61 | L32: Existing & Developed | N32: 72 | O32: 0.2944 | P32: 0.180889 | Q32: 72 | R32: 0.4752885966 | S32: 4 | T32: 61.94131357 | U32: 0.2944
B33: 38 | C33: 38 | D33: 28540.02888 | E33: 1335 | F33: VR5 | G33: 0.257639606 | H33: 37 | I33: 0 | J33: 16756.48751 | K33: 7182579.99 | L33: Existing & Developed | N33: 60 | O33: 0.1379 | P33: 0.11974 | Q33: 60 | R33: 0.257639606 | S33: 7 | T33: 53.52437933 | U33: 0.1379
B34: 39 | C34: 39 | D34: 35040.02638 | E34: 1287 | F34: QR21 | G34: 0.2923725483 | H34: 38 | I34: 1 | J34: 18251.66912 | K34: 8150878.849 | L34: Existing & Developed | N34: 72 | O34: 0.163 | P34: 0.129373 | Q34: 72 | R34: 0.3261331062 | S34: 2 | T34: 55.75078815 | U34: 0.1818217771
B35: 43 | C35: 43 | D35: 37380.04466 | E35: 1312 | F35: QR27 | G35: 0.1403024561 | H35: 42 | I35: 0 | J35: 14718.88103 | K35: 3911407.992 | L35: Existing & Developed | N35: 72 | O35: 0.0925 | P35: 0.0478025 | Q35: 72 | R35: 0.1403024561 | S35: 4 | T35: 65.92899551 | U35: 0.0925
B36: 44 | C36: 44 | D36: 40120.03787 | E36: 1280 | F36: QR26 | G36: 0.1482366285 | H36: 43 | I36: 0 | J36: 17877.94173 | K36: 4132600.023 | L36: Existing & Developed | N36: 72 | O36: 0.0977 | P36: 0.0505366 | Q36: 72 | R36: 0.2343210992 | S36: 4 | T36: 65.90813687 | U36: 0.1544366708
B37: 45 | C37: 45 | D37: 39860.03445 | E37: 1314 | F37: PW13 | G37: 0.05506993954 | H37: 44 | I37: 0 | J37: 7251.329771 | K37: 1535261.802 | L37: Existing & Developed | N37: 66 | O37: 0.0313 | P37: 0.0237699 | Q37: 66 | R37: 0.05506993954 | S37: 6 | T37: 56.83681563 | U37: 0.0313
B38: 46 | C38: 46 | D38: 18800.01817 | E38: 1315 | F38: VR3 | G38: 0.3275587819 | H38: 45 | I38: 0 | J38: 21690.02459 | K38: 9131814.745 | L38: Existing & Developed | N38: 66 | O38: 0.1746 | P38: 0.152959 | Q38: 66 | R38: 0.3275587819 | S38: 9 | T38: 53.30340984 | U38: 0.1746
B39: 47 | C39: 47 | D39: 34460.03344 | E39: 1316 | F39: VR1 | G39: 0.07966511827 | H39: 46 | I39: 0 | J39: 10229.7893 | K39: 2220936.033 | L39: Existing & Developed | N39: 74 | O39: 0.0466 | P39: 0.0330651 | Q39: 74 | R39: 0.08561710846 | S39: 9 | T39: 58.49486075 | U39: 0.05008160838
B40: 48 | C40: 48 | D40: 20420.01822 | E40: 1317 | F40: SEV2 | G40: 0.05524918208 | H40: 47 | I40: 0 | J40: 6748.332709 | K40: 1540258.797 | L40: Existing & Developed | N40: 55 | O40: 0.0076 | P40: 0.0476492 | Q40: 55 | R40: 0.05524918208 | S40: 9 | T40: 13.75585975 | U40: 0.0076
B41: 52 | C41: 52 | D41: 22340.017 | E41: 1321 | F41: PW9 | G41: 0.1203254231 | H41: 51 | I41: 0 | J41: 7921.257048 | K41: 3354480.274 | L41: Existing & Developed | N41: 68 | O41: 0.0738 | P41: 0.0465254 | Q41: 68 | R41: 0.1203254231 | S41: 4 | T41: 61.33367174 | U41: 0.0738
B42: 53 | C42: 53 | D42: 34340.03565 | E42: 1322 | F42: PW1 | G42: 0.09994814432 | H42: 52 | I42: 1 | J42: 9052.962507 | K42: 2786394.346 | L42: Existing & Developed | N42: 72 | O42: 0.0659 | P42: 0.0340481 | Q42: 72 | R42: 0.1035651474 | S42: 4 | T42: 65.93419063 | U42: 0.06828484173
B43: 54 | C43: 54 | D43: 36720.0368 | E43: 1326 | F43: PW2 | G43: 0.1004735341 | H43: 53 | I43: 1 | J43: 8967.010927 | K43: 2801041.372 | L43: Existing & Developed | N43: 72 | O43: 0.0511 | P43: 0.0493735 | Q43: 72 | R43: 0.1004735341 | S43: 4 | T43: 50.85916453 | U43: 0.0511
B44: 57 | C44: 57 | D44: 18800.01817 | E44: 1394 | F44: PW15.1 | G44: 0.02330819542 | H44: 4 | I44: 0 | J44: 5688.269547 | K44: 649795.1952 | L44: Existing & Developed | N44: 56 | O44: 0.0144 | P44: 0.0089082 | Q44: 56 | R44: 0.02330819542 | S44: 6 | T44: 61.78084463 | U44: 0.0144
B45: 58 | C45: 58 | D45: 39860.03445 | E45: 1395 | F45: PW14.2 | G45: 0.02435730977 | H45: 6 | I45: 0 | J45: 3998.869186 | K45: 679042.8246 | L45: Existing & Developed | N45: 61 | O45: 0.0149 | P45: 0.0094573 | Q45: 61 | R45: 0.02435730977 | S45: 6 | T45: 61.17260133 | U45: 0.0149
B46: 59 | C46: 59 | D46: 39860.03445 | E46: 1396 | F46: PW14 | G46: 0.119096166 | H46: 6 | I46: 0 | J46: 10241.39161 | K46: 3320210.555 | L46: Existing & Developed | N46: 55 | O46: 0.0692 | P46: 0.0498962 | Q46: 55 | R46: 0.119096166 | S46: 6 | T46: 58.10430538 | U46: 0.0692
B47: 60 | C47: 60 | D47: 22340.017 | E47: 1397 | F47: PW5.1 | G47: 0.01648271021 | H47: 7 | I47: 0 | J47: 4576.629317 | K47: 459511.5883 | L47: Existing & Developed | N47: 55 | O47: 0.0097 | P47: 0.0067827 | Q47: 55 | R47: 0.01648271021 | S47: 4 | T47: 58.84954522 | U47: 0.0097
B48: 61 | C48: 61 | D48: 30920.02805 | E48: 1398 | F48: PW10.1 | G48: 0.005793449134 | H48: 8 | I48: 0 | J48: 4844.503563 | K48: 161512.0923 | L48: Existing & Developed | N48: 55 | O48: 0.0037 | P48: 0.0020934 | Q48: 55 | R48: 0.005793449134 | S48: 4 | T48: 63.86523665 | U48: 0.0037
B49: 62 | C49: 62 | D49: 30920.02805 | E49: 1399 | F49: PW10.2 | G49: 0.01437070542 | H49: 8 | I49: 0 | J49: 4682.764981 | K49: 400632.2738 | L49: Existing & Developed | N49: 56 | O49: 0.0089 | P49: 0.0054707 | Q49: 56 | R49: 0.01437070542 | S49: 4 | T49: 61.93154575 | U49: 0.0089
B50: 63 | C50: 63 | D50: 13800.01374 | E50: 1400 | F50: TVI1.1 | G50: 0.06363433754 | H50: 35 | I50: 0 | J50: 7258.719561 | K50: 1774023.515 | L50: Existing & Developed | N50: 62 | O50: 0.0487 | P50: 0.0149343 | Q50: 62 | R50: 0.06363433754 | S50: 7 | T50: 76.53100807 | U50: 0.0487
B51: 64 | C51: 64 | D51: 22340.017 | E51: 1401 | F51: PW9.1 | G51: 0.009502408019 | H51: 51 | I51: 0 | J51: 2864.426594 | K51: 264911.9317 | L51: Existing & Developed | N51: 57 | O51: 0.0056 | P51: 0.0039024 | Q51: 57 | R51: 0.009502408019 | S51: 4 | T51: 58.93243048 | U51: 0.0056
B52: 0 | C52: 0 | D52: 0 | E52: -281 | F52: QR2 | G52: 0 | H52: 0 | I52: 0 | J52: 0 | K52: 0 | N52: 0 | O52: 0 | P52: 0 | Q52: 69 | R52: 0.06367093814 | S52: 1 | T52: =AVERAGEIF(Q$2:Q$51,Q52,T$2:T$51) -> 42.450033 | U52: 0.02702833425
B53: 0 | C53: 0 | D53: 0 | E53: -281 | F53: QR1 | G53: 0 | H53: 0 | I53: 0 | J53: 0 | K53: 0 | N53: 0 | O53: 0 | P53: 0 | Q53: 67 | R53: 0.2689968328 | S53: 1 | T53: =AVERAGEIF(Q$2:Q$51,Q53,T$2:T$51) -> 61.091891 | U53: 0.1643352519

Sheet RAS
A1: Reach | B1: River Sta | C1: Profile | D1: Q Total | E1: Min Ch El | F1: W.S. Elev | G1: Crit W.S. | H1: E.G. Elev | I1: E.G. Slope | J1: Vel Chnl | K1: Hydr Depth C | L1: Top Width | M1: Top W Chnl | N1: Sub-reach | O1: Include in Reach Avg. Hyd? | P1: Bed Slope | Q1: Froude
D2: (cfs) | E2: (ft) | F2: (ft) | G2: (ft) | H2: (ft) | I2: (ft/ft) | J2: (ft/s) | K2: (ft) | L2: (ft) | M2: (ft) | P2: (ft/ft) | Q2: No.
A3: Main | B3: 47789.72 | C3: 2 YR | D3: 116.9 | E3: 6042.98 | F3: 6043.54 | G3: 6043.54 | H3: 6043.7 | I3: 0.03503 | J3: 3.71 | K3: 0.3 | L3: 132.77 | M3: 38.4 | N3: =IF(ISBLANK(B3),"",INDEX(LookupTables!B$4:B$13,MATCH(B3,LookupTables!D$4:D$13,-1))) -> 0 | O3: =IF(ISBLANK(B3),"",IF(ISNA(VLOOKUP(B3,LookupTables!F$4:F$13,1,FALSE)),1,0)) -> 1 | P3: =IF(ISBLANK(E3),"",(E3-E10)/(B3-B10)) -> 0.02606077982 | Q3: 1.01
A4: Main | B4: 47789.72 | C4: 5 YR | D4: 180.3 | E4: 6042.98 | F4: 6043.66 | G4: 6043.66 | H4: 6043.85 | I4: 0.031193 | J4: 4.14 | K4: 0.36 | L4: 158.9 | M4: 38.4 | N4: =IF(ISBLANK(B4),"",INDEX(LookupTables!B$4:B$13,MATCH(B4,LookupTables!D$4:D$13,-1))) -> 0 | O4: =IF(ISBLANK(B4),"",IF(ISNA(VLOOKUP(B4,LookupTables!F$4:F$13,1,FALSE)),1,0)) -> 1 | P4: =IF(ISBLANK(E4),"",(E4-E11)/(B4-B11)) -> 0.02606077982 | Q4: 0.99
A5: Main | B5: 47789.72 | C5: 10 YR | D5: 228.1 | E5: 6042.98 | F5: 6043.74 | G5: 6043.74 | H5: 6043.94 | I5: 0.030667 | J5: 4.48 | K5: 0.41 | L5: 170.93 | M5: 38.4 | N5: =IF(ISBLANK(B5),"",INDEX(LookupTables!B$4:B$13,MATCH(B5,LookupTables!D$4:D$13,-1))) -> 0 | O5: =IF(ISBLANK(B5),"",IF(ISNA(VLOOKUP(B5,LookupTables!F$4:F$13,1,FALSE)),1,0)) -> 1 | P5: 0.02606077982 | Q5: 1.01
A6: Main | B6: 47789.72 | C6: 25 YR | D6: 286.8 | E6: 6042.98 | F6: 6043.81 | G6: 6043.81 | H6: 6044.04 | I6: 0.029061 | J6: 4.72 | K6: 0.47 | L6: 176.61 | M6: 38.4 | N6: =IF(ISBLANK(B6),"",INDEX(LookupTables!B$4:B$13,MATCH(B6,LookupTables!D$4:D$13,-1))) -> 0 | O6: =IF(ISBLANK(B6),"",IF(ISNA(VLOOKUP(B6,LookupTables!F$4:F$13,1,FALSE)),1,0)) -> 1 | P6: 0.02606077982 | Q6: 1
A7: Main | B7: 47789.72 | C7: 50 YR | D7: 331.3 | E7: 6042.98 | F7: 6043.86 | G7: 6043.86 | H7: 6044.11 | I7: 0.030233 | J7: 5 | K7: 0.5 | L7: 179.64 | M7: 38.4 | N7: =IF(ISBLANK(B7),"",INDEX(LookupTables!B$4:B$13,MATCH(B7,LookupTables!D$4:D$13,-1))) -> 0 | O7: =IF(ISBLANK(B7),"",IF(ISNA(VLOOKUP(B7,LookupTables!F$4:F$13,1,FALSE)),1,0)) -> 1 | P7: 0.02606077982 | Q7: 1.03
A8: Main | B8: 47789.72 | C8: 100 YR | D8: 378.1 | E8: 6042.98 | F8: 6043.91 | G8: 6043.91 | H8: 6044.17 | I8: 0.02925 | J8: 5.15 | K8: 0.55 | L8: 183.54 | M8: 38.4 | N8: =IF(ISBLANK(B8),"",INDEX(LookupTables!B$4:B$13,MATCH(B8,LookupTables!D$4:D$13,-1))) -> 0 | O8: =IF(ISBLANK(B8),"",IF(ISNA(VLOOKUP(B8,LookupTables!F$4:F$13,1,FALSE)),1,0)) -> 1 | P8: 0.02606077982 | Q8: 1.02
N9: =IF(ISBLANK(B9),"",INDEX(LookupTables!B$4:B$13,MATCH(B9,LookupTables!D$4:D$13,-1))) ->  | O9: =IF(ISBLANK(B9),"",IF(ISNA(VLOOKUP(B9,LookupTables!F$4:F$13,1,FALSE)),1,0)) -> 
A10: Main | B10: 46743.32 | C10: 2 YR | D10: 116.9 | E10: 6015.71 | F10: 6016.53 | G10: 6016.53 | H10: 6016.67 | I10: 0.022264 | J10: 4.31 | K10: 0.29 | L10: 172.44 | M10: 12.62 | N10: =IF(ISBLANK(B10),"",INDEX(LookupTables!B$4:B$13,MATCH(B10,LookupTables!D$4:D$13,-1))) -> 0 | O10: =IF(ISBLANK(B10),"",IF(ISNA(VLOOKUP(B10,LookupTables!F$4:F$13,1,FALSE)),1,0)) -> 1 | P10: 0.02558366837 | Q10: 0.88
A11: Main | B11: 46743.32 | C11: 5 YR | D11: 180.3 | E11: 6015.71 | F11: 6016.64 | G11: 6016.64 | H11: 6016.79 | I11: 0.023405 | J11: 4.82 | K11: 0.34 | L11: 202.38 | M11: 12.62 | N11: =IF(ISBLANK(B11),"",INDEX(LookupTables!B$4:B$13,MATCH(B11,LookupTables!D$4:D$13,-1))) -> 0 | O11: =IF(ISBLANK(B11),"",IF(ISNA(VLOOKUP(B11,LookupTables!F$4:F$13,1,FALSE)),1,0)) -> 1 | P11: 0.02558366837 | Q11: 0.93
A12: Main | B12: 46743.32 | C12: 10 YR | D12: 228.1 | E12: 6015.71 | F12: 6016.71 | G12: 6016.71 | H12: 6016.87 | I12: 0.022677 | J12: 5.01 | K12: 0.37 | L12: 228.35 | M12: 12.62 | N12: =IF(ISBLANK(B12),"",INDEX(LookupTables!B$4:B$13,MATCH(B12,LookupTables!D$4:D$13,-1))) -> 0 | O12: =IF(ISBLANK(B12),"",IF(ISNA(VLOOKUP(B12,LookupTables!F$4:F$13,1,FALSE)),1,0)) -> 1 | P12: 0.02558366837 | Q12: 0.92
A13: Main | B13: 46743.32 | C13: 25 YR | D13: 286.8 | E13: 6015.71 | F13: 6016.75 | G13: 6016.75 | H13: 6016.96 | I13: 0.026193 | J13: 5.57 | K13: 0.4 | L13: 239.56 | M13: 12.62 | N13: =IF(ISBLANK(B13),"",INDEX(LookupTables!B$4:B$13,MATCH(B13,LookupTables!D$4:D$13,-1))) -> 0 | O13: =IF(ISBLANK(B13),"",IF(ISNA(VLOOKUP(B13,LookupTables!F$4:F$13,1,FALSE)),1,0)) -> 1 | P13: 0.02558366837 | Q13: 1
A14: Main | B14: 46743.32 | C14: 50 YR | D14: 331.3 | E14: 6015.71 | F14: 6016.83 | G14: 6016.83 | H14: 6017.01 | I14: 0.022859 | J14: 5.46 | K14: 0.45 | L14: 250.66 | M14: 12.62 | N14: =IF(ISBLANK(B14),"",INDEX(LookupTables!B$4:B$13,MATCH(B14,LookupTables!D$4:D$13,-1))) -> 0 | O14: =IF(ISBLANK(B14),"",IF(ISNA(VLOOKUP(B14,LookupTables!F$4:F$13,1,FALSE)),1,0)) -> 1 | P14: 0.02558366837 | Q14: 0.95
A15: Main | B15: 46743.32 | C15: 100 YR | D15: 378.1 | E15: 6015.71 | F15: 6016.86 | G15: 6016.86 | H15: 6017.07 | I15: 0.024168 | J15: 5.74 | K15: 0.48 | L15: 254.23 | M15: 12.62 | N15: =IF(ISBLANK(B15),"",INDEX(LookupTables!B$4:B$13,MATCH(B15,LookupTables!D$4:D$13,-1))) -> 0 | O15: =IF(ISBLANK(B15),"",IF(ISNA(VLOOKUP(B15,LookupTables!F$4:F$13,1,FALSE)),1,0)) -> 1 | P15: 0.02558366837 | Q15: 0.98
N16: =IF(ISBLANK(B16),"",INDEX(LookupTables!B$4:B$13,MATCH(B16,LookupTables!D$4:D$13,-1))) ->  | O16: =IF(ISBLANK(B16),"",IF(ISNA(VLOOKUP(B16,LookupTables!F$4:F$13,1,FALSE)),1,0)) -> 
A17: Main | B17: 45750.89 | C17: 2 YR | D17: 116.9 | E17: 5990.32 | F17: 5990.8 | G17: 5990.8 | H17: 5990.89 | I17: 0.02633 | J17: 3.23 | K17: 0.21 | L17: 284.36 | M17: 33.98 | N17: =IF(ISBLANK(B17),"",INDEX(LookupTables!B$4:B$13,MATCH(B17,LookupTables!D$4:D$13,-1))) -> 0 | O17: =IF(ISBLANK(B17),"",IF(ISNA(VLOOKUP(B17,LookupTables!F$4:F$13,1,FALSE)),1,0)) -> 1 | P17: 0.02235387781 | Q17: 0.88
A18: Main | B18: 45750.89 | C18: 5 YR | D18: 180.3 | E18: 5990.32 | F18: 5990.86 | G18: 5990.86 | H18: 5990.98 | I18: 0.030709 | J18: 3.8 | K18: 0.25 | L18: 308.43 | M18: 33.98 | N18: =IF(ISBLANK(B18),"",INDEX(LookupTables!B$4:B$13,MATCH(B18,LookupTables!D$4:D$13,-1))) -> 0 | O18: =IF(ISBLANK(B18),"",IF(ISNA(VLOOKUP(B18,LookupTables!F$4:F$13,1,FALSE)),1,0)) -> 1 | P18: 0.02235387781 | Q18: 0.97
A19: Main | B19: 45750.89 | C19: 10 YR | D19: 228.1 | E19: 5990.32 | F19: 5990.91 | G19: 5990.91 | H19: 5991.03 | I19: 0.029788 | J19: 3.99 | K19: 0.28 | L19: 325.58 | M19: 33.98 | N19: =IF(ISBLANK(B19),"",INDEX(LookupTables!B$4:B$13,MATCH(B19,LookupTables!D$4:D$13,-1))) -> 0 | O19: =IF(ISBLANK(B19),"",IF(ISNA(VLOOKUP(B19,LookupTables!F$4:F$13,1,FALSE)),1,0)) -> 1 | P19: 0.02235387781 | Q19: 0.97
A20: Main | B20: 45750.89 | C20: 25 YR | D20: 286.8 | E20: 5990.32 | F20: 5990.96 | G20: 5990.96 | H20: 5991.09 | I20: 0.029903 | J20: 4.24 | K20: 0.31 | L20: 344.01 | M20: 33.98 | N20: =IF(ISBLANK(B20),"",INDEX(LookupTables!B$4:B$13,MATCH(B20,LookupTables!D$4:D$13,-1))) -> 0 | O20: =IF(ISBLANK(B20),"",IF(ISNA(VLOOKUP(B20,LookupTables!F$4:F$13,1,FALSE)),1,0)) -> 1 | P20: 0.02235387781 | Q20: 0.98
A21: Main | B21: 45750.89 | C21: 50 YR | D21: 331.3 | E21: 5990.32 | F21: 5990.99 | G21: 5990.99 | H21: 5991.14 | I21: 0.030059 | J21: 4.41 | K21: 0.34 | L21: 356.18 | M21: 33.98 | N21: =IF(ISBLANK(B21),"",INDEX(LookupTables!B$4:B$13,MATCH(B21,LookupTables!D$4:D$13,-1))) -> 0 | O21: =IF(ISBLANK(B21),"",IF(ISNA(VLOOKUP(B21,LookupTables!F$4:F$13,1,FALSE)),1,0)) -> 1 | P21: 0.02235387781 | Q21: 1
A22: Main | B22: 45750.89 | C22: 100 YR | D22: 378.1 | E22: 5990.32 | F22: 5991.12 | G22: 5991.01 | H22: 5991.22 | I22: 0.015037 | J22: 3.56 | K22: 0.42 | L22: 408.19 | M22: 33.98 | N22: =IF(ISBLANK(B22),"",INDEX(LookupTables!B$4:B$13,MATCH(B22,LookupTables!D$4:D$13,-1))) -> 0 | O22: =IF(ISBLANK(B22),"",IF(ISNA(VLOOKUP(B22,LookupTables!F$4:F$13,1,FALSE)),1,0)) -> 1 | P22: 0.02235387781 | Q22: 0.73
N23: =IF(ISBLANK(B23),"",INDEX(LookupTables!B$4:B$13,MATCH(B23,LookupTables!D$4:D$13,-1))) ->  | O23: =IF(ISBLANK(B23),"",IF(ISNA(VLOOKUP(B23,LookupTables!F$4:F$13,1,FALSE)),1,0)) -> 
A24: Main | B24: 44783.72 | C24: 2 YR | D24: 116.9 | E24: 5968.7 | F24: 5969.03 | G24: 5969.03 | H24: 5969.15 | I24: 0.052549 | J24: 3.57 | K24: 0.22 | L24: 199.16 | M24: 22.74 | N24: =IF(ISBLANK(B24),"",INDEX(LookupTables!B$4:B$13,MATCH(B24,LookupTables!D$4:D$13,-1))) -> 0 | O24: =IF(ISBLANK(B24),"",IF(ISNA(VLOOKUP(B24,LookupTables!F$4:F$13,1,FALSE)),1,0)) -> 1 | P24: 0.02093637559 | Q24: 1.16
A25: Main | B25: 44783.72 | C25: 5 YR | D25: 180.3 | E25: 5968.7 | F25: 5969.21 | G25: 5969.13 | H25: 5969.28 | I25: 0.017082 | J25: 2.8 | K25: 0.33 | L25: 272 | M25: 22.74 | N25: =IF(ISBLANK(B25),"",INDEX(LookupTables!B$4:B$13,MATCH(B25,LookupTables!D$4:D$13,-1))) -> 0 | O25: =IF(ISBLANK(B25),"",IF(ISNA(VLOOKUP(B25,LookupTables!F$4:F$13,1,FALSE)),1,0)) -> 1 | P25: 0.02093637559 | Q25: 0.72
A26: Main | B26: 44783.72 | C26: 10 YR | D26: 228.1 | E26: 5968.7 | F26: 5969.16 | G26: 5969.16 | H26: 5969.31 | I26: 0.040473 | J26: 4.06 | K26: 0.29 | L26: 267.81 | M26: 22.74 | N26: =IF(ISBLANK(B26),"",INDEX(LookupTables!B$4:B$13,MATCH(B26,LookupTables!D$4:D$13,-1))) -> 0 | O26: =IF(ISBLANK(B26),"",IF(ISNA(VLOOKUP(B26,LookupTables!F$4:F$13,1,FALSE)),1,0)) -> 1 | P26: 0.02093637559 | Q26: 1.09
A27: Main | B27: 44783.72 | C27: 25 YR | D27: 286.8 | E27: 5968.7 | F27: 5969.21 | G27: 5969.21 | H27: 5969.38 | I27: 0.041178 | J27: 4.38 | K27: 0.33 | L27: 272.55 | M27: 22.74 | N27: =IF(ISBLANK(B27),"",INDEX(LookupTables!B$4:B$13,MATCH(B27,LookupTables!D$4:D$13,-1))) -> 0 | O27: =IF(ISBLANK(B27),"",IF(ISNA(VLOOKUP(B27,LookupTables!F$4:F$13,1,FALSE)),1,0)) -> 1 | P27: 0.02093637559 | Q27: 1.12
A28: Main | B28: 44783.72 | C28: 50 YR | D28: 331.3 | E28: 5968.7 | F28: 5969.26 | G28: 5969.26 | H28: 5969.43 | I28: 0.036349 | J28: 4.39 | K28: 0.38 | L28: 277.54 | M28: 22.74 | N28: =IF(ISBLANK(B28),"",INDEX(LookupTables!B$4:B$13,MATCH(B28,LookupTables!D$4:D$13,-1))) -> 0 | O28: =IF(ISBLANK(B28),"",IF(ISNA(VLOOKUP(B28,LookupTables!F$4:F$13,1,FALSE)),1,0)) -> 1 | P28: 0.02093637559 | Q28: 1.07
A29: Main | B29: 44783.72 | C29: 100 YR | D29: 378.1 | E29: 5968.7 | F29: 5969.29 | G29: 5969.29 | H29: 5969.48 | I29: 0.037309 | J29: 4.62 | K29: 0.4 | L29: 280.69 | M29: 22.74 | N29: =IF(ISBLANK(B29),"",INDEX(LookupTables!B$4:B$13,MATCH(B29,LookupTables!D$4:D$13,-1))) -> 0 | O29: =IF(ISBLANK(B29),"",IF(ISNA(VLOOKUP(B29,LookupTables!F$4:F$13,1,FALSE)),1,0)) -> 1 | P29: 0.02093637559 | Q29: 1.09
N30: =IF(ISBLANK(B30),"",INDEX(LookupTables!B$4:B$13,MATCH(B30,LookupTables!D$4:D$13,-1))) ->  | O30: =IF(ISBLANK(B30),"",IF(ISNA(VLOOKUP(B30,LookupTables!F$4:F$13,1,FALSE)),1,0)) -> 
A31: Main | B31: 43863.79 | C31: 2 YR | D31: 116.9 | E31: 5949.44 | F31: 5950.1 | G31: 5949.96 | H31: 5950.15 | I31: 0.00956 | J31: 2.33 | K31: 0.3 | L31: 263.53 | M31: 35.23 | N31: =IF(ISBLANK(B31),"",INDEX(LookupTables!B$4:B$13,MATCH(B31,LookupTables!D$4:D$13,-1))) -> 0 | O31: =IF(ISBLANK(B31),"",IF(ISNA(VLOOKUP(B31,LookupTables!F$4:F$13,1,FALSE)),1,0)) -> 1 | P31: 0.01629438717 | Q31: 0.55
A32: Main | B32: 43863.79 | C32: 5 YR | D32: 180.3 | E32: 5949.44 | F32: 5950.09 | G32: 5950.09 | H32: 5950.21 | I32: 0.027214 | J32: 3.85 | K32: 0.28 | L32: 259.83 | M32: 35.23 | N32: =IF(ISBLANK(B32),"",INDEX(LookupTables!B$4:B$13,MATCH(B32,LookupTables!D$4:D$13,-1))) -> 0 | O32: =IF(ISBLANK(B32),"",IF(ISNA(VLOOKUP(B32,LookupTables!F$4:F$13,1,FALSE)),1,0)) -> 1 | P32: 0.01629438717 | Q32: 0.93
A33: Main | B33: 43863.79 | C33: 10 YR | D33: 228.1 | E33: 5949.44 | F33: 5950.13 | G33: 5950.13 | H33: 5950.28 | I33: 0.029722 | J33: 4.22 | K33: 0.31 | L33: 270.69 | M33: 35.23 | N33: =IF(ISBLANK(B33),"",INDEX(LookupTables!B$4:B$13,MATCH(B33,LookupTables!D$4:D$13,-1))) -> 0 | O33: =IF(ISBLANK(B33),"",IF(ISNA(VLOOKUP(B33,LookupTables!F$4:F$13,1,FALSE)),1,0)) -> 1 | P33: 0.01629438717 | Q33: 0.98
A34: Main | B34: 43863.79 | C34: 25 YR | D34: 286.8 | E34: 5949.44 | F34: 5950.26 | G34: 5950.19 | H34: 5950.37 | I34: 0.016055 | J34: 3.57 | K34: 0.39 | L34: 323.44 | M34: 35.23 | N34: =IF(ISBLANK(B34),"",INDEX(LookupTables!B$4:B$13,MATCH(B34,LookupTables!D$4:D$13,-1))) -> 0 | O34: =IF(ISBLANK(B34),"",IF(ISNA(VLOOKUP(B34,LookupTables!F$4:F$13,1,FALSE)),1,0)) -> 1 | P34: 0.01629438717 | Q34: 0.75
A35: Main | B35: 43863.79 | C35: 50 YR | D35: 331.3 | E35: 5949.44 | F35: 5950.39 | G35: 5950.22 | H35: 5950.47 | I35: 0.009373 | J35: 3.06 | K35: 0.47 | L35: 362.97 | M35: 35.23 | N35: =IF(ISBLANK(B35),"",INDEX(LookupTables!B$4:B$13,MATCH(B35,LookupTables!D$4:D$13,-1))) -> 0 | O35: =IF(ISBLANK(B35),"",IF(ISNA(VLOOKUP(B35,LookupTables!F$4:F$13,1,FALSE)),1,0)) -> 1 | P35: 0.01629438717 | Q35: 0.59
A36: Main | B36: 43863.79 | C36: 100 YR | D36: 378.1 | E36: 5949.44 | F36: 5950.25 | G36: 5950.25 | H36: 5950.44 | I36: 0.030312 | J36: 4.85 | K36: 0.38 | L36: 319.18 | M36: 35.23 | N36: =IF(ISBLANK(B36),"",INDEX(LookupTables!B$4:B$13,MATCH(B36,LookupTables!D$4:D$13,-1))) -> 0 | O36: =IF(ISBLANK(B36),"",IF(ISNA(VLOOKUP(B36,LookupTables!F$4:F$13,1,FALSE)),1,0)) -> 1 | P36: 0.01629438717 | Q36: 1.02
N37: =IF(ISBLANK(B37),"",INDEX(LookupTables!B$4:B$13,MATCH(B37,LookupTables!D$4:D$13,-1))) ->  | O37: =IF(ISBLANK(B37),"",IF(ISNA(VLOOKUP(B37,LookupTables!F$4:F$13,1,FALSE)),1,0)) -> 
A38: Main | B38: 42816.19 | C38: 2 YR | D38: 116.9 | E38: 5932.37 | F38: 5932.96 | G38: 5932.96 | H38: 5933.12 | I38: 0.031628 | J38: 4.31 | K38: 0.33 | L38: 125.54 | M38: 19.17 | N38: =IF(ISBLANK(B38),"",INDEX(LookupTables!B$4:B$13,MATCH(B38,LookupTables!D$4:D$13,-1))) -> 0 | O38: =IF(ISBLANK(B38),"",IF(ISNA(VLOOKUP(B38,LookupTables!F$4:F$13,1,FALSE)),1,0)) -> 1 | P38: 0.02287089671 | Q38: 1.01
A39: Main | B39: 42816.19 | C39: 5 YR | D39: 180.3 | E39: 5932.37 | F39: 5933.08 | G39: 5933.08 | H39: 5933.28 | I39: 0.030002 | J39: 4.8 | K39: 0.4 | L39: 146.23 | M39: 19.17 | N39: =IF(ISBLANK(B39),"",INDEX(LookupTables!B$4:B$13,MATCH(B39,LookupTables!D$4:D$13,-1))) -> 0 | O39: =IF(ISBLANK(B39),"",IF(ISNA(VLOOKUP(B39,LookupTables!F$4:F$13,1,FALSE)),1,0)) -> 1 | P39: 0.02287089671 | Q39: 1.02
A40: Main | B40: 42816.19 | C40: 10 YR | D40: 228.1 | E40: 5932.37 | F40: 5933.26 | G40: 5933.16 | H40: 5933.39 | I40: 0.015749 | J40: 4.06 | K40: 0.46 | L40: 197.04 | M40: 19.17 | N40: =IF(ISBLANK(B40),"",INDEX(LookupTables!B$4:B$13,MATCH(B40,LookupTables!D$4:D$13,-1))) -> 0 | O40: =IF(ISBLANK(B40),"",IF(ISNA(VLOOKUP(B40,LookupTables!F$4:F$13,1,FALSE)),1,0)) -> 1 | P40: 0.02287089671 | Q40: 0.77
A41: Main | B41: 42816.19 | C41: 25 YR | D41: 286.8 | E41: 5932.37 | F41: 5933.37 | G41: 5933.25 | H41: 5933.5 | I41: 0.015333 | J41: 4.31 | K41: 0.52 | L41: 214.45 | M41: 19.17 | N41: =IF(ISBLANK(B41),"",INDEX(LookupTables!B$4:B$13,MATCH(B41,LookupTables!D$4:D$13,-1))) -> 0 | O41: =IF(ISBLANK(B41),"",IF(ISNA(VLOOKUP(B41,LookupTables!F$4:F$13,1,FALSE)),1,0)) -> 1 | P41: 0.02287089671 | Q41: 0.77
A42: Main | B42: 42816.19 | C42: 50 YR | D42: 331.3 | E42: 5932.37 | F42: 5933.27 | G42: 5933.27 | H42: 5933.53 | I42: 0.031793 | J42: 5.81 | K42: 0.46 | L42: 199.24 | M42: 19.17 | N42: =IF(ISBLANK(B42),"",INDEX(LookupTables!B$4:B$13,MATCH(B42,LookupTables!D$4:D$13,-1))) -> 0 | O42: =IF(ISBLANK(B42),"",IF(ISNA(VLOOKUP(B42,LookupTables!F$4:F$13,1,FALSE)),1,0)) -> 1 | P42: 0.02287089671 | Q42: 1.09
A43: Main | B43: 42816.19 | C43: 100 YR | D43: 378.1 | E43: 5932.37 | F43: 5933.36 | G43: 5933.36 | H43: 5933.6 | I43: 0.027312 | J43: 5.74 | K43: 0.51 | L43: 214.05 | M43: 19.17 | N43: =IF(ISBLANK(B43),"",INDEX(LookupTables!B$4:B$13,MATCH(B43,LookupTables!D$4:D$13,-1))) -> 0 | O43: =IF(ISBLANK(B43),"",IF(ISNA(VLOOKUP(B43,LookupTables!F$4:F$13,1,FALSE)),1,0)) -> 1 | P43: 0.02287089671 | Q43: 1.03
N44: =IF(ISBLANK(B44),"",INDEX(LookupTables!B$4:B$13,MATCH(B44,LookupTables!D$4:D$13,-1))) ->  | O44: =IF(ISBLANK(B44),"",IF(ISNA(VLOOKUP(B44,LookupTables!F$4:F$13,1,FALSE)),1,0)) -> 
A45: Main | B45: 41839.84 | C45: 2 YR | D45: 116.9 | E45: 5910.04 | F45: 5910.52 | G45: 5910.52 | H45: 5910.62 | I45: 0.043395 | J45: 3.61 | K45: 0.21 | L45: 235.92 | M45: 21.74 | N45: =IF(ISBLANK(B45),"",INDEX(LookupTables!B$4:B$13,MATCH(B45,LookupTables!D$4:D$13,-1))) -> 0 | O45: =IF(ISBLANK(B45),"",IF(ISNA(VLOOKUP(B45,LookupTables!F$4:F$13,1,FALSE)),1,0)) -> 1 | P45: 0.00936488841 | Q45: 1.09
A46: Main | B46: 41839.84 | C46: 5 YR | D46: 180.3 | E46: 5910.04 | F46: 5910.6 | G46: 5910.6 | H46: 5910.72 | I46: 0.040093 | J46: 3.99 | K46: 0.26 | L46: 268.77 | M46: 21.74 | N46: =IF(ISBLANK(B46),"",INDEX(LookupTables!B$4:B$13,MATCH(B46,LookupTables!D$4:D$13,-1))) -> 0 | O46: =IF(ISBLANK(B46),"",IF(ISNA(VLOOKUP(B46,LookupTables!F$4:F$13,1,FALSE)),1,0)) -> 1 | P46: 0.00936488841 | Q46: 1.08
A47: Main | B47: 41839.84 | C47: 10 YR | D47: 228.1 | E47: 5910.04 | F47: 5910.64 | G47: 5910.64 | H47: 5910.78 | I47: 0.039553 | J47: 4.24 | K47: 0.3 | L47: 273.69 | M47: 21.74 | N47: =IF(ISBLANK(B47),"",INDEX(LookupTables!B$4:B$13,MATCH(B47,LookupTables!D$4:D$13,-1))) -> 0 | O47: =IF(ISBLANK(B47),"",IF(ISNA(VLOOKUP(B47,LookupTables!F$4:F$13,1,FALSE)),1,0)) -> 1 | P47: 0.00936488841 | Q47: 1.09
A48: Main | B48: 41839.84 | C48: 25 YR | D48: 286.8 | E48: 5910.04 | F48: 5910.69 | G48: 5910.69 | H48: 5910.85 | I48: 0.041407 | J48: 4.59 | K48: 0.34 | L48: 278.46 | M48: 21.74 | N48: =IF(ISBLANK(B48),"",INDEX(LookupTables!B$4:B$13,MATCH(B48,LookupTables!D$4:D$13,-1))) -> 0 | O48: =IF(ISBLANK(B48),"",IF(ISNA(VLOOKUP(B48,LookupTables!F$4:F$13,1,FALSE)),1,0)) -> 1 | P48: 0.00936488841 | Q48: 1.13
A49: Main | B49: 41839.84 | C49: 50 YR | D49: 331.3 | E49: 5910.04 | F49: 5910.72 | G49: 5910.72 | H49: 5910.9 | I49: 0.041101 | J49: 4.78 | K49: 0.37 | L49: 282.24 | M49: 21.74 | N49: =IF(ISBLANK(B49),"",INDEX(LookupTables!B$4:B$13,MATCH(B49,LookupTables!D$4:D$13,-1))) -> 0 | O49: =IF(ISBLANK(B49),"",IF(ISNA(VLOOKUP(B49,LookupTables!F$4:F$13,1,FALSE)),1,0)) -> 1 | P49: 0.00936488841 | Q49: 1.14
A50: Main | B50: 41839.84 | C50: 100 YR | D50: 378.1 | E50: 5910.04 | F50: 5910.75 | G50: 5910.75 | H50: 5910.95 | I50: 0.042296 | J50: 5.02 | K50: 0.39 | L50: 287.31 | M50: 21.74 | N50: =IF(ISBLANK(B50),"",INDEX(LookupTables!B$4:B$13,MATCH(B50,LookupTables!D$4:D$13,-1))) -> 0 | O50: =IF(ISBLANK(B50),"",IF(ISNA(VLOOKUP(B50,LookupTables!F$4:F$13,1,FALSE)),1,0)) -> 1 | P50: 0.00936488841 | Q50: 1.17
N51: =IF(ISBLANK(B51),"",INDEX(LookupTables!B$4:B$13,MATCH(B51,LookupTables!D$4:D$13,-1))) ->  | O51: =IF(ISBLANK(B51),"",IF(ISNA(VLOOKUP(B51,LookupTables!F$4:F$13,1,FALSE)),1,0)) -> 
A52: Main | B52: 40875.6 | C52: 2 YR | D52: 116.9 | E52: 5901.01 | F52: 5901.99 | H52: 5902 | I52: 0.001055 | J52: 1.07 | K52: 0.54 | L52: 301.91 | M52: 41.2 | N52: =IF(ISBLANK(B52),"",INDEX(LookupTables!B$4:B$13,MATCH(B52,LookupTables!D$4:D$13,-1))) -> 0 | O52: =IF(ISBLANK(B52),"",IF(ISNA(VLOOKUP(B52,LookupTables!F$4:F$13,1,FALSE)),1,0)) -> 1 | P52: 0.003430597849 | Q52: 0.2
A53: Main | B53: 40875.6 | C53: 5 YR | D53: 180.3 | E53: 5901.01 | F53: 5902.27 | H53: 5902.28 | I53: 0.000708 | J53: 1.05 | K53: 0.76 | L53: 330.68 | M53: 41.2 | N53: =IF(ISBLANK(B53),"",INDEX(LookupTables!B$4:B$13,MATCH(B53,LookupTables!D$4:D$13,-1))) -> 0 | O53: =IF(ISBLANK(B53),"",IF(ISNA(VLOOKUP(B53,LookupTables!F$4:F$13,1,FALSE)),1,0)) -> 1 | P53: 0.003430597849 | Q53: 0.17
A54: Main | B54: 40875.6 | C54: 10 YR | D54: 228.1 | E54: 5901.01 | F54: 5902.48 | H54: 5902.48 | I54: 0.000568 | J54: 1.05 | K54: 0.87 | L54: 375.88 | M54: 41.2 | N54: =IF(ISBLANK(B54),"",INDEX(LookupTables!B$4:B$13,MATCH(B54,LookupTables!D$4:D$13,-1))) -> 0 | O54: =IF(ISBLANK(B54),"",IF(ISNA(VLOOKUP(B54,LookupTables!F$4:F$13,1,FALSE)),1,0)) -> 1 | P54: 0.003430597849 | Q54: 0.16
A55: Main | B55: 40875.6 | C55: 25 YR | D55: 286.8 | E55: 5901.01 | F55: 5902.69 | H55: 5902.7 | I55: 0.000456 | J55: 1.03 | K55: 1.04 | L55: 391.47 | M55: 41.2 | N55: =IF(ISBLANK(B55),"",INDEX(LookupTables!B$4:B$13,MATCH(B55,LookupTables!D$4:D$13,-1))) -> 0 | O55: =IF(ISBLANK(B55),"",IF(ISNA(VLOOKUP(B55,LookupTables!F$4:F$13,1,FALSE)),1,0)) -> 1 | P55: 0.003430597849 | Q55: 0.14
A56: Main | B56: 40875.6 | C56: 50 YR | D56: 331.3 | E56: 5901.01 | F56: 5902.83 | H56: 5902.84 | I56: 0.000413 | J56: 1.04 | K56: 1.16 | L56: 402.42 | M56: 41.2 | N56: =IF(ISBLANK(B56),"",INDEX(LookupTables!B$4:B$13,MATCH(B56,LookupTables!D$4:D$13,-1))) -> 0 | O56: =IF(ISBLANK(B56),"",IF(ISNA(VLOOKUP(B56,LookupTables!F$4:F$13,1,FALSE)),1,0)) -> 1 | P56: 0.003430597849 | Q56: 0.14
A57: Main | B57: 40875.6 | C57: 100 YR | D57: 378.1 | E57: 5901.01 | F57: 5902.99 | H57: 5902.99 | I57: 0.000365 | J57: 1.04 | K57: 1.29 | L57: 407.9 | M57: 41.2 | N57: =IF(ISBLANK(B57),"",INDEX(LookupTables!B$4:B$13,MATCH(B57,LookupTables!D$4:D$13,-1))) -> 0 | O57: =IF(ISBLANK(B57),"",IF(ISNA(VLOOKUP(B57,LookupTables!F$4:F$13,1,FALSE)),1,0)) -> 1 | P57: 0.003430597849 | Q57: 0.13
N58: =IF(ISBLANK(B58),"",INDEX(LookupTables!B$4:B$13,MATCH(B58,LookupTables!D$4:D$13,-1))) ->  | O58: =IF(ISBLANK(B58),"",IF(ISNA(VLOOKUP(B58,LookupTables!F$4:F$13,1,FALSE)),1,0)) -> 
A59: Main | B59: 39837.88 | C59: 2 YR | D59: 758.5 | E59: 5897.45 | F59: 5899.35 | G59: 5898.63 | H59: 5899.41 | I59: 0.002936 | J59: 2.89 | K59: 1.05 | L59: 419.33 | M59: 16.74 | N59: =IF(ISBLANK(B59),"",INDEX(LookupTables!B$4:B$13,MATCH(B59,LookupTables!D$4:D$13,-1))) -> 0 | O59: =IF(ISBLANK(B59),"",IF(ISNA(VLOOKUP(B59,LookupTables!F$4:F$13,1,FALSE)),1,0)) -> 1 | P59: 0.005506777969 | Q59: 0.37
A60: Main | B60: 39837.88 | C60: 5 YR | D60: 1174.9 | E60: 5897.45 | F60: 5899.67 | G60: 5898.84 | H60: 5899.74 | I60: 0.003188 | J60: 3.34 | K60: 1.29 | L60: 448.2 | M60: 16.74 | N60: =IF(ISBLANK(B60),"",INDEX(LookupTables!B$4:B$13,MATCH(B60,LookupTables!D$4:D$13,-1))) -> 0 | O60: =IF(ISBLANK(B60),"",IF(ISNA(VLOOKUP(B60,LookupTables!F$4:F$13,1,FALSE)),1,0)) -> 1 | P60: 0.005506777969 | Q60: 0.4
A61: Main | B61: 39837.88 | C61: 10 YR | D61: 1525.2 | E61: 5897.45 | F61: 5899.89 | G61: 5898.98 | H61: 5899.97 | I61: 0.003343 | J61: 3.65 | K61: 1.45 | L61: 467.09 | M61: 16.74 | N61: =IF(ISBLANK(B61),"",INDEX(LookupTables!B$4:B$13,MATCH(B61,LookupTables!D$4:D$13,-1))) -> 0 | O61: =IF(ISBLANK(B61),"",IF(ISNA(VLOOKUP(B61,LookupTables!F$4:F$13,1,FALSE)),1,0)) -> 1 | P61: 0.005506777969 | Q61: 0.42
A62: Main | B62: 39837.88 | C62: 25 YR | D62: 2007.1 | E62: 5897.45 | F62: 5900.18 | G62: 5899.17 | H62: 5900.28 | I62: 0.003381 | J62: 3.97 | K62: 1.6 | L62: 512.62 | M62: 16.74 | N62: =IF(ISBLANK(B62),"",INDEX(LookupTables!B$4:B$13,MATCH(B62,LookupTables!D$4:D$13,-1))) -> 0 | O62: =IF(ISBLANK(B62),"",IF(ISNA(VLOOKUP(B62,LookupTables!F$4:F$13,1,FALSE)),1,0)) -> 1 | P62: 0.005506777969 | Q62: 0.43
A63: Main | B63: 39837.88 | C63: 50 YR | D63: 2401.3 | E63: 5897.45 | F63: 5900.4 | G63: 5899.24 | H63: 5900.51 | I63: 0.003284 | J63: 4.12 | K63: 1.76 | L63: 531.08 | M63: 16.74 | N63: =IF(ISBLANK(B63),"",INDEX(LookupTables!B$4:B$13,MATCH(B63,LookupTables!D$4:D$13,-1))) -> 0 | O63: =IF(ISBLANK(B63),"",IF(ISNA(VLOOKUP(B63,LookupTables!F$4:F$13,1,FALSE)),1,0)) -> 1 | P63: 0.005506777969 | Q63: 0.43
A64: Main | B64: 39837.88 | C64: 100 YR | D64: 2840.1 | E64: 5897.45 | F64: 5900.63 | G64: 5899.51 | H64: 5900.75 | I64: 0.003219 | J64: 4.29 | K64: 1.92 | L64: 552.52 | M64: 16.74 | N64: =IF(ISBLANK(B64),"",INDEX(LookupTables!B$4:B$13,MATCH(B64,LookupTables!D$4:D$13,-1))) -> 0 | O64: =IF(ISBLANK(B64),"",IF(ISNA(VLOOKUP(B64,LookupTables!F$4:F$13,1,FALSE)),1,0)) -> 1 | P64: 0.005506777969 | Q64: 0.43
N65: =IF(ISBLANK(B65),"",INDEX(LookupTables!B$4:B$13,MATCH(B65,LookupTables!D$4:D$13,-1))) ->  | O65: =IF(ISBLANK(B65),"",IF(ISNA(VLOOKUP(B65,LookupTables!F$4:F$13,1,FALSE)),1,0)) -> 
A66: Main | B66: 38866.35 | C66: 2 YR | D66: 758.5 | E66: 5892.1 | F66: 5893.51 | G66: 5893.33 | H66: 5893.76 | I66: 0.017378 | J66: 5.56 | K66: 0.84 | L66: 240.95 | M66: 26.73 | N66: =IF(ISBLANK(B66),"",INDEX(LookupTables!B$4:B$13,MATCH(B66,LookupTables!D$4:D$13,-1))) -> 0 | O66: =IF(ISBLANK(B66),"",IF(ISNA(VLOOKUP(B66,LookupTables!F$4:F$13,1,FALSE)),1,0)) -> 1 | P66: 0.006482528089 | Q66: 0.86
A67: Main | B67: 38866.35 | C67: 5 YR | D67: 1174.9 | E67: 5892.1 | F67: 5893.88 | G67: 5893.63 | H67: 5894.16 | I67: 0.013738 | J67: 5.85 | K67: 1.11 | L67: 267 | M67: 26.73 | N67: =IF(ISBLANK(B67),"",INDEX(LookupTables!B$4:B$13,MATCH(B67,LookupTables!D$4:D$13,-1))) -> 0 | O67: =IF(ISBLANK(B67),"",IF(ISNA(VLOOKUP(B67,LookupTables!F$4:F$13,1,FALSE)),1,0)) -> 1 | P67: 0.006482528089 | Q67: 0.8
A68: Main | B68: 38866.35 | C68: 10 YR | D68: 1525.2 | E68: 5892.1 | F68: 5894.16 | G68: 5893.81 | H68: 5894.45 | I68: 0.012175 | J68: 6.09 | K68: 1.28 | L68: 292.53 | M68: 26.73 | N68: =IF(ISBLANK(B68),"",INDEX(LookupTables!B$4:B$13,MATCH(B68,LookupTables!D$4:D$13,-1))) -> 0 | O68: =IF(ISBLANK(B68),"",IF(ISNA(VLOOKUP(B68,LookupTables!F$4:F$13,1,FALSE)),1,0)) -> 1 | P68: =IF(ISBLANK(E68),"",(E68-E75)/(B68-B75)) -> 0.006482528089 | Q68: 0.77
A69: Main | B69: 38866.35 | C69: 25 YR | D69: 2007.1 | E69: 5892.1 | F69: 5894.44 | G69: 5894.04 | H69: 5894.77 | I69: 0.011784 | J69: 6.55 | K69: 1.46 | L69: 314.42 | M69: 26.73 | N69: =IF(ISBLANK(B69),"",INDEX(LookupTables!B$4:B$13,MATCH(B69,LookupTables!D$4:D$13,-1))) -> 0 | O69: =IF(ISBLANK(B69),"",IF(ISNA(VLOOKUP(B69,LookupTables!F$4:F$13,1,FALSE)),1,0)) -> 1 | P69: 0.006482528089 | Q69: 0.77
A70: Main | B70: 38866.35 | C70: 50 YR | D70: 2401.3 | E70: 5892.1 | F70: 5894.59 | G70: 5894.21 | H70: 5894.98 | I70: 0.0126 | J70: 7.08 | K70: 1.58 | L70: 321.67 | M70: 26.73 | N70: =IF(ISBLANK(B70),"",INDEX(LookupTables!B$4:B$13,MATCH(B70,LookupTables!D$4:D$13,-1))) -> 0 | O70: =IF(ISBLANK(B70),"",IF(ISNA(VLOOKUP(B70,LookupTables!F$4:F$13,1,FALSE)),1,0)) -> 1 | P70: 0.006482528089 | Q70: 0.81
A71: Main | B71: 38866.35 | C71: 100 YR | D71: 2840.1 | E71: 5892.1 | F71: 5894.74 | G71: 5894.4 | H71: 5895.19 | I71: 0.013319 | J71: 7.59 | K71: 1.69 | L71: 329.39 | M71: 26.73 | N71: =IF(ISBLANK(B71),"",INDEX(LookupTables!B$4:B$13,MATCH(B71,LookupTables!D$4:D$13,-1))) -> 0 | O71: =IF(ISBLANK(B71),"",IF(ISNA(VLOOKUP(B71,LookupTables!F$4:F$13,1,FALSE)),1,0)) -> 1 | P71: 0.006482528089 | Q71: 0.84
N72: =IF(ISBLANK(B72),"",INDEX(LookupTables!B$4:B$13,MATCH(B72,LookupTables!D$4:D$13,-1))) ->  | O72: =IF(ISBLANK(B72),"",IF(ISNA(VLOOKUP(B72,LookupTables!F$4:F$13,1,FALSE)),1,0)) -> 
A73: Main | B73: 37831.26 | C73: 2 YR | D73: 758.5 | E73: 5885.39 | F73: 5888.26 | H73: 5888.35 | I73: 0.002479 | J73: 3.34 | K73: 1.42 | L73: 254.63 | M73: 25.9 | N73: =IF(ISBLANK(B73),"",INDEX(LookupTables!B$4:B$13,MATCH(B73,LookupTables!D$4:D$13,-1))) -> 0 | O73: =IF(ISBLANK(B73),"",IF(ISNA(VLOOKUP(B73,LookupTables!F$4:F$13,1,FALSE)),1,0)) -> 1 | P73: 0.00264278994 | Q73: 0.36
A74: Main | B74: 37831.26 | C74: 5 YR | D74: 1174.9 | E74: 5885.39 | F74: 5888.74 | H74: 5888.84 | I74: 0.00265 | J74: 3.87 | K74: 1 | L74: 528.6 | M74: 25.9 | N74: =IF(ISBLANK(B74),"",INDEX(LookupTables!B$4:B$13,MATCH(B74,LookupTables!D$4:D$13,-1))) -> 0 | O74: =IF(ISBLANK(B74),"",IF(ISNA(VLOOKUP(B74,LookupTables!F$4:F$13,1,FALSE)),1,0)) -> 1 | P74: 0.00264278994 | Q74: 0.39
A75: Main | B75: 37831.26 | C75: 10 YR | D75: 1525.2 | E75: 5885.39 | F75: 5889.01 | H75: 5889.13 | I75: 0.002814 | J75: 4.22 | K75: 0.95 | L75: 742.57 | M75: 25.9 | N75: =IF(ISBLANK(B75),"",INDEX(LookupTables!B$4:B$13,MATCH(B75,LookupTables!D$4:D$13,-1))) -> 0 | O75: =IF(ISBLANK(B75),"",IF(ISNA(VLOOKUP(B75,LookupTables!F$4:F$13,1,FALSE)),1,0)) -> 1 | P75: 0.00264278994 | Q75: 0.4
A76: Main | B76: 37831.26 | C76: 25 YR | D76: 2007.1 | E76: 5885.39 | F76: 5889.3 | H76: 5889.43 | I76: 0.002906 | J76: 4.53 | K76: 0.93 | L76: 1042.68 | M76: 25.9 | N76: =IF(ISBLANK(B76),"",INDEX(LookupTables!B$4:B$13,MATCH(B76,LookupTables!D$4:D$13,-1))) -> 0 | O76: =IF(ISBLANK(B76),"",IF(ISNA(VLOOKUP(B76,LookupTables!F$4:F$13,1,FALSE)),1,0)) -> 1 | P76: 0.00264278994 | Q76: 0.42
A77: Main | B77: 37831.26 | C77: 50 YR | D77: 2401.3 | E77: 5885.39 | F77: 5889.47 | G77: 5888.32 | H77: 5889.59 | I77: 0.002876 | J77: 4.64 | K77: 1.01 | L77: 1135.18 | M77: 25.9 | N77: =IF(ISBLANK(B77),"",INDEX(LookupTables!B$4:B$13,MATCH(B77,LookupTables!D$4:D$13,-1))) -> 0 | O77: =IF(ISBLANK(B77),"",IF(ISNA(VLOOKUP(B77,LookupTables!F$4:F$13,1,FALSE)),1,0)) -> 1 | P77: 0.00264278994 | Q77: 0.42
A78: Main | B78: 37831.26 | C78: 100 YR | D78: 2840.1 | E78: 5885.39 | F78: 5889.65 | G78: 5888.78 | H78: 5889.78 | I78: 0.00284 | J78: 4.76 | K78: 1.1 | L78: 1245.07 | M78: 25.9 | N78: =IF(ISBLANK(B78),"",INDEX(LookupTables!B$4:B$13,MATCH(B78,LookupTables!D$4:D$13,-1))) -> 0 | O78: =IF(ISBLANK(B78),"",IF(ISNA(VLOOKUP(B78,LookupTables!F$4:F$13,1,FALSE)),1,0)) -> 1 | P78: 0.00264278994 | Q78: 0.42
N79: =IF(ISBLANK(B79),"",INDEX(LookupTables!B$4:B$13,MATCH(B79,LookupTables!D$4:D$13,-1))) ->  | O79: =IF(ISBLANK(B79),"",IF(ISNA(VLOOKUP(B79,LookupTables!F$4:F$13,1,FALSE)),1,0)) -> 
A80: Main | B80: 36885.29 | C80: 2 YR | D80: 758.5 | E80: 5882.89 | F80: 5884.59 | G80: 5884.15 | H80: 5884.75 | I80: 0.009494 | J80: 3.81 | K80: 0.87 | L80: 281.73 | M80: 19.19 | N80: =IF(ISBLANK(B80),"",INDEX(LookupTables!B$4:B$13,MATCH(B80,LookupTables!D$4:D$13,-1))) -> 0 | O80: =IF(ISBLANK(B80),"",IF(ISNA(VLOOKUP(B80,LookupTables!F$4:F$13,1,FALSE)),1,0)) -> 1 | P80: 0.007562736336 | Q80: 0.62
A81: Main | B81: 36885.29 | C81: 5 YR | D81: 1174.9 | E81: 5882.89 | F81: 5885.03 | G81: 5884.46 | H81: 5885.18 | I81: 0.008619 | J81: 4.5 | K81: 0.99 | L81: 411.91 | M81: 19.19 | N81: =IF(ISBLANK(B81),"",INDEX(LookupTables!B$4:B$13,MATCH(B81,LookupTables!D$4:D$13,-1))) -> 0 | O81: =IF(ISBLANK(B81),"",IF(ISNA(VLOOKUP(B81,LookupTables!F$4:F$13,1,FALSE)),1,0)) -> 1 | P81: 0.007562736336 | Q81: 0.62
A82: Main | B82: 36885.29 | C82: 10 YR | D82: 1525.2 | E82: 5882.89 | F82: 5885.24 | G82: 5884.75 | H82: 5885.4 | I82: 0.008037 | J82: 4.71 | K82: 1.17 | L82: 422.93 | M82: 19.19 | N82: =IF(ISBLANK(B82),"",INDEX(LookupTables!B$4:B$13,MATCH(B82,LookupTables!D$4:D$13,-1))) -> 0 | O82: =IF(ISBLANK(B82),"",IF(ISNA(VLOOKUP(B82,LookupTables!F$4:F$13,1,FALSE)),1,0)) -> 1 | P82: 0.007562736336 | Q82: 0.62
A83: Main | B83: 36885.29 | C83: 25 YR | D83: 2007.1 | E83: 5882.89 | F83: 5885.51 | G83: 5884.97 | H83: 5885.69 | I83: 0.007379 | J83: 4.95 | K83: 1.39 | L83: 439.19 | M83: 19.19 | N83: =IF(ISBLANK(B83),"",INDEX(LookupTables!B$4:B$13,MATCH(B83,LookupTables!D$4:D$13,-1))) -> 0 | O83: =IF(ISBLANK(B83),"",IF(ISNA(VLOOKUP(B83,LookupTables!F$4:F$13,1,FALSE)),1,0)) -> 1 | P83: 0.007562736336 | Q83: 0.6
A84: Main | B84: 36885.29 | C84: 50 YR | D84: 2401.3 | E84: 5882.89 | F84: 5885.71 | G84: 5885.13 | H84: 5885.9 | I84: 0.007005 | J84: 5.12 | K84: 1.55 | L84: 449.65 | M84: 19.19 | N84: =IF(ISBLANK(B84),"",INDEX(LookupTables!B$4:B$13,MATCH(B84,LookupTables!D$4:D$13,-1))) -> 0 | O84: =IF(ISBLANK(B84),"",IF(ISNA(VLOOKUP(B84,LookupTables!F$4:F$13,1,FALSE)),1,0)) -> 1 | P84: 0.007562736336 | Q84: 0.6
A85: Main | B85: 36885.29 | C85: 100 YR | D85: 2840.1 | E85: 5882.89 | F85: 5885.91 | G85: 5885.25 | H85: 5886.13 | I85: 0.006697 | J85: 5.3 | K85: 1.71 | L85: 460.61 | M85: 19.19 | N85: =IF(ISBLANK(B85),"",INDEX(LookupTables!B$4:B$13,MATCH(B85,LookupTables!D$4:D$13,-1))) -> 0 | O85: =IF(ISBLANK(B85),"",IF(ISNA(VLOOKUP(B85,LookupTables!F$4:F$13,1,FALSE)),1,0)) -> 1 | P85: 0.007562736336 | Q85: 0.59
N86: =IF(ISBLANK(B86),"",INDEX(LookupTables!B$4:B$13,MATCH(B86,LookupTables!D$4:D$13,-1))) ->  | O86: =IF(ISBLANK(B86),"",IF(ISNA(VLOOKUP(B86,LookupTables!F$4:F$13,1,FALSE)),1,0)) -> 
A87: Main | B87: 35867.14 | C87: 2 YR | D87: 791.3 | E87: 5875.19 | F87: 5877.79 | G87: 5877.1 | H87: 5877.96 | I87: 0.005013 | J87: 3.3 | K87: 1.47 | L87: 162.8 | M87: 158.25 | N87: =IF(ISBLANK(B87),"",INDEX(LookupTables!B$4:B$13,MATCH(B87,LookupTables!D$4:D$13,-1))) -> 1 | O87: =IF(ISBLANK(B87),"",IF(ISNA(VLOOKUP(B87,LookupTables!F$4:F$13,1,FALSE)),1,0)) -> 1 | P87: 0.006973195184 | Q87: 0.47
A88: Main | B88: 35867.14 | C88: 5 YR | D88: 1188.6 | E88: 5875.19 | F88: 5878.18 | H88: 5878.42 | I88: 0.005287 | J88: 3.92 | K88: 1.69 | L88: 181.39 | M88: 160.34 | N88: =IF(ISBLANK(B88),"",INDEX(LookupTables!B$4:B$13,MATCH(B88,LookupTables!D$4:D$13,-1))) -> 1 | O88: =IF(ISBLANK(B88),"",IF(ISNA(VLOOKUP(B88,LookupTables!F$4:F$13,1,FALSE)),1,0)) -> 1 | P88: 0.006973195184 | Q88: 0.5
A89: Main | B89: 35867.14 | C89: 10 YR | D89: 1511.6 | E89: 5875.19 | F89: 5878.45 | G89: 5877.68 | H89: 5878.74 | I89: 0.005412 | J89: 4.34 | K89: 1.85 | L89: 193.79 | M89: 160.34 | N89: =IF(ISBLANK(B89),"",INDEX(LookupTables!B$4:B$13,MATCH(B89,LookupTables!D$4:D$13,-1))) -> 1 | O89: =IF(ISBLANK(B89),"",IF(ISNA(VLOOKUP(B89,LookupTables!F$4:F$13,1,FALSE)),1,0)) -> 1 | P89: 0.006973195184 | Q89: 0.52
A90: Main | B90: 35867.14 | C90: 25 YR | D90: 1937.7 | E90: 5875.19 | F90: 5878.75 | G90: 5877.96 | H90: 5879.11 | I90: 0.005671 | J90: 4.84 | K90: 2.01 | L90: 207.16 | M90: 160.34 | N90: =IF(ISBLANK(B90),"",INDEX(LookupTables!B$4:B$13,MATCH(B90,LookupTables!D$4:D$13,-1))) -> 1 | O90: =IF(ISBLANK(B90),"",IF(ISNA(VLOOKUP(B90,LookupTables!F$4:F$13,1,FALSE)),1,0)) -> 1 | P90: 0.006973195184 | Q90: 0.54
A91: Main | B91: 35867.14 | C91: 50 YR | D91: 2278.5 | E91: 5875.19 | F91: 5878.96 | H91: 5879.37 | I91: 0.005864 | J91: 5.2 | K91: 2.13 | L91: 216.72 | M91: 160.34 | N91: =IF(ISBLANK(B91),"",INDEX(LookupTables!B$4:B$13,MATCH(B91,LookupTables!D$4:D$13,-1))) -> 1 | O91: =IF(ISBLANK(B91),"",IF(ISNA(VLOOKUP(B91,LookupTables!F$4:F$13,1,FALSE)),1,0)) -> 1 | P91: 0.006973195184 | Q91: 0.56
A92: Main | B92: 35867.14 | C92: 100 YR | D92: 2651.4 | E92: 5875.19 | F92: 5879.18 | H92: 5879.64 | I92: 0.006031 | J92: 5.55 | K92: 2.24 | L92: 227.8 | M92: 160.34 | N92: =IF(ISBLANK(B92),"",INDEX(LookupTables!B$4:B$13,MATCH(B92,LookupTables!D$4:D$13,-1))) -> 1 | O92: =IF(ISBLANK(B92),"",IF(ISNA(VLOOKUP(B92,LookupTables!F$4:F$13,1,FALSE)),1,0)) -> 1 | P92: 0.006973195184 | Q92: 0.58
N93: =IF(ISBLANK(B93),"",INDEX(LookupTables!B$4:B$13,MATCH(B93,LookupTables!D$4:D$13,-1))) ->  | O93: =IF(ISBLANK(B93),"",IF(ISNA(VLOOKUP(B93,LookupTables!F$4:F$13,1,FALSE)),1,0)) -> 
A94: Main | B94: 34497.61 | C94: 2 YR | D94: 791.3 | E94: 5865.64 | F94: 5867.37 | H94: 5867.64 | I94: 0.012577 | J94: 4.15 | K94: 1.07 | L94: 177.83 | M94: 177.83 | N94: =IF(ISBLANK(B94),"",INDEX(LookupTables!B$4:B$13,MATCH(B94,LookupTables!D$4:D$13,-1))) -> 1 | O94: =IF(ISBLANK(B94),"",IF(ISNA(VLOOKUP(B94,LookupTables!F$4:F$13,1,FALSE)),1,0)) -> 1 | P94: 0.01139130256 | Q94: 0.71
A95: Main | B95: 34497.61 | C95: 5 YR | D95: 1188.6 | E95: 5865.64 | F95: 5867.73 | G95: 5867.41 | H95: 5868.06 | I95: 0.011665 | J95: 4.64 | K95: 1.34 | L95: 190.89 | M95: 190.89 | N95: =IF(ISBLANK(B95),"",INDEX(LookupTables!B$4:B$13,MATCH(B95,LookupTables!D$4:D$13,-1))) -> 1 | O95: =IF(ISBLANK(B95),"",IF(ISNA(VLOOKUP(B95,LookupTables!F$4:F$13,1,FALSE)),1,0)) -> 1 | P95: 0.01139130256 | Q95: 0.71
A96: Main | B96: 34497.61 | C96: 10 YR | D96: 1511.6 | E96: 5865.64 | F96: 5867.96 | G96: 5867.62 | H96: 5868.35 | I96: 0.011364 | J96: 5.01 | K96: 1.51 | L96: 199.99 | M96: 196.78 | N96: =IF(ISBLANK(B96),"",INDEX(LookupTables!B$4:B$13,MATCH(B96,LookupTables!D$4:D$13,-1))) -> 1 | O96: =IF(ISBLANK(B96),"",IF(ISNA(VLOOKUP(B96,LookupTables!F$4:F$13,1,FALSE)),1,0)) -> 1 | P96: 0.01139130256 | Q96: 0.71
A97: Main | B97: 34497.61 | C97: 25 YR | D97: 1937.7 | E97: 5865.64 | F97: 5868.26 | G97: 5867.86 | H97: 5868.7 | I97: 0.010675 | J97: 5.35 | K97: 1.72 | L97: 211.75 | M97: 203.74 | N97: =IF(ISBLANK(B97),"",INDEX(LookupTables!B$4:B$13,MATCH(B97,LookupTables!D$4:D$13,-1))) -> 1 | O97: =IF(ISBLANK(B97),"",IF(ISNA(VLOOKUP(B97,LookupTables!F$4:F$13,1,FALSE)),1,0)) -> 1 | P97: 0.01139130256 | Q97: 0.71
A98: Main | B98: 34497.61 | C98: 50 YR | D98: 2278.5 | E98: 5865.64 | F98: 5868.48 | G98: 5868.04 | H98: 5868.96 | I98: 0.01022 | J98: 5.59 | K98: 1.87 | L98: 219.59 | M98: 208.07 | N98: =IF(ISBLANK(B98),"",INDEX(LookupTables!B$4:B$13,MATCH(B98,LookupTables!D$4:D$13,-1))) -> 1 | O98: =IF(ISBLANK(B98),"",IF(ISNA(VLOOKUP(B98,LookupTables!F$4:F$13,1,FALSE)),1,0)) -> 1 | P98: 0.01139130256 | Q98: 0.7
A99: Main | B99: 34497.61 | C99: 100 YR | D99: 2651.4 | E99: 5865.64 | F99: 5868.69 | G99: 5868.22 | H99: 5869.22 | I99: 0.009878 | J99: 5.86 | K99: 1.94 | L99: 236.06 | M99: 209.27 | N99: =IF(ISBLANK(B99),"",INDEX(LookupTables!B$4:B$13,MATCH(B99,LookupTables!D$4:D$13,-1))) -> 1 | O99: =IF(ISBLANK(B99),"",IF(ISNA(VLOOKUP(B99,LookupTables!F$4:F$13,1,FALSE)),1,0)) -> 1 | P99: 0.01139130256 | Q99: 0.7
N100: =IF(ISBLANK(B100),"",INDEX(LookupTables!B$4:B$13,MATCH(B100,LookupTables!D$4:D$13,-1))) ->  | O100: =IF(ISBLANK(B100),"",IF(ISNA(VLOOKUP(B100,LookupTables!F$4:F$13,1,FALSE)),1,0)) -> 
A101: Main | B101: 33039.48 | C101: 2 YR | D101: 791.3 | E101: 5849.03 | F101: 5851.52 | G101: 5851.13 | H101: 5851.85 | I101: 0.009399 | J101: 4.61 | K101: 1.29 | L101: 137.52 | M101: 108.29 | N101: =IF(ISBLANK(B101),"",INDEX(LookupTables!B$4:B$13,MATCH(B101,LookupTables!D$4:D$13,-1))) -> 1 | O101: =IF(ISBLANK(B101),"",IF(ISNA(VLOOKUP(B101,LookupTables!F$4:F$13,1,FALSE)),1,0)) -> 1 | P101: 0.01433232268 | Q101: 0.65
A102: Main | B102: 33039.48 | C102: 5 YR | D102: 1188.6 | E102: 5849.03 | F102: 5851.89 | G102: 5851.53 | H102: 5852.34 | I102: 0.009953 | J102: 5.47 | K102: 1.46 | L102: 160.29 | M102: 108.29 | N102: =IF(ISBLANK(B102),"",INDEX(LookupTables!B$4:B$13,MATCH(B102,LookupTables!D$4:D$13,-1))) -> 1 | O102: =IF(ISBLANK(B102),"",IF(ISNA(VLOOKUP(B102,LookupTables!F$4:F$13,1,FALSE)),1,0)) -> 1 | P102: 0.01433232268 | Q102: 0.69
A103: Main | B103: 33039.48 | C103: 10 YR | D103: 1511.6 | E103: 5849.03 | F103: 5852.15 | G103: 5851.83 | H103: 5852.69 | I103: 0.010141 | J103: 6.01 | K103: 1.58 | L103: 175.23 | M103: 108.29 | N103: =IF(ISBLANK(B103),"",INDEX(LookupTables!B$4:B$13,MATCH(B103,LookupTables!D$4:D$13,-1))) -> 1 | O103: =IF(ISBLANK(B103),"",IF(ISNA(VLOOKUP(B103,LookupTables!F$4:F$13,1,FALSE)),1,0)) -> 1 | P103: 0.01433232268 | Q103: 0.72
A104: Main | B104: 33039.48 | C104: 25 YR | D104: 1937.7 | E104: 5849.03 | F104: 5852.43 | G104: 5852.11 | H104: 5853.08 | I104: 0.010703 | J104: 6.69 | K104: 1.66 | L104: 198.68 | M104: 108.29 | N104: =IF(ISBLANK(B104),"",INDEX(LookupTables!B$4:B$13,MATCH(B104,LookupTables!D$4:D$13,-1))) -> 1 | O104: =IF(ISBLANK(B104),"",IF(ISNA(VLOOKUP(B104,LookupTables!F$4:F$13,1,FALSE)),1,0)) -> 1 | P104: 0.01433232268 | Q104: 0.75
A105: Main | B105: 33039.48 | C105: 50 YR | D105: 2278.5 | E105: 5849.03 | F105: 5852.62 | G105: 5852.42 | H105: 5853.35 | I105: 0.011162 | J105: 7.16 | K105: 1.79 | L105: 205.12 | M105: 108.29 | N105: =IF(ISBLANK(B105),"",INDEX(LookupTables!B$4:B$13,MATCH(B105,LookupTables!D$4:D$13,-1))) -> 1 | O105: =IF(ISBLANK(B105),"",IF(ISNA(VLOOKUP(B105,LookupTables!F$4:F$13,1,FALSE)),1,0)) -> 1 | P105: 0.01433232268 | Q105: 0.77
A106: Main | B106: 33039.48 | C106: 100 YR | D106: 2651.4 | E106: 5849.03 | F106: 5852.81 | G106: 5852.64 | H106: 5853.62 | I106: 0.011529 | J106: 7.62 | K106: 1.93 | L106: 210.62 | M106: 108.29 | N106: =IF(ISBLANK(B106),"",INDEX(LookupTables!B$4:B$13,MATCH(B106,LookupTables!D$4:D$13,-1))) -> 1 | O106: =IF(ISBLANK(B106),"",IF(ISNA(VLOOKUP(B106,LookupTables!F$4:F$13,1,FALSE)),1,0)) -> 1 | P106: 0.01433232268 | Q106: 0.8
N107: =IF(ISBLANK(B107),"",INDEX(LookupTables!B$4:B$13,MATCH(B107,LookupTables!D$4:D$13,-1))) ->  | O107: =IF(ISBLANK(B107),"",IF(ISNA(VLOOKUP(B107,LookupTables!F$4:F$13,1,FALSE)),1,0)) -> 
A108: Main | B108: 31565.19 | C108: 2 YR | D108: 791.3 | E108: 5827.9 | F108: 5829.79 | G108: 5829.79 | H108: 5830.36 | I108: 0.025511 | J108: 6.09 | K108: 1.12 | L108: 116.01 | M108: 116.01 | N108: =IF(ISBLANK(B108),"",INDEX(LookupTables!B$4:B$13,MATCH(B108,LookupTables!D$4:D$13,-1))) -> 1 | O108: =IF(ISBLANK(B108),"",IF(ISNA(VLOOKUP(B108,LookupTables!F$4:F$13,1,FALSE)),1,0)) -> 1 | P108: 0.01937781763 | Q108: 1.01
A109: Main | B109: 31565.19 | C109: 5 YR | D109: 1188.6 | E109: 5827.9 | F109: 5830.17 | G109: 5830.17 | H109: 5830.88 | I109: 0.023229 | J109: 6.76 | K109: 1.41 | L109: 125.06 | M109: 125.06 | N109: =IF(ISBLANK(B109),"",INDEX(LookupTables!B$4:B$13,MATCH(B109,LookupTables!D$4:D$13,-1))) -> 1 | O109: =IF(ISBLANK(B109),"",IF(ISNA(VLOOKUP(B109,LookupTables!F$4:F$13,1,FALSE)),1,0)) -> 1 | P109: 0.01937781763 | Q109: 1
A110: Main | B110: 31565.19 | C110: 10 YR | D110: 1511.6 | E110: 5827.9 | F110: 5830.43 | G110: 5830.43 | H110: 5831.24 | I110: 0.022513 | J110: 7.23 | K110: 1.57 | L110: 133.01 | M110: 131.18 | N110: =IF(ISBLANK(B110),"",INDEX(LookupTables!B$4:B$13,MATCH(B110,LookupTables!D$4:D$13,-1))) -> 1 | O110: =IF(ISBLANK(B110),"",IF(ISNA(VLOOKUP(B110,LookupTables!F$4:F$13,1,FALSE)),1,0)) -> 1 | P110: 0.01937781763 | Q110: 1.01
A111: Main | B111: 31565.19 | C111: 25 YR | D111: 1937.7 | E111: 5827.9 | F111: 5830.74 | G111: 5830.74 | H111: 5831.66 | I111: 0.02077 | J111: 7.7 | K111: 1.7 | L111: 149.32 | M111: 134.98 | N111: =IF(ISBLANK(B111),"",INDEX(LookupTables!B$4:B$13,MATCH(B111,LookupTables!D$4:D$13,-1))) -> 1 | O111: =IF(ISBLANK(B111),"",IF(ISNA(VLOOKUP(B111,LookupTables!F$4:F$13,1,FALSE)),1,0)) -> 1 | P111: 0.01937781763 | Q111: 0.99
A112: Main | B112: 31565.19 | C112: 50 YR | D112: 2278.5 | E112: 5827.9 | F112: 5830.98 | G112: 5830.98 | H112: 5831.97 | I112: 0.019522 | J112: 7.98 | K112: 1.83 | L112: 158.57 | M112: 137.85 | N112: =IF(ISBLANK(B112),"",INDEX(LookupTables!B$4:B$13,MATCH(B112,LookupTables!D$4:D$13,-1))) -> 1 | O112: =IF(ISBLANK(B112),"",IF(ISNA(VLOOKUP(B112,LookupTables!F$4:F$13,1,FALSE)),1,0)) -> 1 | P112: 0.01937781763 | Q112: 0.98
A113: Main | B113: 31565.19 | C113: 100 YR | D113: 2651.4 | E113: 5827.9 | F113: 5831.22 | G113: 5831.22 | H113: 5832.27 | I113: 0.018668 | J113: 8.28 | K113: 1.97 | L113: 166.75 | M113: 140.67 | N113: =IF(ISBLANK(B113),"",INDEX(LookupTables!B$4:B$13,MATCH(B113,LookupTables!D$4:D$13,-1))) -> 1 | O113: =IF(ISBLANK(B113),"",IF(ISNA(VLOOKUP(B113,LookupTables!F$4:F$13,1,FALSE)),1,0)) -> 1 | P113: 0.01937781763 | Q113: 0.97
N114: =IF(ISBLANK(B114),"",INDEX(LookupTables!B$4:B$13,MATCH(B114,LookupTables!D$4:D$13,-1))) ->  | O114: =IF(ISBLANK(B114),"",IF(ISNA(VLOOKUP(B114,LookupTables!F$4:F$13,1,FALSE)),1,0)) -> 
A115: Main | B115: 31163.7 | C115: 2 YR | D115: 791.3 | E115: 5820.12 | F115: 5826.09 | H115: 5826.12 | I115: 0.000239 | J115: 1.77 | K115: 3.37 | L115: 202.38 | M115: 23.26 | N115: =IF(ISBLANK(B115),"",INDEX(LookupTables!B$4:B$13,MATCH(B115,LookupTables!D$4:D$13,-1))) -> 1 | O115: =IF(ISBLANK(B115),"",IF(ISNA(VLOOKUP(B115,LookupTables!F$4:F$13,1,FALSE)),1,0)) -> 0 | P115: -0.03207464645 | Q115: 0.13
A116: Main | B116: 31163.7 | C116: 5 YR | D116: 1188.6 | E116: 5820.12 | F116: 5826.6 | H116: 5826.64 | I116: 0.000377 | J116: 2.35 | K116: 3.58 | L116: 220.26 | M116: 23.26 | N116: =IF(ISBLANK(B116),"",INDEX(LookupTables!B$4:B$13,MATCH(B116,LookupTables!D$4:D$13,-1))) -> 1 | O116: =IF(ISBLANK(B116),"",IF(ISNA(VLOOKUP(B116,LookupTables!F$4:F$13,1,FALSE)),1,0)) -> 0 | P116: -0.03207464645 | Q116: 0.16
A117: Main | B117: 31163.7 | C117: 10 YR | D117: 1511.6 | E117: 5820.12 | F117: 5826.89 | H117: 5826.95 | I117: 0.000502 | J117: 2.8 | K117: 3.7 | L117: 230.75 | M117: 23.26 | N117: =IF(ISBLANK(B117),"",INDEX(LookupTables!B$4:B$13,MATCH(B117,LookupTables!D$4:D$13,-1))) -> 1 | O117: =IF(ISBLANK(B117),"",IF(ISNA(VLOOKUP(B117,LookupTables!F$4:F$13,1,FALSE)),1,0)) -> 0 | P117: -0.03207464645 | Q117: 0.19
A118: Main | B118: 31163.7 | C118: 25 YR | D118: 1937.7 | E118: 5820.12 | F118: 5827.22 | H118: 5827.31 | I118: 0.000693 | J118: 3.4 | K118: 3.7 | L118: 252.88 | M118: 23.26 | N118: =IF(ISBLANK(B118),"",INDEX(LookupTables!B$4:B$13,MATCH(B118,LookupTables!D$4:D$13,-1))) -> 1 | O118: =IF(ISBLANK(B118),"",IF(ISNA(VLOOKUP(B118,LookupTables!F$4:F$13,1,FALSE)),1,0)) -> 0 | P118: -0.03207464645 | Q118: 0.23
A119: Main | B119: 31163.7 | C119: 50 YR | D119: 2278.5 | E119: 5820.12 | F119: 5827.46 | H119: 5827.56 | I119: 0.000818 | J119: 3.77 | K119: 3.82 | L119: 260.66 | M119: 23.26 | N119: =IF(ISBLANK(B119),"",INDEX(LookupTables!B$4:B$13,MATCH(B119,LookupTables!D$4:D$13,-1))) -> 1 | O119: =IF(ISBLANK(B119),"",IF(ISNA(VLOOKUP(B119,LookupTables!F$4:F$13,1,FALSE)),1,0)) -> 0 | P119: -0.03207464645 | Q119: 0.25
A120: Main | B120: 31163.7 | C120: 100 YR | D120: 2651.4 | E120: 5820.12 | F120: 5827.7 | H120: 5827.83 | I120: 0.000973 | J120: 4.2 | K120: 3.79 | L120: 280.17 | M120: 23.26 | N120: =IF(ISBLANK(B120),"",INDEX(LookupTables!B$4:B$13,MATCH(B120,LookupTables!D$4:D$13,-1))) -> 1 | O120: =IF(ISBLANK(B120),"",IF(ISNA(VLOOKUP(B120,LookupTables!F$4:F$13,1,FALSE)),1,0)) -> 0 | P120: -0.03207464645 | Q120: 0.27
N121: =IF(ISBLANK(B121),"",INDEX(LookupTables!B$4:B$13,MATCH(B121,LookupTables!D$4:D$13,-1))) ->  | O121: =IF(ISBLANK(B121),"",IF(ISNA(VLOOKUP(B121,LookupTables!F$4:F$13,1,FALSE)),1,0)) -> 
A122: Main | B122: 31095.11 | C122: 2 YR | D122: 791.3 | E122: 5822.32 | F122: 5825.21 | G122: 5825.21 | H122: 5825.99 | I122: 0.021596 | J122: 7.09 | K122: 1.31 | L122: 85.9 | M122: 69.79 | N122: =IF(ISBLANK(B122),"",INDEX(LookupTables!B$4:B$13,MATCH(B122,LookupTables!D$4:D$13,-1))) -> 1 | O122: =IF(ISBLANK(B122),"",IF(ISNA(VLOOKUP(B122,LookupTables!F$4:F$13,1,FALSE)),1,0)) -> 0 | P122: 0.1086223182 | Q122: 0.99
A123: Main | B123: 31095.11 | C123: 5 YR | D123: 1188.6 | E123: 5822.32 | F123: 5825.88 | G123: 5825.88 | H123: 5826.51 | I123: 0.013882 | J123: 6.66 | K123: 1.01 | L123: 213.12 | M123: 80.07 | N123: =IF(ISBLANK(B123),"",INDEX(LookupTables!B$4:B$13,MATCH(B123,LookupTables!D$4:D$13,-1))) -> 1 | O123: =IF(ISBLANK(B123),"",IF(ISNA(VLOOKUP(B123,LookupTables!F$4:F$13,1,FALSE)),1,0)) -> 0 | P123: 0.1086223182 | Q123: 0.82
A124: Main | B124: 31095.11 | C124: 10 YR | D124: 1511.6 | E124: 5822.32 | F124: 5826.18 | G124: 5826.18 | H124: 5826.8 | I124: 0.011976 | J124: 6.79 | K124: 1.23 | L124: 232.84 | M124: 80.1 | N124: =IF(ISBLANK(B124),"",INDEX(LookupTables!B$4:B$13,MATCH(B124,LookupTables!D$4:D$13,-1))) -> 1 | O124: =IF(ISBLANK(B124),"",IF(ISNA(VLOOKUP(B124,LookupTables!F$4:F$13,1,FALSE)),1,0)) -> 0 | P124: 0.1086223182 | Q124: 0.78
A125: Main | B125: 31095.11 | C125: 25 YR | D125: 1937.7 | E125: 5822.32 | F125: 5826.44 | G125: 5826.44 | H125: 5827.13 | I125: 0.012082 | J125: 7.33 | K125: 1.4 | L125: 249.15 | M125: 80.1 | N125: =IF(ISBLANK(B125),"",INDEX(LookupTables!B$4:B$13,MATCH(B125,LookupTables!D$4:D$13,-1))) -> 1 | O125: =IF(ISBLANK(B125),"",IF(ISNA(VLOOKUP(B125,LookupTables!F$4:F$13,1,FALSE)),1,0)) -> 0 | P125: 0.1086223182 | Q125: 0.8
A126: Main | B126: 31095.11 | C126: 50 YR | D126: 2278.5 | E126: 5822.32 | F126: 5826.62 | G126: 5826.62 | H126: 5827.36 | I126: 0.012367 | J126: 7.73 | K126: 1.54 | L126: 254.12 | M126: 80.1 | N126: =IF(ISBLANK(B126),"",INDEX(LookupTables!B$4:B$13,MATCH(B126,LookupTables!D$4:D$13,-1))) -> 1 | O126: =IF(ISBLANK(B126),"",IF(ISNA(VLOOKUP(B126,LookupTables!F$4:F$13,1,FALSE)),1,0)) -> 0 | P126: 0.1086223182 | Q126: 0.82
A127: Main | B127: 31095.11 | C127: 100 YR | D127: 2651.4 | E127: 5822.32 | F127: 5826.75 | G127: 5826.75 | H127: 5827.59 | I127: 0.013345 | J127: 8.3 | K127: 1.66 | L127: 258.11 | M127: 80.1 | N127: =IF(ISBLANK(B127),"",INDEX(LookupTables!B$4:B$13,MATCH(B127,LookupTables!D$4:D$13,-1))) -> 1 | O127: =IF(ISBLANK(B127),"",IF(ISNA(VLOOKUP(B127,LookupTables!F$4:F$13,1,FALSE)),1,0)) -> 0 | P127: 0.1086223182 | Q127: 0.86
N128: =IF(ISBLANK(B128),"",INDEX(LookupTables!B$4:B$13,MATCH(B128,LookupTables!D$4:D$13,-1))) ->  | O128: =IF(ISBLANK(B128),"",IF(ISNA(VLOOKUP(B128,LookupTables!F$4:F$13,1,FALSE)),1,0)) -> 
A129: Main | B129: 31021 | C129: 2 YR | D129: 791.3 | E129: 5814.27 | F129: 5816.99 | H129: 5817.6 | I129: 0.01343 | J129: 6.28 | K129: 1.91 | L129: 65.93 | M129: 65.93 | N129: =IF(ISBLANK(B129),"",INDEX(LookupTables!B$4:B$13,MATCH(B129,LookupTables!D$4:D$13,-1))) -> 1 | O129: =IF(ISBLANK(B129),"",IF(ISNA(VLOOKUP(B129,LookupTables!F$4:F$13,1,FALSE)),1,0)) -> 1 | P129: 0.02137326422 | Q129: 0.8
A130: Main | B130: 31021 | C130: 5 YR | D130: 1188.6 | E130: 5814.27 | F130: 5817.7 | H130: 5818.42 | I130: 0.011327 | J130: 6.78 | K130: 2.44 | L130: 71.96 | M130: 71.96 | N130: =IF(ISBLANK(B130),"",INDEX(LookupTables!B$4:B$13,MATCH(B130,LookupTables!D$4:D$13,-1))) -> 1 | O130: =IF(ISBLANK(B130),"",IF(ISNA(VLOOKUP(B130,LookupTables!F$4:F$13,1,FALSE)),1,0)) -> 1 | P130: 0.02137326422 | Q130: 0.77
A131: Main | B131: 31021 | C131: 10 YR | D131: 1511.6 | E131: 5814.27 | F131: 5818.21 | H131: 5818.99 | I131: 0.010348 | J131: 7.1 | K131: 2.8 | L131: 75.98 | M131: 75.98 | N131: =IF(ISBLANK(B131),"",INDEX(LookupTables!B$4:B$13,MATCH(B131,LookupTables!D$4:D$13,-1))) -> 1 | O131: =IF(ISBLANK(B131),"",IF(ISNA(VLOOKUP(B131,LookupTables!F$4:F$13,1,FALSE)),1,0)) -> 1 | P131: 0.02137326422 | Q131: 0.75
A132: Main | B132: 31021 | C132: 25 YR | D132: 1937.7 | E132: 5814.27 | F132: 5818.82 | H132: 5819.68 | I132: 0.009406 | J132: 7.43 | K132: 3.22 | L132: 80.95 | M132: 80.95 | N132: =IF(ISBLANK(B132),"",INDEX(LookupTables!B$4:B$13,MATCH(B132,LookupTables!D$4:D$13,-1))) -> 1 | O132: =IF(ISBLANK(B132),"",IF(ISNA(VLOOKUP(B132,LookupTables!F$4:F$13,1,FALSE)),1,0)) -> 1 | P132: =IF(ISBLANK(E132),"",(E132-E139)/(B132-B139)) -> 0.02137326422 | Q132: 0.73
A133: Main | B133: 31021 | C133: 50 YR | D133: 2278.5 | E133: 5814.27 | F133: 5819.26 | H133: 5820.17 | I133: 0.009019 | J133: 7.68 | K133: 3.49 | L133: 84.99 | M133: 84.99 | N133: =IF(ISBLANK(B133),"",INDEX(LookupTables!B$4:B$13,MATCH(B133,LookupTables!D$4:D$13,-1))) -> 1 | O133: =IF(ISBLANK(B133),"",IF(ISNA(VLOOKUP(B133,LookupTables!F$4:F$13,1,FALSE)),1,0)) -> 1 | P133: 0.02137326422 | Q133: 0.72
A134: Main | B134: 31021 | C134: 100 YR | D134: 2651.4 | E134: 5814.27 | F134: 5819.65 | H134: 5820.65 | I134: 0.009009 | J134: 8.02 | K134: 3.74 | L134: 88.47 | M134: 88.47 | N134: =IF(ISBLANK(B134),"",INDEX(LookupTables!B$4:B$13,MATCH(B134,LookupTables!D$4:D$13,-1))) -> 1 | O134: =IF(ISBLANK(B134),"",IF(ISNA(VLOOKUP(B134,LookupTables!F$4:F$13,1,FALSE)),1,0)) -> 1 | P134: 0.02137326422 | Q134: 0.73
N135: =IF(ISBLANK(B135),"",INDEX(LookupTables!B$4:B$13,MATCH(B135,LookupTables!D$4:D$13,-1))) ->  | O135: =IF(ISBLANK(B135),"",IF(ISNA(VLOOKUP(B135,LookupTables!F$4:F$13,1,FALSE)),1,0)) -> 
A136: Main | B136: 30864.73 | C136: 2 YR | D136: 791.3 | E136: 5810.93 | F136: 5814.6 | G136: 5814.32 | H136: 5815.41 | I136: 0.014489 | J136: 7.23 | K136: 2.24 | L136: 48.85 | M136: 48.85 | N136: =IF(ISBLANK(B136),"",INDEX(LookupTables!B$4:B$13,MATCH(B136,LookupTables!D$4:D$13,-1))) -> 1 | O136: =IF(ISBLANK(B136),"",IF(ISNA(VLOOKUP(B136,LookupTables!F$4:F$13,1,FALSE)),1,0)) -> 1 | P136: 0.01697968989 | Q136: 0.85
A137: Main | B137: 30864.73 | C137: 5 YR | D137: 1188.6 | E137: 5810.93 | F137: 5815.25 | G137: 5815.05 | H137: 5816.32 | I137: 0.015577 | J137: 8.31 | K137: 2.62 | L137: 54.54 | M137: 54.54 | N137: =IF(ISBLANK(B137),"",INDEX(LookupTables!B$4:B$13,MATCH(B137,LookupTables!D$4:D$13,-1))) -> 1 | O137: =IF(ISBLANK(B137),"",IF(ISNA(VLOOKUP(B137,LookupTables!F$4:F$13,1,FALSE)),1,0)) -> 1 | P137: 0.01697968989 | Q137: 0.9
A138: Main | B138: 30864.73 | C138: 10 YR | D138: 1511.6 | E138: 5810.93 | F138: 5815.69 | G138: 5815.54 | H138: 5816.95 | I138: 0.016227 | J138: 9.01 | K138: 2.87 | L138: 58.44 | M138: 58.44 | N138: =IF(ISBLANK(B138),"",INDEX(LookupTables!B$4:B$13,MATCH(B138,LookupTables!D$4:D$13,-1))) -> 1 | O138: =IF(ISBLANK(B138),"",IF(ISNA(VLOOKUP(B138,LookupTables!F$4:F$13,1,FALSE)),1,0)) -> 1 | P138: 0.01697968989 | Q138: 0.94
A139: Main | B139: 30864.73 | C139: 25 YR | D139: 1937.7 | E139: 5810.93 | F139: 5816.17 | G139: 5816.1 | H139: 5817.67 | I139: 0.017257 | J139: 9.82 | K139: 3.12 | L139: 63.27 | M139: 63.27 | N139: =IF(ISBLANK(B139),"",INDEX(LookupTables!B$4:B$13,MATCH(B139,LookupTables!D$4:D$13,-1))) -> 1 | O139: =IF(ISBLANK(B139),"",IF(ISNA(VLOOKUP(B139,LookupTables!F$4:F$13,1,FALSE)),1,0)) -> 1 | P139: 0.01697968989 | Q139: 0.98
A140: Main | B140: 30864.73 | C140: 50 YR | D140: 2278.5 | E140: 5810.93 | F140: 5816.52 | G140: 5816.52 | H140: 5818.19 | I140: 0.017455 | J140: 10.37 | K140: 3.2 | L140: 68.86 | M140: 65.51 | N140: =IF(ISBLANK(B140),"",INDEX(LookupTables!B$4:B$13,MATCH(B140,LookupTables!D$4:D$13,-1))) -> 1 | O140: =IF(ISBLANK(B140),"",IF(ISNA(VLOOKUP(B140,LookupTables!F$4:F$13,1,FALSE)),1,0)) -> 1 | P140: 0.01697968989 | Q140: 1
A141: Main | B141: 30864.73 | C141: 100 YR | D141: 2651.4 | E141: 5810.93 | F141: 5816.95 | G141: 5816.95 | H141: 5818.71 | I141: 0.016497 | J141: 10.65 | K141: 3.3 | L141: 76.31 | M141: 68.22 | N141: =IF(ISBLANK(B141),"",INDEX(LookupTables!B$4:B$13,MATCH(B141,LookupTables!D$4:D$13,-1))) -> 1 | O141: =IF(ISBLANK(B141),"",IF(ISNA(VLOOKUP(B141,LookupTables!F$4:F$13,1,FALSE)),1,0)) -> 1 | P141: 0.01697968989 | Q141: 0.98
N142: =IF(ISBLANK(B142),"",INDEX(LookupTables!B$4:B$13,MATCH(B142,LookupTables!D$4:D$13,-1))) ->  | O142: =IF(ISBLANK(B142),"",IF(ISNA(VLOOKUP(B142,LookupTables!F$4:F$13,1,FALSE)),1,0)) -> 
A143: Main | B143: 30315.25 | C143: 2 YR | D143: 791.3 | E143: 5801.6 | F143: 5804.82 | G143: 5804.82 | H143: 5805.78 | I143: 0.021534 | J143: 7.86 | K143: 1.88 | L143: 53.6 | M143: 53.6 | N143: =IF(ISBLANK(B143),"",INDEX(LookupTables!B$4:B$13,MATCH(B143,LookupTables!D$4:D$13,-1))) -> 1 | O143: =IF(ISBLANK(B143),"",IF(ISNA(VLOOKUP(B143,LookupTables!F$4:F$13,1,FALSE)),1,0)) -> 1 | P143: 0.02907656514 | Q143: 1.01
A144: Main | B144: 30315.25 | C144: 5 YR | D144: 1188.6 | E144: 5801.6 | F144: 5805.47 | G144: 5805.47 | H144: 5806.62 | I144: 0.020134 | J144: 8.62 | K144: 2.27 | L144: 60.75 | M144: 60.75 | N144: =IF(ISBLANK(B144),"",INDEX(LookupTables!B$4:B$13,MATCH(B144,LookupTables!D$4:D$13,-1))) -> 1 | O144: =IF(ISBLANK(B144),"",IF(ISNA(VLOOKUP(B144,LookupTables!F$4:F$13,1,FALSE)),1,0)) -> 1 | P144: 0.02907656514 | Q144: 1.01
A145: Main | B145: 30315.25 | C145: 10 YR | D145: 1511.6 | E145: 5801.6 | F145: 5805.91 | G145: 5805.91 | H145: 5807.2 | I145: 0.019435 | J145: 9.1 | K145: 2.53 | L145: 65.65 | M145: 65.65 | N145: =IF(ISBLANK(B145),"",INDEX(LookupTables!B$4:B$13,MATCH(B145,LookupTables!D$4:D$13,-1))) -> 1 | O145: =IF(ISBLANK(B145),"",IF(ISNA(VLOOKUP(B145,LookupTables!F$4:F$13,1,FALSE)),1,0)) -> 1 | P145: 0.02907656514 | Q145: 1.01
A146: Main | B146: 30315.25 | C146: 25 YR | D146: 1937.7 | E146: 5801.6 | F146: 5806.44 | G146: 5806.44 | H146: 5807.87 | I146: 0.018359 | J146: 9.59 | K146: 2.82 | L146: 71.67 | M146: 70.66 | N146: =IF(ISBLANK(B146),"",INDEX(LookupTables!B$4:B$13,MATCH(B146,LookupTables!D$4:D$13,-1))) -> 1 | O146: =IF(ISBLANK(B146),"",IF(ISNA(VLOOKUP(B146,LookupTables!F$4:F$13,1,FALSE)),1,0)) -> 1 | P146: 0.02907656514 | Q146: 1
A147: Main | B147: 30315.25 | C147: 50 YR | D147: 2278.5 | E147: 5801.6 | F147: 5806.8 | G147: 5806.8 | H147: 5808.35 | I147: 0.017576 | J147: 10.01 | K147: 2.96 | L147: 77.16 | M147: 72.28 | N147: =IF(ISBLANK(B147),"",INDEX(LookupTables!B$4:B$13,MATCH(B147,LookupTables!D$4:D$13,-1))) -> 1 | O147: =IF(ISBLANK(B147),"",IF(ISNA(VLOOKUP(B147,LookupTables!F$4:F$13,1,FALSE)),1,0)) -> 1 | P147: 0.02907656514 | Q147: 0.99
A148: Main | B148: 30315.25 | C148: 100 YR | D148: 2651.4 | E148: 5801.6 | F148: 5807.14 | G148: 5807.14 | H148: 5808.84 | I148: 0.016787 | J148: 10.48 | K148: 3.06 | L148: 83.58 | M148: 72.28 | N148: =IF(ISBLANK(B148),"",INDEX(LookupTables!B$4:B$13,MATCH(B148,LookupTables!D$4:D$13,-1))) -> 1 | O148: =IF(ISBLANK(B148),"",IF(ISNA(VLOOKUP(B148,LookupTables!F$4:F$13,1,FALSE)),1,0)) -> 1 | P148: 0.02907656514 | Q148: 0.99
N149: =IF(ISBLANK(B149),"",INDEX(LookupTables!B$4:B$13,MATCH(B149,LookupTables!D$4:D$13,-1))) ->  | O149: =IF(ISBLANK(B149),"",IF(ISNA(VLOOKUP(B149,LookupTables!F$4:F$13,1,FALSE)),1,0)) -> 
A150: Main | B150: 29468.52 | C150: 2 YR | D150: 1227.8 | E150: 5776.98 | F150: 5786.3 | H150: 5786.3 | I150: 8e-06 | J150: 0.38 | K150: 6.11 | L150: 537.23 | M150: 465.97 | N150: =IF(ISBLANK(B150),"",INDEX(LookupTables!B$4:B$13,MATCH(B150,LookupTables!D$4:D$13,-1))) -> 2 | O150: =IF(ISBLANK(B150),"",IF(ISNA(VLOOKUP(B150,LookupTables!F$4:F$13,1,FALSE)),1,0)) -> 0 | P150: -0.02203658905 | Q150: 0.03
A151: Main | B151: 29468.52 | C151: 5 YR | D151: 1873.1 | E151: 5776.98 | F151: 5786.95 | H151: 5786.95 | I151: 1.5e-05 | J151: 0.52 | K151: 6.09 | L151: 599.19 | M151: 470.28 | N151: =IF(ISBLANK(B151),"",INDEX(LookupTables!B$4:B$13,MATCH(B151,LookupTables!D$4:D$13,-1))) -> 2 | O151: =IF(ISBLANK(B151),"",IF(ISNA(VLOOKUP(B151,LookupTables!F$4:F$13,1,FALSE)),1,0)) -> 0 | P151: -0.02203658905 | Q151: 0.03
A152: Main | B152: 29468.52 | C152: 10 YR | D152: 2394.7 | E152: 5776.98 | F152: 5787.38 | H152: 5787.39 | I152: 2e-05 | J152: 0.63 | K152: 6.39 | L152: 613.22 | M152: 473.17 | N152: =IF(ISBLANK(B152),"",INDEX(LookupTables!B$4:B$13,MATCH(B152,LookupTables!D$4:D$13,-1))) -> 2 | O152: =IF(ISBLANK(B152),"",IF(ISNA(VLOOKUP(B152,LookupTables!F$4:F$13,1,FALSE)),1,0)) -> 0 | P152: -0.02203658905 | Q152: 0.04
A153: Main | B153: 29468.52 | C153: 25 YR | D153: 3094.3 | E153: 5776.98 | F153: 5787.89 | H153: 5787.9 | I153: 2.7e-05 | J153: 0.76 | K153: 6.83 | L153: 619.38 | M153: 476.37 | N153: =IF(ISBLANK(B153),"",INDEX(LookupTables!B$4:B$13,MATCH(B153,LookupTables!D$4:D$13,-1))) -> 2 | O153: =IF(ISBLANK(B153),"",IF(ISNA(VLOOKUP(B153,LookupTables!F$4:F$13,1,FALSE)),1,0)) -> 0 | P153: -0.02203658905 | Q153: 0.05
A154: Main | B154: 29468.52 | C154: 50 YR | D154: 3662.1 | E154: 5776.98 | F154: 5788.26 | H154: 5788.27 | I154: 3.3e-05 | J154: 0.86 | K154: 7.15 | L154: 623.68 | M154: 478.64 | N154: =IF(ISBLANK(B154),"",INDEX(LookupTables!B$4:B$13,MATCH(B154,LookupTables!D$4:D$13,-1))) -> 2 | O154: =IF(ISBLANK(B154),"",IF(ISNA(VLOOKUP(B154,LookupTables!F$4:F$13,1,FALSE)),1,0)) -> 0 | P154: -0.02203658905 | Q154: 0.05
A155: Main | B155: 29468.52 | C155: 100 YR | D155: 4287.5 | E155: 5776.98 | F155: 5788.62 | H155: 5788.63 | I155: 3.9e-05 | J155: 0.96 | K155: 7.46 | L155: 627.96 | M155: 480.91 | N155: =IF(ISBLANK(B155),"",INDEX(LookupTables!B$4:B$13,MATCH(B155,LookupTables!D$4:D$13,-1))) -> 2 | O155: =IF(ISBLANK(B155),"",IF(ISNA(VLOOKUP(B155,LookupTables!F$4:F$13,1,FALSE)),1,0)) -> 0 | P155: -0.02203658905 | Q155: 0.06
N156: =IF(ISBLANK(B156),"",INDEX(LookupTables!B$4:B$13,MATCH(B156,LookupTables!D$4:D$13,-1))) ->  | O156: =IF(ISBLANK(B156),"",IF(ISNA(VLOOKUP(B156,LookupTables!F$4:F$13,1,FALSE)),1,0)) -> 
A157: Main | B157: 29203.96 | C157: 2 YR | D157: 1227.8 | E157: 5782.81 | F157: 5785.55 | G157: 5785.55 | H157: 5786.23 | I157: 0.024026 | J157: 6.6 | K157: 1.32 | L157: 140.66 | M157: 140.66 | N157: =IF(ISBLANK(B157),"",INDEX(LookupTables!B$4:B$13,MATCH(B157,LookupTables!D$4:D$13,-1))) -> 2 | O157: =IF(ISBLANK(B157),"",IF(ISNA(VLOOKUP(B157,LookupTables!F$4:F$13,1,FALSE)),1,0)) -> 0 | P157: 0.01936113394 | Q157: 1.01
A158: Main | B158: 29203.96 | C158: 5 YR | D158: 1873.1 | E158: 5782.81 | F158: 5786.05 | G158: 5786.05 | H158: 5786.86 | I158: 0.020122 | J158: 7.22 | K158: 1.56 | L158: 167.96 | M158: 149.88 | N158: =IF(ISBLANK(B158),"",INDEX(LookupTables!B$4:B$13,MATCH(B158,LookupTables!D$4:D$13,-1))) -> 2 | O158: =IF(ISBLANK(B158),"",IF(ISNA(VLOOKUP(B158,LookupTables!F$4:F$13,1,FALSE)),1,0)) -> 0 | P158: 0.01936113394 | Q158: 0.97
A159: Main | B159: 29203.96 | C159: 10 YR | D159: 2394.7 | E159: 5782.81 | F159: 5786.39 | G159: 5786.39 | H159: 5787.28 | I159: 0.017666 | J159: 7.61 | K159: 1.66 | L159: 197.05 | M159: 150.27 | N159: =IF(ISBLANK(B159),"",INDEX(LookupTables!B$4:B$13,MATCH(B159,LookupTables!D$4:D$13,-1))) -> 2 | O159: =IF(ISBLANK(B159),"",IF(ISNA(VLOOKUP(B159,LookupTables!F$4:F$13,1,FALSE)),1,0)) -> 0 | P159: 0.01936113394 | Q159: 0.93
A160: Main | B160: 29203.96 | C160: 25 YR | D160: 3094.3 | E160: 5782.81 | F160: 5786.77 | G160: 5786.77 | H160: 5787.77 | I160: 0.016151 | J160: 8.15 | K160: 1.82 | L160: 222.04 | M160: 150.27 | N160: =IF(ISBLANK(B160),"",INDEX(LookupTables!B$4:B$13,MATCH(B160,LookupTables!D$4:D$13,-1))) -> 2 | O160: =IF(ISBLANK(B160),"",IF(ISNA(VLOOKUP(B160,LookupTables!F$4:F$13,1,FALSE)),1,0)) -> 0 | P160: 0.01936113394 | Q160: 0.92
A161: Main | B161: 29203.96 | C161: 50 YR | D161: 3662.1 | E161: 5782.81 | F161: 5787.08 | G161: 5787.08 | H161: 5788.13 | I161: 0.01479 | J161: 8.43 | K161: 2.01 | L161: 235.79 | M161: 150.27 | N161: =IF(ISBLANK(B161),"",INDEX(LookupTables!B$4:B$13,MATCH(B161,LookupTables!D$4:D$13,-1))) -> 2 | O161: =IF(ISBLANK(B161),"",IF(ISNA(VLOOKUP(B161,LookupTables!F$4:F$13,1,FALSE)),1,0)) -> 0 | P161: 0.01936113394 | Q161: 0.9
A162: Main | B162: 29203.96 | C162: 100 YR | D162: 4287.5 | E162: 5782.81 | F162: 5787.34 | G162: 5787.34 | H162: 5788.48 | I162: 0.014322 | J162: 8.83 | K162: 2.08 | L162: 259.94 | M162: 150.27 | N162: =IF(ISBLANK(B162),"",INDEX(LookupTables!B$4:B$13,MATCH(B162,LookupTables!D$4:D$13,-1))) -> 2 | O162: =IF(ISBLANK(B162),"",IF(ISNA(VLOOKUP(B162,LookupTables!F$4:F$13,1,FALSE)),1,0)) -> 0 | P162: 0.01936113394 | Q162: 0.9
N163: =IF(ISBLANK(B163),"",INDEX(LookupTables!B$4:B$13,MATCH(B163,LookupTables!D$4:D$13,-1))) ->  | O163: =IF(ISBLANK(B163),"",IF(ISNA(VLOOKUP(B163,LookupTables!F$4:F$13,1,FALSE)),1,0)) -> 
A164: Main | B164: 29009.24 | C164: 2 YR | D164: 1227.8 | E164: 5779.04 | F164: 5782.35 | G164: 5782.35 | H164: 5782.95 | I164: 0.012059 | J164: 8.46 | K164: 1.33 | L164: 189.17 | M164: 18.84 | N164: =IF(ISBLANK(B164),"",INDEX(LookupTables!B$4:B$13,MATCH(B164,LookupTables!D$4:D$13,-1))) -> 2 | O164: =IF(ISBLANK(B164),"",IF(ISNA(VLOOKUP(B164,LookupTables!F$4:F$13,1,FALSE)),1,0)) -> 1 | P164: 0.01584306762 | Q164: 0.83
A165: Main | B165: 29009.24 | C165: 5 YR | D165: 1873.1 | E165: 5779.04 | F165: 5782.78 | G165: 5782.78 | H165: 5783.51 | I165: 0.013413 | J165: 9.7 | K165: 1.6 | L165: 211.01 | M165: 18.84 | N165: =IF(ISBLANK(B165),"",INDEX(LookupTables!B$4:B$13,MATCH(B165,LookupTables!D$4:D$13,-1))) -> 2 | O165: =IF(ISBLANK(B165),"",IF(ISNA(VLOOKUP(B165,LookupTables!F$4:F$13,1,FALSE)),1,0)) -> 1 | P165: 0.01584306762 | Q165: 0.9
A166: Main | B166: 29009.24 | C166: 10 YR | D166: 2394.7 | E166: 5779.04 | F166: 5783.06 | G166: 5783.06 | H166: 5783.89 | I166: 0.01433 | J166: 10.53 | K166: 1.76 | L166: 226.44 | M166: 18.84 | N166: =IF(ISBLANK(B166),"",INDEX(LookupTables!B$4:B$13,MATCH(B166,LookupTables!D$4:D$13,-1))) -> 2 | O166: =IF(ISBLANK(B166),"",IF(ISNA(VLOOKUP(B166,LookupTables!F$4:F$13,1,FALSE)),1,0)) -> 1 | P166: 0.01584306762 | Q166: 0.94
A167: Main | B167: 29009.24 | C167: 25 YR | D167: 3094.3 | E167: 5779.04 | F167: 5783.4 | G167: 5783.4 | H167: 5784.33 | I167: 0.014845 | J167: 11.34 | K167: 1.96 | L167: 244.19 | M167: 18.84 | N167: =IF(ISBLANK(B167),"",INDEX(LookupTables!B$4:B$13,MATCH(B167,LookupTables!D$4:D$13,-1))) -> 2 | O167: =IF(ISBLANK(B167),"",IF(ISNA(VLOOKUP(B167,LookupTables!F$4:F$13,1,FALSE)),1,0)) -> 1 | P167: 0.01584306762 | Q167: 0.97
A168: Main | B168: 29009.24 | C168: 50 YR | D168: 3662.1 | E168: 5779.04 | F168: 5783.58 | G168: 5783.58 | H168: 5784.65 | I168: 0.016462 | J168: 12.27 | K168: 2.07 | L168: 253.4 | M168: 18.84 | N168: =IF(ISBLANK(B168),"",INDEX(LookupTables!B$4:B$13,MATCH(B168,LookupTables!D$4:D$13,-1))) -> 2 | O168: =IF(ISBLANK(B168),"",IF(ISNA(VLOOKUP(B168,LookupTables!F$4:F$13,1,FALSE)),1,0)) -> 1 | P168: 0.01584306762 | Q168: 1.03
A169: Main | B169: 29009.24 | C169: 100 YR | D169: 4287.5 | E169: 5779.04 | F169: 5784.15 | G169: 5784.15 | H169: 5785.02 | I169: 0.012554 | J169: 11.61 | K169: 2.14 | L169: 325.35 | M169: 18.84 | N169: =IF(ISBLANK(B169),"",INDEX(LookupTables!B$4:B$13,MATCH(B169,LookupTables!D$4:D$13,-1))) -> 2 | O169: =IF(ISBLANK(B169),"",IF(ISNA(VLOOKUP(B169,LookupTables!F$4:F$13,1,FALSE)),1,0)) -> 1 | P169: 0.01584306762 | Q169: 0.91
N170: =IF(ISBLANK(B170),"",INDEX(LookupTables!B$4:B$13,MATCH(B170,LookupTables!D$4:D$13,-1))) ->  | O170: =IF(ISBLANK(B170),"",IF(ISNA(VLOOKUP(B170,LookupTables!F$4:F$13,1,FALSE)),1,0)) -> 
A171: Main | B171: 28648.83 | C171: 2 YR | D171: 1227.8 | E171: 5773.33 | F171: 5776.02 | G171: 5775.98 | H171: 5776.7 | I171: 0.015986 | J171: 6.67 | K171: 1.29 | L171: 152.82 | M171: 98.2 | N171: =IF(ISBLANK(B171),"",INDEX(LookupTables!B$4:B$13,MATCH(B171,LookupTables!D$4:D$13,-1))) -> 2 | O171: =IF(ISBLANK(B171),"",IF(ISNA(VLOOKUP(B171,LookupTables!F$4:F$13,1,FALSE)),1,0)) -> 1 | P171: 0.02295449092 | Q171: 0.87
A172: Main | B172: 28648.83 | C172: 5 YR | D172: 1873.1 | E172: 5773.33 | F172: 5776.61 | G172: 5776.55 | H172: 5777.35 | I172: 0.013239 | J172: 7.17 | K172: 1.62 | L172: 184.76 | M172: 101.6 | N172: =IF(ISBLANK(B172),"",INDEX(LookupTables!B$4:B$13,MATCH(B172,LookupTables!D$4:D$13,-1))) -> 2 | O172: =IF(ISBLANK(B172),"",IF(ISNA(VLOOKUP(B172,LookupTables!F$4:F$13,1,FALSE)),1,0)) -> 1 | P172: 0.02295449092 | Q172: 0.82
A173: Main | B173: 28648.83 | C173: 10 YR | D173: 2394.7 | E173: 5773.33 | F173: 5776.87 | G173: 5776.87 | H173: 5777.77 | I173: 0.014698 | J173: 8.01 | K173: 1.79 | L173: 193.12 | M173: 103.07 | N173: =IF(ISBLANK(B173),"",INDEX(LookupTables!B$4:B$13,MATCH(B173,LookupTables!D$4:D$13,-1))) -> 2 | O173: =IF(ISBLANK(B173),"",IF(ISNA(VLOOKUP(B173,LookupTables!F$4:F$13,1,FALSE)),1,0)) -> 1 | P173: 0.02295449092 | Q173: 0.88
A174: Main | B174: 28648.83 | C174: 25 YR | D174: 3094.3 | E174: 5773.33 | F174: 5777.25 | G174: 5777.25 | H174: 5778.26 | I174: 0.014473 | J174: 8.6 | K174: 2.09 | L174: 201.12 | M174: 105.26 | N174: =IF(ISBLANK(B174),"",INDEX(LookupTables!B$4:B$13,MATCH(B174,LookupTables!D$4:D$13,-1))) -> 2 | O174: =IF(ISBLANK(B174),"",IF(ISNA(VLOOKUP(B174,LookupTables!F$4:F$13,1,FALSE)),1,0)) -> 1 | P174: 0.02295449092 | Q174: 0.89
A175: Main | B175: 28648.83 | C175: 50 YR | D175: 3662.1 | E175: 5773.33 | F175: 5777.54 | G175: 5777.54 | H175: 5778.61 | I175: 0.014091 | J175: 8.96 | K175: 2.33 | L175: 206.56 | M175: 106.94 | N175: =IF(ISBLANK(B175),"",INDEX(LookupTables!B$4:B$13,MATCH(B175,LookupTables!D$4:D$13,-1))) -> 2 | O175: =IF(ISBLANK(B175),"",IF(ISNA(VLOOKUP(B175,LookupTables!F$4:F$13,1,FALSE)),1,0)) -> 1 | P175: 0.02295449092 | Q175: 0.89
A176: Main | B176: 28648.83 | C176: 100 YR | D176: 4287.5 | E176: 5773.33 | F176: 5777.8 | G176: 5777.8 | H176: 5778.98 | I176: 0.014279 | J176: 9.43 | K176: 2.54 | L176: 210.24 | M176: 108.45 | N176: =IF(ISBLANK(B176),"",INDEX(LookupTables!B$4:B$13,MATCH(B176,LookupTables!D$4:D$13,-1))) -> 2 | O176: =IF(ISBLANK(B176),"",IF(ISNA(VLOOKUP(B176,LookupTables!F$4:F$13,1,FALSE)),1,0)) -> 1 | P176: 0.02295449092 | Q176: 0.91
N177: =IF(ISBLANK(B177),"",INDEX(LookupTables!B$4:B$13,MATCH(B177,LookupTables!D$4:D$13,-1))) ->  | O177: =IF(ISBLANK(B177),"",IF(ISNA(VLOOKUP(B177,LookupTables!F$4:F$13,1,FALSE)),1,0)) -> 
A178: Main | B178: 28523.8 | C178: 2 YR | D178: 1227.8 | E178: 5770.46 | F178: 5773.6 | G178: 5773.6 | H178: 5774.47 | I178: 0.019685 | J178: 7.52 | K178: 1.72 | L178: 96.24 | M178: 86.7 | N178: =IF(ISBLANK(B178),"",INDEX(LookupTables!B$4:B$13,MATCH(B178,LookupTables!D$4:D$13,-1))) -> 2 | O178: =IF(ISBLANK(B178),"",IF(ISNA(VLOOKUP(B178,LookupTables!F$4:F$13,1,FALSE)),1,0)) -> 1 | P178: 0.0185770751 | Q178: 0.97
A179: Main | B179: 28523.8 | C179: 5 YR | D179: 1873.1 | E179: 5770.46 | F179: 5774.13 | G179: 5774.13 | H179: 5775.31 | I179: 0.020338 | J179: 8.81 | K179: 1.81 | L179: 122.16 | M179: 90.24 | N179: =IF(ISBLANK(B179),"",INDEX(LookupTables!B$4:B$13,MATCH(B179,LookupTables!D$4:D$13,-1))) -> 2 | O179: =IF(ISBLANK(B179),"",IF(ISNA(VLOOKUP(B179,LookupTables!F$4:F$13,1,FALSE)),1,0)) -> 1 | P179: 0.0185770751 | Q179: 1.02
A180: Main | B180: 28523.8 | C180: 10 YR | D180: 2394.7 | E180: 5770.46 | F180: 5774.77 | G180: 5774.77 | H180: 5775.78 | I180: 0.013827 | J180: 8.32 | K180: 1.72 | L180: 191.7 | M180: 94.56 | N180: =IF(ISBLANK(B180),"",INDEX(LookupTables!B$4:B$13,MATCH(B180,LookupTables!D$4:D$13,-1))) -> 2 | O180: =IF(ISBLANK(B180),"",IF(ISNA(VLOOKUP(B180,LookupTables!F$4:F$13,1,FALSE)),1,0)) -> 1 | P180: 0.0185770751 | Q180: 0.87
A181: Main | B181: 28523.8 | C181: 25 YR | D181: 3094.3 | E181: 5770.46 | F181: 5775.25 | G181: 5775.25 | H181: 5776.29 | I181: 0.012547 | J181: 8.62 | K181: 2.1 | L181: 202.27 | M181: 97.57 | N181: =IF(ISBLANK(B181),"",INDEX(LookupTables!B$4:B$13,MATCH(B181,LookupTables!D$4:D$13,-1))) -> 2 | O181: =IF(ISBLANK(B181),"",IF(ISNA(VLOOKUP(B181,LookupTables!F$4:F$13,1,FALSE)),1,0)) -> 1 | P181: 0.0185770751 | Q181: 0.85
A182: Main | B182: 28523.8 | C182: 50 YR | D182: 3662.1 | E182: 5770.46 | F182: 5775.54 | G182: 5775.54 | H182: 5776.65 | I182: 0.012516 | J182: 9.03 | K182: 2.32 | L182: 208.92 | M182: 99.13 | N182: =IF(ISBLANK(B182),"",INDEX(LookupTables!B$4:B$13,MATCH(B182,LookupTables!D$4:D$13,-1))) -> 2 | O182: =IF(ISBLANK(B182),"",IF(ISNA(VLOOKUP(B182,LookupTables!F$4:F$13,1,FALSE)),1,0)) -> 1 | P182: 0.0185770751 | Q182: 0.86
A183: Main | B183: 28523.8 | C183: 100 YR | D183: 4287.5 | E183: 5770.46 | F183: 5775.78 | G183: 5775.78 | H183: 5777.03 | I183: 0.013269 | J183: 9.64 | K183: 2.5 | L183: 214.3 | M183: 100.4 | N183: =IF(ISBLANK(B183),"",INDEX(LookupTables!B$4:B$13,MATCH(B183,LookupTables!D$4:D$13,-1))) -> 2 | O183: =IF(ISBLANK(B183),"",IF(ISNA(VLOOKUP(B183,LookupTables!F$4:F$13,1,FALSE)),1,0)) -> 1 | P183: 0.0185770751 | Q183: 0.89
N184: =IF(ISBLANK(B184),"",INDEX(LookupTables!B$4:B$13,MATCH(B184,LookupTables!D$4:D$13,-1))) ->  | O184: =IF(ISBLANK(B184),"",IF(ISNA(VLOOKUP(B184,LookupTables!F$4:F$13,1,FALSE)),1,0)) -> 
A185: Main | B185: 28346.7 | C185: 2 YR | D185: 1227.8 | E185: 5767.17 | F185: 5770.53 | G185: 5770.25 | H185: 5771.05 | I185: 0.013037 | J185: 5.79 | K185: 1.67 | L185: 127.36 | M185: 122.85 | N185: =IF(ISBLANK(B185),"",INDEX(LookupTables!B$4:B$13,MATCH(B185,LookupTables!D$4:D$13,-1))) -> 2 | O185: =IF(ISBLANK(B185),"",IF(ISNA(VLOOKUP(B185,LookupTables!F$4:F$13,1,FALSE)),1,0)) -> 1 | P185: 0.01677624122 | Q185: 0.78
A186: Main | B186: 28346.7 | C186: 5 YR | D186: 1873.1 | E186: 5767.17 | F186: 5770.79 | G186: 5770.78 | H186: 5771.7 | I186: 0.019149 | J186: 7.66 | K186: 1.69 | L186: 146.69 | M186: 124.36 | N186: =IF(ISBLANK(B186),"",INDEX(LookupTables!B$4:B$13,MATCH(B186,LookupTables!D$4:D$13,-1))) -> 2 | O186: =IF(ISBLANK(B186),"",IF(ISNA(VLOOKUP(B186,LookupTables!F$4:F$13,1,FALSE)),1,0)) -> 1 | P186: 0.01677624122 | Q186: 0.96
A187: Main | B187: 28346.7 | C187: 10 YR | D187: 2394.7 | E187: 5767.17 | F187: 5771.14 | G187: 5771.14 | H187: 5772.18 | I187: 0.017618 | J187: 8.2 | K187: 1.84 | L187: 164.96 | M187: 124.36 | N187: =IF(ISBLANK(B187),"",INDEX(LookupTables!B$4:B$13,MATCH(B187,LookupTables!D$4:D$13,-1))) -> 2 | O187: =IF(ISBLANK(B187),"",IF(ISNA(VLOOKUP(B187,LookupTables!F$4:F$13,1,FALSE)),1,0)) -> 1 | P187: 0.01677624122 | Q187: 0.95
A188: Main | B188: 28346.7 | C188: 25 YR | D188: 3094.3 | E188: 5767.17 | F188: 5771.61 | G188: 5771.61 | H188: 5772.73 | I188: 0.015379 | J188: 8.65 | K188: 2.07 | L188: 185.66 | M188: 124.36 | N188: =IF(ISBLANK(B188),"",INDEX(LookupTables!B$4:B$13,MATCH(B188,LookupTables!D$4:D$13,-1))) -> 2 | O188: =IF(ISBLANK(B188),"",IF(ISNA(VLOOKUP(B188,LookupTables!F$4:F$13,1,FALSE)),1,0)) -> 1 | P188: 0.01677624122 | Q188: 0.91
A189: Main | B189: 28346.7 | C189: 50 YR | D189: 3662.1 | E189: 5767.17 | F189: 5771.93 | G189: 5771.93 | H189: 5773.14 | I189: 0.01436 | J189: 9.01 | K189: 2.19 | L189: 204.09 | M189: 124.36 | N189: =IF(ISBLANK(B189),"",INDEX(LookupTables!B$4:B$13,MATCH(B189,LookupTables!D$4:D$13,-1))) -> 2 | O189: =IF(ISBLANK(B189),"",IF(ISNA(VLOOKUP(B189,LookupTables!F$4:F$13,1,FALSE)),1,0)) -> 1 | P189: 0.01677624122 | Q189: 0.9
A190: Main | B190: 28346.7 | C190: 100 YR | D190: 4287.5 | E190: 5767.17 | F190: 5772.27 | G190: 5772.27 | H190: 5773.53 | I190: 0.013415 | J190: 9.31 | K190: 2.38 | L190: 217.3 | M190: 124.36 | N190: =IF(ISBLANK(B190),"",INDEX(LookupTables!B$4:B$13,MATCH(B190,LookupTables!D$4:D$13,-1))) -> 2 | O190: =IF(ISBLANK(B190),"",IF(ISNA(VLOOKUP(B190,LookupTables!F$4:F$13,1,FALSE)),1,0)) -> 1 | P190: 0.01677624122 | Q190: 0.89
N191: =IF(ISBLANK(B191),"",INDEX(LookupTables!B$4:B$13,MATCH(B191,LookupTables!D$4:D$13,-1))) ->  | O191: =IF(ISBLANK(B191),"",IF(ISNA(VLOOKUP(B191,LookupTables!F$4:F$13,1,FALSE)),1,0)) -> 
A192: Main | B192: 28126.15 | C192: 2 YR | D192: 1227.8 | E192: 5763.47 | F192: 5766.92 | G192: 5766.84 | H192: 5767.74 | I192: 0.017188 | J192: 7.27 | K192: 1.44 | L192: 120.28 | M192: 85.46 | N192: =IF(ISBLANK(B192),"",INDEX(LookupTables!B$4:B$13,MATCH(B192,LookupTables!D$4:D$13,-1))) -> 2 | O192: =IF(ISBLANK(B192),"",IF(ISNA(VLOOKUP(B192,LookupTables!F$4:F$13,1,FALSE)),1,0)) -> 1 | P192: 0.01575952872 | Q192: 0.91
A193: Main | B193: 28126.15 | C193: 5 YR | D193: 1873.1 | E193: 5763.47 | F193: 5767.7 | G193: 5767.7 | H193: 5768.48 | I193: 0.011437 | J193: 7.33 | K193: 1.24 | L193: 249.38 | M193: 86.91 | N193: =IF(ISBLANK(B193),"",INDEX(LookupTables!B$4:B$13,MATCH(B193,LookupTables!D$4:D$13,-1))) -> 2 | O193: =IF(ISBLANK(B193),"",IF(ISNA(VLOOKUP(B193,LookupTables!F$4:F$13,1,FALSE)),1,0)) -> 1 | P193: 0.01575952872 | Q193: 0.79
A194: Main | B194: 28126.15 | C194: 10 YR | D194: 2394.7 | E194: 5763.47 | F194: 5768.07 | G194: 5768.07 | H194: 5768.86 | I194: 0.010558 | J194: 7.67 | K194: 1.41 | L194: 288.07 | M194: 86.91 | N194: =IF(ISBLANK(B194),"",INDEX(LookupTables!B$4:B$13,MATCH(B194,LookupTables!D$4:D$13,-1))) -> 2 | O194: =IF(ISBLANK(B194),"",IF(ISNA(VLOOKUP(B194,LookupTables!F$4:F$13,1,FALSE)),1,0)) -> 1 | P194: 0.01575952872 | Q194: 0.77
A195: Main | B195: 28126.15 | C195: 25 YR | D195: 3094.3 | E195: 5763.47 | F195: 5768.4 | G195: 5768.4 | H195: 5769.28 | I195: 0.010771 | J195: 8.29 | K195: 1.64 | L195: 307.6 | M195: 86.91 | N195: =IF(ISBLANK(B195),"",INDEX(LookupTables!B$4:B$13,MATCH(B195,LookupTables!D$4:D$13,-1))) -> 2 | O195: =IF(ISBLANK(B195),"",IF(ISNA(VLOOKUP(B195,LookupTables!F$4:F$13,1,FALSE)),1,0)) -> 1 | P195: 0.01575952872 | Q195: 0.79
A196: Main | B196: 28126.15 | C196: 50 YR | D196: 3662.1 | E196: 5763.47 | F196: 5768.7 | G196: 5768.7 | H196: 5769.57 | I196: 0.010074 | J196: 8.48 | K196: 1.86 | L196: 323.2 | M196: 86.91 | N196: =IF(ISBLANK(B196),"",INDEX(LookupTables!B$4:B$13,MATCH(B196,LookupTables!D$4:D$13,-1))) -> 2 | O196: =IF(ISBLANK(B196),"",IF(ISNA(VLOOKUP(B196,LookupTables!F$4:F$13,1,FALSE)),1,0)) -> 1 | P196: =IF(ISBLANK(E196),"",(E196-E203)/(B196-B203)) -> 0.01575952872 | Q196: 0.78
A197: Main | B197: 28126.15 | C197: 100 YR | D197: 4287.5 | E197: 5763.47 | F197: 5768.9 | G197: 5768.9 | H197: 5769.86 | I197: 0.010518 | J197: 8.98 | K197: 2.05 | L197: 326.07 | M197: 86.91 | N197: =IF(ISBLANK(B197),"",INDEX(LookupTables!B$4:B$13,MATCH(B197,LookupTables!D$4:D$13,-1))) -> 2 | O197: =IF(ISBLANK(B197),"",IF(ISNA(VLOOKUP(B197,LookupTables!F$4:F$13,1,FALSE)),1,0)) -> 1 | P197: 0.01575952872 | Q197: 0.8
N198: =IF(ISBLANK(B198),"",INDEX(LookupTables!B$4:B$13,MATCH(B198,LookupTables!D$4:D$13,-1))) ->  | O198: =IF(ISBLANK(B198),"",IF(ISNA(VLOOKUP(B198,LookupTables!F$4:F$13,1,FALSE)),1,0)) -> 
A199: Main | B199: 27927.54 | C199: 2 YR | D199: 1227.8 | E199: 5760.34 | F199: 5764.6 | G199: 5764.6 | H199: 5765.15 | I199: 0.010111 | J199: 6.6 | K199: 1.05 | L199: 253.99 | M199: 57.12 | N199: =IF(ISBLANK(B199),"",INDEX(LookupTables!B$4:B$13,MATCH(B199,LookupTables!D$4:D$13,-1))) -> 2 | O199: =IF(ISBLANK(B199),"",IF(ISNA(VLOOKUP(B199,LookupTables!F$4:F$13,1,FALSE)),1,0)) -> 1 | P199: 0.01853333333 | Q199: 0.73
A200: Main | B200: 27927.54 | C200: 5 YR | D200: 1873.1 | E200: 5760.34 | F200: 5764.99 | G200: 5764.99 | H200: 5765.62 | I200: 0.011032 | J200: 7.47 | K200: 1.41 | L200: 261.67 | M200: 58.38 | N200: =IF(ISBLANK(B200),"",INDEX(LookupTables!B$4:B$13,MATCH(B200,LookupTables!D$4:D$13,-1))) -> 2 | O200: =IF(ISBLANK(B200),"",IF(ISNA(VLOOKUP(B200,LookupTables!F$4:F$13,1,FALSE)),1,0)) -> 1 | P200: 0.01853333333 | Q200: 0.77
... 575 more rows

Sheet Reach Avg Hyd
A1: Reach-Averaged Hydraulics
A2: Cross-sections that were within the hydraulic influence of crossings, inline structures, etc. were excluded from the averaging below.
A4: Reach | B4: Event | C4: Hyd. Depth | D4: Chan Vel. | E4: Chan Top W | F4: Top W (tot) | G4: WSEL | H4: Sf | I4: So | J4: Froude
B5: Freq. (yr) | C5: (ft) | D5: (fps) | E5: (ft) | F5: (ft) | G5: (ft) | H5: (ft/ft) | I5: (ft/ft) | J5: No.
A6: 0 | B6: 2 YR | C6: =AVERAGEIFS(RAS!K$3:K$775,RAS!$C$3:$C$775,$B6,RAS!$N$3:$N$775,$A6,RAS!$O$3:$O$775,1) -> 0.5483333333 | D6: =AVERAGEIFS(RAS!J$3:J$775,RAS!$C$3:$C$775,$B6,RAS!$N$3:$N$775,$A6,RAS!$O$3:$O$775,1) -> 3.478333333 | E6: =AVERAGEIFS(RAS!M$3:M$775,RAS!$C$3:$C$775,$B6,RAS!$N$3:$N$775,$A6,RAS!$O$3:$O$775,1) -> 26.13666667 | F6: =AVERAGEIFS(RAS!L$3:L$775,RAS!$C$3:$C$775,$B6,RAS!$N$3:$N$775,$A6,RAS!$O$3:$O$775,1) -> 242.6891667 | G6: =AVERAGEIFS(RAS!F$3:F$775,RAS!$C$3:$C$775,$B6,RAS!$N$3:$N$775,$A6,RAS!$O$3:$O$775,1) -> 5940.098333 | H6: =AVERAGEIFS(RAS!I$3:I$775,RAS!$C$3:$C$775,$B6,RAS!$N$3:$N$775,$A6,RAS!$O$3:$O$775,1) -> 0.02117483333 | I6: =AVERAGEIFS(RAS!P$3:P$775,RAS!N$3:N$775,A6,RAS!C$3:C$775,B6,RAS!O$3:O$775,1) -> 0.01409085867 | J6: =AVERAGEIFS(RAS!Q$3:Q$775,RAS!N$3:N$775,A6,RAS!C$3:C$775,B6,RAS!O$3:O$775,1) -> 0.7491666667
A7: =IF(B7="2 YR",A6+1,A6) -> 0 | B7: 5 YR | C7: =AVERAGEIFS(RAS!K$3:K$775,RAS!$C$3:$C$775,$B7,RAS!$N$3:$N$775,$A7,RAS!$O$3:$O$775,1) -> 0.6141666667 | D7: =AVERAGEIFS(RAS!J$3:J$775,RAS!$C$3:$C$775,$B7,RAS!$N$3:$N$775,$A7,RAS!$O$3:$O$775,1) -> 3.900833333 | E7: =AVERAGEIFS(RAS!M$3:M$775,RAS!$C$3:$C$775,$B7,RAS!$N$3:$N$775,$A7,RAS!$O$3:$O$775,1) -> 26.13666667 | F7: =AVERAGEIFS(RAS!L$3:L$775,RAS!$C$3:$C$775,$B7,RAS!$N$3:$N$775,$A7,RAS!$O$3:$O$775,1) -> 300.2441667 | G7: =AVERAGEIFS(RAS!F$3:F$775,RAS!$C$3:$C$775,$B7,RAS!$N$3:$N$775,$A7,RAS!$O$3:$O$775,1) -> 5940.310833 | H7: =AVERAGEIFS(RAS!I$3:I$775,RAS!$C$3:$C$775,$B7,RAS!$N$3:$N$775,$A7,RAS!$O$3:$O$775,1) -> 0.01905008333 | I7: =AVERAGEIFS(RAS!P$3:P$775,RAS!N$3:N$775,A7,RAS!C$3:C$775,B7,RAS!O$3:O$775,1) -> 0.01409085867 | J7: =AVERAGEIFS(RAS!Q$3:Q$775,RAS!N$3:N$775,A7,RAS!C$3:C$775,B7,RAS!O$3:O$775,1) -> 0.7516666667
A8: =IF(B8="2 YR",A7+1,A7) -> 0 | B8: 10 YR | C8: =AVERAGEIFS(RAS!K$3:K$775,RAS!$C$3:$C$775,$B8,RAS!$N$3:$N$775,$A8,RAS!$O$3:$O$775,1) -> 0.6783333333 | D8: =AVERAGEIFS(RAS!J$3:J$775,RAS!$C$3:$C$775,$B8,RAS!$N$3:$N$775,$A8,RAS!$O$3:$O$775,1) -> 4.148333333 | E8: =AVERAGEIFS(RAS!M$3:M$775,RAS!$C$3:$C$775,$B8,RAS!$N$3:$N$775,$A8,RAS!$O$3:$O$775,1) -> 26.13666667 | F8: =AVERAGEIFS(RAS!L$3:L$775,RAS!$C$3:$C$775,$B8,RAS!$N$3:$N$775,$A8,RAS!$O$3:$O$775,1) -> 336.2575 | G8: =AVERAGEIFS(RAS!F$3:F$775,RAS!$C$3:$C$775,$B8,RAS!$N$3:$N$775,$A8,RAS!$O$3:$O$775,1) -> 5940.444167 | H8: =AVERAGEIFS(RAS!I$3:I$775,RAS!$C$3:$C$775,$B8,RAS!$N$3:$N$775,$A8,RAS!$O$3:$O$775,1) -> 0.0196305 | I8: =AVERAGEIFS(RAS!P$3:P$775,RAS!N$3:N$775,A8,RAS!C$3:C$775,B8,RAS!O$3:O$775,1) -> 0.01409085867 | J8: =AVERAGEIFS(RAS!Q$3:Q$775,RAS!N$3:N$775,A8,RAS!C$3:C$775,B8,RAS!O$3:O$775,1) -> 0.7666666667
A9: 0 | B9: 25 YR | C9: =AVERAGEIFS(RAS!K$3:K$775,RAS!$C$3:$C$775,$B9,RAS!$N$3:$N$775,$A9,RAS!$O$3:$O$775,1) -> 0.765 | D9: =AVERAGEIFS(RAS!J$3:J$775,RAS!$C$3:$C$775,$B9,RAS!$N$3:$N$775,$A9,RAS!$O$3:$O$775,1) -> 4.3675 | E9: =AVERAGEIFS(RAS!M$3:M$775,RAS!$C$3:$C$775,$B9,RAS!$N$3:$N$775,$A9,RAS!$O$3:$O$775,1) -> 26.13666667 | F9: =AVERAGEIFS(RAS!L$3:L$775,RAS!$C$3:$C$775,$B9,RAS!$N$3:$N$775,$A9,RAS!$O$3:$O$775,1) -> 379.1216667 | G9: =AVERAGEIFS(RAS!F$3:F$775,RAS!$C$3:$C$775,$B9,RAS!$N$3:$N$775,$A9,RAS!$O$3:$O$775,1) -> 5940.5975 | H9: =AVERAGEIFS(RAS!I$3:I$775,RAS!$C$3:$C$775,$B9,RAS!$N$3:$N$775,$A9,RAS!$O$3:$O$775,1) -> 0.018753 | I9: =AVERAGEIFS(RAS!P$3:P$775,RAS!N$3:N$775,A9,RAS!C$3:C$775,B9,RAS!O$3:O$775,1) -> 0.01409085867 | J9: =AVERAGEIFS(RAS!Q$3:Q$775,RAS!N$3:N$775,A9,RAS!C$3:C$775,B9,RAS!O$3:O$775,1) -> 0.7591666667
A10: 0 | B10: 50 YR | C10: =AVERAGEIFS(RAS!K$3:K$775,RAS!$C$3:$C$775,$B10,RAS!$N$3:$N$775,$A10,RAS!$O$3:$O$775,1) -> 0.8358333333 | D10: =AVERAGEIFS(RAS!J$3:J$775,RAS!$C$3:$C$775,$B10,RAS!$N$3:$N$775,$A10,RAS!$O$3:$O$775,1) -> 4.575833333 | E10: =AVERAGEIFS(RAS!M$3:M$775,RAS!$C$3:$C$775,$B10,RAS!$N$3:$N$775,$A10,RAS!$O$3:$O$775,1) -> 26.13666667 | F10: =AVERAGEIFS(RAS!L$3:L$775,RAS!$C$3:$C$775,$B10,RAS!$N$3:$N$775,$A10,RAS!$O$3:$O$775,1) -> 395.7058333 | G10: =AVERAGEIFS(RAS!F$3:F$775,RAS!$C$3:$C$775,$B10,RAS!$N$3:$N$775,$A10,RAS!$O$3:$O$775,1) -> 5940.693333 | H10: =AVERAGEIFS(RAS!I$3:I$775,RAS!$C$3:$C$775,$B10,RAS!$N$3:$N$775,$A10,RAS!$O$3:$O$775,1) -> 0.01899541667 | I10: =AVERAGEIFS(RAS!P$3:P$775,RAS!N$3:N$775,A10,RAS!C$3:C$775,B10,RAS!O$3:O$775,1) -> 0.01409085867 | J10: =AVERAGEIFS(RAS!Q$3:Q$775,RAS!N$3:N$775,A10,RAS!C$3:C$775,B10,RAS!O$3:O$775,1) -> 0.7725
A11: 0 | B11: 100 YR | C11: =AVERAGEIFS(RAS!K$3:K$775,RAS!$C$3:$C$775,$B11,RAS!$N$3:$N$775,$A11,RAS!$O$3:$O$775,1) -> 0.9033333333 | D11: =AVERAGEIFS(RAS!J$3:J$775,RAS!$C$3:$C$775,$B11,RAS!$N$3:$N$775,$A11,RAS!$O$3:$O$775,1) -> 4.805 | E11: =AVERAGEIFS(RAS!M$3:M$775,RAS!$C$3:$C$775,$B11,RAS!$N$3:$N$775,$A11,RAS!$O$3:$O$775,1) -> 26.13666667 | F11: =AVERAGEIFS(RAS!L$3:L$775,RAS!$C$3:$C$775,$B11,RAS!$N$3:$N$775,$A11,RAS!$O$3:$O$775,1) -> 411.89 | G11: =AVERAGEIFS(RAS!F$3:F$775,RAS!$C$3:$C$775,$B11,RAS!$N$3:$N$775,$A11,RAS!$O$3:$O$775,1) -> 5940.788333 | H11: =AVERAGEIFS(RAS!I$3:I$775,RAS!$C$3:$C$775,$B11,RAS!$N$3:$N$775,$A11,RAS!$O$3:$O$775,1) -> 0.01934366667 | I11: =AVERAGEIFS(RAS!P$3:P$775,RAS!N$3:N$775,A11,RAS!C$3:C$775,B11,RAS!O$3:O$775,1) -> 0.01409085867 | J11: =AVERAGEIFS(RAS!Q$3:Q$775,RAS!N$3:N$775,A11,RAS!C$3:C$775,B11,RAS!O$3:O$775,1) -> 0.7875
A12: 1 | B12: 2 YR | C12: =AVERAGEIFS(RAS!K$3:K$775,RAS!$C$3:$C$775,$B12,RAS!$N$3:$N$775,$A12,RAS!$O$3:$O$775,1) -> 1.568571429 | D12: =AVERAGEIFS(RAS!J$3:J$775,RAS!$C$3:$C$775,$B12,RAS!$N$3:$N$775,$A12,RAS!$O$3:$O$775,1) -> 5.645714286 | E12: =AVERAGEIFS(RAS!M$3:M$775,RAS!$C$3:$C$775,$B12,RAS!$N$3:$N$775,$A12,RAS!$O$3:$O$775,1) -> 104.1085714 | F12: =AVERAGEIFS(RAS!L$3:L$775,RAS!$C$3:$C$775,$B12,RAS!$N$3:$N$775,$A12,RAS!$O$3:$O$775,1) -> 108.9342857 | G12: =AVERAGEIFS(RAS!F$3:F$775,RAS!$C$3:$C$775,$B12,RAS!$N$3:$N$775,$A12,RAS!$O$3:$O$775,1) -> 5837.554286 | H12: =AVERAGEIFS(RAS!I$3:I$775,RAS!$C$3:$C$775,$B12,RAS!$N$3:$N$775,$A12,RAS!$O$3:$O$775,1) -> 0.01456471429 | I12: =AVERAGEIFS(RAS!P$3:P$775,RAS!N$3:N$775,A12,RAS!C$3:C$775,B12,RAS!O$3:O$775,1) -> 0.01707202247 | J12: =AVERAGEIFS(RAS!Q$3:Q$775,RAS!N$3:N$775,A12,RAS!C$3:C$775,B12,RAS!O$3:O$775,1) -> 0.7857142857
A13: 1 | B13: 5 YR | C13: =AVERAGEIFS(RAS!K$3:K$775,RAS!$C$3:$C$775,$B13,RAS!$N$3:$N$775,$A13,RAS!$O$3:$O$775,1) -> 1.89 | D13: =AVERAGEIFS(RAS!J$3:J$775,RAS!$C$3:$C$775,$B13,RAS!$N$3:$N$775,$A13,RAS!$O$3:$O$775,1) -> 6.357142857 | E13: =AVERAGEIFS(RAS!M$3:M$775,RAS!$C$3:$C$775,$B13,RAS!$N$3:$N$775,$A13,RAS!$O$3:$O$775,1) -> 110.2614286 | F13: =AVERAGEIFS(RAS!L$3:L$775,RAS!$C$3:$C$775,$B13,RAS!$N$3:$N$775,$A13,RAS!$O$3:$O$775,1) -> 120.6971429 | G13: =AVERAGEIFS(RAS!F$3:F$775,RAS!$C$3:$C$775,$B13,RAS!$N$3:$N$775,$A13,RAS!$O$3:$O$775,1) -> 5838.055714 | H13: =AVERAGEIFS(RAS!I$3:I$775,RAS!$C$3:$C$775,$B13,RAS!$N$3:$N$775,$A13,RAS!$O$3:$O$775,1) -> 0.01388171429 | I13: =AVERAGEIFS(RAS!P$3:P$775,RAS!N$3:N$775,A13,RAS!C$3:C$775,B13,RAS!O$3:O$775,1) -> 0.01707202247 | J13: =AVERAGEIFS(RAS!Q$3:Q$775,RAS!N$3:N$775,A13,RAS!C$3:C$775,B13,RAS!O$3:O$775,1) -> 0.7971428571
A14: 1 | B14: 10 YR | C14: =AVERAGEIFS(RAS!K$3:K$775,RAS!$C$3:$C$775,$B14,RAS!$N$3:$N$775,$A14,RAS!$O$3:$O$775,1) -> 2.101428571 | D14: =AVERAGEIFS(RAS!J$3:J$775,RAS!$C$3:$C$775,$B14,RAS!$N$3:$N$775,$A14,RAS!$O$3:$O$775,1) -> 6.828571429 | E14: =AVERAGEIFS(RAS!M$3:M$775,RAS!$C$3:$C$775,$B14,RAS!$N$3:$N$775,$A14,RAS!$O$3:$O$775,1) -> 113.8085714 | F14: =AVERAGEIFS(RAS!L$3:L$775,RAS!$C$3:$C$775,$B14,RAS!$N$3:$N$775,$A14,RAS!$O$3:$O$775,1) -> 128.87 | G14: =AVERAGEIFS(RAS!F$3:F$775,RAS!$C$3:$C$775,$B14,RAS!$N$3:$N$775,$A14,RAS!$O$3:$O$775,1) -> 5838.4 | H14: =AVERAGEIFS(RAS!I$3:I$775,RAS!$C$3:$C$775,$B14,RAS!$N$3:$N$775,$A14,RAS!$O$3:$O$775,1) -> 0.01363428571 | I14: =AVERAGEIFS(RAS!P$3:P$775,RAS!N$3:N$775,A14,RAS!C$3:C$775,B14,RAS!O$3:O$775,1) -> 0.01707202247 | J14: =AVERAGEIFS(RAS!Q$3:Q$775,RAS!N$3:N$775,A14,RAS!C$3:C$775,B14,RAS!O$3:O$775,1) -> 0.8085714286
A15: 1 | B15: 25 YR | C15: =AVERAGEIFS(RAS!K$3:K$775,RAS!$C$3:$C$775,$B15,RAS!$N$3:$N$775,$A15,RAS!$O$3:$O$775,1) -> 2.321428571 | D15: =AVERAGEIFS(RAS!J$3:J$775,RAS!$C$3:$C$775,$B15,RAS!$N$3:$N$775,$A15,RAS!$O$3:$O$775,1) -> 7.345714286 | E15: =AVERAGEIFS(RAS!M$3:M$775,RAS!$C$3:$C$775,$B15,RAS!$N$3:$N$775,$A15,RAS!$O$3:$O$775,1) -> 117.4614286 | F15: =AVERAGEIFS(RAS!L$3:L$775,RAS!$C$3:$C$775,$B15,RAS!$N$3:$N$775,$A15,RAS!$O$3:$O$775,1) -> 140.4 | G15: =AVERAGEIFS(RAS!F$3:F$775,RAS!$C$3:$C$775,$B15,RAS!$N$3:$N$775,$A15,RAS!$O$3:$O$775,1) -> 5838.801429 | H15: =AVERAGEIFS(RAS!I$3:I$775,RAS!$C$3:$C$775,$B15,RAS!$N$3:$N$775,$A15,RAS!$O$3:$O$775,1) -> 0.013263 | I15: =AVERAGEIFS(RAS!P$3:P$775,RAS!N$3:N$775,A15,RAS!C$3:C$775,B15,RAS!O$3:O$775,1) -> 0.01707202247 | J15: =AVERAGEIFS(RAS!Q$3:Q$775,RAS!N$3:N$775,A15,RAS!C$3:C$775,B15,RAS!O$3:O$775,1) -> 0.8142857143
A16: 1 | B16: 50 YR | C16: =AVERAGEIFS(RAS!K$3:K$775,RAS!$C$3:$C$775,$B16,RAS!$N$3:$N$775,$A16,RAS!$O$3:$O$775,1) -> 2.467142857 | D16: =AVERAGEIFS(RAS!J$3:J$775,RAS!$C$3:$C$775,$B16,RAS!$N$3:$N$775,$A16,RAS!$O$3:$O$775,1) -> 7.712857143 | E16: =AVERAGEIFS(RAS!M$3:M$775,RAS!$C$3:$C$775,$B16,RAS!$N$3:$N$775,$A16,RAS!$O$3:$O$775,1) -> 119.6185714 | F16: =AVERAGEIFS(RAS!L$3:L$775,RAS!$C$3:$C$775,$B16,RAS!$N$3:$N$775,$A16,RAS!$O$3:$O$775,1) -> 147.2871429 | G16: =AVERAGEIFS(RAS!F$3:F$775,RAS!$C$3:$C$775,$B16,RAS!$N$3:$N$775,$A16,RAS!$O$3:$O$775,1) -> 5839.088571 | H16: =AVERAGEIFS(RAS!I$3:I$775,RAS!$C$3:$C$775,$B16,RAS!$N$3:$N$775,$A16,RAS!$O$3:$O$775,1) -> 0.012974 | I16: =AVERAGEIFS(RAS!P$3:P$775,RAS!N$3:N$775,A16,RAS!C$3:C$775,B16,RAS!O$3:O$775,1) -> 0.01707202247 | J16: =AVERAGEIFS(RAS!Q$3:Q$775,RAS!N$3:N$775,A16,RAS!C$3:C$775,B16,RAS!O$3:O$775,1) -> 0.8171428571
A17: 1 | B17: 100 YR | C17: =AVERAGEIFS(RAS!K$3:K$775,RAS!$C$3:$C$775,$B17,RAS!$N$3:$N$775,$A17,RAS!$O$3:$O$775,1) -> 2.597142857 | D17: =AVERAGEIFS(RAS!J$3:J$775,RAS!$C$3:$C$775,$B17,RAS!$N$3:$N$775,$A17,RAS!$O$3:$O$775,1) -> 8.065714286 | E17: =AVERAGEIFS(RAS!M$3:M$775,RAS!$C$3:$C$775,$B17,RAS!$N$3:$N$775,$A17,RAS!$O$3:$O$775,1) -> 121.0771429 | F17: =AVERAGEIFS(RAS!L$3:L$775,RAS!$C$3:$C$775,$B17,RAS!$N$3:$N$775,$A17,RAS!$O$3:$O$775,1) -> 155.6557143 | G17: =AVERAGEIFS(RAS!F$3:F$775,RAS!$C$3:$C$775,$B17,RAS!$N$3:$N$775,$A17,RAS!$O$3:$O$775,1) -> 5839.377143 | H17: =AVERAGEIFS(RAS!I$3:I$775,RAS!$C$3:$C$775,$B17,RAS!$N$3:$N$775,$A17,RAS!$O$3:$O$775,1) -> 0.01262842857 | I17: =AVERAGEIFS(RAS!P$3:P$775,RAS!N$3:N$775,A17,RAS!C$3:C$775,B17,RAS!O$3:O$775,1) -> 0.01707202247 | J17: =AVERAGEIFS(RAS!Q$3:Q$775,RAS!N$3:N$775,A17,RAS!C$3:C$775,B17,RAS!O$3:O$775,1) -> 0.8214285714
A18: 2 | B18: 2 YR | C18: =AVERAGEIFS(RAS!K$3:K$775,RAS!$C$3:$C$775,$B18,RAS!$N$3:$N$775,$A18,RAS!$O$3:$O$775,1) -> 1.571428571 | D18: =AVERAGEIFS(RAS!J$3:J$775,RAS!$C$3:$C$775,$B18,RAS!$N$3:$N$775,$A18,RAS!$O$3:$O$775,1) -> 6.92 | E18: =AVERAGEIFS(RAS!M$3:M$775,RAS!$C$3:$C$775,$B18,RAS!$N$3:$N$775,$A18,RAS!$O$3:$O$775,1) -> 100.7928571 | F18: =AVERAGEIFS(RAS!L$3:L$775,RAS!$C$3:$C$775,$B18,RAS!$N$3:$N$775,$A18,RAS!$O$3:$O$775,1) -> 134.4135714 | G18: =AVERAGEIFS(RAS!F$3:F$775,RAS!$C$3:$C$775,$B18,RAS!$N$3:$N$775,$A18,RAS!$O$3:$O$775,1) -> 5743.915 | H18: =AVERAGEIFS(RAS!I$3:I$775,RAS!$C$3:$C$775,$B18,RAS!$N$3:$N$775,$A18,RAS!$O$3:$O$775,1) -> 0.01711092857 | I18: =AVERAGEIFS(RAS!P$3:P$775,RAS!N$3:N$775,A18,RAS!C$3:C$775,B18,RAS!O$3:O$775,1) -> 0.0191341318 | J18: =AVERAGEIFS(RAS!Q$3:Q$775,RAS!N$3:N$775,A18,RAS!C$3:C$775,B18,RAS!O$3:O$775,1) -> 0.8928571429
A19: 2 | B19: 5 YR | C19: =AVERAGEIFS(RAS!K$3:K$775,RAS!$C$3:$C$775,$B19,RAS!$N$3:$N$775,$A19,RAS!$O$3:$O$775,1) -> 1.846428571 | D19: =AVERAGEIFS(RAS!J$3:J$775,RAS!$C$3:$C$775,$B19,RAS!$N$3:$N$775,$A19,RAS!$O$3:$O$775,1) -> 7.848571429 | E19: =AVERAGEIFS(RAS!M$3:M$775,RAS!$C$3:$C$775,$B19,RAS!$N$3:$N$775,$A19,RAS!$O$3:$O$775,1) -> 105.6885714 | F19: =AVERAGEIFS(RAS!L$3:L$775,RAS!$C$3:$C$775,$B19,RAS!$N$3:$N$775,$A19,RAS!$O$3:$O$775,1) -> 160.2192857 | G19: =AVERAGEIFS(RAS!F$3:F$775,RAS!$C$3:$C$775,$B19,RAS!$N$3:$N$775,$A19,RAS!$O$3:$O$775,1) -> 5744.449286 | H19: =AVERAGEIFS(RAS!I$3:I$775,RAS!$C$3:$C$775,$B19,RAS!$N$3:$N$775,$A19,RAS!$O$3:$O$775,1) -> 0.01657835714 | I19: =AVERAGEIFS(RAS!P$3:P$775,RAS!N$3:N$775,A19,RAS!C$3:C$775,B19,RAS!O$3:O$775,1) -> 0.0191341318 | J19: =AVERAGEIFS(RAS!Q$3:Q$775,RAS!N$3:N$775,A19,RAS!C$3:C$775,B19,RAS!O$3:O$775,1) -> 0.9114285714
A20: 2 | B20: 10 YR | C20: =AVERAGEIFS(RAS!K$3:K$775,RAS!$C$3:$C$775,$B20,RAS!$N$3:$N$775,$A20,RAS!$O$3:$O$775,1) -> 2.04 | D20: =AVERAGEIFS(RAS!J$3:J$775,RAS!$C$3:$C$775,$B20,RAS!$N$3:$N$775,$A20,RAS!$O$3:$O$775,1) -> 8.413571429 | E20: =AVERAGEIFS(RAS!M$3:M$775,RAS!$C$3:$C$775,$B20,RAS!$N$3:$N$775,$A20,RAS!$O$3:$O$775,1) -> 108.1021429 | F20: =AVERAGEIFS(RAS!L$3:L$775,RAS!$C$3:$C$775,$B20,RAS!$N$3:$N$775,$A20,RAS!$O$3:$O$775,1) -> 177.4242857 | G20: =AVERAGEIFS(RAS!F$3:F$775,RAS!$C$3:$C$775,$B20,RAS!$N$3:$N$775,$A20,RAS!$O$3:$O$775,1) -> 5744.812857 | H20: =AVERAGEIFS(RAS!I$3:I$775,RAS!$C$3:$C$775,$B20,RAS!$N$3:$N$775,$A20,RAS!$O$3:$O$775,1) -> 0.0160235 | I20: =AVERAGEIFS(RAS!P$3:P$775,RAS!N$3:N$775,A20,RAS!C$3:C$775,B20,RAS!O$3:O$775,1) -> 0.0191341318 | J20: =AVERAGEIFS(RAS!Q$3:Q$775,RAS!N$3:N$775,A20,RAS!C$3:C$775,B20,RAS!O$3:O$775,1) -> 0.9164285714
A21: 2 | B21: 25 YR | C21: =AVERAGEIFS(RAS!K$3:K$775,RAS!$C$3:$C$775,$B21,RAS!$N$3:$N$775,$A21,RAS!$O$3:$O$775,1) -> 2.277857143 | D21: =AVERAGEIFS(RAS!J$3:J$775,RAS!$C$3:$C$775,$B21,RAS!$N$3:$N$775,$A21,RAS!$O$3:$O$775,1) -> 8.929285714 | E21: =AVERAGEIFS(RAS!M$3:M$775,RAS!$C$3:$C$775,$B21,RAS!$N$3:$N$775,$A21,RAS!$O$3:$O$775,1) -> 111.0328571 | F21: =AVERAGEIFS(RAS!L$3:L$775,RAS!$C$3:$C$775,$B21,RAS!$N$3:$N$775,$A21,RAS!$O$3:$O$775,1) -> 194.8785714 | G21: =AVERAGEIFS(RAS!F$3:F$775,RAS!$C$3:$C$775,$B21,RAS!$N$3:$N$775,$A21,RAS!$O$3:$O$775,1) -> 5745.255714 | H21: =AVERAGEIFS(RAS!I$3:I$775,RAS!$C$3:$C$775,$B21,RAS!$N$3:$N$775,$A21,RAS!$O$3:$O$775,1) -> 0.01504628571 | I21: =AVERAGEIFS(RAS!P$3:P$775,RAS!N$3:N$775,A21,RAS!C$3:C$775,B21,RAS!O$3:O$775,1) -> 0.0191341318 | J21: =AVERAGEIFS(RAS!Q$3:Q$775,RAS!N$3:N$775,A21,RAS!C$3:C$775,B21,RAS!O$3:O$775,1) -> 0.9085714286
A22: 2 | B22: 50 YR | C22: =AVERAGEIFS(RAS!K$3:K$775,RAS!$C$3:$C$775,$B22,RAS!$N$3:$N$775,$A22,RAS!$O$3:$O$775,1) -> 2.3 | D22: =AVERAGEIFS(RAS!J$3:J$775,RAS!$C$3:$C$775,$B22,RAS!$N$3:$N$775,$A22,RAS!$O$3:$O$775,1) -> 9.218571429 | E22: =AVERAGEIFS(RAS!M$3:M$775,RAS!$C$3:$C$775,$B22,RAS!$N$3:$N$775,$A22,RAS!$O$3:$O$775,1) -> 112.965 | F22: =AVERAGEIFS(RAS!L$3:L$775,RAS!$C$3:$C$775,$B22,RAS!$N$3:$N$775,$A22,RAS!$O$3:$O$775,1) -> 220.2985714 | G22: =AVERAGEIFS(RAS!F$3:F$775,RAS!$C$3:$C$775,$B22,RAS!$N$3:$N$775,$A22,RAS!$O$3:$O$775,1) -> 5745.55 | H22: =AVERAGEIFS(RAS!I$3:I$775,RAS!$C$3:$C$775,$B22,RAS!$N$3:$N$775,$A22,RAS!$O$3:$O$775,1) -> 0.0146055 | I22: =AVERAGEIFS(RAS!P$3:P$775,RAS!N$3:N$775,A22,RAS!C$3:C$775,B22,RAS!O$3:O$775,1) -> 0.0191341318 | J22: =AVERAGEIFS(RAS!Q$3:Q$775,RAS!N$3:N$775,A22,RAS!C$3:C$775,B22,RAS!O$3:O$775,1) -> 0.9057142857
A23: 2 | B23: 100 YR | C23: =AVERAGEIFS(RAS!K$3:K$775,RAS!$C$3:$C$775,$B23,RAS!$N$3:$N$775,$A23,RAS!$O$3:$O$775,1) -> 2.420714286 | D23: =AVERAGEIFS(RAS!J$3:J$775,RAS!$C$3:$C$775,$B23,RAS!$N$3:$N$775,$A23,RAS!$O$3:$O$775,1) -> 9.541428571 | E23: =AVERAGEIFS(RAS!M$3:M$775,RAS!$C$3:$C$775,$B23,RAS!$N$3:$N$775,$A23,RAS!$O$3:$O$775,1) -> 115.0421429 | F23: =AVERAGEIFS(RAS!L$3:L$775,RAS!$C$3:$C$775,$B23,RAS!$N$3:$N$775,$A23,RAS!$O$3:$O$775,1) -> 238.1142857 | G23: =AVERAGEIFS(RAS!F$3:F$775,RAS!$C$3:$C$775,$B23,RAS!$N$3:$N$775,$A23,RAS!$O$3:$O$775,1) -> 5745.863571 | H23: =AVERAGEIFS(RAS!I$3:I$775,RAS!$C$3:$C$775,$B23,RAS!$N$3:$N$775,$A23,RAS!$O$3:$O$775,1) -> 0.01407042857 | I23: =AVERAGEIFS(RAS!P$3:P$775,RAS!N$3:N$775,A23,RAS!C$3:C$775,B23,RAS!O$3:O$775,1) -> 0.0191341318 | J23: =AVERAGEIFS(RAS!Q$3:Q$775,RAS!N$3:N$775,A23,RAS!C$3:C$775,B23,RAS!O$3:O$775,1) -> 0.9021428571
A24: 3 | B24: 2 YR | C24: =AVERAGEIFS(RAS!K$3:K$775,RAS!$C$3:$C$775,$B24,RAS!$N$3:$N$775,$A24,RAS!$O$3:$O$775,1) -> 1.59 | D24: =AVERAGEIFS(RAS!J$3:J$775,RAS!$C$3:$C$775,$B24,RAS!$N$3:$N$775,$A24,RAS!$O$3:$O$775,1) -> 7.340833333 | E24: =AVERAGEIFS(RAS!M$3:M$775,RAS!$C$3:$C$775,$B24,RAS!$N$3:$N$775,$A24,RAS!$O$3:$O$775,1) -> 70.31583333 | F24: =AVERAGEIFS(RAS!L$3:L$775,RAS!$C$3:$C$775,$B24,RAS!$N$3:$N$775,$A24,RAS!$O$3:$O$775,1) -> 198.7808333 | G24: =AVERAGEIFS(RAS!F$3:F$775,RAS!$C$3:$C$775,$B24,RAS!$N$3:$N$775,$A24,RAS!$O$3:$O$775,1) -> 5640.410833 | H24: =AVERAGEIFS(RAS!I$3:I$775,RAS!$C$3:$C$775,$B24,RAS!$N$3:$N$775,$A24,RAS!$O$3:$O$775,1) -> 0.01526433333 | I24: =AVERAGEIFS(RAS!P$3:P$775,RAS!N$3:N$775,A24,RAS!C$3:C$775,B24,RAS!O$3:O$775,1) -> 0.0168744486 | J24: =AVERAGEIFS(RAS!Q$3:Q$775,RAS!N$3:N$775,A24,RAS!C$3:C$775,B24,RAS!O$3:O$775,1) -> 0.8683333333
A25: 3 | B25: 5 YR | C25: =AVERAGEIFS(RAS!K$3:K$775,RAS!$C$3:$C$775,$B25,RAS!$N$3:$N$775,$A25,RAS!$O$3:$O$775,1) -> 1.854166667 | D25: =AVERAGEIFS(RAS!J$3:J$775,RAS!$C$3:$C$775,$B25,RAS!$N$3:$N$775,$A25,RAS!$O$3:$O$775,1) -> 8.153333333 | E25: =AVERAGEIFS(RAS!M$3:M$775,RAS!$C$3:$C$775,$B25,RAS!$N$3:$N$775,$A25,RAS!$O$3:$O$775,1) -> 73.11583333 | F25: =AVERAGEIFS(RAS!L$3:L$775,RAS!$C$3:$C$775,$B25,RAS!$N$3:$N$775,$A25,RAS!$O$3:$O$775,1) -> 229.6425 | G25: =AVERAGEIFS(RAS!F$3:F$775,RAS!$C$3:$C$775,$B25,RAS!$N$3:$N$775,$A25,RAS!$O$3:$O$775,1) -> 5640.979167 | H25: =AVERAGEIFS(RAS!I$3:I$775,RAS!$C$3:$C$775,$B25,RAS!$N$3:$N$775,$A25,RAS!$O$3:$O$775,1) -> 0.0143975 | I25: =AVERAGEIFS(RAS!P$3:P$775,RAS!N$3:N$775,A25,RAS!C$3:C$775,B25,RAS!O$3:O$775,1) -> 0.0168744486 | J25: =AVERAGEIFS(RAS!Q$3:Q$775,RAS!N$3:N$775,A25,RAS!C$3:C$775,B25,RAS!O$3:O$775,1) -> 0.8716666667
A26: 3 | B26: 10 YR | C26: =AVERAGEIFS(RAS!K$3:K$775,RAS!$C$3:$C$775,$B26,RAS!$N$3:$N$775,$A26,RAS!$O$3:$O$775,1) -> 2.040833333 | D26: =AVERAGEIFS(RAS!J$3:J$775,RAS!$C$3:$C$775,$B26,RAS!$N$3:$N$775,$A26,RAS!$O$3:$O$775,1) -> 8.705 | E26: =AVERAGEIFS(RAS!M$3:M$775,RAS!$C$3:$C$775,$B26,RAS!$N$3:$N$775,$A26,RAS!$O$3:$O$775,1) -> 75.0375 | F26: =AVERAGEIFS(RAS!L$3:L$775,RAS!$C$3:$C$775,$B26,RAS!$N$3:$N$775,$A26,RAS!$O$3:$O$775,1) -> 283.025 | G26: =AVERAGEIFS(RAS!F$3:F$775,RAS!$C$3:$C$775,$B26,RAS!$N$3:$N$775,$A26,RAS!$O$3:$O$775,1) -> 5641.345 | H26: =AVERAGEIFS(RAS!I$3:I$775,RAS!$C$3:$C$775,$B26,RAS!$N$3:$N$775,$A26,RAS!$O$3:$O$775,1) -> 0.01408433333 | I26: =AVERAGEIFS(RAS!P$3:P$775,RAS!N$3:N$775,A26,RAS!C$3:C$775,B26,RAS!O$3:O$775,1) -> 0.0168744486 | J26: =AVERAGEIFS(RAS!Q$3:Q$775,RAS!N$3:N$775,A26,RAS!C$3:C$775,B26,RAS!O$3:O$775,1) -> 0.8791666667
A27: 3 | B27: 25 YR | C27: =AVERAGEIFS(RAS!K$3:K$775,RAS!$C$3:$C$775,$B27,RAS!$N$3:$N$775,$A27,RAS!$O$3:$O$775,1) -> 2.288333333 | D27: =AVERAGEIFS(RAS!J$3:J$775,RAS!$C$3:$C$775,$B27,RAS!$N$3:$N$775,$A27,RAS!$O$3:$O$775,1) -> 9.083333333 | E27: =AVERAGEIFS(RAS!M$3:M$775,RAS!$C$3:$C$775,$B27,RAS!$N$3:$N$775,$A27,RAS!$O$3:$O$775,1) -> 77.56666667 | F27: =AVERAGEIFS(RAS!L$3:L$775,RAS!$C$3:$C$775,$B27,RAS!$N$3:$N$775,$A27,RAS!$O$3:$O$775,1) -> 316.65 | G27: =AVERAGEIFS(RAS!F$3:F$775,RAS!$C$3:$C$775,$B27,RAS!$N$3:$N$775,$A27,RAS!$O$3:$O$775,1) -> 5641.8125 | H27: =AVERAGEIFS(RAS!I$3:I$775,RAS!$C$3:$C$775,$B27,RAS!$N$3:$N$775,$A27,RAS!$O$3:$O$775,1) -> 0.01327825 | I27: =AVERAGEIFS(RAS!P$3:P$775,RAS!N$3:N$775,A27,RAS!C$3:C$775,B27,RAS!O$3:O$775,1) -> 0.0168744486 | J27: =AVERAGEIFS(RAS!Q$3:Q$775,RAS!N$3:N$775,A27,RAS!C$3:C$775,B27,RAS!O$3:O$775,1) -> 0.87
A28: 3 | B28: 50 YR | C28: =AVERAGEIFS(RAS!K$3:K$775,RAS!$C$3:$C$775,$B28,RAS!$N$3:$N$775,$A28,RAS!$O$3:$O$775,1) -> 2.416666667 | D28: =AVERAGEIFS(RAS!J$3:J$775,RAS!$C$3:$C$775,$B28,RAS!$N$3:$N$775,$A28,RAS!$O$3:$O$775,1) -> 9.395833333 | E28: =AVERAGEIFS(RAS!M$3:M$775,RAS!$C$3:$C$775,$B28,RAS!$N$3:$N$775,$A28,RAS!$O$3:$O$775,1) -> 79.42 | F28: =AVERAGEIFS(RAS!L$3:L$775,RAS!$C$3:$C$775,$B28,RAS!$N$3:$N$775,$A28,RAS!$O$3:$O$775,1) -> 351.0783333 | G28: =AVERAGEIFS(RAS!F$3:F$775,RAS!$C$3:$C$775,$B28,RAS!$N$3:$N$775,$A28,RAS!$O$3:$O$775,1) -> 5642.1275 | H28: =AVERAGEIFS(RAS!I$3:I$775,RAS!$C$3:$C$775,$B28,RAS!$N$3:$N$775,$A28,RAS!$O$3:$O$775,1) -> 0.01290808333 | I28: =AVERAGEIFS(RAS!P$3:P$775,RAS!N$3:N$775,A28,RAS!C$3:C$775,B28,RAS!O$3:O$775,1) -> 0.0168744486 | J28: =AVERAGEIFS(RAS!Q$3:Q$775,RAS!N$3:N$775,A28,RAS!C$3:C$775,B28,RAS!O$3:O$775,1) -> 0.8666666667
A29: 3 | B29: 100 YR | C29: =AVERAGEIFS(RAS!K$3:K$775,RAS!$C$3:$C$775,$B29,RAS!$N$3:$N$775,$A29,RAS!$O$3:$O$775,1) -> 2.603333333 | D29: =AVERAGEIFS(RAS!J$3:J$775,RAS!$C$3:$C$775,$B29,RAS!$N$3:$N$775,$A29,RAS!$O$3:$O$775,1) -> 9.770833333 | E29: =AVERAGEIFS(RAS!M$3:M$775,RAS!$C$3:$C$775,$B29,RAS!$N$3:$N$775,$A29,RAS!$O$3:$O$775,1) -> 81.06583333 | F29: =AVERAGEIFS(RAS!L$3:L$775,RAS!$C$3:$C$775,$B29,RAS!$N$3:$N$775,$A29,RAS!$O$3:$O$775,1) -> 369.9716667 | G29: =AVERAGEIFS(RAS!F$3:F$775,RAS!$C$3:$C$775,$B29,RAS!$N$3:$N$775,$A29,RAS!$O$3:$O$775,1) -> 5642.42 | H29: =AVERAGEIFS(RAS!I$3:I$775,RAS!$C$3:$C$775,$B29,RAS!$N$3:$N$775,$A29,RAS!$O$3:$O$775,1) -> 0.01260483333 | I29: =AVERAGEIFS(RAS!P$3:P$775,RAS!N$3:N$775,A29,RAS!C$3:C$775,B29,RAS!O$3:O$775,1) -> 0.0168744486 | J29: =AVERAGEIFS(RAS!Q$3:Q$775,RAS!N$3:N$775,A29,RAS!C$3:C$775,B29,RAS!O$3:O$775,1) -> 0.8691666667
A30: 4 | B30: 2 YR | C30: =AVERAGEIFS(RAS!K$3:K$775,RAS!$C$3:$C$775,$B30,RAS!$N$3:$N$775,$A30,RAS!$O$3:$O$775,1) -> 2.38625 | D30: =AVERAGEIFS(RAS!J$3:J$775,RAS!$C$3:$C$775,$B30,RAS!$N$3:$N$775,$A30,RAS!$O$3:$O$775,1) -> 8.4275 | E30: =AVERAGEIFS(RAS!M$3:M$775,RAS!$C$3:$C$775,$B30,RAS!$N$3:$N$775,$A30,RAS!$O$3:$O$775,1) -> 67.4025 | F30: =AVERAGEIFS(RAS!L$3:L$775,RAS!$C$3:$C$775,$B30,RAS!$N$3:$N$775,$A30,RAS!$O$3:$O$775,1) -> 71.95375 | G30: =AVERAGEIFS(RAS!F$3:F$775,RAS!$C$3:$C$775,$B30,RAS!$N$3:$N$775,$A30,RAS!$O$3:$O$775,1) -> 5577.96125 | H30: =AVERAGEIFS(RAS!I$3:I$775,RAS!$C$3:$C$775,$B30,RAS!$N$3:$N$775,$A30,RAS!$O$3:$O$775,1) -> 0.0165835 | I30: =AVERAGEIFS(RAS!P$3:P$775,RAS!N$3:N$775,A30,RAS!C$3:C$775,B30,RAS!O$3:O$775,1) -> 0.01811799381 | J30: =AVERAGEIFS(RAS!Q$3:Q$775,RAS!N$3:N$775,A30,RAS!C$3:C$775,B30,RAS!O$3:O$775,1) -> 0.925
A31: 4 | B31: 5 YR | C31: =AVERAGEIFS(RAS!K$3:K$775,RAS!$C$3:$C$775,$B31,RAS!$N$3:$N$775,$A31,RAS!$O$3:$O$775,1) -> 2.8725 | D31: =AVERAGEIFS(RAS!J$3:J$775,RAS!$C$3:$C$775,$B31,RAS!$N$3:$N$775,$A31,RAS!$O$3:$O$775,1) -> 9.40875 | E31: =AVERAGEIFS(RAS!M$3:M$775,RAS!$C$3:$C$775,$B31,RAS!$N$3:$N$775,$A31,RAS!$O$3:$O$775,1) -> 76.49 | F31: =AVERAGEIFS(RAS!L$3:L$775,RAS!$C$3:$C$775,$B31,RAS!$N$3:$N$775,$A31,RAS!$O$3:$O$775,1) -> 81.9725 | G31: =AVERAGEIFS(RAS!F$3:F$775,RAS!$C$3:$C$775,$B31,RAS!$N$3:$N$775,$A31,RAS!$O$3:$O$775,1) -> 5578.78625 | H31: =AVERAGEIFS(RAS!I$3:I$775,RAS!$C$3:$C$775,$B31,RAS!$N$3:$N$775,$A31,RAS!$O$3:$O$775,1) -> 0.016096625 | I31: =AVERAGEIFS(RAS!P$3:P$775,RAS!N$3:N$775,A31,RAS!C$3:C$775,B31,RAS!O$3:O$775,1) -> 0.01811799381 | J31: =AVERAGEIFS(RAS!Q$3:Q$775,RAS!N$3:N$775,A31,RAS!C$3:C$775,B31,RAS!O$3:O$775,1) -> 0.93875
A32: 4 | B32: 10 YR | C32: =AVERAGEIFS(RAS!K$3:K$775,RAS!$C$3:$C$775,$B32,RAS!$N$3:$N$775,$A32,RAS!$O$3:$O$775,1) -> 3.19 | D32: =AVERAGEIFS(RAS!J$3:J$775,RAS!$C$3:$C$775,$B32,RAS!$N$3:$N$775,$A32,RAS!$O$3:$O$775,1) -> 10.01875 | E32: =AVERAGEIFS(RAS!M$3:M$775,RAS!$C$3:$C$775,$B32,RAS!$N$3:$N$775,$A32,RAS!$O$3:$O$775,1) -> 81.905 | F32: =AVERAGEIFS(RAS!L$3:L$775,RAS!$C$3:$C$775,$B32,RAS!$N$3:$N$775,$A32,RAS!$O$3:$O$775,1) -> 88.4 | G32: =AVERAGEIFS(RAS!F$3:F$775,RAS!$C$3:$C$775,$B32,RAS!$N$3:$N$775,$A32,RAS!$O$3:$O$775,1) -> 5579.345 | H32: =AVERAGEIFS(RAS!I$3:I$775,RAS!$C$3:$C$775,$B32,RAS!$N$3:$N$775,$A32,RAS!$O$3:$O$775,1) -> 0.015691125 | I32: =AVERAGEIFS(RAS!P$3:P$775,RAS!N$3:N$775,A32,RAS!C$3:C$775,B32,RAS!O$3:O$775,1) -> 0.01811799381 | J32: =AVERAGEIFS(RAS!Q$3:Q$775,RAS!N$3:N$775,A32,RAS!C$3:C$775,B32,RAS!O$3:O$775,1) -> 0.94625
A33: 4 | B33: 25 YR | C33: =AVERAGEIFS(RAS!K$3:K$775,RAS!$C$3:$C$775,$B33,RAS!$N$3:$N$775,$A33,RAS!$O$3:$O$775,1) -> 3.15125 | D33: =AVERAGEIFS(RAS!J$3:J$775,RAS!$C$3:$C$775,$B33,RAS!$N$3:$N$775,$A33,RAS!$O$3:$O$775,1) -> 10.24125 | E33: =AVERAGEIFS(RAS!M$3:M$775,RAS!$C$3:$C$775,$B33,RAS!$N$3:$N$775,$A33,RAS!$O$3:$O$775,1) -> 87.215 | F33: =AVERAGEIFS(RAS!L$3:L$775,RAS!$C$3:$C$775,$B33,RAS!$N$3:$N$775,$A33,RAS!$O$3:$O$775,1) -> 122.4 | G33: =AVERAGEIFS(RAS!F$3:F$775,RAS!$C$3:$C$775,$B33,RAS!$N$3:$N$775,$A33,RAS!$O$3:$O$775,1) -> 5580.09125 | H33: =AVERAGEIFS(RAS!I$3:I$775,RAS!$C$3:$C$775,$B33,RAS!$N$3:$N$775,$A33,RAS!$O$3:$O$775,1) -> 0.014525 | I33: =AVERAGEIFS(RAS!P$3:P$775,RAS!N$3:N$775,A33,RAS!C$3:C$775,B33,RAS!O$3:O$775,1) -> 0.01811799381 | J33: =AVERAGEIFS(RAS!Q$3:Q$775,RAS!N$3:N$775,A33,RAS!C$3:C$775,B33,RAS!O$3:O$775,1) -> 0.91875
A34: 4 | B34: 50 YR | C34: =AVERAGEIFS(RAS!K$3:K$775,RAS!$C$3:$C$775,$B34,RAS!$N$3:$N$775,$A34,RAS!$O$3:$O$775,1) -> 3.3575 | D34: =AVERAGEIFS(RAS!J$3:J$775,RAS!$C$3:$C$775,$B34,RAS!$N$3:$N$775,$A34,RAS!$O$3:$O$775,1) -> 10.69875 | E34: =AVERAGEIFS(RAS!M$3:M$775,RAS!$C$3:$C$775,$B34,RAS!$N$3:$N$775,$A34,RAS!$O$3:$O$775,1) -> 90.02125 | F34: =AVERAGEIFS(RAS!L$3:L$775,RAS!$C$3:$C$775,$B34,RAS!$N$3:$N$775,$A34,RAS!$O$3:$O$775,1) -> 131.56375 | G34: =AVERAGEIFS(RAS!F$3:F$775,RAS!$C$3:$C$775,$B34,RAS!$N$3:$N$775,$A34,RAS!$O$3:$O$775,1) -> 5580.51375 | H34: =AVERAGEIFS(RAS!I$3:I$775,RAS!$C$3:$C$775,$B34,RAS!$N$3:$N$775,$A34,RAS!$O$3:$O$775,1) -> 0.014245375 | I34: =AVERAGEIFS(RAS!P$3:P$775,RAS!N$3:N$775,A34,RAS!C$3:C$775,B34,RAS!O$3:O$775,1) -> 0.01811799381 | J34: =AVERAGEIFS(RAS!Q$3:Q$775,RAS!N$3:N$775,A34,RAS!C$3:C$775,B34,RAS!O$3:O$775,1) -> 0.92375
A35: 4 | B35: 100 YR | C35: =AVERAGEIFS(RAS!K$3:K$775,RAS!$C$3:$C$775,$B35,RAS!$N$3:$N$775,$A35,RAS!$O$3:$O$775,1) -> 3.28625 | D35: =AVERAGEIFS(RAS!J$3:J$775,RAS!$C$3:$C$775,$B35,RAS!$N$3:$N$775,$A35,RAS!$O$3:$O$775,1) -> 10.84875 | E35: =AVERAGEIFS(RAS!M$3:M$775,RAS!$C$3:$C$775,$B35,RAS!$N$3:$N$775,$A35,RAS!$O$3:$O$775,1) -> 92.88125 | F35: =AVERAGEIFS(RAS!L$3:L$775,RAS!$C$3:$C$775,$B35,RAS!$N$3:$N$775,$A35,RAS!$O$3:$O$775,1) -> 160.0575 | G35: =AVERAGEIFS(RAS!F$3:F$775,RAS!$C$3:$C$775,$B35,RAS!$N$3:$N$775,$A35,RAS!$O$3:$O$775,1) -> 5581.03 | H35: =AVERAGEIFS(RAS!I$3:I$775,RAS!$C$3:$C$775,$B35,RAS!$N$3:$N$775,$A35,RAS!$O$3:$O$775,1) -> 0.013039125 | I35: =AVERAGEIFS(RAS!P$3:P$775,RAS!N$3:N$775,A35,RAS!C$3:C$775,B35,RAS!O$3:O$775,1) -> 0.01811799381 | J35: =AVERAGEIFS(RAS!Q$3:Q$775,RAS!N$3:N$775,A35,RAS!C$3:C$775,B35,RAS!O$3:O$775,1) -> 0.89375
A36: 5 | B36: 2 YR | C36: =AVERAGEIFS(RAS!K$3:K$775,RAS!$C$3:$C$775,$B36,RAS!$N$3:$N$775,$A36,RAS!$O$3:$O$775,1) -> 2.397142857 | D36: =AVERAGEIFS(RAS!J$3:J$775,RAS!$C$3:$C$775,$B36,RAS!$N$3:$N$775,$A36,RAS!$O$3:$O$775,1) -> 7.671428571 | E36: =AVERAGEIFS(RAS!M$3:M$775,RAS!$C$3:$C$775,$B36,RAS!$N$3:$N$775,$A36,RAS!$O$3:$O$775,1) -> 83.49 | F36: =AVERAGEIFS(RAS!L$3:L$775,RAS!$C$3:$C$775,$B36,RAS!$N$3:$N$775,$A36,RAS!$O$3:$O$775,1) -> 112.3514286 | G36: =AVERAGEIFS(RAS!F$3:F$775,RAS!$C$3:$C$775,$B36,RAS!$N$3:$N$775,$A36,RAS!$O$3:$O$775,1) -> 5511.977143 | H36: =AVERAGEIFS(RAS!I$3:I$775,RAS!$C$3:$C$775,$B36,RAS!$N$3:$N$775,$A36,RAS!$O$3:$O$775,1) -> 0.01341071429 | I36: =AVERAGEIFS(RAS!P$3:P$775,RAS!N$3:N$775,A36,RAS!C$3:C$775,B36,RAS!O$3:O$775,1) -> 0.01340339277 | J36: =AVERAGEIFS(RAS!Q$3:Q$775,RAS!N$3:N$775,A36,RAS!C$3:C$775,B36,RAS!O$3:O$775,1) -> 0.8385714286
A37: 5 | B37: 5 YR | C37: =AVERAGEIFS(RAS!K$3:K$775,RAS!$C$3:$C$775,$B37,RAS!$N$3:$N$775,$A37,RAS!$O$3:$O$775,1) -> 2.882857143 | D37: =AVERAGEIFS(RAS!J$3:J$775,RAS!$C$3:$C$775,$B37,RAS!$N$3:$N$775,$A37,RAS!$O$3:$O$775,1) -> 8.614285714 | E37: =AVERAGEIFS(RAS!M$3:M$775,RAS!$C$3:$C$775,$B37,RAS!$N$3:$N$775,$A37,RAS!$O$3:$O$775,1) -> 93.47714286 | F37: =AVERAGEIFS(RAS!L$3:L$775,RAS!$C$3:$C$775,$B37,RAS!$N$3:$N$775,$A37,RAS!$O$3:$O$775,1) -> 126.06 | G37: =AVERAGEIFS(RAS!F$3:F$775,RAS!$C$3:$C$775,$B37,RAS!$N$3:$N$775,$A37,RAS!$O$3:$O$775,1) -> 5512.84 | H37: =AVERAGEIFS(RAS!I$3:I$775,RAS!$C$3:$C$775,$B37,RAS!$N$3:$N$775,$A37,RAS!$O$3:$O$775,1) -> 0.01339728571 | I37: =AVERAGEIFS(RAS!P$3:P$775,RAS!N$3:N$775,A37,RAS!C$3:C$775,B37,RAS!O$3:O$775,1) -> 0.01340339277 | J37: =AVERAGEIFS(RAS!Q$3:Q$775,RAS!N$3:N$775,A37,RAS!C$3:C$775,B37,RAS!O$3:O$775,1) -> 0.86
A38: 5 | B38: 10 YR | C38: =AVERAGEIFS(RAS!K$3:K$775,RAS!$C$3:$C$775,$B38,RAS!$N$3:$N$775,$A38,RAS!$O$3:$O$775,1) -> 3.178571429 | D38: =AVERAGEIFS(RAS!J$3:J$775,RAS!$C$3:$C$775,$B38,RAS!$N$3:$N$775,$A38,RAS!$O$3:$O$775,1) -> 9.201428571 | E38: =AVERAGEIFS(RAS!M$3:M$775,RAS!$C$3:$C$775,$B38,RAS!$N$3:$N$775,$A38,RAS!$O$3:$O$775,1) -> 99.15714286 | F38: =AVERAGEIFS(RAS!L$3:L$775,RAS!$C$3:$C$775,$B38,RAS!$N$3:$N$775,$A38,RAS!$O$3:$O$775,1) -> 135.8 | G38: =AVERAGEIFS(RAS!F$3:F$775,RAS!$C$3:$C$775,$B38,RAS!$N$3:$N$775,$A38,RAS!$O$3:$O$775,1) -> 5513.411429 | H38: =AVERAGEIFS(RAS!I$3:I$775,RAS!$C$3:$C$775,$B38,RAS!$N$3:$N$775,$A38,RAS!$O$3:$O$775,1) -> 0.01320214286 | I38: =AVERAGEIFS(RAS!P$3:P$775,RAS!N$3:N$775,A38,RAS!C$3:C$775,B38,RAS!O$3:O$775,1) -> 0.01340339277 | J38: =AVERAGEIFS(RAS!Q$3:Q$775,RAS!N$3:N$775,A38,RAS!C$3:C$775,B38,RAS!O$3:O$775,1) -> 0.8685714286
A39: 5 | B39: 25 YR | C39: =AVERAGEIFS(RAS!K$3:K$775,RAS!$C$3:$C$775,$B39,RAS!$N$3:$N$775,$A39,RAS!$O$3:$O$775,1) -> 3.441428571 | D39: =AVERAGEIFS(RAS!J$3:J$775,RAS!$C$3:$C$775,$B39,RAS!$N$3:$N$775,$A39,RAS!$O$3:$O$775,1) -> 9.767142857 | E39: =AVERAGEIFS(RAS!M$3:M$775,RAS!$C$3:$C$775,$B39,RAS!$N$3:$N$775,$A39,RAS!$O$3:$O$775,1) -> 105.0542857 | F39: =AVERAGEIFS(RAS!L$3:L$775,RAS!$C$3:$C$775,$B39,RAS!$N$3:$N$775,$A39,RAS!$O$3:$O$775,1) -> 152.4785714 | G39: =AVERAGEIFS(RAS!F$3:F$775,RAS!$C$3:$C$775,$B39,RAS!$N$3:$N$775,$A39,RAS!$O$3:$O$775,1) -> 5514.084286 | H39: =AVERAGEIFS(RAS!I$3:I$775,RAS!$C$3:$C$775,$B39,RAS!$N$3:$N$775,$A39,RAS!$O$3:$O$775,1) -> 0.01264757143 | I39: =AVERAGEIFS(RAS!P$3:P$775,RAS!N$3:N$775,A39,RAS!C$3:C$775,B39,RAS!O$3:O$775,1) -> 0.01340339277 | J39: =AVERAGEIFS(RAS!Q$3:Q$775,RAS!N$3:N$775,A39,RAS!C$3:C$775,B39,RAS!O$3:O$775,1) -> 0.8642857143
A40: 5 | B40: 50 YR | C40: =AVERAGEIFS(RAS!K$3:K$775,RAS!$C$3:$C$775,$B40,RAS!$N$3:$N$775,$A40,RAS!$O$3:$O$775,1) -> 3.525714286 | D40: =AVERAGEIFS(RAS!J$3:J$775,RAS!$C$3:$C$775,$B40,RAS!$N$3:$N$775,$A40,RAS!$O$3:$O$775,1) -> 10.24428571 | E40: =AVERAGEIFS(RAS!M$3:M$775,RAS!$C$3:$C$775,$B40,RAS!$N$3:$N$775,$A40,RAS!$O$3:$O$775,1) -> 107.99 | F40: =AVERAGEIFS(RAS!L$3:L$775,RAS!$C$3:$C$775,$B40,RAS!$N$3:$N$775,$A40,RAS!$O$3:$O$775,1) -> 167.0028571 | G40: =AVERAGEIFS(RAS!F$3:F$775,RAS!$C$3:$C$775,$B40,RAS!$N$3:$N$775,$A40,RAS!$O$3:$O$775,1) -> 5514.531429 | H40: =AVERAGEIFS(RAS!I$3:I$775,RAS!$C$3:$C$775,$B40,RAS!$N$3:$N$775,$A40,RAS!$O$3:$O$775,1) -> 0.01240585714 | I40: =AVERAGEIFS(RAS!P$3:P$775,RAS!N$3:N$775,A40,RAS!C$3:C$775,B40,RAS!O$3:O$775,1) -> 0.01340339277 | J40: =AVERAGEIFS(RAS!Q$3:Q$775,RAS!N$3:N$775,A40,RAS!C$3:C$775,B40,RAS!O$3:O$775,1) -> 0.87
A41: 5 | B41: 100 YR | C41: =AVERAGEIFS(RAS!K$3:K$775,RAS!$C$3:$C$775,$B41,RAS!$N$3:$N$775,$A41,RAS!$O$3:$O$775,1) -> 3.741428571 | D41: =AVERAGEIFS(RAS!J$3:J$775,RAS!$C$3:$C$775,$B41,RAS!$N$3:$N$775,$A41,RAS!$O$3:$O$775,1) -> 10.70857143 | E41: =AVERAGEIFS(RAS!M$3:M$775,RAS!$C$3:$C$775,$B41,RAS!$N$3:$N$775,$A41,RAS!$O$3:$O$775,1) -> 110.0885714 | F41: =AVERAGEIFS(RAS!L$3:L$775,RAS!$C$3:$C$775,$B41,RAS!$N$3:$N$775,$A41,RAS!$O$3:$O$775,1) -> 177.2242857 | G41: =AVERAGEIFS(RAS!F$3:F$775,RAS!$C$3:$C$775,$B41,RAS!$N$3:$N$775,$A41,RAS!$O$3:$O$775,1) -> 5514.981429 | H41: =AVERAGEIFS(RAS!I$3:I$775,RAS!$C$3:$C$775,$B41,RAS!$N$3:$N$775,$A41,RAS!$O$3:$O$775,1) -> 0.01216385714 | I41: =AVERAGEIFS(RAS!P$3:P$775,RAS!N$3:N$775,A41,RAS!C$3:C$775,B41,RAS!O$3:O$775,1) -> 0.01340339277 | J41: =AVERAGEIFS(RAS!Q$3:Q$775,RAS!N$3:N$775,A41,RAS!C$3:C$775,B41,RAS!O$3:O$775,1) -> 0.8742857143
A42: 6 | B42: 2 YR | C42: =AVERAGEIFS(RAS!K$3:K$775,RAS!$C$3:$C$775,$B42,RAS!$N$3:$N$775,$A42,RAS!$O$3:$O$775,1) -> 2.24625 | D42: =AVERAGEIFS(RAS!J$3:J$775,RAS!$C$3:$C$775,$B42,RAS!$N$3:$N$775,$A42,RAS!$O$3:$O$775,1) -> 7.36625 | E42: =AVERAGEIFS(RAS!M$3:M$775,RAS!$C$3:$C$775,$B42,RAS!$N$3:$N$775,$A42,RAS!$O$3:$O$775,1) -> 100.39625 | F42: =AVERAGEIFS(RAS!L$3:L$775,RAS!$C$3:$C$775,$B42,RAS!$N$3:$N$775,$A42,RAS!$O$3:$O$775,1) -> 108.3975 | G42: =AVERAGEIFS(RAS!F$3:F$775,RAS!$C$3:$C$775,$B42,RAS!$N$3:$N$775,$A42,RAS!$O$3:$O$775,1) -> 5452.0275 | H42: =AVERAGEIFS(RAS!I$3:I$775,RAS!$C$3:$C$775,$B42,RAS!$N$3:$N$775,$A42,RAS!$O$3:$O$775,1) -> 0.01428275 | I42: =AVERAGEIFS(RAS!P$3:P$775,RAS!N$3:N$775,A42,RAS!C$3:C$775,B42,RAS!O$3:O$775,1) -> 0.0148308775 | J42: =AVERAGEIFS(RAS!Q$3:Q$775,RAS!N$3:N$775,A42,RAS!C$3:C$775,B42,RAS!O$3:O$775,1) -> 0.8475
A43: 6 | B43: 5 YR | C43: =AVERAGEIFS(RAS!K$3:K$775,RAS!$C$3:$C$775,$B43,RAS!$N$3:$N$775,$A43,RAS!$O$3:$O$775,1) -> 2.66125 | D43: =AVERAGEIFS(RAS!J$3:J$775,RAS!$C$3:$C$775,$B43,RAS!$N$3:$N$775,$A43,RAS!$O$3:$O$775,1) -> 8.31 | E43: =AVERAGEIFS(RAS!M$3:M$775,RAS!$C$3:$C$775,$B43,RAS!$N$3:$N$775,$A43,RAS!$O$3:$O$775,1) -> 111.59625 | F43: =AVERAGEIFS(RAS!L$3:L$775,RAS!$C$3:$C$775,$B43,RAS!$N$3:$N$775,$A43,RAS!$O$3:$O$775,1) -> 136.17625 | G43: =AVERAGEIFS(RAS!F$3:F$775,RAS!$C$3:$C$775,$B43,RAS!$N$3:$N$775,$A43,RAS!$O$3:$O$775,1) -> 5452.83 | H43: =AVERAGEIFS(RAS!I$3:I$775,RAS!$C$3:$C$775,$B43,RAS!$N$3:$N$775,$A43,RAS!$O$3:$O$775,1) -> 0.0137255 | I43: =AVERAGEIFS(RAS!P$3:P$775,RAS!N$3:N$775,A43,RAS!C$3:C$775,B43,RAS!O$3:O$775,1) -> 0.0148308775 | J43: =AVERAGEIFS(RAS!Q$3:Q$775,RAS!N$3:N$775,A43,RAS!C$3:C$775,B43,RAS!O$3:O$775,1) -> 0.86375
A44: 6 | B44: 10 YR | C44: =AVERAGEIFS(RAS!K$3:K$775,RAS!$C$3:$C$775,$B44,RAS!$N$3:$N$775,$A44,RAS!$O$3:$O$775,1) -> 2.85375 | D44: =AVERAGEIFS(RAS!J$3:J$775,RAS!$C$3:$C$775,$B44,RAS!$N$3:$N$775,$A44,RAS!$O$3:$O$775,1) -> 8.9675 | E44: =AVERAGEIFS(RAS!M$3:M$775,RAS!$C$3:$C$775,$B44,RAS!$N$3:$N$775,$A44,RAS!$O$3:$O$775,1) -> 117.6225 | F44: =AVERAGEIFS(RAS!L$3:L$775,RAS!$C$3:$C$775,$B44,RAS!$N$3:$N$775,$A44,RAS!$O$3:$O$775,1) -> 152.645 | G44: =AVERAGEIFS(RAS!F$3:F$775,RAS!$C$3:$C$775,$B44,RAS!$N$3:$N$775,$A44,RAS!$O$3:$O$775,1) -> 5453.33 | H44: =AVERAGEIFS(RAS!I$3:I$775,RAS!$C$3:$C$775,$B44,RAS!$N$3:$N$775,$A44,RAS!$O$3:$O$775,1) -> 0.01368325 | I44: =AVERAGEIFS(RAS!P$3:P$775,RAS!N$3:N$775,A44,RAS!C$3:C$775,B44,RAS!O$3:O$775,1) -> 0.0148308775 | J44: =AVERAGEIFS(RAS!Q$3:Q$775,RAS!N$3:N$775,A44,RAS!C$3:C$775,B44,RAS!O$3:O$775,1) -> 0.8825
A45: 6 | B45: 25 YR | C45: =AVERAGEIFS(RAS!K$3:K$775,RAS!$C$3:$C$775,$B45,RAS!$N$3:$N$775,$A45,RAS!$O$3:$O$775,1) -> 3.20875 | D45: =AVERAGEIFS(RAS!J$3:J$775,RAS!$C$3:$C$775,$B45,RAS!$N$3:$N$775,$A45,RAS!$O$3:$O$775,1) -> 9.675 | E45: =AVERAGEIFS(RAS!M$3:M$775,RAS!$C$3:$C$775,$B45,RAS!$N$3:$N$775,$A45,RAS!$O$3:$O$775,1) -> 123.6375 | F45: =AVERAGEIFS(RAS!L$3:L$775,RAS!$C$3:$C$775,$B45,RAS!$N$3:$N$775,$A45,RAS!$O$3:$O$775,1) -> 163.5575 | G45: =AVERAGEIFS(RAS!F$3:F$775,RAS!$C$3:$C$775,$B45,RAS!$N$3:$N$775,$A45,RAS!$O$3:$O$775,1) -> 5453.89625 | H45: =AVERAGEIFS(RAS!I$3:I$775,RAS!$C$3:$C$775,$B45,RAS!$N$3:$N$775,$A45,RAS!$O$3:$O$775,1) -> 0.013701875 | I45: =AVERAGEIFS(RAS!P$3:P$775,RAS!N$3:N$775,A45,RAS!C$3:C$775,B45,RAS!O$3:O$775,1) -> 0.0148308775 | J45: =AVERAGEIFS(RAS!Q$3:Q$775,RAS!N$3:N$775,A45,RAS!C$3:C$775,B45,RAS!O$3:O$775,1) -> 0.89875
A46: 6 | B46: 50 YR | C46: =AVERAGEIFS(RAS!K$3:K$775,RAS!$C$3:$C$775,$B46,RAS!$N$3:$N$775,$A46,RAS!$O$3:$O$775,1) -> 3.44375 | D46: =AVERAGEIFS(RAS!J$3:J$775,RAS!$C$3:$C$775,$B46,RAS!$N$3:$N$775,$A46,RAS!$O$3:$O$775,1) -> 10.15 | E46: =AVERAGEIFS(RAS!M$3:M$775,RAS!$C$3:$C$775,$B46,RAS!$N$3:$N$775,$A46,RAS!$O$3:$O$775,1) -> 128.41125 | F46: =AVERAGEIFS(RAS!L$3:L$775,RAS!$C$3:$C$775,$B46,RAS!$N$3:$N$775,$A46,RAS!$O$3:$O$775,1) -> 171.465 | G46: =AVERAGEIFS(RAS!F$3:F$775,RAS!$C$3:$C$775,$B46,RAS!$N$3:$N$775,$A46,RAS!$O$3:$O$775,1) -> 5454.30875 | H46: =AVERAGEIFS(RAS!I$3:I$775,RAS!$C$3:$C$775,$B46,RAS!$N$3:$N$775,$A46,RAS!$O$3:$O$775,1) -> 0.01364625 | I46: =AVERAGEIFS(RAS!P$3:P$775,RAS!N$3:N$775,A46,RAS!C$3:C$775,B46,RAS!O$3:O$775,1) -> 0.0148308775 | J46: =AVERAGEIFS(RAS!Q$3:Q$775,RAS!N$3:N$775,A46,RAS!C$3:C$775,B46,RAS!O$3:O$775,1) -> 0.9075
A47: 6 | B47: 100 YR | C47: =AVERAGEIFS(RAS!K$3:K$775,RAS!$C$3:$C$775,$B47,RAS!$N$3:$N$775,$A47,RAS!$O$3:$O$775,1) -> 3.5975 | D47: =AVERAGEIFS(RAS!J$3:J$775,RAS!$C$3:$C$775,$B47,RAS!$N$3:$N$775,$A47,RAS!$O$3:$O$775,1) -> 10.5975 | E47: =AVERAGEIFS(RAS!M$3:M$775,RAS!$C$3:$C$775,$B47,RAS!$N$3:$N$775,$A47,RAS!$O$3:$O$775,1) -> 133.4125 | F47: =AVERAGEIFS(RAS!L$3:L$775,RAS!$C$3:$C$775,$B47,RAS!$N$3:$N$775,$A47,RAS!$O$3:$O$775,1) -> 189.01875 | G47: =AVERAGEIFS(RAS!F$3:F$775,RAS!$C$3:$C$775,$B47,RAS!$N$3:$N$775,$A47,RAS!$O$3:$O$775,1) -> 5454.72625 | H47: =AVERAGEIFS(RAS!I$3:I$775,RAS!$C$3:$C$775,$B47,RAS!$N$3:$N$775,$A47,RAS!$O$3:$O$775,1) -> 0.01359175 | I47: =AVERAGEIFS(RAS!P$3:P$775,RAS!N$3:N$775,A47,RAS!C$3:C$775,B47,RAS!O$3:O$775,1) -> 0.0148308775 | J47: =AVERAGEIFS(RAS!Q$3:Q$775,RAS!N$3:N$775,A47,RAS!C$3:C$775,B47,RAS!O$3:O$775,1) -> 0.915
A48: 7 | B48: 2 YR | C48: =AVERAGEIFS(RAS!K$3:K$775,RAS!$C$3:$C$775,$B48,RAS!$N$3:$N$775,$A48,RAS!$O$3:$O$775,1) -> 2.866153846 | D48: =AVERAGEIFS(RAS!J$3:J$775,RAS!$C$3:$C$775,$B48,RAS!$N$3:$N$775,$A48,RAS!$O$3:$O$775,1) -> 8.766153846 | E48: =AVERAGEIFS(RAS!M$3:M$775,RAS!$C$3:$C$775,$B48,RAS!$N$3:$N$775,$A48,RAS!$O$3:$O$775,1) -> 71.28538462 | F48: =AVERAGEIFS(RAS!L$3:L$775,RAS!$C$3:$C$775,$B48,RAS!$N$3:$N$775,$A48,RAS!$O$3:$O$775,1) -> 76.47692308 | G48: =AVERAGEIFS(RAS!F$3:F$775,RAS!$C$3:$C$775,$B48,RAS!$N$3:$N$775,$A48,RAS!$O$3:$O$775,1) -> 5383.674615 | H48: =AVERAGEIFS(RAS!I$3:I$775,RAS!$C$3:$C$775,$B48,RAS!$N$3:$N$775,$A48,RAS!$O$3:$O$775,1) -> 0.010254 | I48: =AVERAGEIFS(RAS!P$3:P$775,RAS!N$3:N$775,A48,RAS!C$3:C$775,B48,RAS!O$3:O$775,1) -> 0.02617114203 | J48: =AVERAGEIFS(RAS!Q$3:Q$775,RAS!N$3:N$775,A48,RAS!C$3:C$775,B48,RAS!O$3:O$775,1) -> 0.8884615385
A49: 7 | B49: 5 YR | C49: =AVERAGEIFS(RAS!K$3:K$775,RAS!$C$3:$C$775,$B49,RAS!$N$3:$N$775,$A49,RAS!$O$3:$O$775,1) -> 3.326153846 | D49: =AVERAGEIFS(RAS!J$3:J$775,RAS!$C$3:$C$775,$B49,RAS!$N$3:$N$775,$A49,RAS!$O$3:$O$775,1) -> 9.841538462 | E49: =AVERAGEIFS(RAS!M$3:M$775,RAS!$C$3:$C$775,$B49,RAS!$N$3:$N$775,$A49,RAS!$O$3:$O$775,1) -> 77.39769231 | F49: =AVERAGEIFS(RAS!L$3:L$775,RAS!$C$3:$C$775,$B49,RAS!$N$3:$N$775,$A49,RAS!$O$3:$O$775,1) -> 96.66769231 | G49: =AVERAGEIFS(RAS!F$3:F$775,RAS!$C$3:$C$775,$B49,RAS!$N$3:$N$775,$A49,RAS!$O$3:$O$775,1) -> 5384.789231 | H49: =AVERAGEIFS(RAS!I$3:I$775,RAS!$C$3:$C$775,$B49,RAS!$N$3:$N$775,$A49,RAS!$O$3:$O$775,1) -> 0.009676384615 | I49: =AVERAGEIFS(RAS!P$3:P$775,RAS!N$3:N$775,A49,RAS!C$3:C$775,B49,RAS!O$3:O$775,1) -> 0.02617114203 | J49: =AVERAGEIFS(RAS!Q$3:Q$775,RAS!N$3:N$775,A49,RAS!C$3:C$775,B49,RAS!O$3:O$775,1) -> 0.8869230769
A50: 7 | B50: 10 YR | C50: =AVERAGEIFS(RAS!K$3:K$775,RAS!$C$3:$C$775,$B50,RAS!$N$3:$N$775,$A50,RAS!$O$3:$O$775,1) -> 3.770769231 | D50: =AVERAGEIFS(RAS!J$3:J$775,RAS!$C$3:$C$775,$B50,RAS!$N$3:$N$775,$A50,RAS!$O$3:$O$775,1) -> 10.50230769 | E50: =AVERAGEIFS(RAS!M$3:M$775,RAS!$C$3:$C$775,$B50,RAS!$N$3:$N$775,$A50,RAS!$O$3:$O$775,1) -> 81.62846154 | F50: =AVERAGEIFS(RAS!L$3:L$775,RAS!$C$3:$C$775,$B50,RAS!$N$3:$N$775,$A50,RAS!$O$3:$O$775,1) -> 105.1769231 | G50: =AVERAGEIFS(RAS!F$3:F$775,RAS!$C$3:$C$775,$B50,RAS!$N$3:$N$775,$A50,RAS!$O$3:$O$775,1) -> 5385.533077 | H50: =AVERAGEIFS(RAS!I$3:I$775,RAS!$C$3:$C$775,$B50,RAS!$N$3:$N$775,$A50,RAS!$O$3:$O$775,1) -> 0.009250923077 | I50: =AVERAGEIFS(RAS!P$3:P$775,RAS!N$3:N$775,A50,RAS!C$3:C$775,B50,RAS!O$3:O$775,1) -> 0.02617114203 | J50: =AVERAGEIFS(RAS!Q$3:Q$775,RAS!N$3:N$775,A50,RAS!C$3:C$775,B50,RAS!O$3:O$775,1) -> 0.8853846154
A51: 7 | B51: 25 YR | C51: =AVERAGEIFS(RAS!K$3:K$775,RAS!$C$3:$C$775,$B51,RAS!$N$3:$N$775,$A51,RAS!$O$3:$O$775,1) -> 4.086153846 | D51: =AVERAGEIFS(RAS!J$3:J$775,RAS!$C$3:$C$775,$B51,RAS!$N$3:$N$775,$A51,RAS!$O$3:$O$775,1) -> 11.14846154 | E51: =AVERAGEIFS(RAS!M$3:M$775,RAS!$C$3:$C$775,$B51,RAS!$N$3:$N$775,$A51,RAS!$O$3:$O$775,1) -> 85.60538462 | F51: =AVERAGEIFS(RAS!L$3:L$775,RAS!$C$3:$C$775,$B51,RAS!$N$3:$N$775,$A51,RAS!$O$3:$O$775,1) -> 120.7453846 | G51: =AVERAGEIFS(RAS!F$3:F$775,RAS!$C$3:$C$775,$B51,RAS!$N$3:$N$775,$A51,RAS!$O$3:$O$775,1) -> 5386.389231 | H51: =AVERAGEIFS(RAS!I$3:I$775,RAS!$C$3:$C$775,$B51,RAS!$N$3:$N$775,$A51,RAS!$O$3:$O$775,1) -> 0.008550923077 | I51: =AVERAGEIFS(RAS!P$3:P$775,RAS!N$3:N$775,A51,RAS!C$3:C$775,B51,RAS!O$3:O$775,1) -> 0.02617114203 | J51: =AVERAGEIFS(RAS!Q$3:Q$775,RAS!N$3:N$775,A51,RAS!C$3:C$775,B51,RAS!O$3:O$775,1) -> 0.8730769231
A52: 7 | B52: 50 YR | C52: =AVERAGEIFS(RAS!K$3:K$775,RAS!$C$3:$C$775,$B52,RAS!$N$3:$N$775,$A52,RAS!$O$3:$O$775,1) -> 4.271538462 | D52: =AVERAGEIFS(RAS!J$3:J$775,RAS!$C$3:$C$775,$B52,RAS!$N$3:$N$775,$A52,RAS!$O$3:$O$775,1) -> 11.62153846 | E52: =AVERAGEIFS(RAS!M$3:M$775,RAS!$C$3:$C$775,$B52,RAS!$N$3:$N$775,$A52,RAS!$O$3:$O$775,1) -> 88.27538462 | F52: =AVERAGEIFS(RAS!L$3:L$775,RAS!$C$3:$C$775,$B52,RAS!$N$3:$N$775,$A52,RAS!$O$3:$O$775,1) -> 133.9746154 | G52: =AVERAGEIFS(RAS!F$3:F$775,RAS!$C$3:$C$775,$B52,RAS!$N$3:$N$775,$A52,RAS!$O$3:$O$775,1) -> 5386.977692 | H52: =AVERAGEIFS(RAS!I$3:I$775,RAS!$C$3:$C$775,$B52,RAS!$N$3:$N$775,$A52,RAS!$O$3:$O$775,1) -> 0.008002230769 | I52: =AVERAGEIFS(RAS!P$3:P$775,RAS!N$3:N$775,A52,RAS!C$3:C$775,B52,RAS!O$3:O$775,1) -> 0.02617114203 | J52: =AVERAGEIFS(RAS!Q$3:Q$775,RAS!N$3:N$775,A52,RAS!C$3:C$775,B52,RAS!O$3:O$775,1) -> 0.8669230769
A53: 7 | B53: 100 YR | C53: =AVERAGEIFS(RAS!K$3:K$775,RAS!$C$3:$C$775,$B53,RAS!$N$3:$N$775,$A53,RAS!$O$3:$O$775,1) -> 4.454615385 | D53: =AVERAGEIFS(RAS!J$3:J$775,RAS!$C$3:$C$775,$B53,RAS!$N$3:$N$775,$A53,RAS!$O$3:$O$775,1) -> 12.15615385 | E53: =AVERAGEIFS(RAS!M$3:M$775,RAS!$C$3:$C$775,$B53,RAS!$N$3:$N$775,$A53,RAS!$O$3:$O$775,1) -> 90.63 | F53: =AVERAGEIFS(RAS!L$3:L$775,RAS!$C$3:$C$775,$B53,RAS!$N$3:$N$775,$A53,RAS!$O$3:$O$775,1) -> 146.17 | G53: =AVERAGEIFS(RAS!F$3:F$775,RAS!$C$3:$C$775,$B53,RAS!$N$3:$N$775,$A53,RAS!$O$3:$O$775,1) -> 5387.530769 | H53: =AVERAGEIFS(RAS!I$3:I$775,RAS!$C$3:$C$775,$B53,RAS!$N$3:$N$775,$A53,RAS!$O$3:$O$775,1) -> 0.007790769231 | I53: =AVERAGEIFS(RAS!P$3:P$775,RAS!N$3:N$775,A53,RAS!C$3:C$775,B53,RAS!O$3:O$775,1) -> 0.02617114203 | J53: =AVERAGEIFS(RAS!Q$3:Q$775,RAS!N$3:N$775,A53,RAS!C$3:C$775,B53,RAS!O$3:O$775,1) -> 0.8707692308
A54: 8 | B54: 2 YR | C54: =AVERAGEIFS(RAS!K$3:K$775,RAS!$C$3:$C$775,$B54,RAS!$N$3:$N$775,$A54,RAS!$O$3:$O$775,1) -> 3.12 | D54: =AVERAGEIFS(RAS!J$3:J$775,RAS!$C$3:$C$775,$B54,RAS!$N$3:$N$775,$A54,RAS!$O$3:$O$775,1) -> 9.015454545 | E54: =AVERAGEIFS(RAS!M$3:M$775,RAS!$C$3:$C$775,$B54,RAS!$N$3:$N$775,$A54,RAS!$O$3:$O$775,1) -> 68.62454545 | F54: =AVERAGEIFS(RAS!L$3:L$775,RAS!$C$3:$C$775,$B54,RAS!$N$3:$N$775,$A54,RAS!$O$3:$O$775,1) -> 73.21454545 | G54: =AVERAGEIFS(RAS!F$3:F$775,RAS!$C$3:$C$775,$B54,RAS!$N$3:$N$775,$A54,RAS!$O$3:$O$775,1) -> 5345.441818 | H54: =AVERAGEIFS(RAS!I$3:I$775,RAS!$C$3:$C$775,$B54,RAS!$N$3:$N$775,$A54,RAS!$O$3:$O$775,1) -> 0.01524936364 | I54: =AVERAGEIFS(RAS!P$3:P$775,RAS!N$3:N$775,A54,RAS!C$3:C$775,B54,RAS!O$3:O$775,1) -> 0.01962547575 | J54: =AVERAGEIFS(RAS!Q$3:Q$775,RAS!N$3:N$775,A54,RAS!C$3:C$775,B54,RAS!O$3:O$775,1) -> 0.9045454545
A55: 8 | B55: 5 YR | C55: =AVERAGEIFS(RAS!K$3:K$775,RAS!$C$3:$C$775,$B55,RAS!$N$3:$N$775,$A55,RAS!$O$3:$O$775,1) -> 3.905454545 | D55: =AVERAGEIFS(RAS!J$3:J$775,RAS!$C$3:$C$775,$B55,RAS!$N$3:$N$775,$A55,RAS!$O$3:$O$775,1) -> 10.21636364 | E55: =AVERAGEIFS(RAS!M$3:M$775,RAS!$C$3:$C$775,$B55,RAS!$N$3:$N$775,$A55,RAS!$O$3:$O$775,1) -> 75.68363636 | F55: =AVERAGEIFS(RAS!L$3:L$775,RAS!$C$3:$C$775,$B55,RAS!$N$3:$N$775,$A55,RAS!$O$3:$O$775,1) -> 81.90181818 | G55: =AVERAGEIFS(RAS!F$3:F$775,RAS!$C$3:$C$775,$B55,RAS!$N$3:$N$775,$A55,RAS!$O$3:$O$775,1) -> 5346.613636 | H55: =AVERAGEIFS(RAS!I$3:I$775,RAS!$C$3:$C$775,$B55,RAS!$N$3:$N$775,$A55,RAS!$O$3:$O$775,1) -> 0.01443609091 | I55: =AVERAGEIFS(RAS!P$3:P$775,RAS!N$3:N$775,A55,RAS!C$3:C$775,B55,RAS!O$3:O$775,1) -> 0.01962547575 | J55: =AVERAGEIFS(RAS!Q$3:Q$775,RAS!N$3:N$775,A55,RAS!C$3:C$775,B55,RAS!O$3:O$775,1) -> 0.9136363636
A56: 8 | B56: 10 YR | C56: =AVERAGEIFS(RAS!K$3:K$775,RAS!$C$3:$C$775,$B56,RAS!$N$3:$N$775,$A56,RAS!$O$3:$O$775,1) -> 4.244545455 | D56: =AVERAGEIFS(RAS!J$3:J$775,RAS!$C$3:$C$775,$B56,RAS!$N$3:$N$775,$A56,RAS!$O$3:$O$775,1) -> 10.94818182 | E56: =AVERAGEIFS(RAS!M$3:M$775,RAS!$C$3:$C$775,$B56,RAS!$N$3:$N$775,$A56,RAS!$O$3:$O$775,1) -> 79.77727273 | F56: =AVERAGEIFS(RAS!L$3:L$775,RAS!$C$3:$C$775,$B56,RAS!$N$3:$N$775,$A56,RAS!$O$3:$O$775,1) -> 88.37181818 | G56: =AVERAGEIFS(RAS!F$3:F$775,RAS!$C$3:$C$775,$B56,RAS!$N$3:$N$775,$A56,RAS!$O$3:$O$775,1) -> 5347.409091 | H56: =AVERAGEIFS(RAS!I$3:I$775,RAS!$C$3:$C$775,$B56,RAS!$N$3:$N$775,$A56,RAS!$O$3:$O$775,1) -> 0.01395809091 | I56: =AVERAGEIFS(RAS!P$3:P$775,RAS!N$3:N$775,A56,RAS!C$3:C$775,B56,RAS!O$3:O$775,1) -> 0.01962547575 | J56: =AVERAGEIFS(RAS!Q$3:Q$775,RAS!N$3:N$775,A56,RAS!C$3:C$775,B56,RAS!O$3:O$775,1) -> 0.9172727273
A57: 8 | B57: 25 YR | C57: =AVERAGEIFS(RAS!K$3:K$775,RAS!$C$3:$C$775,$B57,RAS!$N$3:$N$775,$A57,RAS!$O$3:$O$775,1) -> 4.912727273 | D57: =AVERAGEIFS(RAS!J$3:J$775,RAS!$C$3:$C$775,$B57,RAS!$N$3:$N$775,$A57,RAS!$O$3:$O$775,1) -> 11.42 | E57: =AVERAGEIFS(RAS!M$3:M$775,RAS!$C$3:$C$775,$B57,RAS!$N$3:$N$775,$A57,RAS!$O$3:$O$775,1) -> 85.28818182 | F57: =AVERAGEIFS(RAS!L$3:L$775,RAS!$C$3:$C$775,$B57,RAS!$N$3:$N$775,$A57,RAS!$O$3:$O$775,1) -> 95.10727273 | G57: =AVERAGEIFS(RAS!F$3:F$775,RAS!$C$3:$C$775,$B57,RAS!$N$3:$N$775,$A57,RAS!$O$3:$O$775,1) -> 5348.443636 | H57: =AVERAGEIFS(RAS!I$3:I$775,RAS!$C$3:$C$775,$B57,RAS!$N$3:$N$775,$A57,RAS!$O$3:$O$775,1) -> 0.01274418182 | I57: =AVERAGEIFS(RAS!P$3:P$775,RAS!N$3:N$775,A57,RAS!C$3:C$775,B57,RAS!O$3:O$775,1) -> 0.01962547575 | J57: =AVERAGEIFS(RAS!Q$3:Q$775,RAS!N$3:N$775,A57,RAS!C$3:C$775,B57,RAS!O$3:O$775,1) -> 0.8909090909
A58: 8 | B58: 50 YR | C58: =AVERAGEIFS(RAS!K$3:K$775,RAS!$C$3:$C$775,$B58,RAS!$N$3:$N$775,$A58,RAS!$O$3:$O$775,1) -> 5.34 | D58: =AVERAGEIFS(RAS!J$3:J$775,RAS!$C$3:$C$775,$B58,RAS!$N$3:$N$775,$A58,RAS!$O$3:$O$775,1) -> 11.89 | E58: =AVERAGEIFS(RAS!M$3:M$775,RAS!$C$3:$C$775,$B58,RAS!$N$3:$N$775,$A58,RAS!$O$3:$O$775,1) -> 88.82 | F58: =AVERAGEIFS(RAS!L$3:L$775,RAS!$C$3:$C$775,$B58,RAS!$N$3:$N$775,$A58,RAS!$O$3:$O$775,1) -> 99.53909091 | G58: =AVERAGEIFS(RAS!F$3:F$775,RAS!$C$3:$C$775,$B58,RAS!$N$3:$N$775,$A58,RAS!$O$3:$O$775,1) -> 5349.118182 | H58: =AVERAGEIFS(RAS!I$3:I$775,RAS!$C$3:$C$775,$B58,RAS!$N$3:$N$775,$A58,RAS!$O$3:$O$775,1) -> 0.01246618182 | I58: =AVERAGEIFS(RAS!P$3:P$775,RAS!N$3:N$775,A58,RAS!C$3:C$775,B58,RAS!O$3:O$775,1) -> 0.01962547575 | J58: =AVERAGEIFS(RAS!Q$3:Q$775,RAS!N$3:N$775,A58,RAS!C$3:C$775,B58,RAS!O$3:O$775,1) -> 0.8927272727
A59: 8 | B59: 100 YR | C59: =AVERAGEIFS(RAS!K$3:K$775,RAS!$C$3:$C$775,$B59,RAS!$N$3:$N$775,$A59,RAS!$O$3:$O$775,1) -> 5.69 | D59: =AVERAGEIFS(RAS!J$3:J$775,RAS!$C$3:$C$775,$B59,RAS!$N$3:$N$775,$A59,RAS!$O$3:$O$775,1) -> 12.47909091 | E59: =AVERAGEIFS(RAS!M$3:M$775,RAS!$C$3:$C$775,$B59,RAS!$N$3:$N$775,$A59,RAS!$O$3:$O$775,1) -> 91.93818182 | F59: =AVERAGEIFS(RAS!L$3:L$775,RAS!$C$3:$C$775,$B59,RAS!$N$3:$N$775,$A59,RAS!$O$3:$O$775,1) -> 104.1772727 | G59: =AVERAGEIFS(RAS!F$3:F$775,RAS!$C$3:$C$775,$B59,RAS!$N$3:$N$775,$A59,RAS!$O$3:$O$775,1) -> 5349.710909 | H59: =AVERAGEIFS(RAS!I$3:I$775,RAS!$C$3:$C$775,$B59,RAS!$N$3:$N$775,$A59,RAS!$O$3:$O$775,1) -> 0.01253445455 | I59: =AVERAGEIFS(RAS!P$3:P$775,RAS!N$3:N$775,A59,RAS!C$3:C$775,B59,RAS!O$3:O$775,1) -> 0.01962547575 | J59: =AVERAGEIFS(RAS!Q$3:Q$775,RAS!N$3:N$775,A59,RAS!C$3:C$775,B59,RAS!O$3:O$775,1) -> 0.9045454545
A60: 9 | B60: 2 YR | C60: =AVERAGEIFS(RAS!K$3:K$775,RAS!$C$3:$C$775,$B60,RAS!$N$3:$N$775,$A60,RAS!$O$3:$O$775,1) -> 2.871 | D60: =AVERAGEIFS(RAS!J$3:J$775,RAS!$C$3:$C$775,$B60,RAS!$N$3:$N$775,$A60,RAS!$O$3:$O$775,1) -> 9.224 | E60: =AVERAGEIFS(RAS!M$3:M$775,RAS!$C$3:$C$775,$B60,RAS!$N$3:$N$775,$A60,RAS!$O$3:$O$775,1) -> 73.203 | F60: =AVERAGEIFS(RAS!L$3:L$775,RAS!$C$3:$C$775,$B60,RAS!$N$3:$N$775,$A60,RAS!$O$3:$O$775,1) -> 75.009 | G60: =AVERAGEIFS(RAS!F$3:F$775,RAS!$C$3:$C$775,$B60,RAS!$N$3:$N$775,$A60,RAS!$O$3:$O$775,1) -> 5305.524 | H60: =AVERAGEIFS(RAS!I$3:I$775,RAS!$C$3:$C$775,$B60,RAS!$N$3:$N$775,$A60,RAS!$O$3:$O$775,1) -> 0.0167704 | I60: =AVERAGEIFS(RAS!P$3:P$775,RAS!N$3:N$775,A60,RAS!C$3:C$775,B60,RAS!O$3:O$775,1) -> 0.03522200409 | J60: =AVERAGEIFS(RAS!Q$3:Q$775,RAS!N$3:N$775,A60,RAS!C$3:C$775,B60,RAS!O$3:O$775,1) -> 0.952
A61: 9 | B61: 5 YR | C61: =AVERAGEIFS(RAS!K$3:K$775,RAS!$C$3:$C$775,$B61,RAS!$N$3:$N$775,$A61,RAS!$O$3:$O$775,1) -> 3.478 | D61: =AVERAGEIFS(RAS!J$3:J$775,RAS!$C$3:$C$775,$B61,RAS!$N$3:$N$775,$A61,RAS!$O$3:$O$775,1) -> 10.295 | E61: =AVERAGEIFS(RAS!M$3:M$775,RAS!$C$3:$C$775,$B61,RAS!$N$3:$N$775,$A61,RAS!$O$3:$O$775,1) -> 82.652 | F61: =AVERAGEIFS(RAS!L$3:L$775,RAS!$C$3:$C$775,$B61,RAS!$N$3:$N$775,$A61,RAS!$O$3:$O$775,1) -> 85.985 | G61: =AVERAGEIFS(RAS!F$3:F$775,RAS!$C$3:$C$775,$B61,RAS!$N$3:$N$775,$A61,RAS!$O$3:$O$775,1) -> 5306.615 | H61: =AVERAGEIFS(RAS!I$3:I$775,RAS!$C$3:$C$775,$B61,RAS!$N$3:$N$775,$A61,RAS!$O$3:$O$775,1) -> 0.0159372 | I61: =AVERAGEIFS(RAS!P$3:P$775,RAS!N$3:N$775,A61,RAS!C$3:C$775,B61,RAS!O$3:O$775,1) -> 0.03522200409 | J61: =AVERAGEIFS(RAS!Q$3:Q$775,RAS!N$3:N$775,A61,RAS!C$3:C$775,B61,RAS!O$3:O$775,1) -> 0.96
A62: 9 | B62: 10 YR | C62: =AVERAGEIFS(RAS!K$3:K$775,RAS!$C$3:$C$775,$B62,RAS!$N$3:$N$775,$A62,RAS!$O$3:$O$775,1) -> 3.914 | D62: =AVERAGEIFS(RAS!J$3:J$775,RAS!$C$3:$C$775,$B62,RAS!$N$3:$N$775,$A62,RAS!$O$3:$O$775,1) -> 11.002 | E62: =AVERAGEIFS(RAS!M$3:M$775,RAS!$C$3:$C$775,$B62,RAS!$N$3:$N$775,$A62,RAS!$O$3:$O$775,1) -> 88.123 | F62: =AVERAGEIFS(RAS!L$3:L$775,RAS!$C$3:$C$775,$B62,RAS!$N$3:$N$775,$A62,RAS!$O$3:$O$775,1) -> 92.277 | G62: =AVERAGEIFS(RAS!F$3:F$775,RAS!$C$3:$C$775,$B62,RAS!$N$3:$N$775,$A62,RAS!$O$3:$O$775,1) -> 5307.319 | H62: =AVERAGEIFS(RAS!I$3:I$775,RAS!$C$3:$C$775,$B62,RAS!$N$3:$N$775,$A62,RAS!$O$3:$O$775,1) -> 0.0154936 | I62: =AVERAGEIFS(RAS!P$3:P$775,RAS!N$3:N$775,A62,RAS!C$3:C$775,B62,RAS!O$3:O$775,1) -> 0.03522200409 | J62: =AVERAGEIFS(RAS!Q$3:Q$775,RAS!N$3:N$775,A62,RAS!C$3:C$775,B62,RAS!O$3:O$775,1) -> 0.965
A63: 9 | B63: 25 YR | C63: =AVERAGEIFS(RAS!K$3:K$775,RAS!$C$3:$C$775,$B63,RAS!$N$3:$N$775,$A63,RAS!$O$3:$O$775,1) -> 4.446 | D63: =AVERAGEIFS(RAS!J$3:J$775,RAS!$C$3:$C$775,$B63,RAS!$N$3:$N$775,$A63,RAS!$O$3:$O$775,1) -> 11.83 | E63: =AVERAGEIFS(RAS!M$3:M$775,RAS!$C$3:$C$775,$B63,RAS!$N$3:$N$775,$A63,RAS!$O$3:$O$775,1) -> 91.985 | F63: =AVERAGEIFS(RAS!L$3:L$775,RAS!$C$3:$C$775,$B63,RAS!$N$3:$N$775,$A63,RAS!$O$3:$O$775,1) -> 97.868 | G63: =AVERAGEIFS(RAS!F$3:F$775,RAS!$C$3:$C$775,$B63,RAS!$N$3:$N$775,$A63,RAS!$O$3:$O$775,1) -> 5308.097 | H63: =AVERAGEIFS(RAS!I$3:I$775,RAS!$C$3:$C$775,$B63,RAS!$N$3:$N$775,$A63,RAS!$O$3:$O$775,1) -> 0.0149405 | I63: =AVERAGEIFS(RAS!P$3:P$775,RAS!N$3:N$775,A63,RAS!C$3:C$775,B63,RAS!O$3:O$775,1) -> 0.03522200409 | J63: =AVERAGEIFS(RAS!Q$3:Q$775,RAS!N$3:N$775,A63,RAS!C$3:C$775,B63,RAS!O$3:O$775,1) -> 0.968
A64: 9 | B64: 50 YR | C64: =AVERAGEIFS(RAS!K$3:K$775,RAS!$C$3:$C$775,$B64,RAS!$N$3:$N$775,$A64,RAS!$O$3:$O$775,1) -> 4.739 | D64: =AVERAGEIFS(RAS!J$3:J$775,RAS!$C$3:$C$775,$B64,RAS!$N$3:$N$775,$A64,RAS!$O$3:$O$775,1) -> 12.21 | E64: =AVERAGEIFS(RAS!M$3:M$775,RAS!$C$3:$C$775,$B64,RAS!$N$3:$N$775,$A64,RAS!$O$3:$O$775,1) -> 94.611 | F64: =AVERAGEIFS(RAS!L$3:L$775,RAS!$C$3:$C$775,$B64,RAS!$N$3:$N$775,$A64,RAS!$O$3:$O$775,1) -> 108.763 | G64: =AVERAGEIFS(RAS!F$3:F$775,RAS!$C$3:$C$775,$B64,RAS!$N$3:$N$775,$A64,RAS!$O$3:$O$775,1) -> 5308.69 | H64: =AVERAGEIFS(RAS!I$3:I$775,RAS!$C$3:$C$775,$B64,RAS!$N$3:$N$775,$A64,RAS!$O$3:$O$775,1) -> 0.0141277 | I64: =AVERAGEIFS(RAS!P$3:P$775,RAS!N$3:N$775,A64,RAS!C$3:C$775,B64,RAS!O$3:O$775,1) -> 0.03522200409 | J64: =AVERAGEIFS(RAS!Q$3:Q$775,RAS!N$3:N$775,A64,RAS!C$3:C$775,B64,RAS!O$3:O$775,1) -> 0.955
A65: 9 | B65: 100 YR | C65: =AVERAGEIFS(RAS!K$3:K$775,RAS!$C$3:$C$775,$B65,RAS!$N$3:$N$775,$A65,RAS!$O$3:$O$775,1) -> 5.15 | D65: =AVERAGEIFS(RAS!J$3:J$775,RAS!$C$3:$C$775,$B65,RAS!$N$3:$N$775,$A65,RAS!$O$3:$O$775,1) -> 12.739 | E65: =AVERAGEIFS(RAS!M$3:M$775,RAS!$C$3:$C$775,$B65,RAS!$N$3:$N$775,$A65,RAS!$O$3:$O$775,1) -> 97.324 | F65: =AVERAGEIFS(RAS!L$3:L$775,RAS!$C$3:$C$775,$B65,RAS!$N$3:$N$775,$A65,RAS!$O$3:$O$775,1) -> 111.907 | G65: =AVERAGEIFS(RAS!F$3:F$775,RAS!$C$3:$C$775,$B65,RAS!$N$3:$N$775,$A65,RAS!$O$3:$O$775,1) -> 5309.251 | H65: =AVERAGEIFS(RAS!I$3:I$775,RAS!$C$3:$C$775,$B65,RAS!$N$3:$N$775,$A65,RAS!$O$3:$O$775,1) -> 0.0138397 | I65: =AVERAGEIFS(RAS!P$3:P$775,RAS!N$3:N$775,A65,RAS!C$3:C$775,B65,RAS!O$3:O$775,1) -> 0.03522200409 | J65: =AVERAGEIFS(RAS!Q$3:Q$775,RAS!N$3:N$775,A65,RAS!C$3:C$775,B65,RAS!O$3:O$775,1) -> 0.957

Sheet MUSLE
A1: MUSLE Yields By Sub-Reach
AH2: From Tt Tribs Study
A4: α: | B4: 285 | C4: β: | D4: 0.56 | E4: K: | F4: =AL27 -> 0.206731702 | G4: C: | H4: 0.2 | I4: P: | J4: 1 | K4: Ffs: | L4: 0.2 | M4: LS: | N4: =AQ44 -> 1.168239735
B5: V (acre-ft) | H5: qp (cfs) | N5: Rw | T5: Ys, Clay & Silt (tons) | Z5: Imperv. Area | AA5: Y's, Clay & Silt adj. for Impervious Area (tons)
A6: Sub-Reach | B6: 2-yr | C6: 5-yr | D6: 10-yr | E6: 25-yr | F6: 50-yr | G6: 100-yr | H6: 2-yr | I6: 5-yr | J6: 10-yr | K6: 25-yr | L6: 50-yr | M6: 100-yr | N6: 2-yr | O6: 5-yr | P6: 10-yr | Q6: 25-yr | R6: 50-yr | S6: 100-yr | T6: 2-yr | U6: 5-yr | V6: 10-yr | W6: 25-yr | X6: 50-yr | Y6: 100-yr | Z6: (fraction) | AA6: 2-yr | AB6: 5-yr | AC6: 10-yr | AD6: 25-yr | AE6: 50-yr | AF6: 100-yr
A7: 0 | B7: ='Hydro Input'!AB22 -> 10.4 | C7: ='Hydro Input'!AC22 -> 15.1 | D7: ='Hydro Input'!AD22 -> 18.6 | E7: ='Hydro Input'!AE22 -> 22.8 | F7: ='Hydro Input'!AF22 -> 25.9 | G7: ='Hydro Input'!AG22 -> 29.1 | H7: ='Hydro Input'!J22 -> 116.9 | I7: ='Hydro Input'!K22 -> 180.3 | J7: ='Hydro Input'!L22 -> 228.1 | K7: ='Hydro Input'!M22 -> 286.8 | L7: ='Hydro Input'!N22 -> 331.3 | M7: ='Hydro Input'!O22 -> 378.1 | N7: =$B$4*(B7*H7)^$D$4 -> 15218.07276 | O7: =$B$4*(C7*I7)^$D$4 -> 23901.74218 | P7: 30642.36409 | Q7: 39042.05749 | R7: 45458.6707 | S7: 52249.8049 | T7: =N7*$F$4*$N$4*$H$4*$J$4*$L$4 -> 147.0140025 | U7: =O7*$F$4*$N$4*$H$4*$J$4*$L$4 -> 230.9024828 | V7: 296.0201769 | W7: 377.1653104 | X7: 439.1529225 | Y7: 504.7585899 | Z7: =SUMIF(HMS!S$2:S$53,A7,HMS!U$2:U$53)/SUMIF(HMS!S$2:S$53,A7,HMS!R$2:R$53) -> 0.4758832773 | AA7: =T7*(1-$Z7) -> 77.05249718 | AB7: =U7*(1-$Z7) -> 121.0198525 | AC7: 155.149125 | AD7: 197.6786464 | AE7: 230.1673905 | AF7: 264.5524179
A8: 1 | B8: ='Hydro Input'!AB23 -> 70.6 | C8: ='Hydro Input'!AC23 -> 106.7 | D8: ='Hydro Input'!AD23 -> 136.2 | E8: ='Hydro Input'!AE23 -> 174.2 | F8: ='Hydro Input'!AF23 -> 203.1 | G8: ='Hydro Input'!AG23 -> 233.9 | H8: ='Hydro Input'!J23 -> 791.3 | I8: ='Hydro Input'!K23 -> 1188.6 | J8: ='Hydro Input'!L23 -> 1511.6 | K8: ='Hydro Input'!M23 -> 1937.7 | L8: ='Hydro Input'!N23 -> 2278.5 | M8: ='Hydro Input'!O23 -> 2651.4 | N8: =$B$4*(B8*H8)^$D$4 -> 129791.5878 | O8: =$B$4*(C8*I8)^$D$4 -> 205417.2644 | P8: =$B$4*(D8*J8)^$D$4 -> 269444.1103 | Q8: =$B$4*(E8*K8)^$D$4 -> 355395.7961 | R8: =$B$4*(F8*L8)^$D$4 -> 424078.1294 | S8: =$B$4*(G8*M8)^$D$4 -> 499629.3303 | T8: =N8*$F$4*$N$4*$H$4*$J$4*$L$4 -> 1253.850018 | U8: =O8*$F$4*$N$4*$H$4*$J$4*$L$4 -> 1984.430926 | V8: =P8*$F$4*$N$4*$H$4*$J$4*$L$4 -> 2602.961473 | W8: =Q8*$F$4*$N$4*$H$4*$J$4*$L$4 -> 3433.296665 | X8: =R8*$F$4*$N$4*$H$4*$J$4*$L$4 -> 4096.80149 | Y8: =S8*$F$4*$N$4*$H$4*$J$4*$L$4 -> 4826.662926 | Z8: =SUMIF(HMS!S$2:S$53,A8,HMS!U$2:U$53)/SUMIF(HMS!S$2:S$53,A8,HMS!R$2:R$53) -> 0.496101016 | AA8: =T8*(1-$Z8) -> 631.8137504 | AB8: =U8*(1-$Z8) -> 999.9527276 | AC8: =V8*(1-$Z8) -> 1311.629642 | AD8: =W8*(1-$Z8) -> 1730.034701 | AE8: =X8*(1-$Z8) -> 2064.374109 | AF8: =Y8*(1-$Z8) -> 2432.150545
A9: 2 | B9: ='Hydro Input'!AB24 -> 115.9 | C9: ='Hydro Input'!AC24 -> 174.2 | D9: ='Hydro Input'!AD24 -> 221.6 | E9: ='Hydro Input'!AE24 -> 282.8 | F9: ='Hydro Input'!AF24 -> 329.4 | G9: ='Hydro Input'!AG24 -> 379.1 | H9: ='Hydro Input'!J24 -> 1227.8 | I9: ='Hydro Input'!K24 -> 1873.1 | J9: ='Hydro Input'!L24 -> 2394.7 | K9: ='Hydro Input'!M24 -> 3094.3 | L9: ='Hydro Input'!N24 -> 3662.1 | M9: ='Hydro Input'!O24 -> 4287.5 | N9: 219100.3425 | O9: 348711.2544 | P9: 457872.4862 | Q9: 605882.3212 | R9: 725201.9859 | S9: 857000.9312 | T9: 2116.616131 | U9: 3368.720732 | V9: 4423.271454 | W9: 5853.118622 | X9: 7005.804758 | Y9: 8279.046827 | Z9: =SUMIF(HMS!S$2:S$53,A9,HMS!U$2:U$53)/SUMIF(HMS!S$2:S$53,A9,HMS!R$2:R$53) -> 0.5175342905 | AA9: 1021.194703 | AB9: 1625.292238 | AC9: 2134.0768 | AD9: 2823.929029 | AE9: 3380.060563 | AF9: 3994.356201
A10: 3 | B10: ='Hydro Input'!AB25 -> 125.3 | C10: ='Hydro Input'!AC25 -> 187.6 | D10: ='Hydro Input'!AD25 -> 238 | E10: ='Hydro Input'!AE25 -> 303.2 | F10: ='Hydro Input'!AF25 -> 352.7 | G10: ='Hydro Input'!AG25 -> 405.6 | H10: ='Hydro Input'!J25 -> 1272.7 | I10: ='Hydro Input'!K25 -> 1939.5 | J10: ='Hydro Input'!L25 -> 2472.6 | K10: ='Hydro Input'!M25 -> 3181.1 | L10: ='Hydro Input'!N25 -> 3753.8 | M10: ='Hydro Input'!O25 -> 4381.4 | N10: 233530.7341 | O10: 370647.8848 | P10: 485170.2027 | Q10: 639818.0832 | R10: 764004.2073 | S10: 900913.1709 | T10: 2256.020749 | U10: 3580.639277 | V10: 4686.980704 | W10: 6180.954629 | X10: 7380.653134 | Y10: 8703.260473 | Z10: =SUMIF(HMS!S$2:S$53,A10,HMS!U$2:U$53)/SUMIF(HMS!S$2:S$53,A10,HMS!R$2:R$53) -> 0.4665153771 | AA10: 1203.552379 | AB10: 1910.215995 | AC10: 2500.432133 | AD10: 3297.444249 | AE10: 3937.464954 | AF10: 4643.055631
A11: 4 | B11: ='Hydro Input'!AB26 -> 125.3 | C11: ='Hydro Input'!AC26 -> 187.6 | D11: ='Hydro Input'!AD26 -> 238 | E11: ='Hydro Input'!AE26 -> 303.2 | F11: ='Hydro Input'!AF26 -> 352.7 | G11: ='Hydro Input'!AG26 -> 405.6 | H11: ='Hydro Input'!J26 -> 1272.7 | I11: ='Hydro Input'!K26 -> 1939.5 | J11: ='Hydro Input'!L26 -> 2472.6 | K11: ='Hydro Input'!M26 -> 3181.1 | L11: ='Hydro Input'!N26 -> 3753.8 | M11: ='Hydro Input'!O26 -> 4381.4 | N11: 233530.7341 | O11: 370647.8848 | P11: 485170.2027 | Q11: 639818.0832 | R11: 764004.2073 | S11: 900913.1709 | T11: 2256.020749 | U11: 3580.639277 | V11: 4686.980704 | W11: 6180.954629 | X11: 7380.653134 | Y11: 8703.260473 | Z11: =SUMIF(HMS!S$2:S$53,A11,HMS!U$2:U$53)/SUMIF(HMS!S$2:S$53,A11,HMS!R$2:R$53) -> 0.588160653 | AA11: 929.1181123 | AB11: 1474.648142 | AC11: 1930.283072 | AD11: 2545.560318 | AE11: 3039.643367 | AF11: 3584.34511
A12: 5 | B12: ='Hydro Input'!AB27 -> 199.8 | C12: ='Hydro Input'!AC27 -> 299 | D12: ='Hydro Input'!AD27 -> 378.8 | E12: ='Hydro Input'!AE27 -> 481.7 | F12: ='Hydro Input'!AF27 -> 559.6 | G12: ='Hydro Input'!AG27 -> 642.7 | H12: ='Hydro Input'!J27 -> 1692.3 | I12: ='Hydro Input'!K27 -> 2633.9 | J12: ='Hydro Input'!L27 -> 3394.7 | K12: ='Hydro Input'!M27 -> 4392.8 | L12: ='Hydro Input'!N27 -> 5199.7 | M12: ='Hydro Input'!O27 -> 6084.8 | N12: 355734.2242 | O12: 571158.0781 | P12: 751628.48 | Q12: 993424.767 | R12: 1187419.608 | S12: 1401223.591 | T12: 3436.566045 | U12: 5517.665504 | V12: 7261.097575 | W12: 9596.967595 | X12: 11471.05234 | Y12: 13536.50306 | Z12: =SUMIF(HMS!S$2:S$53,A12,HMS!U$2:U$53)/SUMIF(HMS!S$2:S$53,A12,HMS!R$2:R$53) -> 0.5018597749 | AA12: 1711.891783 | AB12: 2748.571136 | AC12: 3617.04478 | AD12: 4780.635598 | AE12: 5714.192596 | AF12: 6743.07668
A13: 6 | B13: ='Hydro Input'!AB28 -> 207.9 | C13: ='Hydro Input'!AC28 -> 310.9 | D13: ='Hydro Input'!AD28 -> 393.7 | E13: ='Hydro Input'!AE28 -> 500.5 | F13: ='Hydro Input'!AF28 -> 581.3 | G13: ='Hydro Input'!AG28 -> 667.5 | H13: ='Hydro Input'!J28 -> 1720.7 | I13: ='Hydro Input'!K28 -> 2686 | J13: ='Hydro Input'!L28 -> 3467.3 | K13: ='Hydro Input'!M28 -> 4490.7 | L13: ='Hydro Input'!N28 -> 5315.4 | M13: ='Hydro Input'!O28 -> 6217.4 | N13: 367145.5451 | O13: 590217.1559 | P13: 777199.8127 | Q13: 1027559.574 | R13: 1228030.559 | S13: 1448633.433 | T13: 3546.804968 | U13: 5701.785487 | V13: 7508.129116 | W13: 9926.726472 | X13: 11863.37392 | Y13: 13994.50525 | Z13: =SUMIF(HMS!S$2:S$53,A13,HMS!U$2:U$53)/SUMIF(HMS!S$2:S$53,A13,HMS!R$2:R$53) -> 0.5825050897 | AA13: 1480.773022 | AB13: 2380.466421 | AC13: 3134.605692 | AD13: 4144.357778 | AE13: 4952.898233 | AF13: 5842.634715
A14: 7 | B14: ='Hydro Input'!AB29 -> 230.6 | C14: ='Hydro Input'!AC29 -> 343.7 | D14: ='Hydro Input'!AD29 -> 434.4 | E14: ='Hydro Input'!AE29 -> 551.1 | F14: ='Hydro Input'!AF29 -> 639.4 | G14: ='Hydro Input'!AG29 -> 733.7 | H14: ='Hydro Input'!J29 -> 1814.7 | I14: ='Hydro Input'!K29 -> 2852.7 | J14: ='Hydro Input'!L29 -> 3693.1 | K14: ='Hydro Input'!M29 -> 4784.3 | L14: ='Hydro Input'!N29 -> 5663.5 | M14: ='Hydro Input'!O29 -> 6619.3 | N14: 400845.2851 | O14: 645726.8054 | P14: 850750.3865 | Q14: 1123652.951 | R14: 1342162.439 | S14: 1581939.925 | T14: 3872.360887 | U14: 6238.035765 | V14: 8218.663518 | W14: 10855.03534 | X14: 12965.94353 | Y14: 15282.31095 | Z14: =SUMIF(HMS!S$2:S$53,A14,HMS!U$2:U$53)/SUMIF(HMS!S$2:S$53,A14,HMS!R$2:R$53) -> 0.5671081141 | AA14: 1676.313607 | AB14: 2700.395067 | AC14: 3557.79275 | AD14: 4699.056721 | AE14: 5612.851747 | AF14: 6615.588409
A15: 8 | B15: ='Hydro Input'!AB30 -> 245.3 | C15: ='Hydro Input'!AC30 -> 364.9 | D15: ='Hydro Input'!AD30 -> 460.5 | E15: ='Hydro Input'!AE30 -> 583.6 | F15: ='Hydro Input'!AF30 -> 676.8 | G15: ='Hydro Input'!AG30 -> 776.3 | H15: ='Hydro Input'!J30 -> 1865.5 | I15: ='Hydro Input'!K30 -> 2950.4 | J15: ='Hydro Input'!L30 -> 3824.4 | K15: ='Hydro Input'!M30 -> 4954.5 | L15: ='Hydro Input'!N30 -> 5863.9 | M15: ='Hydro Input'!O30 -> 6852.6 | N15: 421425.5176 | O15: 680448.9169 | P15: 896373.2934 | Q15: 1183230.416 | R15: 1412820.953 | S15: 1664717.106 | T15: 4071.175967 | U15: 6573.468292 | V15: 8659.403043 | W15: 11430.5827 | X15: 13648.53923 | Y15: 16081.97888 | Z15: =SUMIF(HMS!S$2:S$53,A15,HMS!U$2:U$53)/SUMIF(HMS!S$2:S$53,A15,HMS!R$2:R$53) -> 0.4244115548 | AA15: 2343.321845 | AB15: 3783.612394 | AC15: 4984.252334 | AD15: 6579.311325 | AE15: 7855.941473 | AF15: 9256.601218
A16: 9 | B16: ='Hydro Input'!AB31 -> 296.1 | C16: ='Hydro Input'!AC31 -> 440.9 | D16: ='Hydro Input'!AD31 -> 556.8 | E16: ='Hydro Input'!AE31 -> 706.3 | F16: ='Hydro Input'!AF31 -> 819.6 | G16: ='Hydro Input'!AG31 -> 940.6 | H16: ='Hydro Input'!J31 -> 1930.5 | I16: ='Hydro Input'!K31 -> 3025.6 | J16: ='Hydro Input'!L31 -> 3906.7 | K16: ='Hydro Input'!M31 -> 5045.6 | L16: ='Hydro Input'!N31 -> 5959.6 | M16: ='Hydro Input'!O31 -> 6951.3 | N16: 477337.3959 | O16: 767237.3944 | P16: 1008904.507 | Q16: 1330178.713 | R16: 1587024.145 | S16: 1868566.78 | T16: 4611.311971 | U16: 7411.887298 | V16: 9746.509426 | W16: 12850.1749 | X16: 15331.427 | Y16: 18051.26612 | Z16: =SUMIF(HMS!S$2:S$53,A16,HMS!U$2:U$53)/SUMIF(HMS!S$2:S$53,A16,HMS!R$2:R$53) -> 0.5141299476 | AA16: 2240.498389 | AB16: 3601.21407 | AC16: 4735.537046 | AD16: 6243.515153 | AE16: 7449.081241 | AF16: 8770.569615 | AH16: See Appendix A.2 (PDF p. 174) for details
AH19: USDA Web Soil Survey
AH20: Symbol | AI20: Name | AJ20: Area | AK20: Soil Type | AL20: K
AH21: BCC | AI21: Bluepoint loamy fine sand, 1 to 9 percent slopes | AJ21: 3355.3 | AK21: loamy fine sand | AL21: 0.2 | AW21: Sta | AX21: Elev
A22: Cf calculations for MPM-Woo | AH22: BKD | AI22: Bluepoint-Kokan association, hilly | AJ22: 1353.4 | AK22: loamy fine sand | AL22: 0.2 | AW22: 0 | AX22: 6147.9238
B23: Cf (ppm) | AH23: LtB | AI23: Latene Sandy Loam | AJ23: 596 | AK23: Sandy Loam | AL23: 0.24 | AW23: 15.73944541 | AX23: 6147.6807
A24: Sub-Reach | B24: 2-yr | C24: 5-yr | D24: 10-yr | E24: 25-yr | F24: 50-yr | G24: 100-yr | I24: DA, mi2 | J24: Imp, mi2 | AH24: MaB | AI24: Madurez loamy fine sand, 1 to 5 percent slopes | AJ24: 3733.2 | AK24: loamy fine sand | AL24: 0.2 | AW24: 38.76092912 | AX24: 6147.2212
A25: 0 | B25: =AA7/(B7*43560*62.4/2000+AA7)*10^6 -> 5421.878924 | C25: =AB7/(C7*43560*62.4/2000+AB7)*10^6 -> 5862.510837 | D25: 6100.094605 | E25: 6338.999121 | F25: 6496.374026 | G25: 6644.783842 | I25: =SUMIF(HMS!S$2:S$53,$A25,HMS!R$2:R$53) -> 0.4685903743 | J25: =SUMIF(HMS!S$2:S$53,$A25,HMS!U$2:U$53) -> 0.222994323 | AH25: MWA | AI25: Madurez-Wink association, gently sloping | AJ25: 621.5 | AK25: fine sandy loam | AL25: 0.28 | AW25: 58.11657146 | AX25: 6146.686
A26: 1 | B26: =AA8/(B8*43560*62.4/2000+AA8)*10^6 -> 6541.713858 | C26: =AB8/(C8*43560*62.4/2000+AB8)*10^6 -> 6848.38454 | D26: =AC8/(D8*43560*62.4/2000+AC8)*10^6 -> 7035.989105 | E26: =AD8/(E8*43560*62.4/2000+AD8)*10^6 -> 7254.411127 | F26: =AE8/(F8*43560*62.4/2000+AE8)*10^6 -> 7423.352239 | G26: =AF8/(G8*43560*62.4/2000+AF8)*10^6 -> 7592.899113 | I26: =SUMIF(HMS!S$2:S$53,$A26,HMS!R$2:R$53) -> 2.679235143 | J26: =SUMIF(HMS!S$2:S$53,$A26,HMS!U$2:U$53) -> 1.329171276 | AH26: PAC | AI26: Pajarito loamy fine sand, 1 to 9 percent slopes | AJ26: 1268 | AK26: loamy fine sand | AL26: 0.2 | AW26: 71.00343875 | AX26: 6146.1323
A27: 2 | B27: 6441.339146 | C27: 6818.197844 | D27: 7036.088414 | E27: 7293.779848 | F27: 7493.621075 | G27: 7693.015187 | I27: =SUMIF(HMS!S$2:S$53,$A27,HMS!R$2:R$53) -> 1.196677763 | J27: =SUMIF(HMS!S$2:S$53,$A27,HMS!U$2:U$53) -> 0.6193217771 | AI27: Sum: | AJ27: =SUM(AJ21:AJ26) -> 10927.4 | AK27: Weighted Avg.: | AL27: =SUM(AL21*(AJ21/AJ27),AL22*(AJ22/AJ27),AL23*(AJ23/AJ27),AL24*(AJ24/AJ27),AL25*(AJ25/AJ27),AL26*(AJ26/AJ27)) -> 0.206731702 | AW27: 82.83524087 | AX27: 6145.6812
A28: 3 | B28: 7017.991521 | C28: 7436.447252 | D28: 7670.988606 | E28: 7938.607829 | F28: 8147.341833 | G28: 8352.582254 | I28: =SUMIF(HMS!S$2:S$53,$A28,HMS!R$2:R$53) -> 0.6557125767 | J28: =SUMIF(HMS!S$2:S$53,$A28,HMS!U$2:U$53) -> 0.3059 | AW28: 84.9225412 | AX28: 6145.5806
A29: 4 | B29: 5426.431233 | C29: 5750.537945 | D29: 5932.224465 | E29: 6139.558404 | F29: =AE11/(F11*43560*62.4/2000+AE11)*10^6 -> 6301.28951 | G29: 6460.32876 | I29: =SUMIF(HMS!S$2:S$53,$A29,HMS!R$2:R$53) -> 3.088308446 | J29: =SUMIF(HMS!S$2:S$53,$A29,HMS!U$2:U$53) -> 1.816421513 | AH29: *Assumed normal soils (<15% gravel/rock) exist in the watershed based on Tt (2012) Tribs study | AW29: 89.12367531 | AX29: 6145.4272
A30: 5 | B30: 6264.826105 | C30: 6718.397867 | D30: 6976.87293 | E30: 7249.476632 | F30: 7457.338996 | G30: 7660.683709 | I30: =SUMIF(HMS!S$2:S$53,$A30,HMS!R$2:R$53) -> 0.3502970527 | J30: =SUMIF(HMS!S$2:S$53,$A30,HMS!U$2:U$53) -> 0.1758 | AW30: 98.38752759 | AX30: 6145.1426
A31: 6 | B31: 5213.404992 | C31: 5602.205363 | D31: 5824.225937 | E31: 6055.816269 | F31: 6230.206027 | G31: 6399.218277 | I31: =SUMIF(HMS!S$2:S$53,$A31,HMS!R$2:R$53) -> 0.8353575078 | J31: =SUMIF(HMS!S$2:S$53,$A31,HMS!U$2:U$53) -> 0.4866 | AW31: 132.9530475 | AX31: 6143.9551
A32: 7 | B32: 5320.307739 | C32: 5747.802911 | D32: 5990.168568 | E32: 6234.786716 | F32: 6417.595883 | G32: 6590.762885 | I32: =SUMIF(HMS!S$2:S$53,$A32,HMS!R$2:R$53) -> 0.4172043991 | J32: =SUMIF(HMS!S$2:S$53,$A32,HMS!U$2:U$53) -> 0.2366 | AH32: LS Factor Calculations | AW32: 143.5124149 | AX32: 6143.6245
A33: 8 | B33: 6979.912233 | C33: 7571.631701 | D33: 7901.015727 | E33: 8226.877364 | F33: 8468.411994 | G33: 8697.326632 | I33: =SUMIF(HMS!S$2:S$53,$A33,HMS!R$2:R$53) -> 0.1696466536 | J33: =SUMIF(HMS!S$2:S$53,$A33,HMS!U$2:U$53) -> 0.072 | AL33: Start | AN33: End | AW33: 148.6797648 | AX33: 6143.4858
A34: 9 | B34: 5536.719417 | C34: 5973.984961 | D34: 6218.966973 | E34: 6462.222155 | F34: 6642.990884 | G34: =AF16/(G16*43560*62.4/2000+AF16)*10^6 -> 6814.137449 | I34: =SUMIF(HMS!S$2:S$53,$A34,HMS!R$2:R$53) -> 2.017326387 | J34: =SUMIF(HMS!S$2:S$53,$A34,HMS!U$2:U$53) -> 1.037167909 | AI34: Headwater Watershed | AJ34: λ (feet) | AK34: λ, trunc. (feet) | AL34: Sta (ft) | AM34: Elev. (ft) | AN34: Sta (ft) | AO34: Elev. (ft) | AP34: S (ft/ft) | AQ34: LS | AR34: LS, trun | AT34: λmax (feet) | AU34: Smax (ft/ft) | AW34: 149.9748778 | AX34: 6143.4351
AH35: 1 | AI35: QR7 | AJ35: =AN35-AL35 -> 162.8630763 | AK35: =IF(ISNA(MATCH(AP35,AU$35:AU$38,1)),IF(AJ35<=AT$35,AJ35,AT$35),IF(AJ35<=INDEX(AT$35:AT$38,MATCH(AP35,AU$35:AU$38,1)),AJ35,INDEX(AT$35:AT$38,MATCH(AP35,AU$35:AU$38,1)))) -> 162.8630763 | AL35: 101.1461728 | AM35: 6183.4414 | AN35: 264.0092491 | AO35: 6167.1138 | AP35: =((AM35-AO35)/(AN35-AL35))*100 -> 10.02535404 | AQ35: =(0.065+0.0454*$AP35+0.0065*$AP35^2)*(AJ35/72.6)^IF($AP35<3.5,0.3,IF(AND($AP35>=3.5,$AP35<4.5),0.4,0.5)) -> 1.757551536 | AR35: =(0.065+0.0454*$AP35+0.0065*$AP35^2)*(AK35/72.6)^IF($AP35<3.5,0.3,IF(AND($AP35>=3.5,$AP35<4.5),0.4,0.5)) -> 1.757551536 | AT35: 200 | AU35: 10 | AW35: 162.5095651 | AX35: 6143.0327
AH36: 2 | AI36: QR7 | AJ36: 252.6335493 | AK36: 200 | AL36: 141.1486627 | AM36: 6157.8154 | AN36: 393.7822121 | AO36: 6145.7988 | AP36: 4.756533735 | AQ36: =(0.065+0.0454*$AP36+0.0065*$AP36^2)*(AJ36/72.6)^IF($AP36<3.5,0.3,IF(AND($AP36>=3.5,$AP36<4.5),0.4,0.5)) -> 0.7984131568 | AR36: =(0.065+0.0454*AP36+0.0065*AP36^2)*(AK36/72.6)^IF(AP36<3.5,0.3,IF(AND(AP36>=3.5,AP36<4.5),0.4,0.5)) -> 0.7103905424 | AT36: 150 | AU36: 15 | AW36: 173.2908875 | AX36: 6142.7241
AH37: 3 | AI37: QR4 | AJ37: 547.7428184 | AK37: 200 | AL37: 35.67124028 | AM37: 6157.2207 | AN37: 583.4140587 | AO37: 6132.7412 | AP37: 4.469159463 | AQ37: =(0.065+0.0454*$AP37+0.0065*$AP37^2)*(AJ37/72.6)^IF($AP37<3.5,0.3,IF(AND($AP37>=3.5,$AP37<4.5),0.4,0.5)) -> 0.8925672338 | AR37: =(0.065+0.0454*AP37+0.0065*AP37^2)*(AK37/72.6)^IF(AP37<3.5,0.3,IF(AND(AP37>=3.5,AP37<4.5),0.4,0.5)) -> 0.5965162256 | AT37: 100 | AU37: 20 | AW37: 180.9272879 | AX37: 6142.353
AH38: 4 | AI38: QR4 | AJ38: 527.897015 | AK38: 200 | AL38: 129.0530576 | AM38: 6147.3232 | AN38: 656.9500726 | AO38: 6122.9644 | AP38: 4.6143091 | AQ38: =(0.065+0.0454*$AP38+0.0065*$AP38^2)*(AJ38/72.6)^IF($AP38<3.5,0.3,IF(AND($AP38>=3.5,$AP38<4.5),0.4,0.5)) -> 1.11336389 | AR38: =(0.065+0.0454*AP38+0.0065*AP38^2)*(AK38/72.6)^IF(AP38<3.5,0.3,IF(AND(AP38>=3.5,AP38<4.5),0.4,0.5)) -> 0.6852949421 | AT38: 50 | AU38: 100 | AW38: 191.8846673 | AX38: 6142.0405
AH39: 5 | AI39: QR3 | AJ39: 0 | AK39: 0 | AT39: Cite tribs report | AW39: 201.562228 | AX39: 6141.6895
AH40: 6 | AI40: QR3 | AJ40: 216.4853814 | AK40: 200 | AL40: 55.60859016 | AM40: 6131.6958 | AN40: 272.0939715 | AO40: 6123.2617 | AP40: 3.895921261 | AQ40: =(0.065+0.0454*$AP40+0.0065*$AP40^2)*(AJ40/72.6)^IF($AP40<3.5,0.3,IF(AND($AP40>=3.5,$AP40<4.5),0.4,0.5)) -> 0.5271766505 | AR40: =(0.065+0.0454*AP40+0.0065*AP40^2)*(AK40/72.6)^IF(AP40<3.5,0.3,IF(AND(AP40>=3.5,AP40<4.5),0.4,0.5)) -> 0.5107363102 | AW40: 209.9106403 | AX40: 6141.2905
AH41: 7 | AI41: QR8 | AJ41: =AN41-AL41 -> 647.4934618 | AK41: =IF(ISNA(MATCH(AP41,AU$35:AU$38,1)),IF(AJ41<=AT$35,AJ41,AT$35),IF(AJ41<=INDEX(AT$35:AT$38,MATCH(AP41,AU$35:AU$38,1)),AJ41,INDEX(AT$35:AT$38,MATCH(AP41,AU$35:AU$38,1)))) -> 200 | AL41: 267.5543925 | AM41: 6141.9517 | AN41: 915.0478543 | AO41: 6118.5146 | AP41: =((AM41-AO41)/(AN41-AL41))*100 -> 3.619665894 | AQ41: =(0.065+0.0454*$AP41+0.0065*$AP41^2)*(AJ41/72.6)^IF($AP41<3.5,0.3,IF(AND($AP41>=3.5,$AP41<4.5),0.4,0.5)) -> 0.7546302865 | AR41: =(0.065+0.0454*AP41+0.0065*AP41^2)*(AK41/72.6)^IF(AP41<3.5,0.3,IF(AND(AP41>=3.5,AP41<4.5),0.4,0.5)) -> 0.4716850099 | AW41: 229.9188079 | AX41: 6140.1343
AH42: 8 | AI42: QR8 | AJ42: =AN42-AL42 -> 705.9218172 | AK42: =IF(ISNA(MATCH(AP42,AU$35:AU$38,1)),IF(AJ42<=AT$35,AJ42,AT$35),IF(AJ42<=INDEX(AT$35:AT$38,MATCH(AP42,AU$35:AU$38,1)),AJ42,INDEX(AT$35:AT$38,MATCH(AP42,AU$35:AU$38,1)))) -> 200 | AL42: 0 | AM42: 6161.6104 | AN42: 705.9218172 | AO42: 6129.3086 | AP42: =((AM42-AO42)/(AN42-AL42))*100 -> 4.575832509 | AQ42: =(0.065+0.0454*$AP42+0.0065*$AP42^2)*(AJ42/72.6)^IF($AP42<3.5,0.3,IF(AND($AP42>=3.5,$AP42<4.5),0.4,0.5)) -> 1.274866865 | AR42: =(0.065+0.0454*AP42+0.0065*AP42^2)*(AK42/72.6)^IF(AP42<3.5,0.3,IF(AND(AP42>=3.5,AP42<4.5),0.4,0.5)) -> 0.6785807402 | AW42: 232.3441493 | AX42: 6139.9893
AW43: 233.0239466 | AX43: 6139.9492
AP44: Avg. of highlighted: | AQ44: =AVERAGE(AQ35,AQ38,AQ40,AQ42) -> 1.168239735 | AW44: 235.0293487 | AX44: 6139.8003
AW45: 249.4796583 | AX45: 6138.6855
AW46: 254.8254376 | AX46: 6138.5454
AW47: 271.8543313 | AX47: 6138.3135
AW48: 273.7845183 | AX48: 6138.2974
AW49: 286.9777675 | AX49: 6137.502
AW50: 298.8467934 | AX50: 6136.9297
AW51: 314.637368 | AX51: 6136.1592
AW52: 325.3718685 | AX52: 6135.4194
AW53: 331.7582168 | AX53: 6135.3882
AW54: 337.484475 | AX54: 6135.2402
AW55: 347.6339005 | AX55: 6134.6265
AW56: 366.6417486 | AX56: 6133.6265
AW57: 379.9986149 | AX57: 6132.9902
AW58: 393.0094044 | AX58: 6132.4185
AW59: 397.5941588 | AX59: 6132.4517
AW60: 405.8089195 | AX60: 6132.3574
AW61: 438.1545401 | AX61: 6130.9624
AW62: 438.7840954 | AX62: 6130.9365
AW63: 439.1055704 | AX63: 6130.9263
AW64: 455.1760547 | AX64: 6130.7388
AW65: 457.0939718 | AX65: 6130.8188
AW66: 463.8494379 | AX66: 6130.6372
AW67: 481.5319482 | AX67: 6130.1841
AW68: 504.5431898 | AX68: 6129.6211
AW69: 511.0863292 | AX69: 6129.5898
AW70: 516.6010701 | AX70: 6129.8398
AW71: 547.634089 | AX71: 6130.3818
AW72: 553.2208229 | AX72: 6130.4312
AW73: 556.2231426 | AX73: 6130.4497
AW74: 564.2361111 | AX74: 6130.5166

Sheet DCM1 MPM-Woo
A1: From SSCAFCA Manual | M1: MPM-Woo Calculations | AC1: Bed Material Sediment Rating Curves
M2: D50 = 0.64 mm (avg. of S1 & S2, collected during field recon)
M3: a | N3: 8.3e-05 | O3: b | P3: 4.5 | Q3: c | R3: 0.082 | S3: d | T3: -2.657 | W3: Cs,max: | X3: =510000-65000*0.64 -> 468400
M4: Sub-Reach | N4: Recurrence | O4: Flow | P4: Top W | Q4: q | R4: V (avg.) | S4: Y | T4: Cf | U4: So | V4: Qs,bm | W4: Qs,bm | X4: Cs | Y4: Qs,f | Z4: Qs,f | AA4: Qs,tot | AB4: Qs,bmMEI | AC4: Factor
N5: Interval | O5: (cfs) | P5: (ft) | Q5: (cfs/ft) | R5: (fps) | S5: (ft) | T5: (ppm) | U5: (ft/ft) | V5: (cfs) | W5: (tpd) | X5: (ppm) | Y5: (cfs) | Z5: (tpd) | AA5: (tpd) | AB5: cfs
M6: 0 | O6: 0.001 | W6: 0.001 | Z6: 0.001 | AA6: =SUM(W6,Z6) -> 0.002 | AB6: =P6*0.00075*R6^3.62*S6^0.37*(1-T6/10^6)^-2.43 -> 0
M7: 0 | N7: 2 YR | O7: =VLOOKUP(M7,'Hydro Input'!$A$38:$AA$47,VLOOKUP(N7,$A$25:$D$30,$B$21,FALSE),FALSE) -> 330.5808295 | P7: ='Reach Avg Hyd'!F6 -> 242.6891667 | Q7: =O7/P7 -> 1.362157339 | R7: ='Reach Avg Hyd'!D6 -> 3.478333333 | S7: ='Reach Avg Hyd'!C6 -> 0.5483333333 | T7: =VLOOKUP(M7,MUSLE!A$25:G$34,VLOOKUP(N7,A$25:E$30,5,FALSE),FALSE) -> 5421.878924 | U7: ='Reach Avg Hyd'!I6 -> 0.01409085867 | V7: =P7*N$3*(R7^P$3)*(S7^R$3)*(1-T7/10^6)^T$3 -> 5.310971577 | W7: =V7*3600*24*(62.4*2.65/2000) -> 37939.20163 | X7: =2650000*V7/(O7+2.65*V7) -> 40835.26597 | Y7: =(O7/2.65)*(T7/(10^6-T7)) -> 0.6800529126 | Z7: =Y7*3600*24*(62.4*2.65/2000) -> 4857.993344 | AA7: =SUM(W7,Z7) -> 42797.19497 | AB7: =P7*0.00075*R7^3.62*S7^0.37*(1-T7/10^6)^-2.43 -> 13.4604439 | AC7: =IF(V7<0.001,"-",AB7/V7) -> 2.534459789
M8: =IF(N8="2 YR",M7+1,M7) -> 0 | N8: 5 YR | O8: =VLOOKUP(M8,'Hydro Input'!$A$38:$AA$47,VLOOKUP(N8,$A$25:$D$30,$B$21,FALSE),FALSE) -> 511.5452509 | P8: ='Reach Avg Hyd'!F7 -> 300.2441667 | Q8: =O8/P8 -> 1.703764162 | R8: ='Reach Avg Hyd'!D7 -> 3.900833333 | S8: ='Reach Avg Hyd'!C7 -> 0.6141666667 | T8: =VLOOKUP(M8,MUSLE!A$25:G$34,VLOOKUP(N8,A$25:E$30,5,FALSE),FALSE) -> 5862.510837 | U8: ='Reach Avg Hyd'!I7 -> 0.01409085867 | V8: =P8*N$3*(R8^P$3)*(S8^R$3)*(1-T8/10^6)^T$3 -> 11.12205911 | W8: =V8*3600*24*(62.4*2.65/2000) -> 79451.00761 | X8: =2650000*V8/(O8+2.65*V8) -> 54477.70333 | Y8: =(O8/2.65)*(T8/(10^6-T8)) -> 1.138348895 | Z8: =Y8*3600*24*(62.4*2.65/2000) -> 8131.854524 | AA8: 87582.86214 | AB8: 26.32671333 | AC8: =IF(V8<0.001,"-",AB8/V8) -> 2.367071876
M9: =IF(N9="2 YR",M8+1,M8) -> 0 | N9: 10 YR | O9: =VLOOKUP(M9,'Hydro Input'!$A$38:$AA$47,VLOOKUP(N9,$A$25:$D$30,$B$21,FALSE),FALSE) -> 660.0909662 | P9: ='Reach Avg Hyd'!F8 -> 336.2575 | Q9: 1.963052025 | R9: ='Reach Avg Hyd'!D8 -> 4.148333333 | S9: ='Reach Avg Hyd'!C8 -> 0.6783333333 | T9: =VLOOKUP(M9,MUSLE!A$25:G$34,VLOOKUP(N9,A$25:E$30,5,FALSE),FALSE) -> 6100.094605 | U9: ='Reach Avg Hyd'!I8 -> 0.01409085867 | V9: 16.57373536 | W9: 118395.3404 | X9: =2650000*V9/(O9+2.65*V9) -> 62385.92287 | Y9: 1.528804092 | Z9: 10921.09153 | AA9: 129316.4319 | AB9: 38.240818 | AC9: 2.307314384
M10: 0 | N10: 25 YR | O10: =VLOOKUP(M10,'Hydro Input'!$A$38:$AA$47,VLOOKUP(N10,$A$25:$D$30,$B$21,FALSE),FALSE) -> 859.7350545 | P10: ='Reach Avg Hyd'!F9 -> 379.1216667 | Q10: 2.267702245 | R10: ='Reach Avg Hyd'!D9 -> 4.3675 | S10: ='Reach Avg Hyd'!C9 -> 0.765 | T10: =VLOOKUP(M10,MUSLE!A$25:G$34,VLOOKUP(N10,A$25:E$30,5,FALSE),FALSE) -> 6338.999121 | U10: ='Reach Avg Hyd'!I9 -> 0.01409085867 | V10: 23.80690996 | W10: 170065.8993 | X10: 68364.4495 | Y10: 2.06967049 | Z10: 14784.79877 | AA10: 184850.698 | AB10: 54.34365086 | AC10: 2.282683933
M11: 0 | N11: 50 YR | O11: =VLOOKUP(M11,'Hydro Input'!$A$38:$AA$47,VLOOKUP(N11,$A$25:$D$30,$B$21,FALSE),FALSE) -> 1020.700432 | P11: ='Reach Avg Hyd'!F10 -> 395.7058333 | Q11: 2.579442469 | R11: ='Reach Avg Hyd'!D10 -> 4.575833333 | S11: ='Reach Avg Hyd'!C10 -> 0.8358333333 | T11: =VLOOKUP(M11,MUSLE!A$25:G$34,VLOOKUP(N11,A$25:E$30,5,FALSE),FALSE) -> 6496.374026 | U11: ='Reach Avg Hyd'!I10 -> 0.01409085867 | V11: 30.881686 | W11: 220604.9298 | X11: 74225.60453 | Y11: 2.518569788 | Z11: 17991.53424 | AA11: 238596.464 | AB11: 69.40621102 | AC11: 2.247487751
M12: 0 | N12: 100 YR | O12: =VLOOKUP(M12,'Hydro Input'!$A$38:$AA$47,VLOOKUP(N12,$A$25:$D$30,$B$21,FALSE),FALSE) -> 1198.053557 | P12: ='Reach Avg Hyd'!F11 -> 411.89 | Q12: 2.908673571 | R12: ='Reach Avg Hyd'!D11 -> 4.805 | S12: ='Reach Avg Hyd'!C11 -> 0.9033333333 | T12: =VLOOKUP(M12,MUSLE!A$25:G$34,VLOOKUP(N12,A$25:E$30,5,FALSE),FALSE) -> 6644.783842 | U12: ='Reach Avg Hyd'!I11 -> 0.01409085867 | V12: 40.32294871 | W12: 288049.0809 | X12: 81887.53675 | Y12: 3.024173058 | Z12: 21603.3375 | AA12: 309652.4184 | AB12: 88.77123109 | AC12: 2.201506436
M13: 1 | O13: 0.001 | W13: 0.001 | Z13: 0.001 | AA13: 0.002 | AB13: 0 | AC13: -
M14: =IF(N14="2 YR",M12+1,M12) -> 1 | N14: 2 YR | O14: =VLOOKUP(M14,'Hydro Input'!$A$38:$AA$47,VLOOKUP(N14,$A$25:$D$30,$B$21,FALSE),FALSE) -> 791.3 | P14: ='Reach Avg Hyd'!F12 -> 108.9342857 | Q14: 7.26401238 | R14: ='Reach Avg Hyd'!D12 -> 5.645714286 | S14: ='Reach Avg Hyd'!C12 -> 1.568571429 | T14: =VLOOKUP(M14,MUSLE!A$25:G$34,VLOOKUP(N14,A$25:E$30,5,FALSE),FALSE) -> 6541.713858 | U14: ='Reach Avg Hyd'!I12 -> 0.01707202247 | V14: 23.04530618 | W14: 164625.3431 | X14: 71647.35618 | Y14: =(O14/2.65)*(T14/(10^6-T14)) -> 1.966243043 | Z14: =Y14*3600*24*(62.4*2.65/2000) -> 14045.95942 | AA14: 178671.3025 | AB14: 51.60731104 | AC14: 2.239384916
M15: 1 | N15: 5 YR | O15: =VLOOKUP(M15,'Hydro Input'!$A$38:$AA$47,VLOOKUP(N15,$A$25:$D$30,$B$21,FALSE),FALSE) -> 1188.6 | P15: ='Reach Avg Hyd'!F13 -> 120.6971429 | Q15: 9.847789035 | R15: ='Reach Avg Hyd'!D13 -> 6.357142857 | S15: ='Reach Avg Hyd'!C13 -> 1.89 | T15: =VLOOKUP(M15,MUSLE!A$25:G$34,VLOOKUP(N15,A$25:E$30,5,FALSE),FALSE) -> 6848.38454 | U15: ='Reach Avg Hyd'!I13 -> 0.01707202247 | V15: 44.26428913 | W15: 316204.2511 | X15: 89823.36573 | Y15: 3.092875489 | Z15: 22094.11689 | AA15: 338298.368 | AB15: 94.21274567 | AC15: 2.128414293
M16: 1 | N16: 10 YR | O16: =VLOOKUP(M16,'Hydro Input'!$A$38:$AA$47,VLOOKUP(N16,$A$25:$D$30,$B$21,FALSE),FALSE) -> 1511.6 | P16: ='Reach Avg Hyd'!F14 -> 128.87 | Q16: 11.72965003 | R16: ='Reach Avg Hyd'!D14 -> 6.828571429 | S16: ='Reach Avg Hyd'!C14 -> 2.101428571 | T16: =VLOOKUP(M16,MUSLE!A$25:G$34,VLOOKUP(N16,A$25:E$30,5,FALSE),FALSE) -> 7035.989105 | U16: ='Reach Avg Hyd'!I14 -> 0.01707202247 | V16: 65.81246299 | W16: 470134.7516 | X16: 103441.7045 | Y16: 4.041872963 | Z16: 28873.32969 | AA16: 499008.0813 | AB16: 135.6029576 | AC16: 2.06044496
M17: 1 | N17: 25 YR | O17: =VLOOKUP(M17,'Hydro Input'!$A$38:$AA$47,VLOOKUP(N17,$A$25:$D$30,$B$21,FALSE),FALSE) -> 1937.7 | P17: ='Reach Avg Hyd'!F15 -> 140.4 | Q17: 13.80128205 | R17: ='Reach Avg Hyd'!D15 -> 7.345714286 | S17: ='Reach Avg Hyd'!C15 -> 2.321428571 | T17: =VLOOKUP(M17,MUSLE!A$25:G$34,VLOOKUP(N17,A$25:E$30,5,FALSE),FALSE) -> 7254.411127 | U17: ='Reach Avg Hyd'!I15 -> 0.01707202247 | V17: 100.4596837 | W17: 717638.9745 | X17: 120793.1249 | Y17: 5.343242242 | Z17: 38169.7288 | AA17: 755808.7033 | AB17: 199.7490769 | AC17: 1.988350645
M18: 1 | N18: 50 YR | O18: =VLOOKUP(M18,'Hydro Input'!$A$38:$AA$47,VLOOKUP(N18,$A$25:$D$30,$B$21,FALSE),FALSE) -> 2278.5 | P18: ='Reach Avg Hyd'!F16 -> 147.2871429 | Q18: 15.46978206 | R18: ='Reach Avg Hyd'!D16 -> 7.712857143 | S18: ='Reach Avg Hyd'!C16 -> 2.467142857 | T18: =VLOOKUP(M18,MUSLE!A$25:G$34,VLOOKUP(N18,A$25:E$30,5,FALSE),FALSE) -> 7423.352239 | U18: ='Reach Avg Hyd'!I16 -> 0.01707202247 | V18: 131.968283 | W18: 942722.2916 | X18: 133062.1062 | Y18: 6.430417548 | Z18: 45936.02213 | AA18: 988658.3138 | AB18: 255.8118638 | AC18: 1.938434434
M19: 1 | N19: 100 YR | O19: =VLOOKUP(M19,'Hydro Input'!$A$38:$AA$47,VLOOKUP(N19,$A$25:$D$30,$B$21,FALSE),FALSE) -> 2651.4 | P19: ='Reach Avg Hyd'!F17 -> 155.6557143 | Q19: 17.03374664 | R19: ='Reach Avg Hyd'!D17 -> 8.065714286 | S19: ='Reach Avg Hyd'!C17 -> 2.597142857 | T19: =VLOOKUP(M19,MUSLE!A$25:G$34,VLOOKUP(N19,A$25:E$30,5,FALSE),FALSE) -> 7592.899113 | U19: ='Reach Avg Hyd'!I17 -> 0.01707202247 | V19: 171.3640058 | W19: 1224147.687 | X19: 146228.4586 | Y19: 7.655034359 | Z19: 54684.13601 | AA19: 1278831.823 | AB19: 324.101084 | AC19: 1.891301982
M20: 2 | O20: 0.001 | W20: 0.001 | Z20: 0.001 | AA20: 0.002 | AB20: 0 | AC20: -
A21: DCM #1 | B21: =IF(A21="EMC (modified)",2,IF(A21="DCM #1",3,4)) -> 3 | M21: =IF(N21="2 YR",M19+1,M19) -> 2 | N21: 2 YR | O21: =VLOOKUP(M21,'Hydro Input'!$A$38:$AA$47,VLOOKUP(N21,$A$25:$D$30,$B$21,FALSE),FALSE) -> 1227.8 | P21: ='Reach Avg Hyd'!F18 -> 134.4135714 | Q21: 9.134494285 | R21: ='Reach Avg Hyd'!D18 -> 6.92 | S21: ='Reach Avg Hyd'!C18 -> 1.571428571 | T21: =VLOOKUP(M21,MUSLE!A$25:G$34,VLOOKUP(N21,A$25:E$30,5,FALSE),FALSE) -> 6441.339146 | U21: ='Reach Avg Hyd'!I18 -> 0.0191341318 | V21: 71.04796347 | W21: 507534.8215 | X21: 132956.8162 | Y21: =(O21/2.65)*(T21/(10^6-T21)) -> 3.003754315 | Z21: =Y21*3600*24*(62.4*2.65/2000) -> 21457.47514 | AA21: 528992.2967 | AB21: 133.0874877 | AC21: 1.873206229
B22: Lookup Column | M22: 2 | N22: 5 YR | O22: =VLOOKUP(M22,'Hydro Input'!$A$38:$AA$47,VLOOKUP(N22,$A$25:$D$30,$B$21,FALSE),FALSE) -> 1873.1 | P22: ='Reach Avg Hyd'!F19 -> 160.2192857 | Q22: 11.69085227 | R22: ='Reach Avg Hyd'!D19 -> 7.848571429 | S22: ='Reach Avg Hyd'!C19 -> 1.846428571 | T22: =VLOOKUP(M22,MUSLE!A$25:G$34,VLOOKUP(N22,A$25:E$30,5,FALSE),FALSE) -> 6818.197844 | U22: ='Reach Avg Hyd'!I19 -> 0.0191341318 | V22: 151.3855836 | W22: 1081430.789 | X22: 176395.7136 | Y22: 4.852392642 | Z22: 34663.31916 | AA22: 1116094.108 | AB22: 265.8772876 | AC22: 1.756291988
A23: Recurrence | B23: For Flow (by Model) | E23: For Cf | M23: 2 | N23: 10 YR | O23: =VLOOKUP(M23,'Hydro Input'!$A$38:$AA$47,VLOOKUP(N23,$A$25:$D$30,$B$21,FALSE),FALSE) -> 2394.7 | P23: ='Reach Avg Hyd'!F20 -> 177.4242857 | Q23: 13.49702489 | R23: ='Reach Avg Hyd'!D20 -> 8.413571429 | S23: ='Reach Avg Hyd'!C20 -> 2.04 | T23: =VLOOKUP(M23,MUSLE!A$25:G$34,VLOOKUP(N23,A$25:E$30,5,FALSE),FALSE) -> 7036.088414 | U23: ='Reach Avg Hyd'!I20 -> 0.0191341318 | V23: 231.227963 | W23: 1651788.978 | X23: 203745.1217 | Y23: 6.403288415 | Z23: 45742.22376 | AA23: 1697531.201 | AB23: 393.113691 | AC23: 1.700113109
A24: Interval | B24: EMC (modified) | C24: DCM #1 | D24: DCM #2 | M24: 2 | N24: 25 YR | O24: =VLOOKUP(M24,'Hydro Input'!$A$38:$AA$47,VLOOKUP(N24,$A$25:$D$30,$B$21,FALSE),FALSE) -> 3094.3 | P24: ='Reach Avg Hyd'!F21 -> 194.8785714 | Q24: 15.87809259 | R24: ='Reach Avg Hyd'!D21 -> 8.929285714 | S24: ='Reach Avg Hyd'!C21 -> 2.277857143 | T24: =VLOOKUP(M24,MUSLE!A$25:G$34,VLOOKUP(N24,A$25:E$30,5,FALSE),FALSE) -> 7293.779848 | U24: ='Reach Avg Hyd'!I21 -> 0.0191341318 | V24: 335.1829158 | W24: 2394396.589 | X24: 223032.5127 | Y24: 8.579232765 | Z24: 61286.19538 | AA24: 2455682.784 | AB24: 558.2031314 | AC24: 1.665368684
A25: 2 YR | B25: 4 | C25: =B30+1 -> 10 | D25: =C30+1 -> 16 | E25: 2 | M25: 2 | N25: 50 YR | O25: =VLOOKUP(M25,'Hydro Input'!$A$38:$AA$47,VLOOKUP(N25,$A$25:$D$30,$B$21,FALSE),FALSE) -> 3662.1 | P25: ='Reach Avg Hyd'!F22 -> 220.2985714 | Q25: 16.62334883 | R25: ='Reach Avg Hyd'!D22 -> 9.218571429 | S25: ='Reach Avg Hyd'!C22 -> 2.3 | T25: =VLOOKUP(M25,MUSLE!A$25:G$34,VLOOKUP(N25,A$25:E$30,5,FALSE),FALSE) -> 7493.621075 | U25: ='Reach Avg Hyd'!I22 -> 0.0191341318 | V25: 437.942782 | W25: 3128467.036 | X25: 240645.4468 | Y25: 10.43380576 | Z25: 74534.43398 | AA25: 3203001.47 | AB25: 711.103197 | AC25: 1.623735397 | AG25: MEI-Q | AH25: MEI-
A26: 5 YR | B26: =B25+1 -> 5 | C26: =C25+1 -> 11 | D26: =D25+1 -> 17 | E26: 3 | M26: 2 | N26: 100 YR | O26: =VLOOKUP(M26,'Hydro Input'!$A$38:$AA$47,VLOOKUP(N26,$A$25:$D$30,$B$21,FALSE),FALSE) -> 4287.5 | P26: ='Reach Avg Hyd'!F23 -> 238.1142857 | Q26: 18.00605952 | R26: ='Reach Avg Hyd'!D23 -> 9.541428571 | S26: ='Reach Avg Hyd'!C23 -> 2.420714286 | T26: =VLOOKUP(M26,MUSLE!A$25:G$34,VLOOKUP(N26,A$25:E$30,5,FALSE),FALSE) -> 7693.015187 | U26: ='Reach Avg Hyd'!I23 -> 0.0191341318 | V26: 555.2884995 | W26: 3966732.271 | X26: 255514.9874 | Y26: 12.5432131 | Z26: 89603.095 | AA26: 4056335.366 | AB26: 887.6800212 | AC26: 1.598592483 | AG26: 40 | AH26: 1
A27: 10 YR | B27: =B26+1 -> 6 | C27: =C26+1 -> 12 | D27: 18 | E27: 4 | M27: 3 | O27: 0.001 | W27: 0.001 | Z27: 0.001 | AA27: 0.002 | AB27: 0 | AC27: -
A28: 25 YR | B28: 7 | C28: 13 | D28: 19 | E28: 5 | M28: =IF(N28="2 YR",M26+1,M26) -> 3 | N28: 2 YR | O28: =VLOOKUP(M28,'Hydro Input'!$A$38:$AA$47,VLOOKUP(N28,$A$25:$D$30,$B$21,FALSE),FALSE) -> 1272.7 | P28: ='Reach Avg Hyd'!F24 -> 198.7808333 | Q28: 6.402528748 | R28: ='Reach Avg Hyd'!D24 -> 7.340833333 | S28: ='Reach Avg Hyd'!C24 -> 1.59 | T28: =VLOOKUP(M28,MUSLE!A$25:G$34,VLOOKUP(N28,A$25:E$30,5,FALSE),FALSE) -> 7017.991521 | U28: ='Reach Avg Hyd'!I24 -> 0.0168744486 | V28: =P28*N$3*(R28^P$3)*(S28^R$3)*(1-T28/10^6)^T$3 -> 137.387764 | W28: 981436.6361 | X28: 222435.5833 | Y28: =(O28/2.65)*(T28/(10^6-T28)) -> 3.394310985 | Z28: =Y28*3600*24*(62.4*2.65/2000) -> 24247.43703 | AA28: 1005684.073 | AB28: 245.1226093 | AC28: 1.784166233
A29: 50 YR | B29: 8 | C29: 14 | D29: 20 | E29: 6 | M29: 3 | N29: 5 YR | O29: =VLOOKUP(M29,'Hydro Input'!$A$38:$AA$47,VLOOKUP(N29,$A$25:$D$30,$B$21,FALSE),FALSE) -> 1939.5 | P29: ='Reach Avg Hyd'!F25 -> 229.6425 | Q29: 8.445736308 | R29: ='Reach Avg Hyd'!D25 -> 8.153333333 | S29: ='Reach Avg Hyd'!C25 -> 1.854166667 | T29: =VLOOKUP(M29,MUSLE!A$25:G$34,VLOOKUP(N29,A$25:E$30,5,FALSE),FALSE) -> 7436.447252 | U29: ='Reach Avg Hyd'!I25 -> 0.0168744486 | V29: 258.0715216 | W29: 1843547.334 | X29: 260689.2815 | Y29: 5.48341465 | Z29: 39171.05769 | AA29: 1882718.392 | AB29: 438.7723624 | AC29: 1.700196751
A30: 100 YR | B30: 9 | C30: 15 | D30: 21 | E30: 7 | M30: 3 | N30: 10 YR | O30: =VLOOKUP(M30,'Hydro Input'!$A$38:$AA$47,VLOOKUP(N30,$A$25:$D$30,$B$21,FALSE),FALSE) -> 2472.6 | P30: ='Reach Avg Hyd'!F26 -> 283.025 | Q30: 8.736330713 | R30: ='Reach Avg Hyd'!D26 -> 8.705 | S30: ='Reach Avg Hyd'!C26 -> 2.040833333 | T30: =VLOOKUP(M30,MUSLE!A$25:G$34,VLOOKUP(N30,A$25:E$30,5,FALSE),FALSE) -> 7670.988606 | U30: ='Reach Avg Hyd'!I26 -> 0.0168744486 | V30: 430.6777495 | W30: 3076568.899 | X30: 315807.656 | Y30: 7.212795851 | Z30: 51524.98223 | AA30: 3128093.881 | AB30: 710.5661197 | AC30: 1.649878872
M31: 3 | N31: 25 YR | O31: =VLOOKUP(M31,'Hydro Input'!$A$38:$AA$47,VLOOKUP(N31,$A$25:$D$30,$B$21,FALSE),FALSE) -> 3181.1 | P31: ='Reach Avg Hyd'!F27 -> 316.65 | Q31: 10.04610769 | R31: ='Reach Avg Hyd'!D27 -> 9.083333333 | S31: ='Reach Avg Hyd'!C27 -> 2.288333333 | T31: =VLOOKUP(M31,MUSLE!A$25:G$34,VLOOKUP(N31,A$25:E$30,5,FALSE),FALSE) -> 7938.607829 | U31: ='Reach Avg Hyd'!I27 -> 0.0168744486 | V31: 589.4390118 | W31: 4210688.232 | X31: 329322.3787 | Y31: 9.605881996 | Z31: 68620.11754 | AA31: 4279308.349 | AB31: 968.1040358 | AC31: 1.642415952
M32: 3 | N32: 50 YR | O32: =VLOOKUP(M32,'Hydro Input'!$A$38:$AA$47,VLOOKUP(N32,$A$25:$D$30,$B$21,FALSE),FALSE) -> 3753.8 | P32: ='Reach Avg Hyd'!F28 -> 351.0783333 | Q32: 10.6922007 | R32: ='Reach Avg Hyd'!D28 -> 9.395833333 | S32: ='Reach Avg Hyd'!C28 -> 2.416666667 | T32: =VLOOKUP(M32,MUSLE!A$25:G$34,VLOOKUP(N32,A$25:E$30,5,FALSE),FALSE) -> 8147.341833 | U32: ='Reach Avg Hyd'!I28 -> 0.0168744486 | V32: 764.811934 | W32: 5463473.821 | X32: 350615.6084 | Y32: 11.63574065 | Z32: 83120.51838 | AA32: 5546594.339 | AB32: 1238.553267 | AC32: 1.619421994
M33: 3 | N33: 100 YR | O33: =VLOOKUP(M33,'Hydro Input'!$A$38:$AA$47,VLOOKUP(N33,$A$25:$D$30,$B$21,FALSE),FALSE) -> 4381.4 | P33: ='Reach Avg Hyd'!F29 -> 369.9716667 | Q33: 11.84252848 | R33: ='Reach Avg Hyd'!D29 -> 9.770833333 | S33: ='Reach Avg Hyd'!C29 -> 2.603333333 | T33: =VLOOKUP(M33,MUSLE!A$25:G$34,VLOOKUP(N33,A$25:E$30,5,FALSE),FALSE) -> 8352.582254 | U33: ='Reach Avg Hyd'!I29 -> 0.0168744486 | V33: 967.5889883 | W33: 6912022.253 | X33: 369175.2682 | Y33: 13.92613195 | Z33: 99482.04774 | AA33: 7011504.301 | AB33: 1546.606944 | AC33: 1.59841313
M34: 4 | O34: 0.001 | W34: 0.001 | Z34: 0.001 | AA34: 0.002 | AB34: 0 | AC34: -
M35: =IF(N35="2 YR",M33+1,M33) -> 4 | N35: 2 YR | O35: =VLOOKUP(M35,'Hydro Input'!$A$38:$AA$47,VLOOKUP(N35,$A$25:$D$30,$B$21,FALSE),FALSE) -> 1272.7 | P35: ='Reach Avg Hyd'!F30 -> 71.95375 | Q35: 17.68775081 | R35: ='Reach Avg Hyd'!D30 -> 8.4275 | S35: ='Reach Avg Hyd'!C30 -> 2.38625 | T35: =VLOOKUP(M35,MUSLE!A$25:G$34,VLOOKUP(N35,A$25:E$30,5,FALSE),FALSE) -> 5426.431233 | U35: ='Reach Avg Hyd'!I30 -> 0.01811799381 | V35: 95.28562319 | W35: 680677.8041 | X35: 165555.8346 | Y35: =(O35/2.65)*(T35/(10^6-T35)) -> 2.620339481 | Z35: =Y35*3600*24*(62.4*2.65/2000) -> 18718.53134 | AA35: 699396.3355 | AB35: 169.2939392 | AC35: 1.776699711
M36: 4 | N36: 5 YR | O36: =VLOOKUP(M36,'Hydro Input'!$A$38:$AA$47,VLOOKUP(N36,$A$25:$D$30,$B$21,FALSE),FALSE) -> 1939.5 | P36: ='Reach Avg Hyd'!F31 -> 81.9725 | Q36: 23.66037391 | R36: ='Reach Avg Hyd'!D31 -> 9.40875 | S36: ='Reach Avg Hyd'!C31 -> 2.8725 | T36: =VLOOKUP(M36,MUSLE!A$25:G$34,VLOOKUP(N36,A$25:E$30,5,FALSE),FALSE) -> 5750.537945 | U36: ='Reach Avg Hyd'!I31 -> 0.01811799381 | V36: 181.0806699 | W36: 1293559.182 | X36: 198342.9612 | Y36: 4.233085289 | Z36: 30239.26488 | AA36: 1323798.447 | AB36: 308.0048141 | AC36: 1.70092597
M37: 4 | N37: 10 YR | O37: =VLOOKUP(M37,'Hydro Input'!$A$38:$AA$47,VLOOKUP(N37,$A$25:$D$30,$B$21,FALSE),FALSE) -> 2472.6 | P37: ='Reach Avg Hyd'!F32 -> 88.4 | Q37: 27.97058824 | R37: ='Reach Avg Hyd'!D32 -> 10.01875 | S37: ='Reach Avg Hyd'!C32 -> 3.19 | T37: =VLOOKUP(M37,MUSLE!A$25:G$34,VLOOKUP(N37,A$25:E$30,5,FALSE),FALSE) -> 5932.224465 | U37: ='Reach Avg Hyd'!I32 -> 0.01811799381 | V37: 261.4374638 | W37: 1867592.117 | X37: 218868.7838 | Y37: 5.568132625 | Z37: 39776.24495 | AA37: 1907368.362 | AB37: 433.6508735 | AC37: 1.658717413
M38: 4 | N38: 25 YR | O38: =VLOOKUP(M38,'Hydro Input'!$A$38:$AA$47,VLOOKUP(N38,$A$25:$D$30,$B$21,FALSE),FALSE) -> 3181.1 | P38: ='Reach Avg Hyd'!F33 -> 122.4 | Q38: 25.98937908 | R38: ='Reach Avg Hyd'!D33 -> 10.24125 | S38: ='Reach Avg Hyd'!C33 -> 3.15125 | T38: =VLOOKUP(M38,MUSLE!A$25:G$34,VLOOKUP(N38,A$25:E$30,5,FALSE),FALSE) -> 6139.558404 | U38: ='Reach Avg Hyd'!I33 -> 0.01811799381 | V38: 399.4200479 | W38: 2853277.882 | X38: 249663.2543 | Y38: 7.415546763 | Z38: 52973.34391 | AA38: 2906251.226 | AB38: 647.5276962 | AC38: 1.621169743
M39: 4 | N39: 50 YR | O39: =VLOOKUP(M39,'Hydro Input'!$A$38:$AA$47,VLOOKUP(N39,$A$25:$D$30,$B$21,FALSE),FALSE) -> 3753.8 | P39: ='Reach Avg Hyd'!F34 -> 131.56375 | Q39: 28.53217547 | R39: ='Reach Avg Hyd'!D34 -> 10.69875 | S39: ='Reach Avg Hyd'!C34 -> 3.3575 | T39: =VLOOKUP(M39,MUSLE!A$25:G$34,VLOOKUP(N39,A$25:E$30,5,FALSE),FALSE) -> 6301.28951 | U39: ='Reach Avg Hyd'!I34 -> 0.01811799381 | V39: 525.582044 | W39: 3754522.661 | X39: 270624.1924 | Y39: 8.982556619 | Z39: 64167.3603 | AA39: 3818690.022 | AB39: 834.9876517 | AC39: 1.588691359
M40: 4 | N40: 100 YR | O40: =VLOOKUP(M40,'Hydro Input'!$A$38:$AA$47,VLOOKUP(N40,$A$25:$D$30,$B$21,FALSE),FALSE) -> 4381.4 | P40: ='Reach Avg Hyd'!F35 -> 160.0575 | Q40: 27.3739125 | R40: ='Reach Avg Hyd'!D35 -> 10.84875 | S40: ='Reach Avg Hyd'!C35 -> 3.28625 | T40: =VLOOKUP(M40,MUSLE!A$25:G$34,VLOOKUP(N40,A$25:E$30,5,FALSE),FALSE) -> 6460.32876 | U40: ='Reach Avg Hyd'!I35 -> 0.01811799381 | V40: 679.8468919 | W40: 4856521.625 | X40: 291378.9318 | Y40: 10.75069241 | Z40: 76798.1303 | AA40: 4933319.755 | AB40: 1060.305383 | AC40: 1.559623785
M41: 5 | O41: 0.001 | W41: 0.001 | Z41: 0.001 | AA41: 0.002 | AB41: 0 | AC41: -
M42: =IF(N42="2 YR",M40+1,M40) -> 5 | N42: 2 YR | O42: =VLOOKUP(M42,'Hydro Input'!$A$38:$AA$47,VLOOKUP(N42,$A$25:$D$30,$B$21,FALSE),FALSE) -> 1692.3 | P42: ='Reach Avg Hyd'!F36 -> 112.3514286 | Q42: 15.06255881 | R42: ='Reach Avg Hyd'!D36 -> 7.671428571 | S42: ='Reach Avg Hyd'!C36 -> 2.397142857 | T42: =VLOOKUP(M42,MUSLE!A$25:G$34,VLOOKUP(N42,A$25:E$30,5,FALSE),FALSE) -> 6264.826105 | U42: ='Reach Avg Hyd'!I36 -> 0.01340339277 | V42: 97.72069533 | W42: 698072.8685 | X42: 132714.1762 | Y42: =(O42/2.65)*(T42/(10^6-T42)) -> 4.025963553 | Z42: =Y42*3600*24*(62.4*2.65/2000) -> 28759.67999 | AA42: 726832.5485 | AB42: 188.8038785 | AC42: 1.9320767
M43: 5 | N43: 5 YR | O43: =VLOOKUP(M43,'Hydro Input'!$A$38:$AA$47,VLOOKUP(N43,$A$25:$D$30,$B$21,FALSE),FALSE) -> 2633.9 | P43: ='Reach Avg Hyd'!F37 -> 126.06 | Q43: 20.89401872 | R43: ='Reach Avg Hyd'!D37 -> 8.614285714 | S43: ='Reach Avg Hyd'!C37 -> 2.882857143 | T43: =VLOOKUP(M43,MUSLE!A$25:G$34,VLOOKUP(N43,A$25:E$30,5,FALSE),FALSE) -> 6718.397867 | U43: ='Reach Avg Hyd'!I37 -> 0.01340339277 | V43: 187.7700283 | W43: 1341344.961 | X43: 158898.9534 | Y43: 6.722746517 | Z43: 48024.28933 | AA43: 1389369.251 | AB43: 345.4466419 | AC43: 1.839732597
M44: 5 | N44: 10 YR | O44: =VLOOKUP(M44,'Hydro Input'!$A$38:$AA$47,VLOOKUP(N44,$A$25:$D$30,$B$21,FALSE),FALSE) -> 3394.7 | P44: ='Reach Avg Hyd'!F38 -> 135.8 | Q44: 24.99779087 | R44: ='Reach Avg Hyd'!D38 -> 9.201428571 | S44: ='Reach Avg Hyd'!C38 -> 3.178571429 | T44: =VLOOKUP(M44,MUSLE!A$25:G$34,VLOOKUP(N44,A$25:E$30,5,FALSE),FALSE) -> 6976.87293 | U44: ='Reach Avg Hyd'!I38 -> 0.01340339277 | V44: 274.5291861 | W44: 1961113.517 | X44: 176483.8993 | Y44: 9.00029981 | Z44: 64294.10971 | AA44: 2025407.626 | AB44: 490.1529828 | AC44: 1.785431231
M45: 5 | N45: 25 YR | O45: =VLOOKUP(M45,'Hydro Input'!$A$38:$AA$47,VLOOKUP(N45,$A$25:$D$30,$B$21,FALSE),FALSE) -> 4392.8 | P45: ='Reach Avg Hyd'!F39 -> 152.4785714 | Q45: 28.80929405 | R45: ='Reach Avg Hyd'!D39 -> 9.767142857 | S45: ='Reach Avg Hyd'!C39 -> 3.441428571 | T45: =VLOOKUP(M45,MUSLE!A$25:G$34,VLOOKUP(N45,A$25:E$30,5,FALSE),FALSE) -> 7249.476632 | U45: ='Reach Avg Hyd'!I39 -> 0.01340339277 | V45: 406.1151615 | W45: 2901104.774 | X45: 196782.6219 | Y45: 12.10492454 | Z45: 86472.15789 | AA45: 2987576.932 | AB45: 703.8828931 | AC45: 1.733210084
M46: 5 | N46: 50 YR | O46: =VLOOKUP(M46,'Hydro Input'!$A$38:$AA$47,VLOOKUP(N46,$A$25:$D$30,$B$21,FALSE),FALSE) -> 5199.7 | P46: ='Reach Avg Hyd'!F40 -> 167.0028571 | Q46: 31.13539546 | R46: ='Reach Avg Hyd'!D40 -> 10.24428571 | S46: ='Reach Avg Hyd'!C40 -> 3.525714286 | T46: =VLOOKUP(M46,MUSLE!A$25:G$34,VLOOKUP(N46,A$25:E$30,5,FALSE),FALSE) -> 7457.338996 | U46: ='Reach Avg Hyd'!I40 -> 0.01340339277 | V46: 552.6895465 | W46: 3948166.515 | X46: 219771.2136 | Y46: 14.74236355 | Z46: 105312.8406 | AA46: 4053479.356 | AB46: 924.931935 | AC46: 1.673510818
M47: 5 | N47: 100 YR | O47: =VLOOKUP(M47,'Hydro Input'!$A$38:$AA$47,VLOOKUP(N47,$A$25:$D$30,$B$21,FALSE),FALSE) -> 6084.8 | P47: ='Reach Avg Hyd'!F41 -> 177.2242857 | Q47: 34.3338949 | R47: ='Reach Avg Hyd'!D41 -> 10.70857143 | S47: ='Reach Avg Hyd'!C41 -> 3.741428571 | T47: =VLOOKUP(M47,MUSLE!A$25:G$34,VLOOKUP(N47,A$25:E$30,5,FALSE),FALSE) -> 7660.683709 | U47: ='Reach Avg Hyd'!I41 -> 0.01340339277 | V47: 719.8734757 | W47: 5142453.607 | X47: 238682.9069 | Y47: 17.72587847 | Z47: 126625.7346 | AA47: 5269079.342 | AB47: 1178.56148 | AC47: 1.637178643
M48: 6 | O48: 0.001 | W48: 0.001 | Z48: 0.001 | AA48: 0.002 | AB48: 0 | AC48: -
M49: =IF(N49="2 YR",M47+1,M47) -> 6 | N49: 2 YR | O49: =VLOOKUP(M49,'Hydro Input'!$A$38:$AA$47,VLOOKUP(N49,$A$25:$D$30,$B$21,FALSE),FALSE) -> 1720.7 | P49: ='Reach Avg Hyd'!F42 -> 108.3975 | Q49: 15.87398233 | R49: ='Reach Avg Hyd'!D42 -> 7.36625 | S49: ='Reach Avg Hyd'!C42 -> 2.24625 | T49: =VLOOKUP(M49,MUSLE!A$25:G$34,VLOOKUP(N49,A$25:E$30,5,FALSE),FALSE) -> 5213.404992 | U49: ='Reach Avg Hyd'!I42 -> 0.0148308775 | V49: 77.90360517 | W49: 556508.4545 | X49: 107124.5814 | Y49: =(O49/2.65)*(T49/(10^6-T49)) -> 3.402912827 | Z49: =Y49*3600*24*(62.4*2.65/2000) -> 24308.88473 | AA49: 580817.3393 | AB49: 153.132887 | AC49: 1.965671379
M50: 6 | N50: 5 YR | O50: =VLOOKUP(M50,'Hydro Input'!$A$38:$AA$47,VLOOKUP(N50,$A$25:$D$30,$B$21,FALSE),FALSE) -> 2686 | P50: ='Reach Avg Hyd'!F43 -> 136.17625 | Q50: 19.724438 | R50: ='Reach Avg Hyd'!D43 -> 8.31 | S50: ='Reach Avg Hyd'!C43 -> 2.66125 | T50: =VLOOKUP(M50,MUSLE!A$25:G$34,VLOOKUP(N50,A$25:E$30,5,FALSE),FALSE) -> 5602.205363 | U50: ='Reach Avg Hyd'!I43 -> 0.0148308775 | V50: 170.8928018 | W50: 1220781.616 | X50: 144276.9254 | Y50: 5.710301074 | Z50: 40791.83266 | AA50: 1261573.449 | AB50: 317.1968524 | AC50: 1.856115934
M51: 6 | N51: 10 YR | O51: =VLOOKUP(M51,'Hydro Input'!$A$38:$AA$47,VLOOKUP(N51,$A$25:$D$30,$B$21,FALSE),FALSE) -> 3467.3 | P51: ='Reach Avg Hyd'!F44 -> 152.645 | Q51: 22.71479577 | R51: ='Reach Avg Hyd'!D44 -> 8.9675 | S51: ='Reach Avg Hyd'!C44 -> 2.85375 | T51: =VLOOKUP(M51,MUSLE!A$25:G$34,VLOOKUP(N51,A$25:E$30,5,FALSE),FALSE) -> 5824.225937 | U51: ='Reach Avg Hyd'!I44 -> 0.0148308775 | V51: 271.560348 | W51: 1939905.467 | X51: 171876.3094 | Y51: 7.665148687 | Z51: 54756.38823 | AA51: 1994661.855 | AB51: 480.9308492 | AC51: 1.770990694
M52: 6 | N52: 25 YR | O52: =VLOOKUP(M52,'Hydro Input'!$A$38:$AA$47,VLOOKUP(N52,$A$25:$D$30,$B$21,FALSE),FALSE) -> 4490.7 | P52: ='Reach Avg Hyd'!F45 -> 163.5575 | Q52: 27.45639913 | R52: ='Reach Avg Hyd'!D45 -> 9.675 | S52: ='Reach Avg Hyd'!C45 -> 3.20875 | T52: =VLOOKUP(M52,MUSLE!A$25:G$34,VLOOKUP(N52,A$25:E$30,5,FALSE),FALSE) -> 6055.816269 | U52: ='Reach Avg Hyd'!I45 -> 0.0148308775 | V52: 413.7201322 | W52: 2955431.278 | X52: 196231.7702 | Y52: 10.32473379 | Z52: 73755.27273 | AA52: 3029186.55 | AB52: 708.831283 | AC52: 1.713311072
M53: 6 | N53: 50 YR | O53: =VLOOKUP(M53,'Hydro Input'!$A$38:$AA$47,VLOOKUP(N53,$A$25:$D$30,$B$21,FALSE),FALSE) -> 5315.4 | P53: ='Reach Avg Hyd'!F46 -> 171.465 | Q53: 30.99991252 | R53: ='Reach Avg Hyd'!D46 -> 10.15 | S53: ='Reach Avg Hyd'!C46 -> 3.44375 | T53: =VLOOKUP(M53,MUSLE!A$25:G$34,VLOOKUP(N53,A$25:E$30,5,FALSE),FALSE) -> 6230.206027 | U53: ='Reach Avg Hyd'!I46 -> 0.0148308775 | V53: 541.5006837 | W53: 3868238.292 | X53: 212577.2904 | Y53: 12.57496239 | Z53: 89829.89771 | AA53: 3958068.19 | AB53: 907.6972996 | AC53: 1.676262518
M54: 6 | N54: 100 YR | O54: =VLOOKUP(M54,'Hydro Input'!$A$38:$AA$47,VLOOKUP(N54,$A$25:$D$30,$B$21,FALSE),FALSE) -> 6217.4 | P54: ='Reach Avg Hyd'!F47 -> 189.01875 | Q54: 32.8930331 | R54: ='Reach Avg Hyd'!D47 -> 10.5975 | S54: ='Reach Avg Hyd'!C47 -> 3.5975 | T54: =VLOOKUP(M54,MUSLE!A$25:G$34,VLOOKUP(N54,A$25:E$30,5,FALSE),FALSE) -> 6399.218277 | U54: ='Reach Avg Hyd'!I47 -> 0.0148308775 | V54: 727.7770816 | W54: 5198913.427 | X54: 236755.1034 | Y54: 15.11046866 | Z54: 107942.4186 | AA54: 5306855.846 | AB54: 1189.317666 | AC54: 1.634178509
M55: 7 | O55: 0.001 | W55: 0.001 | Z55: 0.001 | AA55: 0.002 | AB55: 0 | AC55: -
M56: =IF(N56="2 YR",M54+1,M54) -> 7 | N56: 2 YR | O56: =VLOOKUP(M56,'Hydro Input'!$A$38:$AA$47,VLOOKUP(N56,$A$25:$D$30,$B$21,FALSE),FALSE) -> 1834.776009 | P56: ='Reach Avg Hyd'!F48 -> 76.47692308 | Q56: 23.9912373 | R56: ='Reach Avg Hyd'!D48 -> 8.766153846 | S56: ='Reach Avg Hyd'!C48 -> 2.866153846 | T56: =VLOOKUP(M56,MUSLE!A$25:G$34,VLOOKUP(N56,A$25:E$30,5,FALSE),FALSE) -> 5320.307739 | U56: ='Reach Avg Hyd'!I48 -> 0.02617114203 | V56: 122.7166684 | W56: 876632.9018 | X56: 150556.9018 | Y56: =(O56/2.65)*(T56/(10^6-T56)) -> 3.70331523 | Z56: =Y56*3600*24*(62.4*2.65/2000) -> 26454.82492 | AA56: 903087.7267 | AB56: 222.019481 | AC56: 1.809203948
M57: 7 | N57: 5 YR | O57: =VLOOKUP(M57,'Hydro Input'!$A$38:$AA$47,VLOOKUP(N57,$A$25:$D$30,$B$21,FALSE),FALSE) -> 2890.9776 | P57: ='Reach Avg Hyd'!F49 -> 96.66769231 | Q57: 29.90634752 | R57: ='Reach Avg Hyd'!D49 -> 9.841538462 | S57: ='Reach Avg Hyd'!C49 -> 3.326153846 | T57: =VLOOKUP(M57,MUSLE!A$25:G$34,VLOOKUP(N57,A$25:E$30,5,FALSE),FALSE) -> 5747.802911 | U57: ='Reach Avg Hyd'!I49 -> 0.02617114203 | V57: 264.602431 | W57: 1890201.225 | X57: 195201.1328 | Y57: 6.306728879 | Z57: 45052.44569 | AA57: 1935253.671 | AB57: 451.266066 | AC57: 1.705449433
M58: 7 | N58: 10 YR | O58: =VLOOKUP(M58,'Hydro Input'!$A$38:$AA$47,VLOOKUP(N58,$A$25:$D$30,$B$21,FALSE),FALSE) -> 3744.202569 | P58: ='Reach Avg Hyd'!F50 -> 105.1769231 | Q58: 35.59908828 | R58: ='Reach Avg Hyd'!D50 -> 10.50230769 | S58: ='Reach Avg Hyd'!C50 -> 3.770769231 | T58: =VLOOKUP(M58,MUSLE!A$25:G$34,VLOOKUP(N58,A$25:E$30,5,FALSE),FALSE) -> 5990.168568 | U58: ='Reach Avg Hyd'!I50 -> 0.02617114203 | V58: 389.9241143 | W58: 2785443.186 | X58: 216284.3714 | Y58: 8.514552489 | Z58: 60824.14846 | AA58: 2846267.335 | AB58: 651.1067643 | AC58: 1.669829437
M59: 7 | N59: 25 YR | O59: =VLOOKUP(M59,'Hydro Input'!$A$38:$AA$47,VLOOKUP(N59,$A$25:$D$30,$B$21,FALSE),FALSE) -> 4851.13782 | P59: ='Reach Avg Hyd'!F51 -> 120.7453846 | Q59: 40.17659006 | R59: ='Reach Avg Hyd'!D51 -> 11.14846154 | S59: ='Reach Avg Hyd'!C51 -> 4.086153846 | T59: =VLOOKUP(M59,MUSLE!A$25:G$34,VLOOKUP(N59,A$25:E$30,5,FALSE),FALSE) -> 6234.786716 | U59: ='Reach Avg Hyd'!I51 -> 0.02617114203 | V59: 589.8758784 | W59: 4213809.011 | X59: 243700.6235 | Y59: 11.48512035 | Z59: 82044.55441 | AA59: 4295853.566 | AB59: 956.3937273 | AC59: 1.621347409
M60: 7 | N60: 50 YR | O60: =VLOOKUP(M60,'Hydro Input'!$A$38:$AA$47,VLOOKUP(N60,$A$25:$D$30,$B$21,FALSE),FALSE) -> 5741.535004 | P60: ='Reach Avg Hyd'!F52 -> 133.9746154 | Q60: 42.85539457 | R60: ='Reach Avg Hyd'!D52 -> 11.62153846 | S60: ='Reach Avg Hyd'!C52 -> 4.271538462 | T60: =VLOOKUP(M60,MUSLE!A$25:G$34,VLOOKUP(N60,A$25:E$30,5,FALSE),FALSE) -> 6417.595883 | U60: ='Reach Avg Hyd'!I52 -> 0.02617114203 | V60: 792.3628266 | W60: 5660285.055 | X60: 267782.4378 | Y60: 13.99428187 | Z60: 99968.88027 | AA60: 5760253.935 | AB60: 1254.436964 | AC60: 1.583159787
M61: 7 | N61: 100 YR | O61: =VLOOKUP(M61,'Hydro Input'!$A$38:$AA$47,VLOOKUP(N61,$A$25:$D$30,$B$21,FALSE),FALSE) -> 6709.370745 | P61: ='Reach Avg Hyd'!F53 -> 146.17 | Q61: 45.9011476 | R61: ='Reach Avg Hyd'!D53 -> 12.15615385 | S61: ='Reach Avg Hyd'!C53 -> 4.454615385 | T61: =VLOOKUP(M61,MUSLE!A$25:G$34,VLOOKUP(N61,A$25:E$30,5,FALSE),FALSE) -> 6590.762885 | U61: ='Reach Avg Hyd'!I53 -> 0.02617114203 | V61: 1062.556447 | W61: 7590427.231 | X61: 295614.8685 | Y61: 16.79745205 | Z61: 119993.4722 | AA61: 7710420.703 | AB61: 1636.514952 | AC61: 1.540167543
M62: 8 | O62: 0.001 | W62: 0.001 | Z62: 0.001 | AA62: 0.002 | AB62: 0 | AC62: -
M63: =IF(N63="2 YR",M61+1,M61) -> 8 | N63: 2 YR | O63: =VLOOKUP(M63,'Hydro Input'!$A$38:$AA$47,VLOOKUP(N63,$A$25:$D$30,$B$21,FALSE),FALSE) -> 1865.5 | P63: ='Reach Avg Hyd'!F54 -> 73.21454545 | Q63: 25.47990961 | R63: ='Reach Avg Hyd'!D54 -> 9.015454545 | S63: ='Reach Avg Hyd'!C54 -> 3.12 | T63: =VLOOKUP(M63,MUSLE!A$25:G$34,VLOOKUP(N63,A$25:E$30,5,FALSE),FALSE) -> 6979.912233 | U63: ='Reach Avg Hyd'!I54 -> 0.01962547575 | V63: 134.8102673 | W63: 963024.1545 | X63: 160723.2739 | Y63: =(O63/2.65)*(T63/(10^6-T63)) -> 4.948132348 | Z63: =Y63*3600*24*(62.4*2.65/2000) -> 35347.24073 | AA63: 998371.3952 | AB63: 243.7491023 | AC63: 1.808090045
M64: 8 | N64: 5 YR | O64: =VLOOKUP(M64,'Hydro Input'!$A$38:$AA$47,VLOOKUP(N64,$A$25:$D$30,$B$21,FALSE),FALSE) -> 2950.4 | P64: ='Reach Avg Hyd'!F55 -> 81.90181818 | Q64: 36.0236203 | R64: ='Reach Avg Hyd'!D55 -> 10.21636364 | S64: ='Reach Avg Hyd'!C55 -> 3.905454545 | T64: =VLOOKUP(M64,MUSLE!A$25:G$34,VLOOKUP(N64,A$25:E$30,5,FALSE),FALSE) -> 7571.631701 | U64: ='Reach Avg Hyd'!I55 -> 0.01962547575 | V64: 270.0800794 | W64: 1929331.091 | X64: 195223.76 | Y64: 8.494255818 | Z64: 60679.15814 | AA64: 1990010.25 | AB64: 466.6025103 | AC64: 1.727645043
M65: 8 | N65: 10 YR | O65: =VLOOKUP(M65,'Hydro Input'!$A$38:$AA$47,VLOOKUP(N65,$A$25:$D$30,$B$21,FALSE),FALSE) -> 3824.4 | P65: ='Reach Avg Hyd'!F56 -> 88.37181818 | Q65: 43.27623985 | R65: ='Reach Avg Hyd'!D56 -> 10.94818182 | S65: ='Reach Avg Hyd'!C56 -> 4.244545455 | T65: =VLOOKUP(M65,MUSLE!A$25:G$34,VLOOKUP(N65,A$25:E$30,5,FALSE),FALSE) -> 7901.015727 | U65: ='Reach Avg Hyd'!I56 -> 0.01962547575 | V65: 400.928009 | W65: 2864050.081 | X65: 217411.4652 | Y65: 11.49331625 | Z65: 82103.10227 | AA65: 2946153.183 | AB65: 667.5164547 | AC65: 1.664928465
M66: 8 | N66: 25 YR | O66: =VLOOKUP(M66,'Hydro Input'!$A$38:$AA$47,VLOOKUP(N66,$A$25:$D$30,$B$21,FALSE),FALSE) -> 4954.5 | P66: ='Reach Avg Hyd'!F57 -> 95.10727273 | Q66: 52.09380795 | R66: ='Reach Avg Hyd'!D57 -> 11.42 | S66: ='Reach Avg Hyd'!C57 -> 4.912727273 | T66: =VLOOKUP(M66,MUSLE!A$25:G$34,VLOOKUP(N66,A$25:E$30,5,FALSE),FALSE) -> 8226.877364 | U66: ='Reach Avg Hyd'!I57 -> 0.01962547575 | V66: 528.4576301 | W66: 3775064.56 | X66: 220366.9478 | Y66: 15.50874473 | Z66: 110787.5244 | AA66: 3885852.085 | AB66: 884.1657692 | AC66: 1.67310626
M67: 8 | N67: 50 YR | O67: =VLOOKUP(M67,'Hydro Input'!$A$38:$AA$47,VLOOKUP(N67,$A$25:$D$30,$B$21,FALSE),FALSE) -> 5863.9 | P67: ='Reach Avg Hyd'!F58 -> 99.53909091 | Q67: 58.91052396 | R67: ='Reach Avg Hyd'!D58 -> 11.89 | S67: ='Reach Avg Hyd'!C58 -> 5.34 | T67: =VLOOKUP(M67,MUSLE!A$25:G$34,VLOOKUP(N67,A$25:E$30,5,FALSE),FALSE) -> 8468.411994 | U67: ='Reach Avg Hyd'!I58 -> 0.01962547575 | V67: 668.1315438 | W67: 4772832.426 | X67: 231915.7134 | Y67: 18.89888166 | Z67: 135005.1439 | AA67: 4907837.57 | AB67: 1105.041491 | AC67: 1.653928035
M68: 8 | N68: 100 YR | O68: =VLOOKUP(M68,'Hydro Input'!$A$38:$AA$47,VLOOKUP(N68,$A$25:$D$30,$B$21,FALSE),FALSE) -> 6852.6 | P68: ='Reach Avg Hyd'!F59 -> 104.1772727 | Q68: 65.77826258 | R68: ='Reach Avg Hyd'!D59 -> 12.47909091 | S68: ='Reach Avg Hyd'!C59 -> 5.69 | T68: =VLOOKUP(M68,MUSLE!A$25:G$34,VLOOKUP(N68,A$25:E$30,5,FALSE),FALSE) -> 8697.326632 | U68: ='Reach Avg Hyd'!I59 -> 0.01962547575 | V68: 874.3261571 | W68: 6245794.368 | X68: 252679.8697 | Y68: 22.68762374 | Z68: 162070.2199 | AA68: 6407864.588 | AB68: 1411.324255 | AC68: 1.614185099
M69: 9 | O69: 0.001 | W69: 0.001 | Z69: 0.001 | AA69: 0.002 | AB69: 0 | AC69: -
M70: =IF(N70="2 YR",M68+1,M68) -> 9 | N70: 2 YR | O70: =VLOOKUP(M70,'Hydro Input'!$A$38:$AA$47,VLOOKUP(N70,$A$25:$D$30,$B$21,FALSE),FALSE) -> 1930.5 | P70: ='Reach Avg Hyd'!F60 -> 75.009 | Q70: 25.73691157 | R70: ='Reach Avg Hyd'!D60 -> 9.224 | S70: ='Reach Avg Hyd'!C60 -> 2.871 | T70: =VLOOKUP(M70,MUSLE!A$25:G$34,VLOOKUP(N70,A$25:E$30,5,FALSE),FALSE) -> 5536.719417 | U70: ='Reach Avg Hyd'!I60 -> 0.03522200409 | V70: 151.458517 | W70: 1081951.792 | X70: 172121.9102 | Y70: =(O70/2.65)*(T70/(10^6-T70)) -> 4.055904266 | Z70: =Y70*3600*24*(62.4*2.65/2000) -> 28973.56303 | AA70: 1110925.355 | AB70: 262.1284131 | AC70: 1.730694439
M71: 9 | N71: 5 YR | O71: =VLOOKUP(M71,'Hydro Input'!$A$38:$AA$47,VLOOKUP(N71,$A$25:$D$30,$B$21,FALSE),FALSE) -> 3025.6 | P71: ='Reach Avg Hyd'!F61 -> 85.985 | Q71: 35.18753271 | R71: ='Reach Avg Hyd'!D61 -> 10.295 | S71: ='Reach Avg Hyd'!C61 -> 3.478 | T71: =VLOOKUP(M71,MUSLE!A$25:G$34,VLOOKUP(N71,A$25:E$30,5,FALSE),FALSE) -> 5973.984961 | U71: ='Reach Avg Hyd'!I61 -> 0.03522200409 | V71: 289.4826697 | W71: 2067934.504 | X71: 202263.0828 | Y71: 6.861704511 | Z71: 49016.94299 | AA71: =SUM(W71,Z71) -> 2116951.447 | AB71: 480.6254449 | AC71: 1.660290909
M72: 9 | N72: 10 YR | O72: =VLOOKUP(M72,'Hydro Input'!$A$38:$AA$47,VLOOKUP(N72,$A$25:$D$30,$B$21,FALSE),FALSE) -> 3906.7 | P72: ='Reach Avg Hyd'!F62 -> 92.277 | Q72: 42.33666027 | R72: ='Reach Avg Hyd'!D62 -> 11.002 | S72: ='Reach Avg Hyd'!C62 -> 3.914 | T72: =VLOOKUP(M72,MUSLE!A$25:G$34,VLOOKUP(N72,A$25:E$30,5,FALSE),FALSE) -> 6218.966973 | U72: ='Reach Avg Hyd'!I62 -> 0.03522200409 | V72: 423.2407249 | W72: 3023442.127 | X72: 223055.6282 | Y72: 9.225538706 | Z72: 65903.11548 | AA72: 3089345.243 | AB72: =P72*0.00075*R72^3.62*S72^0.37*(1-T72/10^6)^-2.43 -> 685.7019163 | AC72: =IF(V72<0.001,"-",AB72/V72) -> 1.620122724
M73: 9 | N73: 25 YR | O73: =VLOOKUP(M73,'Hydro Input'!$A$38:$AA$47,VLOOKUP(N73,$A$25:$D$30,$B$21,FALSE),FALSE) -> 5045.6 | P73: ='Reach Avg Hyd'!F63 -> 97.868 | Q73: 51.55515592 | R73: ='Reach Avg Hyd'!D63 -> 11.83 | S73: ='Reach Avg Hyd'!C63 -> 4.446 | T73: =VLOOKUP(M73,MUSLE!A$25:G$34,VLOOKUP(N73,A$25:E$30,5,FALSE),FALSE) -> 6462.222155 | U73: ='Reach Avg Hyd'!I63 -> 0.03522200409 | V73: 629.1652688 | W73: 4494474.814 | X73: 248371.1886 | Y73: 12.38409979 | Z73: 88466.4608 | AA73: 4582941.275 | AB73: 991.9673911 | AC73: 1.576640416
M74: 9 | N74: 50 YR | O74: =VLOOKUP(M74,'Hydro Input'!$A$38:$AA$47,VLOOKUP(N74,$A$25:$D$30,$B$21,FALSE),FALSE) -> 5959.6 | P74: ='Reach Avg Hyd'!F64 -> 108.763 | Q74: 54.79436941 | R74: ='Reach Avg Hyd'!D64 -> 12.21 | S74: ='Reach Avg Hyd'!C64 -> 4.739 | T74: =VLOOKUP(M74,MUSLE!A$25:G$34,VLOOKUP(N74,A$25:E$30,5,FALSE),FALSE) -> 6642.990884 | U74: ='Reach Avg Hyd'!I64 -> 0.03522200409 | V74: 810.731646 | W74: 5791503.672 | X74: 264976.3893 | Y74: 15.03936617 | Z74: 107434.4943 | AA74: 5898938.166 | AB74: 1266.167615 | AC74: 1.56175921
M75: 9 | N75: 100 YR | O75: =VLOOKUP(M75,'Hydro Input'!$A$38:$AA$47,VLOOKUP(N75,$A$25:$D$30,$B$21,FALSE),FALSE) -> 6951.3 | P75: ='Reach Avg Hyd'!F65 -> 111.907 | Q75: 62.11675766 | R75: ='Reach Avg Hyd'!D65 -> 12.739 | S75: ='Reach Avg Hyd'!C65 -> 5.15 | T75: =VLOOKUP(M75,MUSLE!A$25:G$34,VLOOKUP(N75,A$25:E$30,5,FALSE),FALSE) -> 6814.137449 | U75: ='Reach Avg Hyd'!I65 -> 0.03522200409 | V75: 1016.956654 | W75: 7264682.739 | X75: 279376.886 | Y75: 17.99701665 | Z75: 128562.6243 | AA75: 7393245.363 | AB75: 1567.086352 | AC75: 1.540956879

Sheet Bulking Factors
A1: Bulking Factor Calculations
A4: Sub-Reach | B4: Recurrence | C4: Flow | D4: Qs,bm | E4: Qs,f | F4: Qs,tot | G4: Bf
B5: Interval | C5: (cfs) | D5: (cfs) | E5: (cfs) | F5: (cfs) | G5: (fraction)
A6: 0 | B6: 2 YR | C6: ='DCM1 MPM-Woo'!O7 -> 330.5808295 | D6: ='DCM1 MPM-Woo'!V7 -> 5.310971577 | E6: ='DCM1 MPM-Woo'!Y7 -> 0.6800529126 | F6: =SUM(D6:E6) -> 5.99102449 | G6: =(C6+F6)/C6 -> 1.018122722
A7: =IF(B7="2 YR",A6+1,A6) -> 0 | B7: 5 YR | C7: ='DCM1 MPM-Woo'!O8 -> 511.5452509 | D7: ='DCM1 MPM-Woo'!V8 -> 11.12205911 | E7: ='DCM1 MPM-Woo'!Y8 -> 1.138348895 | F7: =SUM(D7:E7) -> 12.26040801 | G7: =(C7+F7)/C7 -> 1.023967397
A8: =IF(B8="2 YR",A7+1,A7) -> 0 | B8: 10 YR | C8: ='DCM1 MPM-Woo'!O9 -> 660.0909662 | D8: ='DCM1 MPM-Woo'!V9 -> 16.57373536 | E8: ='DCM1 MPM-Woo'!Y9 -> 1.528804092 | F8: 18.10253946 | G8: 1.02742431
A9: 0 | B9: 25 YR | C9: ='DCM1 MPM-Woo'!O10 -> 859.7350545 | D9: ='DCM1 MPM-Woo'!V10 -> 23.80690996 | E9: ='DCM1 MPM-Woo'!Y10 -> 2.06967049 | F9: 25.87658045 | G9: 1.03009832
A10: 0 | B10: 50 YR | C10: ='DCM1 MPM-Woo'!O11 -> 1020.700432 | D10: ='DCM1 MPM-Woo'!V11 -> 30.881686 | E10: ='DCM1 MPM-Woo'!Y11 -> 2.518569788 | F10: 33.40025579 | G10: 1.032722878
A11: 0 | B11: 100 YR | C11: ='DCM1 MPM-Woo'!O12 -> 1198.053557 | D11: ='DCM1 MPM-Woo'!V12 -> 40.32294871 | E11: ='DCM1 MPM-Woo'!Y12 -> 3.024173058 | F11: 43.34712177 | G11: 1.036181289
A12: =IF(B12="2 YR",A11+1,A11) -> 1 | B12: 2 YR | C12: ='DCM1 MPM-Woo'!O14 -> 791.3 | D12: ='DCM1 MPM-Woo'!V14 -> 23.04530618 | E12: ='DCM1 MPM-Woo'!Y14 -> 1.966243043 | F12: 25.01154923 | G12: 1.031608175
A13: 1 | B13: 5 YR | C13: ='DCM1 MPM-Woo'!O15 -> 1188.6 | D13: ='DCM1 MPM-Woo'!V15 -> 44.26428913 | E13: ='DCM1 MPM-Woo'!Y15 -> 3.092875489 | F13: 47.35716462 | G13: 1.039842811
A14: 1 | B14: 10 YR | C14: ='DCM1 MPM-Woo'!O16 -> 1511.6 | D14: ='DCM1 MPM-Woo'!V16 -> 65.81246299 | E14: ='DCM1 MPM-Woo'!Y16 -> 4.041872963 | F14: 69.85433595 | G14: 1.046212183
A15: 1 | B15: 25 YR | C15: ='DCM1 MPM-Woo'!O17 -> 1937.7 | D15: ='DCM1 MPM-Woo'!V17 -> 100.4596837 | E15: ='DCM1 MPM-Woo'!Y17 -> 5.343242242 | F15: 105.8029259 | G15: 1.054602325
A16: 1 | B16: 50 YR | C16: ='DCM1 MPM-Woo'!O18 -> 2278.5 | D16: ='DCM1 MPM-Woo'!V18 -> 131.968283 | E16: ='DCM1 MPM-Woo'!Y18 -> 6.430417548 | F16: 138.3987005 | G16: 1.060741146
A17: 1 | B17: 100 YR | C17: ='DCM1 MPM-Woo'!O19 -> 2651.4 | D17: ='DCM1 MPM-Woo'!V19 -> 171.3640058 | E17: ='DCM1 MPM-Woo'!Y19 -> 7.655034359 | F17: 179.0190402 | G17: 1.067518685
A18: =IF(B18="2 YR",A17+1,A17) -> 2 | B18: 2 YR | C18: ='DCM1 MPM-Woo'!O21 -> 1227.8 | D18: ='DCM1 MPM-Woo'!V21 -> 71.04796347 | E18: ='DCM1 MPM-Woo'!Y21 -> 3.003754315 | F18: 74.05171778 | G18: 1.060312525
A19: 2 | B19: 5 YR | C19: ='DCM1 MPM-Woo'!O22 -> 1873.1 | D19: ='DCM1 MPM-Woo'!V22 -> 151.3855836 | E19: ='DCM1 MPM-Woo'!Y22 -> 4.852392642 | F19: 156.2379762 | G19: 1.083411444
A20: 2 | B20: 10 YR | C20: ='DCM1 MPM-Woo'!O23 -> 2394.7 | D20: ='DCM1 MPM-Woo'!V23 -> 231.227963 | E20: ='DCM1 MPM-Woo'!Y23 -> 6.403288415 | F20: 237.6312514 | G20: 1.099232159
A21: 2 | B21: 25 YR | C21: ='DCM1 MPM-Woo'!O24 -> 3094.3 | D21: ='DCM1 MPM-Woo'!V24 -> 335.1829158 | E21: ='DCM1 MPM-Woo'!Y24 -> 8.579232765 | F21: 343.7621486 | G21: 1.111095288
A22: 2 | B22: 50 YR | C22: ='DCM1 MPM-Woo'!O25 -> 3662.1 | D22: ='DCM1 MPM-Woo'!V25 -> 437.942782 | E22: ='DCM1 MPM-Woo'!Y25 -> 10.43380576 | F22: 448.3765877 | G22: 1.122437014
A23: 2 | B23: 100 YR | C23: ='DCM1 MPM-Woo'!O26 -> 4287.5 | D23: ='DCM1 MPM-Woo'!V26 -> 555.2884995 | E23: ='DCM1 MPM-Woo'!Y26 -> 12.5432131 | F23: 567.8317126 | G23: 1.132438883
A24: =IF(B24="2 YR",A23+1,A23) -> 3 | B24: 2 YR | C24: ='DCM1 MPM-Woo'!O28 -> 1272.7 | D24: ='DCM1 MPM-Woo'!V28 -> 137.387764 | E24: ='DCM1 MPM-Woo'!Y28 -> 3.394310985 | F24: 140.782075 | G24: 1.110616858
A25: 3 | B25: 5 YR | C25: ='DCM1 MPM-Woo'!O29 -> 1939.5 | D25: ='DCM1 MPM-Woo'!V29 -> 258.0715216 | E25: ='DCM1 MPM-Woo'!Y29 -> 5.48341465 | F25: 263.5549362 | G25: 1.135888083
A26: 3 | B26: 10 YR | C26: ='DCM1 MPM-Woo'!O30 -> 2472.6 | D26: ='DCM1 MPM-Woo'!V30 -> 430.6777495 | E26: ='DCM1 MPM-Woo'!Y30 -> 7.212795851 | F26: 437.8905454 | G26: 1.177097204
A27: 3 | B27: 25 YR | C27: ='DCM1 MPM-Woo'!O31 -> 3181.1 | D27: ='DCM1 MPM-Woo'!V31 -> 589.4390118 | E27: ='DCM1 MPM-Woo'!Y31 -> 9.605881996 | F27: 599.0448938 | G27: 1.188313757
A28: 3 | B28: 50 YR | C28: ='DCM1 MPM-Woo'!O32 -> 3753.8 | D28: ='DCM1 MPM-Woo'!V32 -> 764.811934 | E28: ='DCM1 MPM-Woo'!Y32 -> 11.63574065 | F28: 776.4476746 | G28: 1.206843112
A29: 3 | B29: 100 YR | C29: ='DCM1 MPM-Woo'!O33 -> 4381.4 | D29: ='DCM1 MPM-Woo'!V33 -> 967.5889883 | E29: ='DCM1 MPM-Woo'!Y33 -> 13.92613195 | F29: 981.5151203 | G29: 1.224018606
A30: =IF(B30="2 YR",A29+1,A29) -> 4 | B30: 2 YR | C30: ='DCM1 MPM-Woo'!O35 -> 1272.7 | D30: ='DCM1 MPM-Woo'!V35 -> 95.28562319 | E30: ='DCM1 MPM-Woo'!Y35 -> 2.620339481 | F30: 97.90596267 | G30: 1.076927762
A31: 4 | B31: 5 YR | C31: ='DCM1 MPM-Woo'!O36 -> 1939.5 | D31: ='DCM1 MPM-Woo'!V36 -> 181.0806699 | E31: ='DCM1 MPM-Woo'!Y36 -> 4.233085289 | F31: 185.3137552 | G31: 1.09554718
A32: 4 | B32: 10 YR | C32: ='DCM1 MPM-Woo'!O37 -> 2472.6 | D32: ='DCM1 MPM-Woo'!V37 -> 261.4374638 | E32: ='DCM1 MPM-Woo'!Y37 -> 5.568132625 | F32: 267.0055964 | G32: 1.107985763
A33: 4 | B33: 25 YR | C33: ='DCM1 MPM-Woo'!O38 -> 3181.1 | D33: ='DCM1 MPM-Woo'!V38 -> 399.4200479 | E33: ='DCM1 MPM-Woo'!Y38 -> 7.415546763 | F33: 406.8355946 | G33: 1.127891482
A34: 4 | B34: 50 YR | C34: ='DCM1 MPM-Woo'!O39 -> 3753.8 | D34: ='DCM1 MPM-Woo'!V39 -> 525.582044 | E34: ='DCM1 MPM-Woo'!Y39 -> 8.982556619 | F34: 534.5646006 | G34: 1.142406255
A35: 4 | B35: 100 YR | C35: ='DCM1 MPM-Woo'!O40 -> 4381.4 | D35: ='DCM1 MPM-Woo'!V40 -> 679.8468919 | E35: ='DCM1 MPM-Woo'!Y40 -> 10.75069241 | F35: 690.5975844 | G35: 1.1576203
A36: =IF(B36="2 YR",A35+1,A35) -> 5 | B36: 2 YR | C36: ='DCM1 MPM-Woo'!O42 -> 1692.3 | D36: ='DCM1 MPM-Woo'!V42 -> 97.72069533 | E36: ='DCM1 MPM-Woo'!Y42 -> 4.025963553 | F36: 101.7466589 | G36: 1.060123299
A37: 5 | B37: 5 YR | C37: ='DCM1 MPM-Woo'!O43 -> 2633.9 | D37: ='DCM1 MPM-Woo'!V43 -> 187.7700283 | E37: ='DCM1 MPM-Woo'!Y43 -> 6.722746517 | F37: 194.4927748 | G37: 1.073842126
A38: 5 | B38: 10 YR | C38: ='DCM1 MPM-Woo'!O44 -> 3394.7 | D38: ='DCM1 MPM-Woo'!V44 -> 274.5291861 | E38: ='DCM1 MPM-Woo'!Y44 -> 9.00029981 | F38: 283.5294859 | G38: 1.08352122
A39: 5 | B39: 25 YR | C39: ='DCM1 MPM-Woo'!O45 -> 4392.8 | D39: ='DCM1 MPM-Woo'!V45 -> 406.1151615 | E39: ='DCM1 MPM-Woo'!Y45 -> 12.10492454 | F39: 418.220086 | G39: 1.095205811
A40: 5 | B40: 50 YR | C40: ='DCM1 MPM-Woo'!O46 -> 5199.7 | D40: ='DCM1 MPM-Woo'!V46 -> 552.6895465 | E40: ='DCM1 MPM-Woo'!Y46 -> 14.74236355 | F40: 567.43191 | G40: 1.109127817
A41: 5 | B41: 100 YR | C41: ='DCM1 MPM-Woo'!O47 -> 6084.8 | D41: ='DCM1 MPM-Woo'!V47 -> 719.8734757 | E41: ='DCM1 MPM-Woo'!Y47 -> 17.72587847 | F41: 737.5993542 | G41: 1.121219983
A42: =IF(B42="2 YR",A41+1,A41) -> 6 | B42: 2 YR | C42: ='DCM1 MPM-Woo'!O49 -> 1720.7 | D42: ='DCM1 MPM-Woo'!V49 -> 77.90360517 | E42: ='DCM1 MPM-Woo'!Y49 -> 3.402912827 | F42: 81.306518 | G42: 1.047252001
A43: 6 | B43: 5 YR | C43: ='DCM1 MPM-Woo'!O50 -> 2686 | D43: ='DCM1 MPM-Woo'!V50 -> 170.8928018 | E43: ='DCM1 MPM-Woo'!Y50 -> 5.710301074 | F43: 176.6031029 | G43: 1.06574948
A44: 6 | B44: 10 YR | C44: ='DCM1 MPM-Woo'!O51 -> 3467.3 | D44: ='DCM1 MPM-Woo'!V51 -> 271.560348 | E44: ='DCM1 MPM-Woo'!Y51 -> 7.665148687 | F44: 279.2254967 | G44: 1.080531104
A45: 6 | B45: 25 YR | C45: ='DCM1 MPM-Woo'!O52 -> 4490.7 | D45: ='DCM1 MPM-Woo'!V52 -> 413.7201322 | E45: ='DCM1 MPM-Woo'!Y52 -> 10.32473379 | F45: 424.044866 | G45: 1.094427342
A46: 6 | B46: 50 YR | C46: ='DCM1 MPM-Woo'!O53 -> 5315.4 | D46: ='DCM1 MPM-Woo'!V53 -> 541.5006837 | E46: ='DCM1 MPM-Woo'!Y53 -> 12.57496239 | F46: 554.0756461 | G46: 1.10423969
A47: 6 | B47: 100 YR | C47: ='DCM1 MPM-Woo'!O54 -> 6217.4 | D47: ='DCM1 MPM-Woo'!V54 -> 727.7770816 | E47: ='DCM1 MPM-Woo'!Y54 -> 15.11046866 | F47: 742.8875503 | G47: 1.119485243
A48: =IF(B48="2 YR",A47+1,A47) -> 7 | B48: 2 YR | C48: ='DCM1 MPM-Woo'!O56 -> 1834.776009 | D48: ='DCM1 MPM-Woo'!V56 -> 122.7166684 | E48: ='DCM1 MPM-Woo'!Y56 -> 3.70331523 | F48: 126.4199836 | G48: 1.068902135
A49: 7 | B49: 5 YR | C49: ='DCM1 MPM-Woo'!O57 -> 2890.9776 | D49: ='DCM1 MPM-Woo'!V57 -> 264.602431 | E49: ='DCM1 MPM-Woo'!Y57 -> 6.306728879 | F49: 270.9091599 | G49: 1.093708495
A50: 7 | B50: 10 YR | C50: ='DCM1 MPM-Woo'!O58 -> 3744.202569 | D50: ='DCM1 MPM-Woo'!V58 -> 389.9241143 | E50: ='DCM1 MPM-Woo'!Y58 -> 8.514552489 | F50: 398.4386668 | G50: 1.106414826
A51: 7 | B51: 25 YR | C51: ='DCM1 MPM-Woo'!O59 -> 4851.13782 | D51: ='DCM1 MPM-Woo'!V59 -> 589.8758784 | E51: ='DCM1 MPM-Woo'!Y59 -> 11.48512035 | F51: 601.3609988 | G51: 1.123962877
A52: 7 | B52: 50 YR | C52: ='DCM1 MPM-Woo'!O60 -> 5741.535004 | D52: ='DCM1 MPM-Woo'!V60 -> 792.3628266 | E52: ='DCM1 MPM-Woo'!Y60 -> 13.99428187 | F52: 806.3571085 | G52: 1.140442775
A53: 7 | B53: 100 YR | C53: ='DCM1 MPM-Woo'!O61 -> 6709.370745 | D53: ='DCM1 MPM-Woo'!V61 -> 1062.556447 | E53: ='DCM1 MPM-Woo'!Y61 -> 16.79745205 | F53: 1079.353899 | G53: 1.160872597
A54: =IF(B54="2 YR",A53+1,A53) -> 8 | B54: 2 YR | C54: ='DCM1 MPM-Woo'!O63 -> 1865.5 | D54: ='DCM1 MPM-Woo'!V63 -> 134.8102673 | E54: ='DCM1 MPM-Woo'!Y63 -> 4.948132348 | F54: 139.7583996 | G54: 1.074917395
A55: 8 | B55: 5 YR | C55: ='DCM1 MPM-Woo'!O64 -> 2950.4 | D55: ='DCM1 MPM-Woo'!V64 -> 270.0800794 | E55: ='DCM1 MPM-Woo'!Y64 -> 8.494255818 | F55: 278.5743352 | G55: 1.094419175
A56: 8 | B56: 10 YR | C56: ='DCM1 MPM-Woo'!O65 -> 3824.4 | D56: ='DCM1 MPM-Woo'!V65 -> 400.928009 | E56: ='DCM1 MPM-Woo'!Y65 -> 11.49331625 | F56: 412.4213253 | G56: 1.107839485
A57: 8 | B57: 25 YR | C57: ='DCM1 MPM-Woo'!O66 -> 4954.5 | D57: ='DCM1 MPM-Woo'!V66 -> 528.4576301 | E57: ='DCM1 MPM-Woo'!Y66 -> 15.50874473 | F57: 543.9663748 | G57: 1.109792386
A58: 8 | B58: 50 YR | C58: ='DCM1 MPM-Woo'!O67 -> 5863.9 | D58: ='DCM1 MPM-Woo'!V67 -> 668.1315438 | E58: ='DCM1 MPM-Woo'!Y67 -> 18.89888166 | F58: 687.0304255 | G58: 1.117162712
A59: 8 | B59: 100 YR | C59: ='DCM1 MPM-Woo'!O68 -> 6852.6 | D59: ='DCM1 MPM-Woo'!V68 -> 874.3261571 | E59: ='DCM1 MPM-Woo'!Y68 -> 22.68762374 | F59: 897.0137809 | G59: 1.130901232
A60: =IF(B60="2 YR",A59+1,A59) -> 9 | B60: 2 YR | C60: ='DCM1 MPM-Woo'!O70 -> 1930.5 | D60: ='DCM1 MPM-Woo'!V70 -> 151.458517 | E60: ='DCM1 MPM-Woo'!Y70 -> 4.055904266 | F60: 155.5144213 | G60: 1.080556551
A61: 9 | B61: 5 YR | C61: ='DCM1 MPM-Woo'!O71 -> 3025.6 | D61: ='DCM1 MPM-Woo'!V71 -> 289.4826697 | E61: ='DCM1 MPM-Woo'!Y71 -> 6.861704511 | F61: 296.3443742 | G61: 1.097945655
A62: 9 | B62: 10 YR | C62: ='DCM1 MPM-Woo'!O72 -> 3906.7 | D62: ='DCM1 MPM-Woo'!V72 -> 423.2407249 | E62: ='DCM1 MPM-Woo'!Y72 -> 9.225538706 | F62: 432.4662637 | G62: 1.110698611
A63: =IF(B63="2 YR",A62+1,A62) -> 9 | B63: 25 YR | C63: ='DCM1 MPM-Woo'!O73 -> 5045.6 | D63: ='DCM1 MPM-Woo'!V73 -> 629.1652688 | E63: ='DCM1 MPM-Woo'!Y73 -> 12.38409979 | F63: 641.5493686 | G63: 1.127150263
A64: 9 | B64: 50 YR | C64: ='DCM1 MPM-Woo'!O74 -> 5959.6 | D64: ='DCM1 MPM-Woo'!V74 -> 810.731646 | E64: ='DCM1 MPM-Woo'!Y74 -> 15.03936617 | F64: 825.7710122 | G64: 1.138561483
A65: 9 | B65: 100 YR | C65: ='DCM1 MPM-Woo'!O75 -> 6951.3 | D65: ='DCM1 MPM-Woo'!V75 -> 1016.956654 | E65: ='DCM1 MPM-Woo'!Y75 -> 17.99701665 | F65: 1034.953671 | G65: 1.148886348

Sheet Yields
E2: Total Yield (tons): | F2: =SUM(F8:F2887) -> 1132.753416 | J2: Total Yield (tons): | K2: =SUM(K8:K2887) -> 2108.475768 | O2: Total Yield (tons): | P2: =SUM(P8:P2887) -> 3070.780263 | T2: Total Yield (tons): | U2: =SUM(U8:U2887) -> 4448.324005 | Y2: Total Yield (tons): | Z2: =SUM(Z8:Z2887) -> 5657.832467 | AD2: Total Yield (tons): | AE2: =SUM(AE8:AE2887) -> 7120.146658 | AG2: Total Yield (tons): | AH2: =SUM(AH8:AH2887) -> 5076.585532 | AJ2: Total Yield (tons): | AK2: =SUM(AK8:AK2887) -> 9357.058654 | AM2: Total Yield (tons): | AN2: =SUM(AN8:AN2887) -> 13654.08973 | AP2: Total Yield (tons): | AQ2: =SUM(AQ8:AQ2887) -> 20333.49428 | AS2: Total Yield (tons): | AT2: =SUM(AT8:AT2887) -> 26438.4795 | AV2: Total Yield (tons): | AW2: =SUM(AW8:AW2887) -> 33772.76434 | AY2: Total Yield (tons): | AZ2: =SUM(AZ8:AZ2887) -> 15590.92209 | BB2: Total Yield (tons): | BC2: =SUM(BC8:BC2887) -> 30072.13747 | BE2: Total Yield (tons): | BF2: =SUM(BF8:BF2887) -> 45068.07591 | BH2: Total Yield (tons): | BI2: =SUM(BI8:BI2887) -> 66888.30105 | BK2: Total Yield (tons): | BL2: =SUM(BL8:BL2887) -> 86435.80354 | BN2: Total Yield (tons): | BO2: =SUM(BO8:BO2887) -> 92364.245 | BQ2: Total Yield (tons): | BR2: =SUM(BR8:BR2887) -> 29975.25382 | BT2: Total Yield (tons): | BU2: =SUM(BU8:BU2887) -> 55603.59113 | BW2: Total Yield (tons): | BX2: =SUM(BX8:BX2887) -> 84208.19212 | BZ2: Total Yield (tons): | CA2: =SUM(CA8:CA2887) -> 124032.808 | CC2: Total Yield (tons): | CD2: =SUM(CD8:CD2887) -> 159074.2682 | CF2: Total Yield (tons): | CG2: =SUM(CG8:CG2887) -> 200332.1597 | CI2: Total Yield (tons): | CJ2: =SUM(CJ8:CJ2887) -> 21304.58602 | CL2: Total Yield (tons): | CM2: =SUM(CM8:CM2887) -> 39388.17692 | CO2: Total Yield (tons): | CP2: =SUM(CP8:CP2887) -> 56722.28711 | CR2: Total Yield (tons): | CS2: =SUM(CS8:CS2887) -> 83660.33786 | CU2: Total Yield (tons): | CV2: =SUM(CV8:CV2887) -> 108468.4459 | CX2: Total Yield (tons): | CY2: =SUM(CY8:CY2887) -> 138098.9077 | DA2: Total Yield (tons): | DB2: =SUM(DB8:DB2887) -> 28156.50376 | DD2: Total Yield (tons): | DE2: =SUM(DE8:DE2887) -> 51735.32591 | DG2: Total Yield (tons): | DH2: =SUM(DH8:DH2887) -> 74148.93455 | DJ2: Total Yield (tons): | DK2: =SUM(DK8:DK2887) -> 107421.0216 | DM2: Total Yield (tons): | DN2: =SUM(DN8:DN2887) -> 139418.4828 | DP2: Total Yield (tons): | DQ2: =SUM(DQ8:DQ2887) -> 177736.1295 | DS2: Total Yield (tons): | DT2: =SUM(DT8:DT2887) -> 23438.5869 | DV2: Total Yield (tons): | DW2: =SUM(DW8:DW2887) -> 45443.11773 | DY2: Total Yield (tons): | DZ2: =SUM(DZ8:DZ2887) -> 68700.60326 | EB2: Total Yield (tons): | EC2: =SUM(EC8:EC2887) -> 103583.8972 | EE2: Total Yield (tons): | EF2: =SUM(EF8:EF2887) -> 134746.0759 | EH2: Total Yield (tons): | EI2: =SUM(EI8:EI2887) -> 174079.807 | EM2: Total Yield (tons): | EN2: =SUM(EN8:EN2887) -> 38331.13579 | ER2: Total Yield (tons): | ES2: =SUM(ES8:ES2887) -> 73855.31231 | EW2: Total Yield (tons): | EX2: =SUM(EX8:EX2887) -> 107497.9018 | FB2: Total Yield (tons): | FC2: =SUM(FC8:FC2887) -> 158123.6406 | FG2: Total Yield (tons): | FH2: =SUM(FH8:FH2887) -> 205844.1471 | FL2: Total Yield (tons): | FM2: =SUM(FM8:FM2887) -> 265749.8031 | FO2: Total Yield (tons): | FP2: =SUM(FP8:FP2887) -> 43236.92717 | FR2: Total Yield (tons): | FS2: =SUM(FS8:FS2887) -> 80268.12955 | FU2: Total Yield (tons): | FV2: =SUM(FV8:FV2887) -> 115448.9667 | FX2: Total Yield (tons): | FY2: =SUM(FY8:FY2887) -> 159874.9907 | GA2: Total Yield (tons): | GB2: =SUM(GB8:GB2887) -> 198314.8103 | GD2: Total Yield (tons): | GE2: =SUM(GE8:GE2887) -> 246752.3555 | GG2: Total Yield (tons): | GH2: =SUM(GH8:GH2887) -> 53546.52838 | GJ2: Total Yield (tons): | GK2: =SUM(GK8:GK2887) -> 96031.00846 | GM2: Total Yield (tons): | GN2: =SUM(GN8:GN2887) -> 135436.5027 | GP2: Total Yield (tons): | GQ2: =SUM(GQ8:GQ2887) -> 193428.4824 | GS2: Total Yield (tons): | GT2: =SUM(GT8:GT2887) -> 244117.1523 | GV2: Total Yield (tons): | GW2: =SUM(GW8:GW2887) -> 301866.7389
D3: 0 | E3: 6 | F3: 12 | I3: 0 | J3: 6 | K3: 12 | N3: 0 | O3: 6 | P3: 12 | S3: 0 | T3: 6 | U3: 12 | X3: 0 | Y3: 6 | Z3: 12 | AC3: 0 | AD3: 6 | AE3: 12 | AF3: 1 | AG3: 13 | AH3: 19 | AI3: 1 | AJ3: 13 | AK3: 19 | AL3: 1 | AM3: 13 | AN3: 19 | AO3: 1 | AP3: 13 | AQ3: 19 | AR3: 1 | AS3: 13 | AT3: 19 | AU3: 1 | AV3: 13 | AW3: 19 | AX3: 2 | AY3: 20 | AZ3: 26 | BA3: 2 | BB3: 20 | BC3: 26 | BD3: 2 | BE3: 20 | BF3: 26 | BG3: 2 | BH3: 20 | BI3: 26 | BJ3: 2 | BK3: 20 | BL3: 26 | BM3: 2 | BN3: 20 | BO3: 26 | BP3: 3 | BQ3: 27 | BR3: 33 | BS3: 3 | BT3: 27 | BU3: 33 | BV3: 3 | BW3: 27 | BX3: 33 | BY3: 3 | BZ3: 27 | CA3: 33 | CB3: 3 | CC3: 27 | CD3: 33 | CE3: 3 | CF3: 27 | CG3: 33 | CH3: 4 | CI3: 34 | CJ3: 40 | CK3: 4 | CL3: 34 | CM3: 40 | CN3: 4 | CO3: 34 | CP3: 40 | CQ3: 4 | CR3: 34 | CS3: 40 | CT3: 4 | CU3: 34 | CV3: 40 | CW3: 4 | CX3: 34 | CY3: 40 | CZ3: 5 | DA3: 41 | DB3: 47 | DC3: 5 | DD3: 41 | DE3: 47 | DF3: 5 | DG3: 41 | DH3: 47 | DI3: 5 | DJ3: 41 | DK3: 47 | DL3: 5 | DM3: 41 | DN3: 47 | DO3: 5 | DP3: 41 | DQ3: 47 | DR3: 6 | DS3: 48 | DT3: 54 | DU3: 6 | DV3: 48 | DW3: 54 | DX3: 6 | DY3: 48 | DZ3: 54 | EA3: 6 | EB3: 48 | EC3: 54 | ED3: 6 | EE3: 48 | EF3: 54 | EG3: 6 | EH3: 48 | EI3: 54 | EL3: 7 | EM3: 55 | EN3: 61 | EQ3: 7 | ER3: 55 | ES3: 61 | EV3: 7 | EW3: 55 | EX3: 61 | FA3: 7 | FB3: 55 | FC3: 61 | FF3: 7 | FG3: 55 | FH3: 61 | FK3: 7 | FL3: 55 | FM3: 61 | FN3: 8 | FO3: 62 | FP3: 68 | FQ3: 8 | FR3: 62 | FS3: 68 | FT3: 8 | FU3: 62 | FV3: 68 | FW3: 8 | FX3: 62 | FY3: 68 | FZ3: 8 | GA3: 62 | GB3: 68 | GC3: 8 | GD3: 62 | GE3: 68 | GF3: 9 | GG3: 69 | GH3: 75 | GI3: 9 | GJ3: 69 | GK3: 75 | GL3: 9 | GM3: 69 | GN3: 75 | GO3: 9 | GP3: 69 | GQ3: 75 | GR3: 9 | GS3: 69 | GT3: 75 | GU3: 9 | GV3: 69 | GW3: 75
B4: 2 - YR | G4: 5 - YR | L4: 10 - YR | Q4: 25 - YR | V4: 50 - YR | AA4: 100 - YR | AF4: 2 - YR | AI4: 5 - YR | AL4: 10 - YR | AO4: 25 - YR | AR4: 50 - YR | AU4: 100 - YR | AX4: 2 - YR | BA4: 5 - YR | BD4: 10 - YR | BG4: 25 - YR | BJ4: 50 - YR | BM4: 100 - YR | BP4: 2 - YR | BS4: 5 - YR | BV4: 10 - YR | BY4: 25 - YR | CB4: 50 - YR | CE4: 100 - YR | CH4: 2 - YR | CK4: 5 - YR | CN4: 10 - YR | CQ4: 25 - YR | CT4: 50 - YR | CW4: 100 - YR | CZ4: 2 - YR | DC4: 5 - YR | DF4: 10 - YR | DI4: 25 - YR | DL4: 50 - YR | DO4: 100 - YR | DR4: 2 - YR | DU4: 5 - YR | DX4: 10 - YR | EA4: 25 - YR | ED4: 50 - YR | EG4: 100 - YR | EJ4: 2 - YR | EO4: 5 - YR | ET4: 10 - YR | EY4: 25 - YR | FD4: 50 - YR | FI4: 100 - YR | FN4: 2 - YR | FQ4: 5 - YR | FT4: 10 - YR | FW4: 25 - YR | FZ4: 50 - YR | GC4: 100 - YR | GF4: 2 - YR | GI4: 5 - YR | GL4: 10 - YR | GO4: 25 - YR | GR4: 50 - YR | GU4: 100 - YR
A5: Time | B5: Flow (cfs) | D5: Flow Avg. | E5: Qs | F5: Yield | G5: Flow (cfs) | I5: Flow Avg. | J5: Qs | K5: Yield | L5: Flow (cfs) | N5: Flow Avg. | O5: Qs | P5: Yield | Q5: Flow (cfs) | S5: Flow Avg. | T5: Qs | U5: Yield | V5: Flow (cfs) | X5: Flow Avg. | Y5: Qs | Z5: Yield | AA5: Flow (cfs) | AC5: Flow Avg. | AD5: Qs | AE5: Yield | AF5: Flow (cfs) | AG5: Qs | AH5: Yield | AI5: Flow (cfs) | AJ5: Qs | AK5: Yield | AL5: Flow (cfs) | AM5: Qs | AN5: Yield | AO5: Flow (cfs) | AP5: Qs | AQ5: Yield | AR5: Flow (cfs) | AS5: Qs | AT5: Yield | AU5: Flow (cfs) | AV5: Qs | AW5: Yield | AX5: Flow (cfs) | AY5: Qs | AZ5: Yield | BA5: Flow (cfs) | BB5: Qs | BC5: Yield | BD5: Flow (cfs) | BE5: Qs | BF5: Yield | BG5: Flow (cfs) | BH5: Qs | BI5: Yield | BJ5: Flow (cfs) | BK5: Qs | BL5: Yield | BM5: Flow (cfs) | BN5: Qs | BO5: Yield | BP5: Flow (cfs) | BQ5: Qs | BR5: Yield | BS5: Flow (cfs) | BT5: Qs | BU5: Yield | BV5: Flow (cfs) | BW5: Qs | BX5: Yield | BY5: Flow (cfs) | BZ5: Qs | CA5: Yield | CB5: Flow (cfs) | CC5: Qs | CD5: Yield | CE5: Flow (cfs) | CF5: Qs | CG5: Yield | CH5: Flow (cfs) | CI5: Qs | CJ5: Yield | CK5: Flow (cfs) | CL5: Qs | CM5: Yield | CN5: Flow (cfs) | CO5: Qs | CP5: Yield | CQ5: Flow (cfs) | CR5: Qs | CS5: Yield | CT5: Flow (cfs) | CU5: Qs | CV5: Yield | CW5: Flow (cfs) | CX5: Qs | CY5: Yield | CZ5: Flow (cfs) | DA5: Qs | DB5: Yield | DC5: Flow (cfs) | DD5: Qs | DE5: Yield | DF5: Flow (cfs) | DG5: Qs | DH5: Yield | DI5: Flow (cfs) | DJ5: Qs | DK5: Yield | DL5: Flow (cfs) | DM5: Qs | DN5: Yield | DO5: Flow (cfs) | DP5: Qs | DQ5: Yield | DR5: Flow (cfs) | DS5: Qs | DT5: Yield | DU5: Flow (cfs) | DV5: Qs | DW5: Yield | DX5: Flow (cfs) | DY5: Qs | DZ5: Yield | EA5: Flow (cfs) | EB5: Qs | EC5: Yield | ED5: Flow (cfs) | EE5: Qs | EF5: Yield | EG5: Flow (cfs) | EH5: Qs | EI5: Yield | EJ5: Flow (cfs) | EL5: Flow Avg. | EM5: Qs | EN5: Yield | EO5: Flow (cfs) | EQ5: Flow Avg. | ER5: Qs | ES5: Yield | ET5: Flow (cfs) | EV5: Flow Avg. | EW5: Qs | EX5: Yield | EY5: Flow (cfs) | FA5: Flow Avg. | FB5: Qs | FC5: Yield | FD5: Flow (cfs) | FF5: Flow Avg. | FG5: Qs | FH5: Yield | FI5: Flow (cfs) | FK5: Flow Avg. | FL5: Qs | FM5: Yield | FN5: Flow (cfs) | FO5: Qs | FP5: Yield | FQ5: Flow (cfs) | FR5: Qs | FS5: Yield | FT5: Flow (cfs) | FU5: Qs | FV5: Yield | FW5: Flow (cfs) | FX5: Qs | FY5: Yield | FZ5: Flow (cfs) | GA5: Qs | GB5: Yield | GC5: Flow (cfs) | GD5: Qs | GE5: Yield | GF5: Flow (cfs) | GG5: Qs | GH5: Yield | GI5: Flow (cfs) | GJ5: Qs | GK5: Yield | GL5: Flow (cfs) | GM5: Qs | GN5: Yield | GO5: Flow (cfs) | GP5: Qs | GQ5: Yield | GR5: Flow (cfs) | GS5: Qs | GT5: Yield | GU5: Flow (cfs) | GV5: Qs | GW5: Yield
A6: (min) | B6: QR4_I | C6: QR3_15 | D6: (cfs) | E6: (tpd) | F6: (tons) | G6: QR4_I | H6: QR3_15 | I6: (cfs) | J6: (tpd) | K6: (tons) | L6: QR4_I | M6: QR3_15 | N6: (cfs) | O6: (tpd) | P6: (tons) | Q6: QR4_I | R6: QR3_15 | S6: (cfs) | T6: (tpd) | U6: (tons) | V6: QR4_I | W6: QR3_15 | X6: (cfs) | Y6: (tpd) | Z6: (tons) | AA6: QR4_I | AB6: QR3_15 | AC6: (cfs) | AD6: (tpd) | AE6: (tons) | AF6: QR3_20 | AG6: (tpd) | AH6: (tons) | AI6: QR3_20 | AJ6: (tpd) | AK6: (tons) | AL6: QR3_20 | AM6: (tpd) | AN6: (tons) | AO6: QR3_20 | AP6: (tpd) | AQ6: (tons) | AR6: QR3_20 | AS6: (tpd) | AT6: (tons) | AU6: QR3_20 | AV6: (tpd) | AW6: (tons) | AX6: QR3_24 | AY6: (tpd) | AZ6: (tons) | BA6: QR3_24 | BB6: (tpd) | BC6: (tons) | BD6: QR3_24 | BE6: (tpd) | BF6: (tons) | BG6: QR3_24 | BH6: (tpd) | BI6: (tons) | BJ6: QR3_24 | BK6: (tpd) | BL6: (tons) | BM6: QR3_24 | BN6: (tpd) | BO6: (tons) | BP6: QR3_25_PW4 | BQ6: (tpd) | BR6: (tons) | BS6: QR3_25_PW4 | BT6: (tpd) | BU6: (tons) | BV6: QR3_25_PW4 | BW6: (tpd) | BX6: (tons) | BY6: QR3_25_PW4 | BZ6: (tpd) | CA6: (tons) | CB6: QR3_25_PW4 | CC6: (tpd) | CD6: (tons) | CE6: QR3_25_PW4 | CF6: (tpd) | CG6: (tons) | CH6: QR3_25_PW4 | CI6: (tpd) | CJ6: (tons) | CK6: QR3_25_PW4 | CL6: (tpd) | CM6: (tons) | CN6: QR3_25_PW4 | CO6: (tpd) | CP6: (tons) | CQ6: QR3_25_PW4 | CR6: (tpd) | CS6: (tons) | CT6: QR3_25_PW4 | CU6: (tpd) | CV6: (tons) | CW6: QR3_25_PW4 | CX6: (tpd) | CY6: (tons) | CZ6: PW1_12 | DA6: (tpd) | DB6: (tons) | DC6: PW1_12 | DD6: (tpd) | DE6: (tons) | DF6: PW1_12 | DG6: (tpd) | DH6: (tons) | DI6: PW1_12 | DJ6: (tpd) | DK6: (tons) | DL6: PW1_12 | DM6: (tpd) | DN6: (tons) | DO6: PW1_12 | DP6: (tpd) | DQ6: (tons) | DR6: PW_VRW3 | DS6: (tpd) | DT6: (tons) | DU6: PW_VRW3 | DV6: (tpd) | DW6: (tons) | DX6: PW_VRW3 | DY6: (tpd) | DZ6: (tons) | EA6: PW_VRW3 | EB6: (tpd) | EC6: (tons) | ED6: PW_VRW3 | EE6: (tpd) | EF6: (tons) | EG6: PW_VRW3 | EH6: (tpd) | EI6: (tons) | EJ6: PW14_VRW3 | EK6: VR_TVI_PW | EL6: (cfs) | EM6: (tpd) | EN6: (tons) | EO6: PW14_VRW3 | EP6: VR_TVI_PW | EQ6: (cfs) | ER6: (tpd) | ES6: (tons) | ET6: PW14_VRW3 | EU6: VR_TVI_PW | EV6: (cfs) | EW6: (tpd) | EX6: (tons) | EY6: PW14_VRW3 | EZ6: VR_TVI_PW | FA6: (cfs) | FB6: (tpd) | FC6: (tons) | FD6: PW14_VRW3 | FE6: VR_TVI_PW | FF6: (cfs) | FG6: (tpd) | FH6: (tons) | FI6: PW14_VRW3 | FJ6: VR_TVI_PW | FK6: (cfs) | FL6: (tpd) | FM6: (tons) | FN6: VR_TVI_PW_SEV | FO6: (tpd) | FP6: (tons) | FQ6: VR_TVI_PW_SEV | FR6: (tpd) | FS6: (tons) | FT6: VR_TVI_PW_SEV | FU6: (tpd) | FV6: (tons) | FW6: VR_TVI_PW_SEV | FX6: (tpd) | FY6: (tons) | FZ6: VR_TVI_PW_SEV | GA6: (tpd) | GB6: (tons) | GC6: VR_TVI_PW_SEV | GD6: (tpd) | GE6: (tons) | GF6: SWINBURNE_INFLOW | GG6: (tpd) | GH6: (tons) | GI6: SWINBURNE_INFLOW | GJ6: (tpd) | GK6: (tons) | GL6: SWINBURNE_INFLOW | GM6: (tpd) | GN6: (tons) | GO6: SWINBURNE_INFLOW | GP6: (tpd) | GQ6: (tons) | GR6: SWINBURNE_INFLOW | GS6: (tpd) | GT6: (tons) | GU6: SWINBURNE_INFLOW | GV6: (tpd) | GW6: (tons)
A7: 1 | B7: 0 | C7: 0 | D7: =B7*VLOOKUP(B$6,LookupTables!$K$4:$L$14,2,FALSE)+C7*VLOOKUP(C$6,LookupTables!$K$4:$L$14,2,FALSE) -> 0 | E7: =IF(D7<0.01,0,interp(INDIRECT("'DCM1 MPM-Woo'!O"&E$3&":O"&F$3),INDIRECT("'DCM1 MPM-Woo'!AA"&E$3&":AA"&F$3),D7,3)) -> 0 | G7: 0 | H7: 0 | I7: =G7*VLOOKUP(G$6,LookupTables!$K$4:$L$14,2,FALSE)+H7*VLOOKUP(H$6,LookupTables!$K$4:$L$14,2,FALSE) -> 0 | J7: =IF(I7<0.01,0,interp(INDIRECT("'DCM1 MPM-Woo'!O"&J$3&":O"&K$3),INDIRECT("'DCM1 MPM-Woo'!AA"&J$3&":AA"&K$3),I7,3)) -> 0 | L7: 0 | M7: 0 | N7: =L7*VLOOKUP(L$6,LookupTables!$K$4:$L$14,2,FALSE)+M7*VLOOKUP(M$6,LookupTables!$K$4:$L$14,2,FALSE) -> 0 | O7: =IF(N7<0.01,0,interp(INDIRECT("'DCM1 MPM-Woo'!O"&O$3&":O"&P$3),INDIRECT("'DCM1 MPM-Woo'!AA"&O$3&":AA"&P$3),N7,3)) -> 0 | Q7: 0 | R7: 0 | S7: =Q7*VLOOKUP(Q$6,LookupTables!$K$4:$L$14,2,FALSE)+R7*VLOOKUP(R$6,LookupTables!$K$4:$L$14,2,FALSE) -> 0 | T7: =IF(S7<0.01,0,interp(INDIRECT("'DCM1 MPM-Woo'!O"&T$3&":O"&U$3),INDIRECT("'DCM1 MPM-Woo'!AA"&T$3&":AA"&U$3),S7,3)) -> 0 | V7: 0 | W7: 0 | X7: =V7*VLOOKUP(V$6,LookupTables!$K$4:$L$14,2,FALSE)+W7*VLOOKUP(W$6,LookupTables!$K$4:$L$14,2,FALSE) -> 0 | Y7: =IF(X7<0.01,0,interp(INDIRECT("'DCM1 MPM-Woo'!O"&Y$3&":O"&Z$3),INDIRECT("'DCM1 MPM-Woo'!AA"&Y$3&":AA"&Z$3),X7,3)) -> 0 | AA7: 0 | AB7: 0 | AC7: =AA7*VLOOKUP(AA$6,LookupTables!$K$4:$L$14,2,FALSE)+AB7*VLOOKUP(AB$6,LookupTables!$K$4:$L$14,2,FALSE) -> 0 | AD7: =IF(AC7<0.01,0,interp(INDIRECT("'DCM1 MPM-Woo'!O"&AD$3&":O"&AE$3),INDIRECT("'DCM1 MPM-Woo'!AA"&AD$3&":AA"&AE$3),AC7,3)) -> 0 | AF7: 0 | AG7: =IF(AF7<0.01,0,interp(INDIRECT("'DCM1 MPM-Woo'!O"&AG$3&":O"&AH$3),INDIRECT("'DCM1 MPM-Woo'!AA"&AG$3&":AA"&AH$3),AF7,3)) -> 0 | AI7: 0 | AJ7: =IF(AI7<0.01,0,interp(INDIRECT("'DCM1 MPM-Woo'!O"&AJ$3&":O"&AK$3),INDIRECT("'DCM1 MPM-Woo'!AA"&AJ$3&":AA"&AK$3),AI7,3)) -> 0 | AL7: 0 | AM7: =IF(AL7<0.01,0,interp(INDIRECT("'DCM1 MPM-Woo'!O"&AM$3&":O"&AN$3),INDIRECT("'DCM1 MPM-Woo'!AA"&AM$3&":AA"&AN$3),AL7,3)) -> 0 | AO7: 0 | AP7: =IF(AO7<0.01,0,interp(INDIRECT("'DCM1 MPM-Woo'!O"&AP$3&":O"&AQ$3),INDIRECT("'DCM1 MPM-Woo'!AA"&AP$3&":AA"&AQ$3),AO7,3)) -> 0 | AR7: 0 | AS7: =IF(AR7<0.01,0,interp(INDIRECT("'DCM1 MPM-Woo'!O"&AS$3&":O"&AT$3),INDIRECT("'DCM1 MPM-Woo'!AA"&AS$3&":AA"&AT$3),AR7,3)) -> 0 | AU7: 0 | AV7: =IF(AU7<0.01,0,interp(INDIRECT("'DCM1 MPM-Woo'!O"&AV$3&":O"&AW$3),INDIRECT("'DCM1 MPM-Woo'!AA"&AV$3&":AA"&AW$3),AU7,3)) -> 0 | AX7: 0 | AY7: =IF(AX7<0.01,0,interp(INDIRECT("'DCM1 MPM-Woo'!O"&AY$3&":O"&AZ$3),INDIRECT("'DCM1 MPM-Woo'!AA"&AY$3&":AA"&AZ$3),AX7,3)) -> 0 | BA7: 0 | BB7: =IF(BA7<0.01,0,interp(INDIRECT("'DCM1 MPM-Woo'!O"&BB$3&":O"&BC$3),INDIRECT("'DCM1 MPM-Woo'!AA"&BB$3&":AA"&BC$3),BA7,3)) -> 0 | BD7: 0 | BE7: =IF(BD7<0.01,0,interp(INDIRECT("'DCM1 MPM-Woo'!O"&BE$3&":O"&BF$3),INDIRECT("'DCM1 MPM-Woo'!AA"&BE$3&":AA"&BF$3),BD7,3)) -> 0 | BG7: 0 | BH7: =IF(BG7<0.01,0,interp(INDIRECT("'DCM1 MPM-Woo'!O"&BH$3&":O"&BI$3),INDIRECT("'DCM1 MPM-Woo'!AA"&BH$3&":AA"&BI$3),BG7,3)) -> 0 | BJ7: 0 | BK7: =IF(BJ7<0.01,0,interp(INDIRECT("'DCM1 MPM-Woo'!O"&BK$3&":O"&BL$3),INDIRECT("'DCM1 MPM-Woo'!AA"&BK$3&":AA"&BL$3),BJ7,3)) -> 0 | BN7: =IF(BM7<0.01,0,interp(INDIRECT("'DCM1 MPM-Woo'!O"&BN$3&":O"&BO$3),INDIRECT("'DCM1 MPM-Woo'!AA"&BN$3&":AA"&BO$3),BM7,3)) -> 0 | BP7: 0 | BQ7: =IF(BP7<0.01,0,interp(INDIRECT("'DCM1 MPM-Woo'!O"&BQ$3&":O"&BR$3),INDIRECT("'DCM1 MPM-Woo'!AA"&BQ$3&":AA"&BR$3),BP7,3)) -> 0 | BS7: 0 | BT7: =IF(BS7<0.01,0,interp(INDIRECT("'DCM1 MPM-Woo'!O"&BT$3&":O"&BU$3),INDIRECT("'DCM1 MPM-Woo'!AA"&BT$3&":AA"&BU$3),BS7,3)) -> 0 | BV7: 0 | BW7: =IF(BV7<0.01,0,interp(INDIRECT("'DCM1 MPM-Woo'!O"&BW$3&":O"&BX$3),INDIRECT("'DCM1 MPM-Woo'!AA"&BW$3&":AA"&BX$3),BV7,3)) -> 0 | BY7: 0 | BZ7: =IF(BY7<0.01,0,interp(INDIRECT("'DCM1 MPM-Woo'!O"&BZ$3&":O"&CA$3),INDIRECT("'DCM1 MPM-Woo'!AA"&BZ$3&":AA"&CA$3),BY7,3)) -> 0 | CB7: 0 | CC7: =IF(CB7<0.01,0,interp(INDIRECT("'DCM1 MPM-Woo'!O"&CC$3&":O"&CD$3),INDIRECT("'DCM1 MPM-Woo'!AA"&CC$3&":AA"&CD$3),CB7,3)) -> 0 | CE7: 0 | CF7: =IF(CE7<0.01,0,interp(INDIRECT("'DCM1 MPM-Woo'!O"&CF$3&":O"&CG$3),INDIRECT("'DCM1 MPM-Woo'!AA"&CF$3&":AA"&CG$3),CE7,3)) -> 0 | CH7: 0 | CI7: =IF(CH7<0.01,0,interp(INDIRECT("'DCM1 MPM-Woo'!O"&CI$3&":O"&CJ$3),INDIRECT("'DCM1 MPM-Woo'!AA"&CI$3&":AA"&CJ$3),CH7,3)) -> 0 | CK7: 0 | CL7: =IF(CK7<0.01,0,interp(INDIRECT("'DCM1 MPM-Woo'!O"&CL$3&":O"&CM$3),INDIRECT("'DCM1 MPM-Woo'!AA"&CL$3&":AA"&CM$3),CK7,3)) -> 0 | CN7: 0 | CO7: =IF(CN7<0.01,0,interp(INDIRECT("'DCM1 MPM-Woo'!O"&CO$3&":O"&CP$3),INDIRECT("'DCM1 MPM-Woo'!AA"&CO$3&":AA"&CP$3),CN7,3)) -> 0 | CQ7: 0 | CR7: =IF(CQ7<0.01,0,interp(INDIRECT("'DCM1 MPM-Woo'!O"&CR$3&":O"&CS$3),INDIRECT("'DCM1 MPM-Woo'!AA"&CR$3&":AA"&CS$3),CQ7,3)) -> 0 | CT7: 0 | CU7: =IF(CT7<0.01,0,interp(INDIRECT("'DCM1 MPM-Woo'!O"&CU$3&":O"&CV$3),INDIRECT("'DCM1 MPM-Woo'!AA"&CU$3&":AA"&CV$3),CT7,3)) -> 0 | CW7: 0 | CX7: =IF(CW7<0.01,0,interp(INDIRECT("'DCM1 MPM-Woo'!O"&CX$3&":O"&CY$3),INDIRECT("'DCM1 MPM-Woo'!AA"&CX$3&":AA"&CY$3),CW7,3)) -> 0 | CZ7: 0 | DA7: =IF(CZ7<0.01,0,interp(INDIRECT("'DCM1 MPM-Woo'!O"&DA$3&":O"&DB$3),INDIRECT("'DCM1 MPM-Woo'!AA"&DA$3&":AA"&DB$3),CZ7,3)) -> 0 | DC7: 0 | DD7: =IF(DC7<0.01,0,interp(INDIRECT("'DCM1 MPM-Woo'!O"&DD$3&":O"&DE$3),INDIRECT("'DCM1 MPM-Woo'!AA"&DD$3&":AA"&DE$3),DC7,3)) -> 0 | DF7: 0 | DG7: =IF(DF7<0.01,0,interp(INDIRECT("'DCM1 MPM-Woo'!O"&DG$3&":O"&DH$3),INDIRECT("'DCM1 MPM-Woo'!AA"&DG$3&":AA"&DH$3),DF7,3)) -> 0 | DI7: 0 | DJ7: =IF(DI7<0.01,0,interp(INDIRECT("'DCM1 MPM-Woo'!O"&DJ$3&":O"&DK$3),INDIRECT("'DCM1 MPM-Woo'!AA"&DJ$3&":AA"&DK$3),DI7,3)) -> 0 | DL7: 0 | DM7: =IF(DL7<0.01,0,interp(INDIRECT("'DCM1 MPM-Woo'!O"&DM$3&":O"&DN$3),INDIRECT("'DCM1 MPM-Woo'!AA"&DM$3&":AA"&DN$3),DL7,3)) -> 0 | DO7: 0 | DP7: =IF(DO7<0.01,0,interp(INDIRECT("'DCM1 MPM-Woo'!O"&DP$3&":O"&DQ$3),INDIRECT("'DCM1 MPM-Woo'!AA"&DP$3&":AA"&DQ$3),DO7,3)) -> 0 | DR7: 0 | DS7: =IF(DR7<0.01,0,interp(INDIRECT("'DCM1 MPM-Woo'!O"&DS$3&":O"&DT$3),INDIRECT("'DCM1 MPM-Woo'!AA"&DS$3&":AA"&DT$3),DR7,3)) -> 0 | DU7: 0 | DV7: =IF(DU7<0.01,0,interp(INDIRECT("'DCM1 MPM-Woo'!O"&DV$3&":O"&DW$3),INDIRECT("'DCM1 MPM-Woo'!AA"&DV$3&":AA"&DW$3),DU7,3)) -> 0 | DX7: 0 | DY7: =IF(DX7<0.01,0,interp(INDIRECT("'DCM1 MPM-Woo'!O"&DY$3&":O"&DZ$3),INDIRECT("'DCM1 MPM-Woo'!AA"&DY$3&":AA"&DZ$3),DX7,3)) -> 0 | EA7: 0 | EB7: =IF(EA7<0.01,0,interp(INDIRECT("'DCM1 MPM-Woo'!O"&EB$3&":O"&EC$3),INDIRECT("'DCM1 MPM-Woo'!AA"&EB$3&":AA"&EC$3),EA7,3)) -> 0 | ED7: 0 | EE7: =IF(ED7<0.01,0,interp(INDIRECT("'DCM1 MPM-Woo'!O"&EE$3&":O"&EF$3),INDIRECT("'DCM1 MPM-Woo'!AA"&EE$3&":AA"&EF$3),ED7,3)) -> 0 | EG7: 0 | EH7: =IF(EG7<0.01,0,interp(INDIRECT("'DCM1 MPM-Woo'!O"&EH$3&":O"&EI$3),INDIRECT("'DCM1 MPM-Woo'!AA"&EH$3&":AA"&EI$3),EG7,3)) -> 0 | EJ7: 0 | EK7: 0 | EL7: =EJ7*VLOOKUP(EJ$6,LookupTables!$K$4:$L$14,2,FALSE)+EK7*VLOOKUP(EK$6,LookupTables!$K$4:$L$14,2,FALSE) -> 0 | EM7: =IF(EL7<0.01,0,interp(INDIRECT("'DCM1 MPM-Woo'!O"&EM$3&":O"&EN$3),INDIRECT("'DCM1 MPM-Woo'!AA"&EM$3&":AA"&EN$3),EL7,3)) -> 0 | EO7: 0 | EP7: 0 | EQ7: =EO7*VLOOKUP(EO$6,LookupTables!$K$4:$L$14,2,FALSE)+EP7*VLOOKUP(EP$6,LookupTables!$K$4:$L$14,2,FALSE) -> 0 | ER7: =IF(EQ7<0.01,0,interp(INDIRECT("'DCM1 MPM-Woo'!O"&ER$3&":O"&ES$3),INDIRECT("'DCM1 MPM-Woo'!AA"&ER$3&":AA"&ES$3),EQ7,3)) -> 0 | ET7: 0 | EU7: 0 | EV7: =ET7*VLOOKUP(ET$6,LookupTables!$K$4:$L$14,2,FALSE)+EU7*VLOOKUP(EU$6,LookupTables!$K$4:$L$14,2,FALSE) -> 0 | EW7: =IF(EV7<0.01,0,interp(INDIRECT("'DCM1 MPM-Woo'!O"&EW$3&":O"&EX$3),INDIRECT("'DCM1 MPM-Woo'!AA"&EW$3&":AA"&EX$3),EV7,3)) -> 0 | EY7: 0 | EZ7: 0 | FA7: =EY7*VLOOKUP(EY$6,LookupTables!$K$4:$L$14,2,FALSE)+EZ7*VLOOKUP(EZ$6,LookupTables!$K$4:$L$14,2,FALSE) -> 0 | FB7: =IF(FA7<0.01,0,interp(INDIRECT("'DCM1 MPM-Woo'!O"&FB$3&":O"&FC$3),INDIRECT("'DCM1 MPM-Woo'!AA"&FB$3&":AA"&FC$3),FA7,3)) -> 0 | FD7: 0 | FE7: 0 | FF7: =FD7*VLOOKUP(FD$6,LookupTables!$K$4:$L$14,2,FALSE)+FE7*VLOOKUP(FE$6,LookupTables!$K$4:$L$14,2,FALSE) -> 0 | FG7: =IF(FF7<0.01,0,interp(INDIRECT("'DCM1 MPM-Woo'!O"&FG$3&":O"&FH$3),INDIRECT("'DCM1 MPM-Woo'!AA"&FG$3&":AA"&FH$3),FF7,3)) -> 0 | FI7: 0 | FJ7: 0 | FK7: =FI7*VLOOKUP(FI$6,LookupTables!$K$4:$L$14,2,FALSE)+FJ7*VLOOKUP(FJ$6,LookupTables!$K$4:$L$14,2,FALSE) -> 0 | FL7: =IF(FK7<0.01,0,interp(INDIRECT("'DCM1 MPM-Woo'!O"&FL$3&":O"&FM$3),INDIRECT("'DCM1 MPM-Woo'!AA"&FL$3&":AA"&FM$3),FK7,3)) -> 0 | FN7: 0 | FO7: =IF(FN7<0.01,0,interp(INDIRECT("'DCM1 MPM-Woo'!O"&FO$3&":O"&FP$3),INDIRECT("'DCM1 MPM-Woo'!AA"&FO$3&":AA"&FP$3),FN7,3)) -> 0 | FQ7: 0 | FR7: =IF(FQ7<0.01,0,interp(INDIRECT("'DCM1 MPM-Woo'!O"&FR$3&":O"&FS$3),INDIRECT("'DCM1 MPM-Woo'!AA"&FR$3&":AA"&FS$3),FQ7,3)) -> 0 | FT7: 0 | FU7: =IF(FT7<0.01,0,interp(INDIRECT("'DCM1 MPM-Woo'!O"&FU$3&":O"&FV$3),INDIRECT("'DCM1 MPM-Woo'!AA"&FU$3&":AA"&FV$3),FT7,3)) -> 0 | FW7: 0 | FX7: =IF(FW7<0.01,0,interp(INDIRECT("'DCM1 MPM-Woo'!O"&FX$3&":O"&FY$3),INDIRECT("'DCM1 MPM-Woo'!AA"&FX$3&":AA"&FY$3),FW7,3)) -> 0 | FZ7: 0 | GA7: =IF(FZ7<0.01,0,interp(INDIRECT("'DCM1 MPM-Woo'!O"&GA$3&":O"&GB$3),INDIRECT("'DCM1 MPM-Woo'!AA"&GA$3&":AA"&GB$3),FZ7,3)) -> 0 | GC7: 0 | GD7: =IF(GC7<0.01,0,interp(INDIRECT("'DCM1 MPM-Woo'!O"&GD$3&":O"&GE$3),INDIRECT("'DCM1 MPM-Woo'!AA"&GD$3&":AA"&GE$3),GC7,3)) -> 0 | GF7: 0 | GG7: =IF(GF7<0.01,0,interp(INDIRECT("'DCM1 MPM-Woo'!O"&GG$3&":O"&GH$3),INDIRECT("'DCM1 MPM-Woo'!AA"&GG$3&":AA"&GH$3),GF7,3)) -> 0 | GI7: 0 | GJ7: =IF(GI7<0.01,0,interp(INDIRECT("'DCM1 MPM-Woo'!O"&GJ$3&":O"&GK$3),INDIRECT("'DCM1 MPM-Woo'!AA"&GJ$3&":AA"&GK$3),GI7,3)) -> 0 | GL7: 0 | GM7: =IF(GL7<0.01,0,interp(INDIRECT("'DCM1 MPM-Woo'!O"&GM$3&":O"&GN$3),INDIRECT("'DCM1 MPM-Woo'!AA"&GM$3&":AA"&GN$3),GL7,3)) -> 0 | GO7: 0 | GP7: =IF(GO7<0.01,0,interp(INDIRECT("'DCM1 MPM-Woo'!O"&GP$3&":O"&GQ$3),INDIRECT("'DCM1 MPM-Woo'!AA"&GP$3&":AA"&GQ$3),GO7,3)) -> 0 | GR7: 0 | GS7: =IF(GR7<0.01,0,interp(INDIRECT("'DCM1 MPM-Woo'!O"&GS$3&":O"&GT$3),INDIRECT("'DCM1 MPM-Woo'!AA"&GS$3&":AA"&GT$3),GR7,3)) -> 0 | GU7: 0 | GV7: =IF(GU7<0.01,0,interp(INDIRECT("'DCM1 MPM-Woo'!O"&GV$3&":O"&GW$3),INDIRECT("'DCM1 MPM-Woo'!AA"&GV$3&":AA"&GW$3),GU7,3)) -> 0
A8: 2 | B8: 0 | C8: 0 | D8: =B8*VLOOKUP(B$6,LookupTables!$K$4:$L$14,2,FALSE)+C8*VLOOKUP(C$6,LookupTables!$K$4:$L$14,2,FALSE) -> 0 | E8: =IF(D8<0.01,0,interp(INDIRECT("'DCM1 MPM-Woo'!O"&E$3&":O"&F$3),INDIRECT("'DCM1 MPM-Woo'!AA"&E$3&":AA"&F$3),D8,3)) -> 0 | F8: =E8*($A8-$A7)/(24*60) -> 0 | G8: 0 | H8: 0 | I8: =G8*VLOOKUP(G$6,LookupTables!$K$4:$L$14,2,FALSE)+H8*VLOOKUP(H$6,LookupTables!$K$4:$L$14,2,FALSE) -> 0 | J8: =IF(I8<0.01,0,interp(INDIRECT("'DCM1 MPM-Woo'!O"&J$3&":O"&K$3),INDIRECT("'DCM1 MPM-Woo'!AA"&J$3&":AA"&K$3),I8,3)) -> 0 | K8: =J8*($A8-$A7)/(24*60) -> 0 | L8: 0 | M8: 0 | N8: =L8*VLOOKUP(L$6,LookupTables!$K$4:$L$14,2,FALSE)+M8*VLOOKUP(M$6,LookupTables!$K$4:$L$14,2,FALSE) -> 0 | O8: =IF(N8<0.01,0,interp(INDIRECT("'DCM1 MPM-Woo'!O"&O$3&":O"&P$3),INDIRECT("'DCM1 MPM-Woo'!AA"&O$3&":AA"&P$3),N8,3)) -> 0 | P8: =O8*($A8-$A7)/(24*60) -> 0 | Q8: 0 | R8: 0 | S8: =Q8*VLOOKUP(Q$6,LookupTables!$K$4:$L$14,2,FALSE)+R8*VLOOKUP(R$6,LookupTables!$K$4:$L$14,2,FALSE) -> 0 | T8: =IF(S8<0.01,0,interp(INDIRECT("'DCM1 MPM-Woo'!O"&T$3&":O"&U$3),INDIRECT("'DCM1 MPM-Woo'!AA"&T$3&":AA"&U$3),S8,3)) -> 0 | U8: =T8*($A8-$A7)/(24*60) -> 0 | V8: 0 | W8: 0 | X8: =V8*VLOOKUP(V$6,LookupTables!$K$4:$L$14,2,FALSE)+W8*VLOOKUP(W$6,LookupTables!$K$4:$L$14,2,FALSE) -> 0 | Y8: =IF(X8<0.01,0,interp(INDIRECT("'DCM1 MPM-Woo'!O"&Y$3&":O"&Z$3),INDIRECT("'DCM1 MPM-Woo'!AA"&Y$3&":AA"&Z$3),X8,3)) -> 0 | Z8: =Y8*($A8-$A7)/(24*60) -> 0 | AA8: 0 | AB8: 0 | AC8: =AA8*VLOOKUP(AA$6,LookupTables!$K$4:$L$14,2,FALSE)+AB8*VLOOKUP(AB$6,LookupTables!$K$4:$L$14,2,FALSE) -> 0 | AD8: =IF(AC8<0.01,0,interp(INDIRECT("'DCM1 MPM-Woo'!O"&AD$3&":O"&AE$3),INDIRECT("'DCM1 MPM-Woo'!AA"&AD$3&":AA"&AE$3),AC8,3)) -> 0 | AE8: =AD8*($A8-$A7)/(24*60) -> 0 | AF8: 0 | AG8: =IF(AF8<0.01,0,interp(INDIRECT("'DCM1 MPM-Woo'!O"&AG$3&":O"&AH$3),INDIRECT("'DCM1 MPM-Woo'!AA"&AG$3&":AA"&AH$3),AF8,3)) -> 0 | AH8: =AG8*($A8-$A7)/(24*60) -> 0 | AI8: 0 | AJ8: =IF(AI8<0.01,0,interp(INDIRECT("'DCM1 MPM-Woo'!O"&AJ$3&":O"&AK$3),INDIRECT("'DCM1 MPM-Woo'!AA"&AJ$3&":AA"&AK$3),AI8,3)) -> 0 | AK8: =AJ8*($A8-$A7)/(24*60) -> 0 | AL8: 0 | AM8: =IF(AL8<0.01,0,interp(INDIRECT("'DCM1 MPM-Woo'!O"&AM$3&":O"&AN$3),INDIRECT("'DCM1 MPM-Woo'!AA"&AM$3&":AA"&AN$3),AL8,3)) -> 0 | AN8: =AM8*($A8-$A7)/(24*60) -> 0 | AO8: 0 | AP8: =IF(AO8<0.01,0,interp(INDIRECT("'DCM1 MPM-Woo'!O"&AP$3&":O"&AQ$3),INDIRECT("'DCM1 MPM-Woo'!AA"&AP$3&":AA"&AQ$3),AO8,3)) -> 0 | AQ8: =AP8*($A8-$A7)/(24*60) -> 0 | AR8: 0 | AS8: =IF(AR8<0.01,0,interp(INDIRECT("'DCM1 MPM-Woo'!O"&AS$3&":O"&AT$3),INDIRECT("'DCM1 MPM-Woo'!AA"&AS$3&":AA"&AT$3),AR8,3)) -> 0 | AT8: =AS8*($A8-$A7)/(24*60) -> 0 | AU8: 0 | AV8: =IF(AU8<0.01,0,interp(INDIRECT("'DCM1 MPM-Woo'!O"&AV$3&":O"&AW$3),INDIRECT("'DCM1 MPM-Woo'!AA"&AV$3&":AA"&AW$3),AU8,3)) -> 0 | AW8: =AV8*($A8-$A7)/(24*60) -> 0 | AX8: 0 | AY8: =IF(AX8<0.01,0,interp(INDIRECT("'DCM1 MPM-Woo'!O"&AY$3&":O"&AZ$3),INDIRECT("'DCM1 MPM-Woo'!AA"&AY$3&":AA"&AZ$3),AX8,3)) -> 0 | AZ8: =AY8*($A8-$A7)/(24*60) -> 0 | BA8: 0 | BB8: =IF(BA8<0.01,0,interp(INDIRECT("'DCM1 MPM-Woo'!O"&BB$3&":O"&BC$3),INDIRECT("'DCM1 MPM-Woo'!AA"&BB$3&":AA"&BC$3),BA8,3)) -> 0 | BC8: =BB8*($A8-$A7)/(24*60) -> 0 | BD8: 0 | BE8: =IF(BD8<0.01,0,interp(INDIRECT("'DCM1 MPM-Woo'!O"&BE$3&":O"&BF$3),INDIRECT("'DCM1 MPM-Woo'!AA"&BE$3&":AA"&BF$3),BD8,3)) -> 0 | BF8: =BE8*($A8-$A7)/(24*60) -> 0 | BG8: 0 | BH8: =IF(BG8<0.01,0,interp(INDIRECT("'DCM1 MPM-Woo'!O"&BH$3&":O"&BI$3),INDIRECT("'DCM1 MPM-Woo'!AA"&BH$3&":AA"&BI$3),BG8,3)) -> 0 | BI8: =BH8*($A8-$A7)/(24*60) -> 0 | BJ8: 0 | BK8: =IF(BJ8<0.01,0,interp(INDIRECT("'DCM1 MPM-Woo'!O"&BK$3&":O"&BL$3),INDIRECT("'DCM1 MPM-Woo'!AA"&BK$3&":AA"&BL$3),BJ8,3)) -> 0 | BL8: =BK8*($A8-$A7)/(24*60) -> 0 | BN8: =IF(BM8<0.01,0,interp(INDIRECT("'DCM1 MPM-Woo'!O"&BN$3&":O"&BO$3),INDIRECT("'DCM1 MPM-Woo'!AA"&BN$3&":AA"&BO$3),BM8,3)) -> 0 | BO8: =BN8*($A8-$A7)/(24*60) -> 0 | BP8: 0 | BQ8: =IF(BP8<0.01,0,interp(INDIRECT("'DCM1 MPM-Woo'!O"&BQ$3&":O"&BR$3),INDIRECT("'DCM1 MPM-Woo'!AA"&BQ$3&":AA"&BR$3),BP8,3)) -> 0 | BR8: =BQ8*($A8-$A7)/(24*60) -> 0 | BS8: 0 | BT8: =IF(BS8<0.01,0,interp(INDIRECT("'DCM1 MPM-Woo'!O"&BT$3&":O"&BU$3),INDIRECT("'DCM1 MPM-Woo'!AA"&BT$3&":AA"&BU$3),BS8,3)) -> 0 | BU8: =BT8*($A8-$A7)/(24*60) -> 0 | BV8: 0 | BW8: =IF(BV8<0.01,0,interp(INDIRECT("'DCM1 MPM-Woo'!O"&BW$3&":O"&BX$3),INDIRECT("'DCM1 MPM-Woo'!AA"&BW$3&":AA"&BX$3),BV8,3)) -> 0 | BX8: =BW8*($A8-$A7)/(24*60) -> 0 | BY8: 0 | BZ8: =IF(BY8<0.01,0,interp(INDIRECT("'DCM1 MPM-Woo'!O"&BZ$3&":O"&CA$3),INDIRECT("'DCM1 MPM-Woo'!AA"&BZ$3&":AA"&CA$3),BY8,3)) -> 0 | CA8: =BZ8*($A8-$A7)/(24*60) -> 0 | CB8: 0 | CC8: =IF(CB8<0.01,0,interp(INDIRECT("'DCM1 MPM-Woo'!O"&CC$3&":O"&CD$3),INDIRECT("'DCM1 MPM-Woo'!AA"&CC$3&":AA"&CD$3),CB8,3)) -> 0 | CD8: =CC8*($A8-$A7)/(24*60) -> 0 | CE8: 0 | CF8: =IF(CE8<0.01,0,interp(INDIRECT("'DCM1 MPM-Woo'!O"&CF$3&":O"&CG$3),INDIRECT("'DCM1 MPM-Woo'!AA"&CF$3&":AA"&CG$3),CE8,3)) -> 0 | CG8: =CF8*($A8-$A7)/(24*60) -> 0 | CH8: 0 | CI8: =IF(CH8<0.01,0,interp(INDIRECT("'DCM1 MPM-Woo'!O"&CI$3&":O"&CJ$3),INDIRECT("'DCM1 MPM-Woo'!AA"&CI$3&":AA"&CJ$3),CH8,3)) -> 0 | CJ8: =CI8*($A8-$A7)/(24*60) -> 0 | CK8: 0 | CL8: =IF(CK8<0.01,0,interp(INDIRECT("'DCM1 MPM-Woo'!O"&CL$3&":O"&CM$3),INDIRECT("'DCM1 MPM-Woo'!AA"&CL$3&":AA"&CM$3),CK8,3)) -> 0 | CM8: =CL8*($A8-$A7)/(24*60) -> 0 | CN8: 0 | CO8: =IF(CN8<0.01,0,interp(INDIRECT("'DCM1 MPM-Woo'!O"&CO$3&":O"&CP$3),INDIRECT("'DCM1 MPM-Woo'!AA"&CO$3&":AA"&CP$3),CN8,3)) -> 0 | CP8: =CO8*($A8-$A7)/(24*60) -> 0 | CQ8: 0 | CR8: =IF(CQ8<0.01,0,interp(INDIRECT("'DCM1 MPM-Woo'!O"&CR$3&":O"&CS$3),INDIRECT("'DCM1 MPM-Woo'!AA"&CR$3&":AA"&CS$3),CQ8,3)) -> 0 | CS8: =CR8*($A8-$A7)/(24*60) -> 0 | CT8: 0 | CU8: =IF(CT8<0.01,0,interp(INDIRECT("'DCM1 MPM-Woo'!O"&CU$3&":O"&CV$3),INDIRECT("'DCM1 MPM-Woo'!AA"&CU$3&":AA"&CV$3),CT8,3)) -> 0 | CV8: =CU8*($A8-$A7)/(24*60) -> 0 | CW8: 0 | CX8: =IF(CW8<0.01,0,interp(INDIRECT("'DCM1 MPM-Woo'!O"&CX$3&":O"&CY$3),INDIRECT("'DCM1 MPM-Woo'!AA"&CX$3&":AA"&CY$3),CW8,3)) -> 0 | CY8: =CX8*($A8-$A7)/(24*60) -> 0 | CZ8: 0 | DA8: =IF(CZ8<0.01,0,interp(INDIRECT("'DCM1 MPM-Woo'!O"&DA$3&":O"&DB$3),INDIRECT("'DCM1 MPM-Woo'!AA"&DA$3&":AA"&DB$3),CZ8,3)) -> 0 | DB8: =DA8*($A8-$A7)/(24*60) -> 0 | DC8: 0 | DD8: =IF(DC8<0.01,0,interp(INDIRECT("'DCM1 MPM-Woo'!O"&DD$3&":O"&DE$3),INDIRECT("'DCM1 MPM-Woo'!AA"&DD$3&":AA"&DE$3),DC8,3)) -> 0 | DE8: =DD8*($A8-$A7)/(24*60) -> 0 | DF8: 0 | DG8: =IF(DF8<0.01,0,interp(INDIRECT("'DCM1 MPM-Woo'!O"&DG$3&":O"&DH$3),INDIRECT("'DCM1 MPM-Woo'!AA"&DG$3&":AA"&DH$3),DF8,3)) -> 0 | DH8: =DG8*($A8-$A7)/(24*60) -> 0 | DI8: 0 | DJ8: =IF(DI8<0.01,0,interp(INDIRECT("'DCM1 MPM-Woo'!O"&DJ$3&":O"&DK$3),INDIRECT("'DCM1 MPM-Woo'!AA"&DJ$3&":AA"&DK$3),DI8,3)) -> 0 | DK8: =DJ8*($A8-$A7)/(24*60) -> 0 | DL8: 0 | DM8: =IF(DL8<0.01,0,interp(INDIRECT("'DCM1 MPM-Woo'!O"&DM$3&":O"&DN$3),INDIRECT("'DCM1 MPM-Woo'!AA"&DM$3&":AA"&DN$3),DL8,3)) -> 0 | DN8: =DM8*($A8-$A7)/(24*60) -> 0 | DO8: 0 | DP8: =IF(DO8<0.01,0,interp(INDIRECT("'DCM1 MPM-Woo'!O"&DP$3&":O"&DQ$3),INDIRECT("'DCM1 MPM-Woo'!AA"&DP$3&":AA"&DQ$3),DO8,3)) -> 0 | DQ8: =DP8*($A8-$A7)/(24*60) -> 0 | DR8: 0 | DS8: =IF(DR8<0.01,0,interp(INDIRECT("'DCM1 MPM-Woo'!O"&DS$3&":O"&DT$3),INDIRECT("'DCM1 MPM-Woo'!AA"&DS$3&":AA"&DT$3),DR8,3)) -> 0 | DT8: =DS8*($A8-$A7)/(24*60) -> 0 | DU8: 0 | DV8: =IF(DU8<0.01,0,interp(INDIRECT("'DCM1 MPM-Woo'!O"&DV$3&":O"&DW$3),INDIRECT("'DCM1 MPM-Woo'!AA"&DV$3&":AA"&DW$3),DU8,3)) -> 0 | DW8: =DV8*($A8-$A7)/(24*60) -> 0 | DX8: 0 | DY8: =IF(DX8<0.01,0,interp(INDIRECT("'DCM1 MPM-Woo'!O"&DY$3&":O"&DZ$3),INDIRECT("'DCM1 MPM-Woo'!AA"&DY$3&":AA"&DZ$3),DX8,3)) -> 0 | DZ8: =DY8*($A8-$A7)/(24*60) -> 0 | EA8: 0 | EB8: =IF(EA8<0.01,0,interp(INDIRECT("'DCM1 MPM-Woo'!O"&EB$3&":O"&EC$3),INDIRECT("'DCM1 MPM-Woo'!AA"&EB$3&":AA"&EC$3),EA8,3)) -> 0 | EC8: =EB8*($A8-$A7)/(24*60) -> 0 | ED8: 0 | EE8: =IF(ED8<0.01,0,interp(INDIRECT("'DCM1 MPM-Woo'!O"&EE$3&":O"&EF$3),INDIRECT("'DCM1 MPM-Woo'!AA"&EE$3&":AA"&EF$3),ED8,3)) -> 0 | EF8: =EE8*($A8-$A7)/(24*60) -> 0 | EG8: 0 | EH8: =IF(EG8<0.01,0,interp(INDIRECT("'DCM1 MPM-Woo'!O"&EH$3&":O"&EI$3),INDIRECT("'DCM1 MPM-Woo'!AA"&EH$3&":AA"&EI$3),EG8,3)) -> 0 | EI8: =EH8*($A8-$A7)/(24*60) -> 0 | EJ8: 0 | EK8: 0 | EL8: =EJ8*VLOOKUP(EJ$6,LookupTables!$K$4:$L$14,2,FALSE)+EK8*VLOOKUP(EK$6,LookupTables!$K$4:$L$14,2,FALSE) -> 0 | EM8: =IF(EL8<0.01,0,interp(INDIRECT("'DCM1 MPM-Woo'!O"&EM$3&":O"&EN$3),INDIRECT("'DCM1 MPM-Woo'!AA"&EM$3&":AA"&EN$3),EL8,3)) -> 0 | EN8: =EM8*($A8-$A7)/(24*60) -> 0 | EO8: 0 | EP8: 0 | EQ8: =EO8*VLOOKUP(EO$6,LookupTables!$K$4:$L$14,2,FALSE)+EP8*VLOOKUP(EP$6,LookupTables!$K$4:$L$14,2,FALSE) -> 0 | ER8: =IF(EQ8<0.01,0,interp(INDIRECT("'DCM1 MPM-Woo'!O"&ER$3&":O"&ES$3),INDIRECT("'DCM1 MPM-Woo'!AA"&ER$3&":AA"&ES$3),EQ8,3)) -> 0 | ES8: =ER8*($A8-$A7)/(24*60) -> 0 | ET8: 0 | EU8: 0 | EV8: =ET8*VLOOKUP(ET$6,LookupTables!$K$4:$L$14,2,FALSE)+EU8*VLOOKUP(EU$6,LookupTables!$K$4:$L$14,2,FALSE) -> 0 | EW8: =IF(EV8<0.01,0,interp(INDIRECT("'DCM1 MPM-Woo'!O"&EW$3&":O"&EX$3),INDIRECT("'DCM1 MPM-Woo'!AA"&EW$3&":AA"&EX$3),EV8,3)) -> 0 | EX8: =EW8*($A8-$A7)/(24*60) -> 0 | EY8: 0 | EZ8: 0 | FA8: =EY8*VLOOKUP(EY$6,LookupTables!$K$4:$L$14,2,FALSE)+EZ8*VLOOKUP(EZ$6,LookupTables!$K$4:$L$14,2,FALSE) -> 0 | FB8: =IF(FA8<0.01,0,interp(INDIRECT("'DCM1 MPM-Woo'!O"&FB$3&":O"&FC$3),INDIRECT("'DCM1 MPM-Woo'!AA"&FB$3&":AA"&FC$3),FA8,3)) -> 0 | FC8: =FB8*($A8-$A7)/(24*60) -> 0 | FD8: 0 | FE8: 0 | FF8: =FD8*VLOOKUP(FD$6,LookupTables!$K$4:$L$14,2,FALSE)+FE8*VLOOKUP(FE$6,LookupTables!$K$4:$L$14,2,FALSE) -> 0 | FG8: =IF(FF8<0.01,0,interp(INDIRECT("'DCM1 MPM-Woo'!O"&FG$3&":O"&FH$3),INDIRECT("'DCM1 MPM-Woo'!AA"&FG$3&":AA"&FH$3),FF8,3)) -> 0 | FH8: =FG8*($A8-$A7)/(24*60) -> 0 | FI8: 0 | FJ8: 0 | FK8: =FI8*VLOOKUP(FI$6,LookupTables!$K$4:$L$14,2,FALSE)+FJ8*VLOOKUP(FJ$6,LookupTables!$K$4:$L$14,2,FALSE) -> 0 | FL8: =IF(FK8<0.01,0,interp(INDIRECT("'DCM1 MPM-Woo'!O"&FL$3&":O"&FM$3),INDIRECT("'DCM1 MPM-Woo'!AA"&FL$3&":AA"&FM$3),FK8,3)) -> 0 | FM8: =FL8*($A8-$A7)/(24*60) -> 0 | FN8: 0 | FO8: =IF(FN8<0.01,0,interp(INDIRECT("'DCM1 MPM-Woo'!O"&FO$3&":O"&FP$3),INDIRECT("'DCM1 MPM-Woo'!AA"&FO$3&":AA"&FP$3),FN8,3)) -> 0 | FP8: =FO8*($A8-$A7)/(24*60) -> 0 | FQ8: 0 | FR8: =IF(FQ8<0.01,0,interp(INDIRECT("'DCM1 MPM-Woo'!O"&FR$3&":O"&FS$3),INDIRECT("'DCM1 MPM-Woo'!AA"&FR$3&":AA"&FS$3),FQ8,3)) -> 0 | FS8: =FR8*($A8-$A7)/(24*60) -> 0 | FT8: 0 | FU8: =IF(FT8<0.01,0,interp(INDIRECT("'DCM1 MPM-Woo'!O"&FU$3&":O"&FV$3),INDIRECT("'DCM1 MPM-Woo'!AA"&FU$3&":AA"&FV$3),FT8,3)) -> 0 | FV8: =FU8*($A8-$A7)/(24*60) -> 0 | FW8: 0 | FX8: =IF(FW8<0.01,0,interp(INDIRECT("'DCM1 MPM-Woo'!O"&FX$3&":O"&FY$3),INDIRECT("'DCM1 MPM-Woo'!AA"&FX$3&":AA"&FY$3),FW8,3)) -> 0 | FY8: =FX8*($A8-$A7)/(24*60) -> 0 | FZ8: 0 | GA8: =IF(FZ8<0.01,0,interp(INDIRECT("'DCM1 MPM-Woo'!O"&GA$3&":O"&GB$3),INDIRECT("'DCM1 MPM-Woo'!AA"&GA$3&":AA"&GB$3),FZ8,3)) -> 0 | GB8: =GA8*($A8-$A7)/(24*60) -> 0 | GC8: 0 | GD8: =IF(GC8<0.01,0,interp(INDIRECT("'DCM1 MPM-Woo'!O"&GD$3&":O"&GE$3),INDIRECT("'DCM1 MPM-Woo'!AA"&GD$3&":AA"&GE$3),GC8,3)) -> 0 | GE8: =GD8*($A8-$A7)/(24*60) -> 0 | GF8: 0 | GG8: =IF(GF8<0.01,0,interp(INDIRECT("'DCM1 MPM-Woo'!O"&GG$3&":O"&GH$3),INDIRECT("'DCM1 MPM-Woo'!AA"&GG$3&":AA"&GH$3),GF8,3)) -> 0 | GH8: =GG8*($A8-$A7)/(24*60) -> 0 | GI8: 0 | GJ8: =IF(GI8<0.01,0,interp(INDIRECT("'DCM1 MPM-Woo'!O"&GJ$3&":O"&GK$3),INDIRECT("'DCM1 MPM-Woo'!AA"&GJ$3&":AA"&GK$3),GI8,3)) -> 0 | GK8: =GJ8*($A8-$A7)/(24*60) -> 0 | GL8: 0 | GM8: =IF(GL8<0.01,0,interp(INDIRECT("'DCM1 MPM-Woo'!O"&GM$3&":O"&GN$3),INDIRECT("'DCM1 MPM-Woo'!AA"&GM$3&":AA"&GN$3),GL8,3)) -> 0 | GN8: =GM8*($A8-$A7)/(24*60) -> 0 | GO8: 0 | GP8: =IF(GO8<0.01,0,interp(INDIRECT("'DCM1 MPM-Woo'!O"&GP$3&":O"&GQ$3),INDIRECT("'DCM1 MPM-Woo'!AA"&GP$3&":AA"&GQ$3),GO8,3)) -> 0 | GQ8: =GP8*($A8-$A7)/(24*60) -> 0 | GR8: 0 | GS8: =IF(GR8<0.01,0,interp(INDIRECT("'DCM1 MPM-Woo'!O"&GS$3&":O"&GT$3),INDIRECT("'DCM1 MPM-Woo'!AA"&GS$3&":AA"&GT$3),GR8,3)) -> 0 | GT8: =GS8*($A8-$A7)/(24*60) -> 0 | GU8: 0 | GV8: =IF(GU8<0.01,0,interp(INDIRECT("'DCM1 MPM-Woo'!O"&GV$3&":O"&GW$3),INDIRECT("'DCM1 MPM-Woo'!AA"&GV$3&":AA"&GW$3),GU8,3)) -> 0 | GW8: =GV8*($A8-$A7)/(24*60) -> 0
A9: 3 | B9: 0 | C9: 0 | D9: =B9*VLOOKUP(B$6,LookupTables!$K$4:$L$14,2,FALSE)+C9*VLOOKUP(C$6,LookupTables!$K$4:$L$14,2,FALSE) -> 0 | E9: =IF(D9<0.01,0,interp(INDIRECT("'DCM1 MPM-Woo'!O"&E$3&":O"&F$3),INDIRECT("'DCM1 MPM-Woo'!AA"&E$3&":AA"&F$3),D9,3)) -> 0 | F9: =E9*($A9-$A8)/(24*60) -> 0 | G9: 0 | H9: 0 | I9: =G9*VLOOKUP(G$6,LookupTables!$K$4:$L$14,2,FALSE)+H9*VLOOKUP(H$6,LookupTables!$K$4:$L$14,2,FALSE) -> 0 | J9: =IF(I9<0.01,0,interp(INDIRECT("'DCM1 MPM-Woo'!O"&J$3&":O"&K$3),INDIRECT("'DCM1 MPM-Woo'!AA"&J$3&":AA"&K$3),I9,3)) -> 0 | K9: =J9*($A9-$A8)/(24*60) -> 0 | L9: 0 | M9: 0 | N9: =L9*VLOOKUP(L$6,LookupTables!$K$4:$L$14,2,FALSE)+M9*VLOOKUP(M$6,LookupTables!$K$4:$L$14,2,FALSE) -> 0 | O9: =IF(N9<0.01,0,interp(INDIRECT("'DCM1 MPM-Woo'!O"&O$3&":O"&P$3),INDIRECT("'DCM1 MPM-Woo'!AA"&O$3&":AA"&P$3),N9,3)) -> 0 | P9: =O9*($A9-$A8)/(24*60) -> 0 | Q9: 0 | R9: 0 | S9: =Q9*VLOOKUP(Q$6,LookupTables!$K$4:$L$14,2,FALSE)+R9*VLOOKUP(R$6,LookupTables!$K$4:$L$14,2,FALSE) -> 0 | T9: =IF(S9<0.01,0,interp(INDIRECT("'DCM1 MPM-Woo'!O"&T$3&":O"&U$3),INDIRECT("'DCM1 MPM-Woo'!AA"&T$3&":AA"&U$3),S9,3)) -> 0 | U9: =T9*($A9-$A8)/(24*60) -> 0 | V9: 0 | W9: 0 | X9: =V9*VLOOKUP(V$6,LookupTables!$K$4:$L$14,2,FALSE)+W9*VLOOKUP(W$6,LookupTables!$K$4:$L$14,2,FALSE) -> 0 | Y9: =IF(X9<0.01,0,interp(INDIRECT("'DCM1 MPM-Woo'!O"&Y$3&":O"&Z$3),INDIRECT("'DCM1 MPM-Woo'!AA"&Y$3&":AA"&Z$3),X9,3)) -> 0 | Z9: =Y9*($A9-$A8)/(24*60) -> 0 | AA9: 0 | AB9: 0 | AC9: =AA9*VLOOKUP(AA$6,LookupTables!$K$4:$L$14,2,FALSE)+AB9*VLOOKUP(AB$6,LookupTables!$K$4:$L$14,2,FALSE) -> 0 | AD9: =IF(AC9<0.01,0,interp(INDIRECT("'DCM1 MPM-Woo'!O"&AD$3&":O"&AE$3),INDIRECT("'DCM1 MPM-Woo'!AA"&AD$3&":AA"&AE$3),AC9,3)) -> 0 | AE9: =AD9*($A9-$A8)/(24*60) -> 0 | AF9: 0 | AG9: =IF(AF9<0.01,0,interp(INDIRECT("'DCM1 MPM-Woo'!O"&AG$3&":O"&AH$3),INDIRECT("'DCM1 MPM-Woo'!AA"&AG$3&":AA"&AH$3),AF9,3)) -> 0 | AH9: =AG9*($A9-$A8)/(24*60) -> 0 | AI9: 0 | AJ9: =IF(AI9<0.01,0,interp(INDIRECT("'DCM1 MPM-Woo'!O"&AJ$3&":O"&AK$3),INDIRECT("'DCM1 MPM-Woo'!AA"&AJ$3&":AA"&AK$3),AI9,3)) -> 0 | AK9: =AJ9*($A9-$A8)/(24*60) -> 0 | AL9: 0 | AM9: =IF(AL9<0.01,0,interp(INDIRECT("'DCM1 MPM-Woo'!O"&AM$3&":O"&AN$3),INDIRECT("'DCM1 MPM-Woo'!AA"&AM$3&":AA"&AN$3),AL9,3)) -> 0 | AN9: =AM9*($A9-$A8)/(24*60) -> 0 | AO9: 0 | AP9: =IF(AO9<0.01,0,interp(INDIRECT("'DCM1 MPM-Woo'!O"&AP$3&":O"&AQ$3),INDIRECT("'DCM1 MPM-Woo'!AA"&AP$3&":AA"&AQ$3),AO9,3)) -> 0 | AQ9: =AP9*($A9-$A8)/(24*60) -> 0 | AR9: 0 | AS9: =IF(AR9<0.01,0,interp(INDIRECT("'DCM1 MPM-Woo'!O"&AS$3&":O"&AT$3),INDIRECT("'DCM1 MPM-Woo'!AA"&AS$3&":AA"&AT$3),AR9,3)) -> 0 | AT9: =AS9*($A9-$A8)/(24*60) -> 0 | AU9: 0 | AV9: =IF(AU9<0.01,0,interp(INDIRECT("'DCM1 MPM-Woo'!O"&AV$3&":O"&AW$3),INDIRECT("'DCM1 MPM-Woo'!AA"&AV$3&":AA"&AW$3),AU9,3)) -> 0 | AW9: =AV9*($A9-$A8)/(24*60) -> 0 | AX9: 0 | AY9: =IF(AX9<0.01,0,interp(INDIRECT("'DCM1 MPM-Woo'!O"&AY$3&":O"&AZ$3),INDIRECT("'DCM1 MPM-Woo'!AA"&AY$3&":AA"&AZ$3),AX9,3)) -> 0 | AZ9: =AY9*($A9-$A8)/(24*60) -> 0 | BA9: 0 | BB9: =IF(BA9<0.01,0,interp(INDIRECT("'DCM1 MPM-Woo'!O"&BB$3&":O"&BC$3),INDIRECT("'DCM1 MPM-Woo'!AA"&BB$3&":AA"&BC$3),BA9,3)) -> 0 | BC9: =BB9*($A9-$A8)/(24*60) -> 0 | BD9: 0 | BE9: =IF(BD9<0.01,0,interp(INDIRECT("'DCM1 MPM-Woo'!O"&BE$3&":O"&BF$3),INDIRECT("'DCM1 MPM-Woo'!AA"&BE$3&":AA"&BF$3),BD9,3)) -> 0 | BF9: =BE9*($A9-$A8)/(24*60) -> 0 | BG9: 0 | BH9: =IF(BG9<0.01,0,interp(INDIRECT("'DCM1 MPM-Woo'!O"&BH$3&":O"&BI$3),INDIRECT("'DCM1 MPM-Woo'!AA"&BH$3&":AA"&BI$3),BG9,3)) -> 0 | BI9: =BH9*($A9-$A8)/(24*60) -> 0 | BJ9: 0 | BK9: =IF(BJ9<0.01,0,interp(INDIRECT("'DCM1 MPM-Woo'!O"&BK$3&":O"&BL$3),INDIRECT("'DCM1 MPM-Woo'!AA"&BK$3&":AA"&BL$3),BJ9,3)) -> 0 | BL9: =BK9*($A9-$A8)/(24*60) -> 0 | BN9: =IF(BM9<0.01,0,interp(INDIRECT("'DCM1 MPM-Woo'!O"&BN$3&":O"&BO$3),INDIRECT("'DCM1 MPM-Woo'!AA"&BN$3&":AA"&BO$3),BM9,3)) -> 0 | BO9: =BN9*($A9-$A8)/(24*60) -> 0 | BP9: 0 | BQ9: =IF(BP9<0.01,0,interp(INDIRECT("'DCM1 MPM-Woo'!O"&BQ$3&":O"&BR$3),INDIRECT("'DCM1 MPM-Woo'!AA"&BQ$3&":AA"&BR$3),BP9,3)) -> 0 | BR9: =BQ9*($A9-$A8)/(24*60) -> 0 | BS9: 0 | BT9: =IF(BS9<0.01,0,interp(INDIRECT("'DCM1 MPM-Woo'!O"&BT$3&":O"&BU$3),INDIRECT("'DCM1 MPM-Woo'!AA"&BT$3&":AA"&BU$3),BS9,3)) -> 0 | BU9: =BT9*($A9-$A8)/(24*60) -> 0 | BV9: 0 | BW9: =IF(BV9<0.01,0,interp(INDIRECT("'DCM1 MPM-Woo'!O"&BW$3&":O"&BX$3),INDIRECT("'DCM1 MPM-Woo'!AA"&BW$3&":AA"&BX$3),BV9,3)) -> 0 | BX9: =BW9*($A9-$A8)/(24*60) -> 0 | BY9: 0 | BZ9: =IF(BY9<0.01,0,interp(INDIRECT("'DCM1 MPM-Woo'!O"&BZ$3&":O"&CA$3),INDIRECT("'DCM1 MPM-Woo'!AA"&BZ$3&":AA"&CA$3),BY9,3)) -> 0 | CA9: =BZ9*($A9-$A8)/(24*60) -> 0 | CB9: 0 | CC9: =IF(CB9<0.01,0,interp(INDIRECT("'DCM1 MPM-Woo'!O"&CC$3&":O"&CD$3),INDIRECT("'DCM1 MPM-Woo'!AA"&CC$3&":AA"&CD$3),CB9,3)) -> 0 | CD9: =CC9*($A9-$A8)/(24*60) -> 0 | CE9: 0 | CF9: =IF(CE9<0.01,0,interp(INDIRECT("'DCM1 MPM-Woo'!O"&CF$3&":O"&CG$3),INDIRECT("'DCM1 MPM-Woo'!AA"&CF$3&":AA"&CG$3),CE9,3)) -> 0 | CG9: =CF9*($A9-$A8)/(24*60) -> 0 | CH9: 0 | CI9: =IF(CH9<0.01,0,interp(INDIRECT("'DCM1 MPM-Woo'!O"&CI$3&":O"&CJ$3),INDIRECT("'DCM1 MPM-Woo'!AA"&CI$3&":AA"&CJ$3),CH9,3)) -> 0 | CJ9: =CI9*($A9-$A8)/(24*60) -> 0 | CK9: 0 | CL9: =IF(CK9<0.01,0,interp(INDIRECT("'DCM1 MPM-Woo'!O"&CL$3&":O"&CM$3),INDIRECT("'DCM1 MPM-Woo'!AA"&CL$3&":AA"&CM$3),CK9,3)) -> 0 | CM9: =CL9*($A9-$A8)/(24*60) -> 0 | CN9: 0 | CO9: =IF(CN9<0.01,0,interp(INDIRECT("'DCM1 MPM-Woo'!O"&CO$3&":O"&CP$3),INDIRECT("'DCM1 MPM-Woo'!AA"&CO$3&":AA"&CP$3),CN9,3)) -> 0 | CP9: =CO9*($A9-$A8)/(24*60) -> 0 | CQ9: 0 | CR9: =IF(CQ9<0.01,0,interp(INDIRECT("'DCM1 MPM-Woo'!O"&CR$3&":O"&CS$3),INDIRECT("'DCM1 MPM-Woo'!AA"&CR$3&":AA"&CS$3),CQ9,3)) -> 0 | CS9: =CR9*($A9-$A8)/(24*60) -> 0 | CT9: 0 | CU9: =IF(CT9<0.01,0,interp(INDIRECT("'DCM1 MPM-Woo'!O"&CU$3&":O"&CV$3),INDIRECT("'DCM1 MPM-Woo'!AA"&CU$3&":AA"&CV$3),CT9,3)) -> 0 | CV9: =CU9*($A9-$A8)/(24*60) -> 0 | CW9: 0 | CX9: =IF(CW9<0.01,0,interp(INDIRECT("'DCM1 MPM-Woo'!O"&CX$3&":O"&CY$3),INDIRECT("'DCM1 MPM-Woo'!AA"&CX$3&":AA"&CY$3),CW9,3)) -> 0 | CY9: =CX9*($A9-$A8)/(24*60) -> 0 | CZ9: 0 | DA9: =IF(CZ9<0.01,0,interp(INDIRECT("'DCM1 MPM-Woo'!O"&DA$3&":O"&DB$3),INDIRECT("'DCM1 MPM-Woo'!AA"&DA$3&":AA"&DB$3),CZ9,3)) -> 0 | DB9: =DA9*($A9-$A8)/(24*60) -> 0 | DC9: 0 | DD9: =IF(DC9<0.01,0,interp(INDIRECT("'DCM1 MPM-Woo'!O"&DD$3&":O"&DE$3),INDIRECT("'DCM1 MPM-Woo'!AA"&DD$3&":AA"&DE$3),DC9,3)) -> 0 | DE9: =DD9*($A9-$A8)/(24*60) -> 0 | DF9: 0 | DG9: =IF(DF9<0.01,0,interp(INDIRECT("'DCM1 MPM-Woo'!O"&DG$3&":O"&DH$3),INDIRECT("'DCM1 MPM-Woo'!AA"&DG$3&":AA"&DH$3),DF9,3)) -> 0 | DH9: =DG9*($A9-$A8)/(24*60) -> 0 | DI9: 0 | DJ9: =IF(DI9<0.01,0,interp(INDIRECT("'DCM1 MPM-Woo'!O"&DJ$3&":O"&DK$3),INDIRECT("'DCM1 MPM-Woo'!AA"&DJ$3&":AA"&DK$3),DI9,3)) -> 0 | DK9: =DJ9*($A9-$A8)/(24*60) -> 0 | DL9: 0 | DM9: =IF(DL9<0.01,0,interp(INDIRECT("'DCM1 MPM-Woo'!O"&DM$3&":O"&DN$3),INDIRECT("'DCM1 MPM-Woo'!AA"&DM$3&":AA"&DN$3),DL9,3)) -> 0 | DN9: =DM9*($A9-$A8)/(24*60) -> 0 | DO9: 0 | DP9: =IF(DO9<0.01,0,interp(INDIRECT("'DCM1 MPM-Woo'!O"&DP$3&":O"&DQ$3),INDIRECT("'DCM1 MPM-Woo'!AA"&DP$3&":AA"&DQ$3),DO9,3)) -> 0 | DQ9: =DP9*($A9-$A8)/(24*60) -> 0 | DR9: 0 | DS9: =IF(DR9<0.01,0,interp(INDIRECT("'DCM1 MPM-Woo'!O"&DS$3&":O"&DT$3),INDIRECT("'DCM1 MPM-Woo'!AA"&DS$3&":AA"&DT$3),DR9,3)) -> 0 | DT9: =DS9*($A9-$A8)/(24*60) -> 0 | DU9: 0 | DV9: =IF(DU9<0.01,0,interp(INDIRECT("'DCM1 MPM-Woo'!O"&DV$3&":O"&DW$3),INDIRECT("'DCM1 MPM-Woo'!AA"&DV$3&":AA"&DW$3),DU9,3)) -> 0 | DW9: =DV9*($A9-$A8)/(24*60) -> 0 | DX9: 0 | DY9: =IF(DX9<0.01,0,interp(INDIRECT("'DCM1 MPM-Woo'!O"&DY$3&":O"&DZ$3),INDIRECT("'DCM1 MPM-Woo'!AA"&DY$3&":AA"&DZ$3),DX9,3)) -> 0 | DZ9: =DY9*($A9-$A8)/(24*60) -> 0 | EA9: 0 | EB9: =IF(EA9<0.01,0,interp(INDIRECT("'DCM1 MPM-Woo'!O"&EB$3&":O"&EC$3),INDIRECT("'DCM1 MPM-Woo'!AA"&EB$3&":AA"&EC$3),EA9,3)) -> 0 | EC9: =EB9*($A9-$A8)/(24*60) -> 0 | ED9: 0 | EE9: =IF(ED9<0.01,0,interp(INDIRECT("'DCM1 MPM-Woo'!O"&EE$3&":O"&EF$3),INDIRECT("'DCM1 MPM-Woo'!AA"&EE$3&":AA"&EF$3),ED9,3)) -> 0 | EF9: =EE9*($A9-$A8)/(24*60) -> 0 | EG9: 0 | EH9: =IF(EG9<0.01,0,interp(INDIRECT("'DCM1 MPM-Woo'!O"&EH$3&":O"&EI$3),INDIRECT("'DCM1 MPM-Woo'!AA"&EH$3&":AA"&EI$3),EG9,3)) -> 0 | EI9: =EH9*($A9-$A8)/(24*60) -> 0 | EJ9: 0 | EK9: 0 | EL9: =EJ9*VLOOKUP(EJ$6,LookupTables!$K$4:$L$14,2,FALSE)+EK9*VLOOKUP(EK$6,LookupTables!$K$4:$L$14,2,FALSE) -> 0 | EM9: =IF(EL9<0.01,0,interp(INDIRECT("'DCM1 MPM-Woo'!O"&EM$3&":O"&EN$3),INDIRECT("'DCM1 MPM-Woo'!AA"&EM$3&":AA"&EN$3),EL9,3)) -> 0 | EN9: =EM9*($A9-$A8)/(24*60) -> 0 | EO9: 0 | EP9: 0 | EQ9: =EO9*VLOOKUP(EO$6,LookupTables!$K$4:$L$14,2,FALSE)+EP9*VLOOKUP(EP$6,LookupTables!$K$4:$L$14,2,FALSE) -> 0 | ER9: =IF(EQ9<0.01,0,interp(INDIRECT("'DCM1 MPM-Woo'!O"&ER$3&":O"&ES$3),INDIRECT("'DCM1 MPM-Woo'!AA"&ER$3&":AA"&ES$3),EQ9,3)) -> 0 | ES9: =ER9*($A9-$A8)/(24*60) -> 0 | ET9: 0 | EU9: 0 | EV9: =ET9*VLOOKUP(ET$6,LookupTables!$K$4:$L$14,2,FALSE)+EU9*VLOOKUP(EU$6,LookupTables!$K$4:$L$14,2,FALSE) -> 0 | EW9: =IF(EV9<0.01,0,interp(INDIRECT("'DCM1 MPM-Woo'!O"&EW$3&":O"&EX$3),INDIRECT("'DCM1 MPM-Woo'!AA"&EW$3&":AA"&EX$3),EV9,3)) -> 0 | EX9: =EW9*($A9-$A8)/(24*60) -> 0 | EY9: 0 | EZ9: 0 | FA9: =EY9*VLOOKUP(EY$6,LookupTables!$K$4:$L$14,2,FALSE)+EZ9*VLOOKUP(EZ$6,LookupTables!$K$4:$L$14,2,FALSE) -> 0 | FB9: =IF(FA9<0.01,0,interp(INDIRECT("'DCM1 MPM-Woo'!O"&FB$3&":O"&FC$3),INDIRECT("'DCM1 MPM-Woo'!AA"&FB$3&":AA"&FC$3),FA9,3)) -> 0 | FC9: =FB9*($A9-$A8)/(24*60) -> 0 | FD9: 0 | FE9: 0 | FF9: =FD9*VLOOKUP(FD$6,LookupTables!$K$4:$L$14,2,FALSE)+FE9*VLOOKUP(FE$6,LookupTables!$K$4:$L$14,2,FALSE) -> 0 | FG9: =IF(FF9<0.01,0,interp(INDIRECT("'DCM1 MPM-Woo'!O"&FG$3&":O"&FH$3),INDIRECT("'DCM1 MPM-Woo'!AA"&FG$3&":AA"&FH$3),FF9,3)) -> 0 | FH9: =FG9*($A9-$A8)/(24*60) -> 0 | FI9: 0 | FJ9: 0 | FK9: =FI9*VLOOKUP(FI$6,LookupTables!$K$4:$L$14,2,FALSE)+FJ9*VLOOKUP(FJ$6,LookupTables!$K$4:$L$14,2,FALSE) -> 0 | FL9: =IF(FK9<0.01,0,interp(INDIRECT("'DCM1 MPM-Woo'!O"&FL$3&":O"&FM$3),INDIRECT("'DCM1 MPM-Woo'!AA"&FL$3&":AA"&FM$3),FK9,3)) -> 0 | FM9: =FL9*($A9-$A8)/(24*60) -> 0 | FN9: 0 | FO9: =IF(FN9<0.01,0,interp(INDIRECT("'DCM1 MPM-Woo'!O"&FO$3&":O"&FP$3),INDIRECT("'DCM1 MPM-Woo'!AA"&FO$3&":AA"&FP$3),FN9,3)) -> 0 | FP9: =FO9*($A9-$A8)/(24*60) -> 0 | FQ9: 0 | FR9: =IF(FQ9<0.01,0,interp(INDIRECT("'DCM1 MPM-Woo'!O"&FR$3&":O"&FS$3),INDIRECT("'DCM1 MPM-Woo'!AA"&FR$3&":AA"&FS$3),FQ9,3)) -> 0 | FS9: =FR9*($A9-$A8)/(24*60) -> 0 | FT9: 0 | FU9: =IF(FT9<0.01,0,interp(INDIRECT("'DCM1 MPM-Woo'!O"&FU$3&":O"&FV$3),INDIRECT("'DCM1 MPM-Woo'!AA"&FU$3&":AA"&FV$3),FT9,3)) -> 0 | FV9: =FU9*($A9-$A8)/(24*60) -> 0 | FW9: 0 | FX9: =IF(FW9<0.01,0,interp(INDIRECT("'DCM1 MPM-Woo'!O"&FX$3&":O"&FY$3),INDIRECT("'DCM1 MPM-Woo'!AA"&FX$3&":AA"&FY$3),FW9,3)) -> 0 | FY9: =FX9*($A9-$A8)/(24*60) -> 0 | FZ9: 0 | GA9: =IF(FZ9<0.01,0,interp(INDIRECT("'DCM1 MPM-Woo'!O"&GA$3&":O"&GB$3),INDIRECT("'DCM1 MPM-Woo'!AA"&GA$3&":AA"&GB$3),FZ9,3)) -> 0 | GB9: =GA9*($A9-$A8)/(24*60) -> 0 | GC9: 0 | GD9: =IF(GC9<0.01,0,interp(INDIRECT("'DCM1 MPM-Woo'!O"&GD$3&":O"&GE$3),INDIRECT("'DCM1 MPM-Woo'!AA"&GD$3&":AA"&GE$3),GC9,3)) -> 0 | GE9: =GD9*($A9-$A8)/(24*60) -> 0 | GF9: 0 | GG9: =IF(GF9<0.01,0,interp(INDIRECT("'DCM1 MPM-Woo'!O"&GG$3&":O"&GH$3),INDIRECT("'DCM1 MPM-Woo'!AA"&GG$3&":AA"&GH$3),GF9,3)) -> 0 | GH9: =GG9*($A9-$A8)/(24*60) -> 0 | GI9: 0 | GJ9: =IF(GI9<0.01,0,interp(INDIRECT("'DCM1 MPM-Woo'!O"&GJ$3&":O"&GK$3),INDIRECT("'DCM1 MPM-Woo'!AA"&GJ$3&":AA"&GK$3),GI9,3)) -> 0 | GK9: =GJ9*($A9-$A8)/(24*60) -> 0 | GL9: 0 | GM9: =IF(GL9<0.01,0,interp(INDIRECT("'DCM1 MPM-Woo'!O"&GM$3&":O"&GN$3),INDIRECT("'DCM1 MPM-Woo'!AA"&GM$3&":AA"&GN$3),GL9,3)) -> 0 | GN9: =GM9*($A9-$A8)/(24*60) -> 0 | GO9: 0 | GP9: =IF(GO9<0.01,0,interp(INDIRECT("'DCM1 MPM-Woo'!O"&GP$3&":O"&GQ$3),INDIRECT("'DCM1 MPM-Woo'!AA"&GP$3&":AA"&GQ$3),GO9,3)) -> 0 | GQ9: =GP9*($A9-$A8)/(24*60) -> 0 | GR9: 0 | GS9: =IF(GR9<0.01,0,interp(INDIRECT("'DCM1 MPM-Woo'!O"&GS$3&":O"&GT$3),INDIRECT("'DCM1 MPM-Woo'!AA"&GS$3&":AA"&GT$3),GR9,3)) -> 0 | GT9: =GS9*($A9-$A8)/(24*60) -> 0 | GU9: 0 | GV9: =IF(GU9<0.01,0,interp(INDIRECT("'DCM1 MPM-Woo'!O"&GV$3&":O"&GW$3),INDIRECT("'DCM1 MPM-Woo'!AA"&GV$3&":AA"&GW$3),GU9,3)) -> 0 | GW9: =GV9*($A9-$A8)/(24*60) -> 0
A10: 4 | B10: 0 | C10: 0 | D10: =B10*VLOOKUP(B$6,LookupTables!$K$4:$L$14,2,FALSE)+C10*VLOOKUP(C$6,LookupTables!$K$4:$L$14,2,FALSE) -> 0 | E10: =IF(D10<0.01,0,interp(INDIRECT("'DCM1 MPM-Woo'!O"&E$3&":O"&F$3),INDIRECT("'DCM1 MPM-Woo'!AA"&E$3&":AA"&F$3),D10,3)) -> 0 | F10: 0 | G10: 0 | H10: 0 | I10: =G10*VLOOKUP(G$6,LookupTables!$K$4:$L$14,2,FALSE)+H10*VLOOKUP(H$6,LookupTables!$K$4:$L$14,2,FALSE) -> 0 | J10: =IF(I10<0.01,0,interp(INDIRECT("'DCM1 MPM-Woo'!O"&J$3&":O"&K$3),INDIRECT("'DCM1 MPM-Woo'!AA"&J$3&":AA"&K$3),I10,3)) -> 0 | K10: 0 | L10: 0 | M10: 0 | N10: =L10*VLOOKUP(L$6,LookupTables!$K$4:$L$14,2,FALSE)+M10*VLOOKUP(M$6,LookupTables!$K$4:$L$14,2,FALSE) -> 0 | O10: =IF(N10<0.01,0,interp(INDIRECT("'DCM1 MPM-Woo'!O"&O$3&":O"&P$3),INDIRECT("'DCM1 MPM-Woo'!AA"&O$3&":AA"&P$3),N10,3)) -> 0 | P10: 0 | Q10: 0 | R10: 0 | S10: =Q10*VLOOKUP(Q$6,LookupTables!$K$4:$L$14,2,FALSE)+R10*VLOOKUP(R$6,LookupTables!$K$4:$L$14,2,FALSE) -> 0 | T10: =IF(S10<0.01,0,interp(INDIRECT("'DCM1 MPM-Woo'!O"&T$3&":O"&U$3),INDIRECT("'DCM1 MPM-Woo'!AA"&T$3&":AA"&U$3),S10,3)) -> 0 | U10: 0 | V10: 0 | W10: 0 | X10: =V10*VLOOKUP(V$6,LookupTables!$K$4:$L$14,2,FALSE)+W10*VLOOKUP(W$6,LookupTables!$K$4:$L$14,2,FALSE) -> 0 | Y10: =IF(X10<0.01,0,interp(INDIRECT("'DCM1 MPM-Woo'!O"&Y$3&":O"&Z$3),INDIRECT("'DCM1 MPM-Woo'!AA"&Y$3&":AA"&Z$3),X10,3)) -> 0 | Z10: 0 | AA10: 0 | AB10: 0 | AC10: =AA10*VLOOKUP(AA$6,LookupTables!$K$4:$L$14,2,FALSE)+AB10*VLOOKUP(AB$6,LookupTables!$K$4:$L$14,2,FALSE) -> 0 | AD10: =IF(AC10<0.01,0,interp(INDIRECT("'DCM1 MPM-Woo'!O"&AD$3&":O"&AE$3),INDIRECT("'DCM1 MPM-Woo'!AA"&AD$3&":AA"&AE$3),AC10,3)) -> 0 | AE10: 0 | AF10: 0 | AG10: =IF(AF10<0.01,0,interp(INDIRECT("'DCM1 MPM-Woo'!O"&AG$3&":O"&AH$3),INDIRECT("'DCM1 MPM-Woo'!AA"&AG$3&":AA"&AH$3),AF10,3)) -> 0 | AH10: 0 | AI10: 0 | AJ10: =IF(AI10<0.01,0,interp(INDIRECT("'DCM1 MPM-Woo'!O"&AJ$3&":O"&AK$3),INDIRECT("'DCM1 MPM-Woo'!AA"&AJ$3&":AA"&AK$3),AI10,3)) -> 0 | AK10: 0 | AL10: 0 | AM10: =IF(AL10<0.01,0,interp(INDIRECT("'DCM1 MPM-Woo'!O"&AM$3&":O"&AN$3),INDIRECT("'DCM1 MPM-Woo'!AA"&AM$3&":AA"&AN$3),AL10,3)) -> 0 | AN10: 0 | AO10: 0 | AP10: =IF(AO10<0.01,0,interp(INDIRECT("'DCM1 MPM-Woo'!O"&AP$3&":O"&AQ$3),INDIRECT("'DCM1 MPM-Woo'!AA"&AP$3&":AA"&AQ$3),AO10,3)) -> 0 | AQ10: 0 | AR10: 0 | AS10: =IF(AR10<0.01,0,interp(INDIRECT("'DCM1 MPM-Woo'!O"&AS$3&":O"&AT$3),INDIRECT("'DCM1 MPM-Woo'!AA"&AS$3&":AA"&AT$3),AR10,3)) -> 0 | AT10: 0 | AU10: 0 | AV10: =IF(AU10<0.01,0,interp(INDIRECT("'DCM1 MPM-Woo'!O"&AV$3&":O"&AW$3),INDIRECT("'DCM1 MPM-Woo'!AA"&AV$3&":AA"&AW$3),AU10,3)) -> 0 | AW10: 0 | AX10: 0 | AY10: =IF(AX10<0.01,0,interp(INDIRECT("'DCM1 MPM-Woo'!O"&AY$3&":O"&AZ$3),INDIRECT("'DCM1 MPM-Woo'!AA"&AY$3&":AA"&AZ$3),AX10,3)) -> 0 | AZ10: 0 | BA10: 0 | BB10: =IF(BA10<0.01,0,interp(INDIRECT("'DCM1 MPM-Woo'!O"&BB$3&":O"&BC$3),INDIRECT("'DCM1 MPM-Woo'!AA"&BB$3&":AA"&BC$3),BA10,3)) -> 0 | BC10: 0 | BD10: 0 | BE10: =IF(BD10<0.01,0,interp(INDIRECT("'DCM1 MPM-Woo'!O"&BE$3&":O"&BF$3),INDIRECT("'DCM1 MPM-Woo'!AA"&BE$3&":AA"&BF$3),BD10,3)) -> 0 | BF10: 0 | BG10: 0 | BH10: =IF(BG10<0.01,0,interp(INDIRECT("'DCM1 MPM-Woo'!O"&BH$3&":O"&BI$3),INDIRECT("'DCM1 MPM-Woo'!AA"&BH$3&":AA"&BI$3),BG10,3)) -> 0 | BI10: 0 | BJ10: 0 | BK10: =IF(BJ10<0.01,0,interp(INDIRECT("'DCM1 MPM-Woo'!O"&BK$3&":O"&BL$3),INDIRECT("'DCM1 MPM-Woo'!AA"&BK$3&":AA"&BL$3),BJ10,3)) -> 0 | BL10: 0 | BN10: =IF(BM10<0.01,0,interp(INDIRECT("'DCM1 MPM-Woo'!O"&BN$3&":O"&BO$3),INDIRECT("'DCM1 MPM-Woo'!AA"&BN$3&":AA"&BO$3),BM10,3)) -> 0 | BO10: 0 | BP10: 0 | BQ10: =IF(BP10<0.01,0,interp(INDIRECT("'DCM1 MPM-Woo'!O"&BQ$3&":O"&BR$3),INDIRECT("'DCM1 MPM-Woo'!AA"&BQ$3&":AA"&BR$3),BP10,3)) -> 0 | BR10: 0 | BS10: 0 | BT10: =IF(BS10<0.01,0,interp(INDIRECT("'DCM1 MPM-Woo'!O"&BT$3&":O"&BU$3),INDIRECT("'DCM1 MPM-Woo'!AA"&BT$3&":AA"&BU$3),BS10,3)) -> 0 | BU10: 0 | BV10: 0 | BW10: =IF(BV10<0.01,0,interp(INDIRECT("'DCM1 MPM-Woo'!O"&BW$3&":O"&BX$3),INDIRECT("'DCM1 MPM-Woo'!AA"&BW$3&":AA"&BX$3),BV10,3)) -> 0 | BX10: 0 | BY10: 0 | BZ10: =IF(BY10<0.01,0,interp(INDIRECT("'DCM1 MPM-Woo'!O"&BZ$3&":O"&CA$3),INDIRECT("'DCM1 MPM-Woo'!AA"&BZ$3&":AA"&CA$3),BY10,3)) -> 0 | CA10: 0 | CB10: 0 | CC10: =IF(CB10<0.01,0,interp(INDIRECT("'DCM1 MPM-Woo'!O"&CC$3&":O"&CD$3),INDIRECT("'DCM1 MPM-Woo'!AA"&CC$3&":AA"&CD$3),CB10,3)) -> 0 | CD10: 0 | CE10: 0 | CF10: =IF(CE10<0.01,0,interp(INDIRECT("'DCM1 MPM-Woo'!O"&CF$3&":O"&CG$3),INDIRECT("'DCM1 MPM-Woo'!AA"&CF$3&":AA"&CG$3),CE10,3)) -> 0 | CG10: 0 | CH10: 0 | CI10: =IF(CH10<0.01,0,interp(INDIRECT("'DCM1 MPM-Woo'!O"&CI$3&":O"&CJ$3),INDIRECT("'DCM1 MPM-Woo'!AA"&CI$3&":AA"&CJ$3),CH10,3)) -> 0 | CJ10: 0 | CK10: 0 | CL10: =IF(CK10<0.01,0,interp(INDIRECT("'DCM1 MPM-Woo'!O"&CL$3&":O"&CM$3),INDIRECT("'DCM1 MPM-Woo'!AA"&CL$3&":AA"&CM$3),CK10,3)) -> 0 | CM10: 0 | CN10: 0 | CO10: =IF(CN10<0.01,0,interp(INDIRECT("'DCM1 MPM-Woo'!O"&CO$3&":O"&CP$3),INDIRECT("'DCM1 MPM-Woo'!AA"&CO$3&":AA"&CP$3),CN10,3)) -> 0 | CP10: 0 | CQ10: 0 | CR10: =IF(CQ10<0.01,0,interp(INDIRECT("'DCM1 MPM-Woo'!O"&CR$3&":O"&CS$3),INDIRECT("'DCM1 MPM-Woo'!AA"&CR$3&":AA"&CS$3),CQ10,3)) -> 0 | CS10: 0 | CT10: 0 | CU10: =IF(CT10<0.01,0,interp(INDIRECT("'DCM1 MPM-Woo'!O"&CU$3&":O"&CV$3),INDIRECT("'DCM1 MPM-Woo'!AA"&CU$3&":AA"&CV$3),CT10,3)) -> 0 | CV10: 0 | CW10: 0 | CX10: =IF(CW10<0.01,0,interp(INDIRECT("'DCM1 MPM-Woo'!O"&CX$3&":O"&CY$3),INDIRECT("'DCM1 MPM-Woo'!AA"&CX$3&":AA"&CY$3),CW10,3)) -> 0 | CY10: 0 | CZ10: 0 | DA10: =IF(CZ10<0.01,0,interp(INDIRECT("'DCM1 MPM-Woo'!O"&DA$3&":O"&DB$3),INDIRECT("'DCM1 MPM-Woo'!AA"&DA$3&":AA"&DB$3),CZ10,3)) -> 0 | DB10: 0 | DC10: 0 | DD10: =IF(DC10<0.01,0,interp(INDIRECT("'DCM1 MPM-Woo'!O"&DD$3&":O"&DE$3),INDIRECT("'DCM1 MPM-Woo'!AA"&DD$3&":AA"&DE$3),DC10,3)) -> 0 | DE10: 0 | DF10: 0 | DG10: =IF(DF10<0.01,0,interp(INDIRECT("'DCM1 MPM-Woo'!O"&DG$3&":O"&DH$3),INDIRECT("'DCM1 MPM-Woo'!AA"&DG$3&":AA"&DH$3),DF10,3)) -> 0 | DH10: 0 | DI10: 0 | DJ10: =IF(DI10<0.01,0,interp(INDIRECT("'DCM1 MPM-Woo'!O"&DJ$3&":O"&DK$3),INDIRECT("'DCM1 MPM-Woo'!AA"&DJ$3&":AA"&DK$3),DI10,3)) -> 0 | DK10: 0 | DL10: 0 | DM10: =IF(DL10<0.01,0,interp(INDIRECT("'DCM1 MPM-Woo'!O"&DM$3&":O"&DN$3),INDIRECT("'DCM1 MPM-Woo'!AA"&DM$3&":AA"&DN$3),DL10,3)) -> 0 | DN10: 0 | DO10: 0 | DP10: =IF(DO10<0.01,0,interp(INDIRECT("'DCM1 MPM-Woo'!O"&DP$3&":O"&DQ$3),INDIRECT("'DCM1 MPM-Woo'!AA"&DP$3&":AA"&DQ$3),DO10,3)) -> 0 | DQ10: 0 | DR10: 0 | DS10: =IF(DR10<0.01,0,interp(INDIRECT("'DCM1 MPM-Woo'!O"&DS$3&":O"&DT$3),INDIRECT("'DCM1 MPM-Woo'!AA"&DS$3&":AA"&DT$3),DR10,3)) -> 0 | DT10: 0 | DU10: 0 | DV10: =IF(DU10<0.01,0,interp(INDIRECT("'DCM1 MPM-Woo'!O"&DV$3&":O"&DW$3),INDIRECT("'DCM1 MPM-Woo'!AA"&DV$3&":AA"&DW$3),DU10,3)) -> 0 | DW10: 0 | DX10: 0 | DY10: =IF(DX10<0.01,0,interp(INDIRECT("'DCM1 MPM-Woo'!O"&DY$3&":O"&DZ$3),INDIRECT("'DCM1 MPM-Woo'!AA"&DY$3&":AA"&DZ$3),DX10,3)) -> 0 | DZ10: 0 | EA10: 0 | EB10: =IF(EA10<0.01,0,interp(INDIRECT("'DCM1 MPM-Woo'!O"&EB$3&":O"&EC$3),INDIRECT("'DCM1 MPM-Woo'!AA"&EB$3&":AA"&EC$3),EA10,3)) -> 0 | EC10: 0 | ED10: 0 | EE10: =IF(ED10<0.01,0,interp(INDIRECT("'DCM1 MPM-Woo'!O"&EE$3&":O"&EF$3),INDIRECT("'DCM1 MPM-Woo'!AA"&EE$3&":AA"&EF$3),ED10,3)) -> 0 | EF10: 0 | EG10: 0 | EH10: =IF(EG10<0.01,0,interp(INDIRECT("'DCM1 MPM-Woo'!O"&EH$3&":O"&EI$3),INDIRECT("'DCM1 MPM-Woo'!AA"&EH$3&":AA"&EI$3),EG10,3)) -> 0 | EI10: 0 | EJ10: 0 | EK10: 0 | EL10: =EJ10*VLOOKUP(EJ$6,LookupTables!$K$4:$L$14,2,FALSE)+EK10*VLOOKUP(EK$6,LookupTables!$K$4:$L$14,2,FALSE) -> 0 | EM10: =IF(EL10<0.01,0,interp(INDIRECT("'DCM1 MPM-Woo'!O"&EM$3&":O"&EN$3),INDIRECT("'DCM1 MPM-Woo'!AA"&EM$3&":AA"&EN$3),EL10,3)) -> 0 | EN10: 0 | EO10: 0 | EP10: 0 | EQ10: =EO10*VLOOKUP(EO$6,LookupTables!$K$4:$L$14,2,FALSE)+EP10*VLOOKUP(EP$6,LookupTables!$K$4:$L$14,2,FALSE) -> 0 | ER10: =IF(EQ10<0.01,0,interp(INDIRECT("'DCM1 MPM-Woo'!O"&ER$3&":O"&ES$3),INDIRECT("'DCM1 MPM-Woo'!AA"&ER$3&":AA"&ES$3),EQ10,3)) -> 0 | ES10: 0 | ET10: 0 | EU10: 0 | EV10: =ET10*VLOOKUP(ET$6,LookupTables!$K$4:$L$14,2,FALSE)+EU10*VLOOKUP(EU$6,LookupTables!$K$4:$L$14,2,FALSE) -> 0 | EW10: =IF(EV10<0.01,0,interp(INDIRECT("'DCM1 MPM-Woo'!O"&EW$3&":O"&EX$3),INDIRECT("'DCM1 MPM-Woo'!AA"&EW$3&":AA"&EX$3),EV10,3)) -> 0 | EX10: 0 | EY10: 0 | EZ10: 0 | FA10: =EY10*VLOOKUP(EY$6,LookupTables!$K$4:$L$14,2,FALSE)+EZ10*VLOOKUP(EZ$6,LookupTables!$K$4:$L$14,2,FALSE) -> 0 | FB10: =IF(FA10<0.01,0,interp(INDIRECT("'DCM1 MPM-Woo'!O"&FB$3&":O"&FC$3),INDIRECT("'DCM1 MPM-Woo'!AA"&FB$3&":AA"&FC$3),FA10,3)) -> 0 | FC10: 0 | FD10: 0 | FE10: 0 | FF10: =FD10*VLOOKUP(FD$6,LookupTables!$K$4:$L$14,2,FALSE)+FE10*VLOOKUP(FE$6,LookupTables!$K$4:$L$14,2,FALSE) -> 0 | FG10: =IF(FF10<0.01,0,interp(INDIRECT("'DCM1 MPM-Woo'!O"&FG$3&":O"&FH$3),INDIRECT("'DCM1 MPM-Woo'!AA"&FG$3&":AA"&FH$3),FF10,3)) -> 0 | FH10: 0 | FI10: 0 | FJ10: 0 | FK10: =FI10*VLOOKUP(FI$6,LookupTables!$K$4:$L$14,2,FALSE)+FJ10*VLOOKUP(FJ$6,LookupTables!$K$4:$L$14,2,FALSE) -> 0 | FL10: =IF(FK10<0.01,0,interp(INDIRECT("'DCM1 MPM-Woo'!O"&FL$3&":O"&FM$3),INDIRECT("'DCM1 MPM-Woo'!AA"&FL$3&":AA"&FM$3),FK10,3)) -> 0 | FM10: 0 | FN10: 0 | FO10: =IF(FN10<0.01,0,interp(INDIRECT("'DCM1 MPM-Woo'!O"&FO$3&":O"&FP$3),INDIRECT("'DCM1 MPM-Woo'!AA"&FO$3&":AA"&FP$3),FN10,3)) -> 0 | FP10: 0 | FQ10: 0 | FR10: =IF(FQ10<0.01,0,interp(INDIRECT("'DCM1 MPM-Woo'!O"&FR$3&":O"&FS$3),INDIRECT("'DCM1 MPM-Woo'!AA"&FR$3&":AA"&FS$3),FQ10,3)) -> 0 | FS10: 0 | FT10: 0 | FU10: =IF(FT10<0.01,0,interp(INDIRECT("'DCM1 MPM-Woo'!O"&FU$3&":O"&FV$3),INDIRECT("'DCM1 MPM-Woo'!AA"&FU$3&":AA"&FV$3),FT10,3)) -> 0 | FV10: 0 | FW10: 0 | FX10: =IF(FW10<0.01,0,interp(INDIRECT("'DCM1 MPM-Woo'!O"&FX$3&":O"&FY$3),INDIRECT("'DCM1 MPM-Woo'!AA"&FX$3&":AA"&FY$3),FW10,3)) -> 0 | FY10: 0 | FZ10: 0 | GA10: =IF(FZ10<0.01,0,interp(INDIRECT("'DCM1 MPM-Woo'!O"&GA$3&":O"&GB$3),INDIRECT("'DCM1 MPM-Woo'!AA"&GA$3&":AA"&GB$3),FZ10,3)) -> 0 | GB10: 0 | GC10: 0 | GD10: =IF(GC10<0.01,0,interp(INDIRECT("'DCM1 MPM-Woo'!O"&GD$3&":O"&GE$3),INDIRECT("'DCM1 MPM-Woo'!AA"&GD$3&":AA"&GE$3),GC10,3)) -> 0 | GE10: 0 | GF10: 0 | GG10: =IF(GF10<0.01,0,interp(INDIRECT("'DCM1 MPM-Woo'!O"&GG$3&":O"&GH$3),INDIRECT("'DCM1 MPM-Woo'!AA"&GG$3&":AA"&GH$3),GF10,3)) -> 0 | GH10: 0 | GI10: 0 | GJ10: =IF(GI10<0.01,0,interp(INDIRECT("'DCM1 MPM-Woo'!O"&GJ$3&":O"&GK$3),INDIRECT("'DCM1 MPM-Woo'!AA"&GJ$3&":AA"&GK$3),GI10,3)) -> 0 | GK10: 0 | GL10: 0 | GM10: =IF(GL10<0.01,0,interp(INDIRECT("'DCM1 MPM-Woo'!O"&GM$3&":O"&GN$3),INDIRECT("'DCM1 MPM-Woo'!AA"&GM$3&":AA"&GN$3),GL10,3)) -> 0 | GN10: 0 | GO10: 0 | GP10: =IF(GO10<0.01,0,interp(INDIRECT("'DCM1 MPM-Woo'!O"&GP$3&":O"&GQ$3),INDIRECT("'DCM1 MPM-Woo'!AA"&GP$3&":AA"&GQ$3),GO10,3)) -> 0 | GQ10: 0 | GR10: 0 | GS10: =IF(GR10<0.01,0,interp(INDIRECT("'DCM1 MPM-Woo'!O"&GS$3&":O"&GT$3),INDIRECT("'DCM1 MPM-Woo'!AA"&GS$3&":AA"&GT$3),GR10,3)) -> 0 | GT10: 0 | GU10: 0 | GV10: =IF(GU10<0.01,0,interp(INDIRECT("'DCM1 MPM-Woo'!O"&GV$3&":O"&GW$3),INDIRECT("'DCM1 MPM-Woo'!AA"&GV$3&":AA"&GW$3),GU10,3)) -> 0 | GW10: 0
A11: 5 | B11: 0 | C11: 0 | D11: =B11*VLOOKUP(B$6,LookupTables!$K$4:$L$14,2,FALSE)+C11*VLOOKUP(C$6,LookupTables!$K$4:$L$14,2,FALSE) -> 0 | E11: =IF(D11<0.01,0,interp(INDIRECT("'DCM1 MPM-Woo'!O"&E$3&":O"&F$3),INDIRECT("'DCM1 MPM-Woo'!AA"&E$3&":AA"&F$3),D11,3)) -> 0 | F11: 0 | G11: 0 | H11: 0 | I11: =G11*VLOOKUP(G$6,LookupTables!$K$4:$L$14,2,FALSE)+H11*VLOOKUP(H$6,LookupTables!$K$4:$L$14,2,FALSE) -> 0 | J11: =IF(I11<0.01,0,interp(INDIRECT("'DCM1 MPM-Woo'!O"&J$3&":O"&K$3),INDIRECT("'DCM1 MPM-Woo'!AA"&J$3&":AA"&K$3),I11,3)) -> 0 | K11: 0 | L11: 0 | M11: 0 | N11: =L11*VLOOKUP(L$6,LookupTables!$K$4:$L$14,2,FALSE)+M11*VLOOKUP(M$6,LookupTables!$K$4:$L$14,2,FALSE) -> 0 | O11: =IF(N11<0.01,0,interp(INDIRECT("'DCM1 MPM-Woo'!O"&O$3&":O"&P$3),INDIRECT("'DCM1 MPM-Woo'!AA"&O$3&":AA"&P$3),N11,3)) -> 0 | P11: 0 | Q11: 0 | R11: 0 | S11: =Q11*VLOOKUP(Q$6,LookupTables!$K$4:$L$14,2,FALSE)+R11*VLOOKUP(R$6,LookupTables!$K$4:$L$14,2,FALSE) -> 0 | T11: =IF(S11<0.01,0,interp(INDIRECT("'DCM1 MPM-Woo'!O"&T$3&":O"&U$3),INDIRECT("'DCM1 MPM-Woo'!AA"&T$3&":AA"&U$3),S11,3)) -> 0 | U11: 0 | V11: 0 | W11: 0 | X11: =V11*VLOOKUP(V$6,LookupTables!$K$4:$L$14,2,FALSE)+W11*VLOOKUP(W$6,LookupTables!$K$4:$L$14,2,FALSE) -> 0 | Y11: =IF(X11<0.01,0,interp(INDIRECT("'DCM1 MPM-Woo'!O"&Y$3&":O"&Z$3),INDIRECT("'DCM1 MPM-Woo'!AA"&Y$3&":AA"&Z$3),X11,3)) -> 0 | Z11: 0 | AA11: 0 | AB11: 0 | AC11: =AA11*VLOOKUP(AA$6,LookupTables!$K$4:$L$14,2,FALSE)+AB11*VLOOKUP(AB$6,LookupTables!$K$4:$L$14,2,FALSE) -> 0 | AD11: =IF(AC11<0.01,0,interp(INDIRECT("'DCM1 MPM-Woo'!O"&AD$3&":O"&AE$3),INDIRECT("'DCM1 MPM-Woo'!AA"&AD$3&":AA"&AE$3),AC11,3)) -> 0 | AE11: 0 | AF11: 0 | AG11: =IF(AF11<0.01,0,interp(INDIRECT("'DCM1 MPM-Woo'!O"&AG$3&":O"&AH$3),INDIRECT("'DCM1 MPM-Woo'!AA"&AG$3&":AA"&AH$3),AF11,3)) -> 0 | AH11: 0 | AI11: 0 | AJ11: =IF(AI11<0.01,0,interp(INDIRECT("'DCM1 MPM-Woo'!O"&AJ$3&":O"&AK$3),INDIRECT("'DCM1 MPM-Woo'!AA"&AJ$3&":AA"&AK$3),AI11,3)) -> 0 | AK11: 0 | AL11: 0 | AM11: =IF(AL11<0.01,0,interp(INDIRECT("'DCM1 MPM-Woo'!O"&AM$3&":O"&AN$3),INDIRECT("'DCM1 MPM-Woo'!AA"&AM$3&":AA"&AN$3),AL11,3)) -> 0 | AN11: 0 | AO11: 0 | AP11: =IF(AO11<0.01,0,interp(INDIRECT("'DCM1 MPM-Woo'!O"&AP$3&":O"&AQ$3),INDIRECT("'DCM1 MPM-Woo'!AA"&AP$3&":AA"&AQ$3),AO11,3)) -> 0 | AQ11: 0 | AR11: 0 | AS11: =IF(AR11<0.01,0,interp(INDIRECT("'DCM1 MPM-Woo'!O"&AS$3&":O"&AT$3),INDIRECT("'DCM1 MPM-Woo'!AA"&AS$3&":AA"&AT$3),AR11,3)) -> 0 | AT11: 0 | AU11: 0 | AV11: =IF(AU11<0.01,0,interp(INDIRECT("'DCM1 MPM-Woo'!O"&AV$3&":O"&AW$3),INDIRECT("'DCM1 MPM-Woo'!AA"&AV$3&":AA"&AW$3),AU11,3)) -> 0 | AW11: 0 | AX11: 0 | AY11: =IF(AX11<0.01,0,interp(INDIRECT("'DCM1 MPM-Woo'!O"&AY$3&":O"&AZ$3),INDIRECT("'DCM1 MPM-Woo'!AA"&AY$3&":AA"&AZ$3),AX11,3)) -> 0 | AZ11: 0 | BA11: 0 | BB11: =IF(BA11<0.01,0,interp(INDIRECT("'DCM1 MPM-Woo'!O"&BB$3&":O"&BC$3),INDIRECT("'DCM1 MPM-Woo'!AA"&BB$3&":AA"&BC$3),BA11,3)) -> 0 | BC11: 0 | BD11: 0 | BE11: =IF(BD11<0.01,0,interp(INDIRECT("'DCM1 MPM-Woo'!O"&BE$3&":O"&BF$3),INDIRECT("'DCM1 MPM-Woo'!AA"&BE$3&":AA"&BF$3),BD11,3)) -> 0 | BF11: 0 | BG11: 0 | BH11: =IF(BG11<0.01,0,interp(INDIRECT("'DCM1 MPM-Woo'!O"&BH$3&":O"&BI$3),INDIRECT("'DCM1 MPM-Woo'!AA"&BH$3&":AA"&BI$3),BG11,3)) -> 0 | BI11: 0 | BJ11: 0 | BK11: =IF(BJ11<0.01,0,interp(INDIRECT("'DCM1 MPM-Woo'!O"&BK$3&":O"&BL$3),INDIRECT("'DCM1 MPM-Woo'!AA"&BK$3&":AA"&BL$3),BJ11,3)) -> 0 | BL11: 0 | BN11: =IF(BM11<0.01,0,interp(INDIRECT("'DCM1 MPM-Woo'!O"&BN$3&":O"&BO$3),INDIRECT("'DCM1 MPM-Woo'!AA"&BN$3&":AA"&BO$3),BM11,3)) -> 0 | BO11: 0 | BP11: 0 | BQ11: =IF(BP11<0.01,0,interp(INDIRECT("'DCM1 MPM-Woo'!O"&BQ$3&":O"&BR$3),INDIRECT("'DCM1 MPM-Woo'!AA"&BQ$3&":AA"&BR$3),BP11,3)) -> 0 | BR11: 0 | BS11: 0 | BT11: =IF(BS11<0.01,0,interp(INDIRECT("'DCM1 MPM-Woo'!O"&BT$3&":O"&BU$3),INDIRECT("'DCM1 MPM-Woo'!AA"&BT$3&":AA"&BU$3),BS11,3)) -> 0 | BU11: 0 | BV11: 0 | BW11: =IF(BV11<0.01,0,interp(INDIRECT("'DCM1 MPM-Woo'!O"&BW$3&":O"&BX$3),INDIRECT("'DCM1 MPM-Woo'!AA"&BW$3&":AA"&BX$3),BV11,3)) -> 0 | BX11: 0 | BY11: 0 | BZ11: =IF(BY11<0.01,0,interp(INDIRECT("'DCM1 MPM-Woo'!O"&BZ$3&":O"&CA$3),INDIRECT("'DCM1 MPM-Woo'!AA"&BZ$3&":AA"&CA$3),BY11,3)) -> 0 | CA11: 0 | CB11: 0 | CC11: =IF(CB11<0.01,0,interp(INDIRECT("'DCM1 MPM-Woo'!O"&CC$3&":O"&CD$3),INDIRECT("'DCM1 MPM-Woo'!AA"&CC$3&":AA"&CD$3),CB11,3)) -> 0 | CD11: 0 | CE11: 0 | CF11: =IF(CE11<0.01,0,interp(INDIRECT("'DCM1 MPM-Woo'!O"&CF$3&":O"&CG$3),INDIRECT("'DCM1 MPM-Woo'!AA"&CF$3&":AA"&CG$3),CE11,3)) -> 0 | CG11: 0 | CH11: 0 | CI11: =IF(CH11<0.01,0,interp(INDIRECT("'DCM1 MPM-Woo'!O"&CI$3&":O"&CJ$3),INDIRECT("'DCM1 MPM-Woo'!AA"&CI$3&":AA"&CJ$3),CH11,3)) -> 0 | CJ11: 0 | CK11: 0 | CL11: =IF(CK11<0.01,0,interp(INDIRECT("'DCM1 MPM-Woo'!O"&CL$3&":O"&CM$3),INDIRECT("'DCM1 MPM-Woo'!AA"&CL$3&":AA"&CM$3),CK11,3)) -> 0 | CM11: 0 | CN11: 0 | CO11: =IF(CN11<0.01,0,interp(INDIRECT("'DCM1 MPM-Woo'!O"&CO$3&":O"&CP$3),INDIRECT("'DCM1 MPM-Woo'!AA"&CO$3&":AA"&CP$3),CN11,3)) -> 0 | CP11: 0 | CQ11: 0 | CR11: =IF(CQ11<0.01,0,interp(INDIRECT("'DCM1 MPM-Woo'!O"&CR$3&":O"&CS$3),INDIRECT("'DCM1 MPM-Woo'!AA"&CR$3&":AA"&CS$3),CQ11,3)) -> 0 | CS11: 0 | CT11: 0 | CU11: =IF(CT11<0.01,0,interp(INDIRECT("'DCM1 MPM-Woo'!O"&CU$3&":O"&CV$3),INDIRECT("'DCM1 MPM-Woo'!AA"&CU$3&":AA"&CV$3),CT11,3)) -> 0 | CV11: 0 | CW11: 0 | CX11: =IF(CW11<0.01,0,interp(INDIRECT("'DCM1 MPM-Woo'!O"&CX$3&":O"&CY$3),INDIRECT("'DCM1 MPM-Woo'!AA"&CX$3&":AA"&CY$3),CW11,3)) -> 0 | CY11: 0 | CZ11: 0 | DA11: =IF(CZ11<0.01,0,interp(INDIRECT("'DCM1 MPM-Woo'!O"&DA$3&":O"&DB$3),INDIRECT("'DCM1 MPM-Woo'!AA"&DA$3&":AA"&DB$3),CZ11,3)) -> 0 | DB11: 0 | DC11: 0 | DD11: =IF(DC11<0.01,0,interp(INDIRECT("'DCM1 MPM-Woo'!O"&DD$3&":O"&DE$3),INDIRECT("'DCM1 MPM-Woo'!AA"&DD$3&":AA"&DE$3),DC11,3)) -> 0 | DE11: 0 | DF11: 0 | DG11: =IF(DF11<0.01,0,interp(INDIRECT("'DCM1 MPM-Woo'!O"&DG$3&":O"&DH$3),INDIRECT("'DCM1 MPM-Woo'!AA"&DG$3&":AA"&DH$3),DF11,3)) -> 0 | DH11: 0 | DI11: 0 | DJ11: =IF(DI11<0.01,0,interp(INDIRECT("'DCM1 MPM-Woo'!O"&DJ$3&":O"&DK$3),INDIRECT("'DCM1 MPM-Woo'!AA"&DJ$3&":AA"&DK$3),DI11,3)) -> 0 | DK11: 0 | DL11: 0 | DM11: =IF(DL11<0.01,0,interp(INDIRECT("'DCM1 MPM-Woo'!O"&DM$3&":O"&DN$3),INDIRECT("'DCM1 MPM-Woo'!AA"&DM$3&":AA"&DN$3),DL11,3)) -> 0 | DN11: 0 | DO11: 0 | DP11: =IF(DO11<0.01,0,interp(INDIRECT("'DCM1 MPM-Woo'!O"&DP$3&":O"&DQ$3),INDIRECT("'DCM1 MPM-Woo'!AA"&DP$3&":AA"&DQ$3),DO11,3)) -> 0 | DQ11: 0 | DR11: 0 | DS11: =IF(DR11<0.01,0,interp(INDIRECT("'DCM1 MPM-Woo'!O"&DS$3&":O"&DT$3),INDIRECT("'DCM1 MPM-Woo'!AA"&DS$3&":AA"&DT$3),DR11,3)) -> 0 | DT11: 0 | DU11: 0 | DV11: =IF(DU11<0.01,0,interp(INDIRECT("'DCM1 MPM-Woo'!O"&DV$3&":O"&DW$3),INDIRECT("'DCM1 MPM-Woo'!AA"&DV$3&":AA"&DW$3),DU11,3)) -> 0 | DW11: 0 | DX11: 0 | DY11: =IF(DX11<0.01,0,interp(INDIRECT("'DCM1 MPM-Woo'!O"&DY$3&":O"&DZ$3),INDIRECT("'DCM1 MPM-Woo'!AA"&DY$3&":AA"&DZ$3),DX11,3)) -> 0 | DZ11: 0 | EA11: 0 | EB11: =IF(EA11<0.01,0,interp(INDIRECT("'DCM1 MPM-Woo'!O"&EB$3&":O"&EC$3),INDIRECT("'DCM1 MPM-Woo'!AA"&EB$3&":AA"&EC$3),EA11,3)) -> 0 | EC11: 0 | ED11: 0 | EE11: =IF(ED11<0.01,0,interp(INDIRECT("'DCM1 MPM-Woo'!O"&EE$3&":O"&EF$3),INDIRECT("'DCM1 MPM-Woo'!AA"&EE$3&":AA"&EF$3),ED11,3)) -> 0 | EF11: 0 | EG11: 0 | EH11: =IF(EG11<0.01,0,interp(INDIRECT("'DCM1 MPM-Woo'!O"&EH$3&":O"&EI$3),INDIRECT("'DCM1 MPM-Woo'!AA"&EH$3&":AA"&EI$3),EG11,3)) -> 0 | EI11: 0 | EJ11: 0 | EK11: 0 | EL11: =EJ11*VLOOKUP(EJ$6,LookupTables!$K$4:$L$14,2,FALSE)+EK11*VLOOKUP(EK$6,LookupTables!$K$4:$L$14,2,FALSE) -> 0 | EM11: =IF(EL11<0.01,0,interp(INDIRECT("'DCM1 MPM-Woo'!O"&EM$3&":O"&EN$3),INDIRECT("'DCM1 MPM-Woo'!AA"&EM$3&":AA"&EN$3),EL11,3)) -> 0 | EN11: 0 | EO11: 0 | EP11: 0 | EQ11: =EO11*VLOOKUP(EO$6,LookupTables!$K$4:$L$14,2,FALSE)+EP11*VLOOKUP(EP$6,LookupTables!$K$4:$L$14,2,FALSE) -> 0 | ER11: =IF(EQ11<0.01,0,interp(INDIRECT("'DCM1 MPM-Woo'!O"&ER$3&":O"&ES$3),INDIRECT("'DCM1 MPM-Woo'!AA"&ER$3&":AA"&ES$3),EQ11,3)) -> 0 | ES11: 0 | ET11: 0 | EU11: 0 | EV11: =ET11*VLOOKUP(ET$6,LookupTables!$K$4:$L$14,2,FALSE)+EU11*VLOOKUP(EU$6,LookupTables!$K$4:$L$14,2,FALSE) -> 0 | EW11: =IF(EV11<0.01,0,interp(INDIRECT("'DCM1 MPM-Woo'!O"&EW$3&":O"&EX$3),INDIRECT("'DCM1 MPM-Woo'!AA"&EW$3&":AA"&EX$3),EV11,3)) -> 0 | EX11: 0 | EY11: 0 | EZ11: 0 | FA11: =EY11*VLOOKUP(EY$6,LookupTables!$K$4:$L$14,2,FALSE)+EZ11*VLOOKUP(EZ$6,LookupTables!$K$4:$L$14,2,FALSE) -> 0 | FB11: =IF(FA11<0.01,0,interp(INDIRECT("'DCM1 MPM-Woo'!O"&FB$3&":O"&FC$3),INDIRECT("'DCM1 MPM-Woo'!AA"&FB$3&":AA"&FC$3),FA11,3)) -> 0 | FC11: 0 | FD11: 0 | FE11: 0 | FF11: =FD11*VLOOKUP(FD$6,LookupTables!$K$4:$L$14,2,FALSE)+FE11*VLOOKUP(FE$6,LookupTables!$K$4:$L$14,2,FALSE) -> 0 | FG11: =IF(FF11<0.01,0,interp(INDIRECT("'DCM1 MPM-Woo'!O"&FG$3&":O"&FH$3),INDIRECT("'DCM1 MPM-Woo'!AA"&FG$3&":AA"&FH$3),FF11,3)) -> 0 | FH11: 0 | FI11: 0 | FJ11: 0 | FK11: =FI11*VLOOKUP(FI$6,LookupTables!$K$4:$L$14,2,FALSE)+FJ11*VLOOKUP(FJ$6,LookupTables!$K$4:$L$14,2,FALSE) -> 0 | FL11: =IF(FK11<0.01,0,interp(INDIRECT("'DCM1 MPM-Woo'!O"&FL$3&":O"&FM$3),INDIRECT("'DCM1 MPM-Woo'!AA"&FL$3&":AA"&FM$3),FK11,3)) -> 0 | FM11: 0 | FN11: 0 | FO11: =IF(FN11<0.01,0,interp(INDIRECT("'DCM1 MPM-Woo'!O"&FO$3&":O"&FP$3),INDIRECT("'DCM1 MPM-Woo'!AA"&FO$3&":AA"&FP$3),FN11,3)) -> 0 | FP11: 0 | FQ11: 0 | FR11: =IF(FQ11<0.01,0,interp(INDIRECT("'DCM1 MPM-Woo'!O"&FR$3&":O"&FS$3),INDIRECT("'DCM1 MPM-Woo'!AA"&FR$3&":AA"&FS$3),FQ11,3)) -> 0 | FS11: 0 | FT11: 0 | FU11: =IF(FT11<0.01,0,interp(INDIRECT("'DCM1 MPM-Woo'!O"&FU$3&":O"&FV$3),INDIRECT("'DCM1 MPM-Woo'!AA"&FU$3&":AA"&FV$3),FT11,3)) -> 0 | FV11: 0 | FW11: 0 | FX11: =IF(FW11<0.01,0,interp(INDIRECT("'DCM1 MPM-Woo'!O"&FX$3&":O"&FY$3),INDIRECT("'DCM1 MPM-Woo'!AA"&FX$3&":AA"&FY$3),FW11,3)) -> 0 | FY11: 0 | FZ11: 0 | GA11: =IF(FZ11<0.01,0,interp(INDIRECT("'DCM1 MPM-Woo'!O"&GA$3&":O"&GB$3),INDIRECT("'DCM1 MPM-Woo'!AA"&GA$3&":AA"&GB$3),FZ11,3)) -> 0 | GB11: 0 | GC11: 0 | GD11: =IF(GC11<0.01,0,interp(INDIRECT("'DCM1 MPM-Woo'!O"&GD$3&":O"&GE$3),INDIRECT("'DCM1 MPM-Woo'!AA"&GD$3&":AA"&GE$3),GC11,3)) -> 0 | GE11: 0 | GF11: 0 | GG11: =IF(GF11<0.01,0,interp(INDIRECT("'DCM1 MPM-Woo'!O"&GG$3&":O"&GH$3),INDIRECT("'DCM1 MPM-Woo'!AA"&GG$3&":AA"&GH$3),GF11,3)) -> 0 | GH11: 0 | GI11: 0 | GJ11: =IF(GI11<0.01,0,interp(INDIRECT("'DCM1 MPM-Woo'!O"&GJ$3&":O"&GK$3),INDIRECT("'DCM1 MPM-Woo'!AA"&GJ$3&":AA"&GK$3),GI11,3)) -> 0 | GK11: 0 | GL11: 0 | GM11: =IF(GL11<0.01,0,interp(INDIRECT("'DCM1 MPM-Woo'!O"&GM$3&":O"&GN$3),INDIRECT("'DCM1 MPM-Woo'!AA"&GM$3&":AA"&GN$3),GL11,3)) -> 0 | GN11: 0 | GO11: 0 | GP11: =IF(GO11<0.01,0,interp(INDIRECT("'DCM1 MPM-Woo'!O"&GP$3&":O"&GQ$3),INDIRECT("'DCM1 MPM-Woo'!AA"&GP$3&":AA"&GQ$3),GO11,3)) -> 0 | GQ11: 0 | GR11: 0 | GS11: =IF(GR11<0.01,0,interp(INDIRECT("'DCM1 MPM-Woo'!O"&GS$3&":O"&GT$3),INDIRECT("'DCM1 MPM-Woo'!AA"&GS$3&":AA"&GT$3),GR11,3)) -> 0 | GT11: 0 | GU11: 0 | GV11: =IF(GU11<0.01,0,interp(INDIRECT("'DCM1 MPM-Woo'!O"&GV$3&":O"&GW$3),INDIRECT("'DCM1 MPM-Woo'!AA"&GV$3&":AA"&GW$3),GU11,3)) -> 0 | GW11: 0
